Workbook

Sheet Cover
B3: Attachment 9.03
B4: Stand alone and avoidable cost model
B6: 2025-30 Regulatory Proposal
B8: 2024-11-26

Sheet Checklist
B2: Checklist
B4: Yearly update | H4: Initial set up
B6: Colour codes | D6: Steps | H6: Steps
B8: Key | D8: Step | E8: Tab | F8: Description | H8: Step | I8: Tab | J8: Description
B9: Inputs | D9: 1 | E9: X-factors | F9: From PTRM copy and paste x-factor calculations | H9: 1 | I9: X-factors | J9: From PTRM copy and paste x-factor calculations
B10: Parameter | D10: 2 | E10: Assets | F10: From PTRM, copy paste asset calculations | H10: 2 | I10: Assets | J10: From PTRM, copy paste asset calculations
B11: Calculation | D11: 3 | E11: PTRM inputs | F11: From PTRM inputs, copy paste inputs calculations | H11: 3 | I11: PTRM inputs | J11: From PTRM inputs, copy paste inputs calculations
B12: Outputs | D12: 4 | E12: Allocators | F12: Fill in projected/actual customer numbers for each year and code | H12: 4 | I12: Opex costs | J12: Type in operational cost categories into the red boxes
B13: Text | D13: 5 | E13: Allocators | F13: Fill in projected/actual energy consumed for each year and code | H13: 5 | I13: Opex costs | J13: Assign the percentage of operational costs to each category
H14: 6 | I14: Allocators | J14: Type in customer code, name and voltage level
H15: 7 | I15: Allocators | J15: Fill in projected customer numbers for each year and code
H16: 8 | I16: Allocators | J16: Fill in projected energy consumed for each year and code
H17: 9 | I17: Control panel | J17: For standalone costs, choose the proportion of scalable costs for each customer code
H18: 10 | I18: Control panel | J18: For operational costs, assign the percentage allocated to avoidable costs
H19: 11 | I19: Control panel | J19: For operational costs, assign the percentage allocated to the customer
H20: 12 | I20: Control panel | J20: For operational costs, assign if it is a scalable or non-scalable cost
H21: 13 | I21: Control panel | J21: For return of capex, assign the percentage allocated to avoidable costs
H22: 14 | I22: Control panel | J22: For return of capex, assign the percentage allocated to the customer
H23: 15 | I23: Control panel | J23: For return of capex, assign if it is a scalable or non-scalable cost
H24: 16 | I24: Control panel | J24: For return on capex, assign the percentage allocated to avoidable costs
H25: 17 | I25: Control panel | J25: For return on capex, assign the percentage allocated to the customer
H26: 18 | I26: Control panel | J26: For return on capex, assign if it is a scalable or non-scalable cost
H27: 19 | I27: Control panel | J27: For each operational cost and asset put a 1 or 0. This is to map similar opex to capex categories

Sheet Outputs
B2: Outputs
B4: Final output | P4: Standalone costs | AD4: Avoidable costs
B6: Avoidable costs (per cent of revenue) | I6: Standalone costs (per cent of revenue) | P6: Scalable | W6: Non scalable | AD6: Customer related costs | AK6: Energy related costs
B8: Class | C8: 2025-26 | D8: 2026-27 | E8: 2027-28 | F8: 2028-29 | G8: 2029-30 | I8: Class | J8: 2025-26 | K8: 2026-27 | L8: 2027-28 | M8: 2028-29 | N8: 2029-30 | P8: Type | Q8: 2025-26 | R8: 2026-27 | S8: 2027-28 | T8: 2028-29 | U8: 2029-30 | W8: Type | X8: 2025-26 | Y8: 2026-27 | Z8: 2027-28 | AA8: 2028-29 | AB8: 2029-30 | AD8: Type | AE8: 2025-26 | AF8: 2026-27 | AG8: 2027-28 | AH8: 2028-29 | AI8: 2029-30 | AK8: Type | AL8: 2025-26 | AM8: 2026-27 | AN8: 2027-28 | AO8: 2028-29 | AP8: 2029-30
B9: ICC | C9: =(AE$14*(_xlfn.XLOOKUP($B9,Allocators!$B$7:$B$9,Allocators!F$7:F$9)/Allocators!F$11)+AL$14*(_xlfn.XLOOKUP($B9,Allocators!$B$7:$B$9,Allocators!L$7:L$9)/Allocators!L$11))/'BBM Costs'!C$13 -> 0.006498090688 | D9: =(AF$14*(_xlfn.XLOOKUP($B9,Allocators!$B$7:$B$9,Allocators!G$7:G$9)/Allocators!G$11)+AM$14*(_xlfn.XLOOKUP($B9,Allocators!$B$7:$B$9,Allocators!M$7:M$9)/Allocators!M$11))/'BBM Costs'!D$13 -> 0.006406467626 | E9: =(AG$14*(_xlfn.XLOOKUP($B9,Allocators!$B$7:$B$9,Allocators!H$7:H$9)/Allocators!H$11)+AN$14*(_xlfn.XLOOKUP($B9,Allocators!$B$7:$B$9,Allocators!N$7:N$9)/Allocators!N$11))/'BBM Costs'!E$13 -> 0.006357972171 | F9: =(AH$14*(_xlfn.XLOOKUP($B9,Allocators!$B$7:$B$9,Allocators!I$7:I$9)/Allocators!I$11)+AO$14*(_xlfn.XLOOKUP($B9,Allocators!$B$7:$B$9,Allocators!O$7:O$9)/Allocators!O$11))/'BBM Costs'!F$13 -> 0.006332835613 | G9: =(AI$14*(_xlfn.XLOOKUP($B9,Allocators!$B$7:$B$9,Allocators!J$7:J$9)/Allocators!J$11)+AP$14*(_xlfn.XLOOKUP($B9,Allocators!$B$7:$B$9,Allocators!P$7:P$9)/Allocators!P$11))/'BBM Costs'!G$13 -> 0.006331484749 | I9: ICC | J9: =((X$14+(Q$14*_xlfn.XLOOKUP($I9,'Control panel'!$B$7:$B$9,'Control panel'!$C$7:$C$9)))/'BBM Costs'!C$13)+C9 -> 0.09475579413 | K9: =((Y$14+(R$14*_xlfn.XLOOKUP($I9,'Control panel'!$B$7:$B$9,'Control panel'!$C$7:$C$9)))/'BBM Costs'!D$13)+D9 -> 0.09868094012 | L9: =((Z$14+(S$14*_xlfn.XLOOKUP($I9,'Control panel'!$B$7:$B$9,'Control panel'!$C$7:$C$9)))/'BBM Costs'!E$13)+E9 -> 0.09732476177 | M9: =((AA$14+(T$14*_xlfn.XLOOKUP($I9,'Control panel'!$B$7:$B$9,'Control panel'!$C$7:$C$9)))/'BBM Costs'!F$13)+F9 -> 0.09480228613 | N9: =((AB$14+(U$14*_xlfn.XLOOKUP($I9,'Control panel'!$B$7:$B$9,'Control panel'!$C$7:$C$9)))/'BBM Costs'!G$13)+G9 -> 0.09370781423 | P9: Opex | Q9: =SUMPRODUCT('BBM Costs'!J$7:J$25,'Control panel'!$G$7:$G$25,--('Control panel'!$J$7:$J$25=Outputs!$P$6)) -> 348.6134164 | R9: =SUMPRODUCT('BBM Costs'!K$7:K$25,'Control panel'!$G$7:$G$25,--('Control panel'!$J$7:$J$25=Outputs!$P$6)) -> 361.1902813 | S9: =SUMPRODUCT('BBM Costs'!L$7:L$25,'Control panel'!$G$7:$G$25,--('Control panel'!$J$7:$J$25=Outputs!$P$6)) -> 374.398503 | T9: =SUMPRODUCT('BBM Costs'!M$7:M$25,'Control panel'!$G$7:$G$25,--('Control panel'!$J$7:$J$25=Outputs!$P$6)) -> 401.3450611 | U9: =SUMPRODUCT('BBM Costs'!N$7:N$25,'Control panel'!$G$7:$G$25,--('Control panel'!$J$7:$J$25=Outputs!$P$6)) -> 418.6014758 | W9: Opex | X9: =SUMPRODUCT('BBM Costs'!J$7:J$25,'Control panel'!$G$7:$G$25,--('Control panel'!$J$7:$J$25=$W$6)) -> 8.395284061 | Y9: =SUMPRODUCT('BBM Costs'!K$7:K$25,'Control panel'!$G$7:$G$25,--('Control panel'!$J$7:$J$25=$W$6)) -> 9.169107854 | Z9: =SUMPRODUCT('BBM Costs'!L$7:L$25,'Control panel'!$G$7:$G$25,--('Control panel'!$J$7:$J$25=$W$6)) -> 9.981374976 | AA9: =SUMPRODUCT('BBM Costs'!M$7:M$25,'Control panel'!$G$7:$G$25,--('Control panel'!$J$7:$J$25=$W$6)) -> 11.64034483 | AB9: =SUMPRODUCT('BBM Costs'!N$7:N$25,'Control panel'!$G$7:$G$25,--('Control panel'!$J$7:$J$25=$W$6)) -> 12.70305861 | AD9: O&M related | AE9: ='Avoidable costs'!J29 -> 66.10508846 | AF9: ='Avoidable costs'!K29 -> 68.49643033 | AG9: ='Avoidable costs'!L29 -> 71.00657334 | AH9: ='Avoidable costs'!M29 -> 76.13327546 | AI9: ='Avoidable costs'!N29 -> 79.41737189 | AK9: Asset related | AL9: =SUMPRODUCT(IF(AL$8='Avoidable costs'!$W$9:$W$158,1,0),'Avoidable costs'!$Y$9:$Y$158,'Avoidable costs'!$AC$9:$AC$158) -> 120.2440997 | AM9: =SUMPRODUCT(IF(AM$8='Avoidable costs'!$W$9:$W$158,1,0),'Avoidable costs'!$Y$9:$Y$158,'Avoidable costs'!$AC$9:$AC$158) -> 125.7507745 | AN9: =SUMPRODUCT(IF(AN$8='Avoidable costs'!$W$9:$W$158,1,0),'Avoidable costs'!$Y$9:$Y$158,'Avoidable costs'!$AC$9:$AC$158) -> 133.4688796 | AO9: =SUMPRODUCT(IF(AO$8='Avoidable costs'!$W$9:$W$158,1,0),'Avoidable costs'!$Y$9:$Y$158,'Avoidable costs'!$AC$9:$AC$158) -> 146.7050494 | AP9: =SUMPRODUCT(IF(AP$8='Avoidable costs'!$W$9:$W$158,1,0),'Avoidable costs'!$Y$9:$Y$158,'Avoidable costs'!$AC$9:$AC$158) -> 156.0951951
B10: CAC | C10: =(AE$14*(_xlfn.XLOOKUP($B10,Allocators!$B$7:$B$9,Allocators!F$7:F$9)/Allocators!F$11)+AL$14*(_xlfn.XLOOKUP($B10,Allocators!$B$7:$B$9,Allocators!L$7:L$9)/Allocators!L$11))/'BBM Costs'!C$13 -> 0.01366407434 | D10: =(AF$14*(_xlfn.XLOOKUP($B10,Allocators!$B$7:$B$9,Allocators!G$7:G$9)/Allocators!G$11)+AM$14*(_xlfn.XLOOKUP($B10,Allocators!$B$7:$B$9,Allocators!M$7:M$9)/Allocators!M$11))/'BBM Costs'!D$13 -> 0.01347089285 | E10: =(AG$14*(_xlfn.XLOOKUP($B10,Allocators!$B$7:$B$9,Allocators!H$7:H$9)/Allocators!H$11)+AN$14*(_xlfn.XLOOKUP($B10,Allocators!$B$7:$B$9,Allocators!N$7:N$9)/Allocators!N$11))/'BBM Costs'!E$13 -> 0.01336815138 | F10: =(AH$14*(_xlfn.XLOOKUP($B10,Allocators!$B$7:$B$9,Allocators!I$7:I$9)/Allocators!I$11)+AO$14*(_xlfn.XLOOKUP($B10,Allocators!$B$7:$B$9,Allocators!O$7:O$9)/Allocators!O$11))/'BBM Costs'!F$13 -> 0.01331455953 | G10: =(AI$14*(_xlfn.XLOOKUP($B10,Allocators!$B$7:$B$9,Allocators!J$7:J$9)/Allocators!J$11)+AP$14*(_xlfn.XLOOKUP($B10,Allocators!$B$7:$B$9,Allocators!P$7:P$9)/Allocators!P$11))/'BBM Costs'!G$13 -> 0.01331119196 | I10: CAC | J10: =((X$14+(Q$14*_xlfn.XLOOKUP($I10,'Control panel'!$B$7:$B$9,'Control panel'!$C$7:$C$9)))/'BBM Costs'!C$13)+C10 -> 0.3505863973 | K10: =((Y$14+(R$14*_xlfn.XLOOKUP($I10,'Control panel'!$B$7:$B$9,'Control panel'!$C$7:$C$9)))/'BBM Costs'!D$13)+D10 -> 0.3659528056 | L10: =((Z$14+(S$14*_xlfn.XLOOKUP($I10,'Control panel'!$B$7:$B$9,'Control panel'!$C$7:$C$9)))/'BBM Costs'!E$13)+E10 -> 0.3602303434 | M10: =((AA$14+(T$14*_xlfn.XLOOKUP($I10,'Control panel'!$B$7:$B$9,'Control panel'!$C$7:$C$9)))/'BBM Costs'!F$13)+F10 -> 0.3491002084 | N10: =((AB$14+(U$14*_xlfn.XLOOKUP($I10,'Control panel'!$B$7:$B$9,'Control panel'!$C$7:$C$9)))/'BBM Costs'!G$13)+G10 -> 0.3440878886 | P10: Return on | Q10: =SUMPRODUCT('BBM Costs'!X$7:X$36,'Control panel'!$U$7:$U$36,--('Control panel'!$X$7:$X$36=Outputs!$P$6)) -> 779.3946286 | R10: =SUMPRODUCT('BBM Costs'!Y$7:Y$36,'Control panel'!$U$7:$U$36,--('Control panel'!$X$7:$X$36=Outputs!$P$6)) -> 817.5189096 | S10: =SUMPRODUCT('BBM Costs'!Z$7:Z$36,'Control panel'!$U$7:$U$36,--('Control panel'!$X$7:$X$36=Outputs!$P$6)) -> 860.6160047 | T10: =SUMPRODUCT('BBM Costs'!AA$7:AA$36,'Control panel'!$U$7:$U$36,--('Control panel'!$X$7:$X$36=Outputs!$P$6)) -> 940.1526137 | U10: =SUMPRODUCT('BBM Costs'!AB$7:AB$36,'Control panel'!$U$7:$U$36,--('Control panel'!$X$7:$X$36=Outputs!$P$6)) -> 991.9237887 | W10: Return on | X10: =SUMPRODUCT('BBM Costs'!X$7:X$36,'Control panel'!$U$7:$U$36,--('Control panel'!$X$7:$X$36=$W$6)) -> 0 | Y10: =SUMPRODUCT('BBM Costs'!Y$7:Y$36,'Control panel'!$U$7:$U$36,--('Control panel'!$X$7:$X$36=$W$6)) -> 0 | Z10: =SUMPRODUCT('BBM Costs'!Z$7:Z$36,'Control panel'!$U$7:$U$36,--('Control panel'!$X$7:$X$36=$W$6)) -> 0 | AA10: =SUMPRODUCT('BBM Costs'!AA$7:AA$36,'Control panel'!$U$7:$U$36,--('Control panel'!$X$7:$X$36=$W$6)) -> 0 | AB10: =SUMPRODUCT('BBM Costs'!AB$7:AB$36,'Control panel'!$U$7:$U$36,--('Control panel'!$X$7:$X$36=$W$6)) -> 0 | AD10: Asset related | AE10: ='Avoidable costs'!Q29 -> 50.71005623 | AF10: ='Avoidable costs'!R29 -> 52.54448507 | AG10: ='Avoidable costs'!S29 -> 54.47004777 | AH10: ='Avoidable costs'!T29 -> 58.40280634 | AI10: ='Avoidable costs'!U29 -> 60.92207858
B11: SAC | C11: =(AE$14*(_xlfn.XLOOKUP($B11,Allocators!$B$7:$B$9,Allocators!F$7:F$9)/Allocators!F$11)+AL$14*(_xlfn.XLOOKUP($B11,Allocators!$B$7:$B$9,Allocators!L$7:L$9)/Allocators!L$11))/'BBM Costs'!C$13 -> 0.1314573488 | D11: =(AF$14*(_xlfn.XLOOKUP($B11,Allocators!$B$7:$B$9,Allocators!G$7:G$9)/Allocators!G$11)+AM$14*(_xlfn.XLOOKUP($B11,Allocators!$B$7:$B$9,Allocators!M$7:M$9)/Allocators!M$11))/'BBM Costs'!D$13 -> 0.1291987606 | E11: =(AG$14*(_xlfn.XLOOKUP($B11,Allocators!$B$7:$B$9,Allocators!H$7:H$9)/Allocators!H$11)+AN$14*(_xlfn.XLOOKUP($B11,Allocators!$B$7:$B$9,Allocators!N$7:N$9)/Allocators!N$11))/'BBM Costs'!E$13 -> 0.1273264128 | F11: =(AH$14*(_xlfn.XLOOKUP($B11,Allocators!$B$7:$B$9,Allocators!I$7:I$9)/Allocators!I$11)+AO$14*(_xlfn.XLOOKUP($B11,Allocators!$B$7:$B$9,Allocators!O$7:O$9)/Allocators!O$11))/'BBM Costs'!F$13 -> 0.1260601333 | G11: =(AI$14*(_xlfn.XLOOKUP($B11,Allocators!$B$7:$B$9,Allocators!J$7:J$9)/Allocators!J$11)+AP$14*(_xlfn.XLOOKUP($B11,Allocators!$B$7:$B$9,Allocators!P$7:P$9)/Allocators!P$11))/'BBM Costs'!G$13 -> 0.126039094 | I11: SAC | J11: =((X$14+(Q$14*_xlfn.XLOOKUP($I11,'Control panel'!$B$7:$B$9,'Control panel'!$C$7:$C$9)))/'BBM Costs'!C$13)+C11 -> 0.9657089107 | K11: =((Y$14+(R$14*_xlfn.XLOOKUP($I11,'Control panel'!$B$7:$B$9,'Control panel'!$C$7:$C$9)))/'BBM Costs'!D$13)+D11 -> 1.002095554 | L11: =((Z$14+(S$14*_xlfn.XLOOKUP($I11,'Control panel'!$B$7:$B$9,'Control panel'!$C$7:$C$9)))/'BBM Costs'!E$13)+E11 -> 0.9859794097 | M11: =((AA$14+(T$14*_xlfn.XLOOKUP($I11,'Control panel'!$B$7:$B$9,'Control panel'!$C$7:$C$9)))/'BBM Costs'!F$13)+F11 -> 0.9564781789 | N11: =((AB$14+(U$14*_xlfn.XLOOKUP($I11,'Control panel'!$B$7:$B$9,'Control panel'!$C$7:$C$9)))/'BBM Costs'!G$13)+G11 -> 0.9436165249 | P11: Return of | Q11: =SUMPRODUCT('BBM Costs'!Q$7:Q$36,'Control panel'!$N$7:$N$36,--('Control panel'!$Q$7:$Q$36=Outputs!$P$6)) -> 167.960733 | R11: =SUMPRODUCT('BBM Costs'!R$7:R$36,'Control panel'!$N$7:$N$36,--('Control panel'!$Q$7:$Q$36=Outputs!$P$6)) -> 257.179925 | S11: =SUMPRODUCT('BBM Costs'!S$7:S$36,'Control panel'!$N$7:$N$36,--('Control panel'!$Q$7:$Q$36=Outputs!$P$6)) -> 267.0102061 | T11: =SUMPRODUCT('BBM Costs'!T$7:T$36,'Control panel'!$N$7:$N$36,--('Control panel'!$Q$7:$Q$36=Outputs!$P$6)) -> 249.7147157 | U11: =SUMPRODUCT('BBM Costs'!U$7:U$36,'Control panel'!$N$7:$N$36,--('Control panel'!$Q$7:$Q$36=Outputs!$P$6)) -> 240.3859696 | W11: Return of | X11: =SUMPRODUCT('BBM Costs'!Q$7:Q$36,'Control panel'!$N$7:$N$36,--('Control panel'!$Q$7:$Q$36=$W$6)) -> 0 | Y11: =SUMPRODUCT('BBM Costs'!R$7:R$36,'Control panel'!$N$7:$N$36,--('Control panel'!$Q$7:$Q$36=$W$6)) -> 0 | Z11: =SUMPRODUCT('BBM Costs'!S$7:S$36,'Control panel'!$N$7:$N$36,--('Control panel'!$Q$7:$Q$36=$W$6)) -> 0 | AA11: =SUMPRODUCT('BBM Costs'!T$7:T$36,'Control panel'!$N$7:$N$36,--('Control panel'!$Q$7:$Q$36=$W$6)) -> 0 | AB11: =SUMPRODUCT('BBM Costs'!U$7:U$36,'Control panel'!$N$7:$N$36,--('Control panel'!$Q$7:$Q$36=$W$6)) -> 0
P14: Total | Q14: =SUM(Q9:Q11) -> 1295.968778 | R14: =SUM(R9:R11) -> 1435.889116 | S14: 1502.024714 | T14: 1591.21239 | U14: 1650.911234 | W14: Total | X14: =SUM(X9:X11) -> 8.395284061 | Y14: =SUM(Y9:Y11) -> 9.169107854 | Z14: 9.981374976 | AA14: 11.64034483 | AB14: 12.70305861 | AD14: Total | AE14: =SUM(AE9:AE11) -> 116.8151447 | AF14: =SUM(AF9:AF11) -> 121.0409154 | AG14: 125.4766211 | AH14: 134.5360818 | AI14: 140.3394505 | AK14: Total | AL14: =SUM(AL9:AL11) -> 120.2440997 | AM14: =SUM(AM9:AM11) -> 125.7507745 | AN14: 133.4688796 | AO14: 146.7050494 | AP14: 156.0951951

Sheet Avoidable costs
B2: Avoidable costs
B4: Customer related costs | W4: Energy related costs
B6: Total costs | I6: Operational expenditure | P6: Asset related costs | W6: Energy related costs | AE6: Matching | AZ6: Asset values
B8: Category | C8: 2025-26 | D8: 2026-27 | E8: 2027-28 | F8: 2028-29 | G8: 2029-30 | I8: Category | J8: 2025-26 | K8: 2026-27 | L8: 2027-28 | M8: 2028-29 | N8: 2029-30 | P8: Category | Q8: 2025-26 | R8: 2026-27 | S8: 2027-28 | T8: 2028-29 | U8: 2029-30 | W8: Year | X8: Category | Y8: Asset related helper column | Z8: Opex | AA8: Return of capex | AB8: Return on capex | AC8: Total | AE8: Category | AF8: =$B$9 -> Preventative maintenance | AG8: =$B$10 -> Corrective maintenance | AH8: =$B$11 -> Vegetation management | AI8: =$B$12 -> Emergency response | AJ8: =$B$13 -> Other network maintenance costs | AK8: =$B$14 -> Network operations | AL8: =$B$15 -> Network billing and other energy market services | AM8: =$B$16 -> Customer services | AN8: =$B$17 -> DSM initiatives | AO8: =$B$18 -> Levies | AP8: =$B$19 -> Debt raising costs | AQ8: =$B$20 -> Other support costs | AR8: =$B$21 -> Corporate allocations | AT8: =$B$23 -> EBSS | AU8: =$B$24 -> CESS | AV8: =$B$25 -> Control period carryover | AW8: =$B$26 -> Shared asset decrements | AX8: =$B$27 -> DMIA | AZ8: Year | BA8: Preventative maintenance | BB8: Corrective maintenance | BC8: Vegetation management | BD8: Emergency response | BE8: Other network maintenance costs | BF8: Network operations | BG8: Network billing and other energy market services | BH8: Customer services | BI8: DSM initiatives | BJ8: Levies | BK8: Debt raising costs | BL8: Other support costs | BM8: Corporate allocations | BO8: EBSS | BP8: CESS | BQ8: Control period carryover | BR8: Shared asset decrements | BS8: DMIA
B9: ='Opex costs'!B7 -> Preventative maintenance | C9: =_xlfn.XLOOKUP($B9,'BBM Costs'!$I$7:$I$25,'BBM Costs'!J$7:J$25)*_xlfn.XLOOKUP($B9,'Control panel'!$E$7:$E$25,'Control panel'!$F$7:$F$25) -> 34.8317312 | D9: =_xlfn.XLOOKUP($B9,'BBM Costs'!$I$7:$I$25,'BBM Costs'!K$7:K$25)*_xlfn.XLOOKUP($B9,'Control panel'!$E$7:$E$25,'Control panel'!$F$7:$F$25) -> 36.09176396 | E9: =_xlfn.XLOOKUP($B9,'BBM Costs'!$I$7:$I$25,'BBM Costs'!L$7:L$25)*_xlfn.XLOOKUP($B9,'Control panel'!$E$7:$E$25,'Control panel'!$F$7:$F$25) -> 37.41439477 | F9: =_xlfn.XLOOKUP($B9,'BBM Costs'!$I$7:$I$25,'BBM Costs'!M$7:M$25)*_xlfn.XLOOKUP($B9,'Control panel'!$E$7:$E$25,'Control panel'!$F$7:$F$25) -> 40.11572858 | G9: =_xlfn.XLOOKUP($B9,'BBM Costs'!$I$7:$I$25,'BBM Costs'!N$7:N$25)*_xlfn.XLOOKUP($B9,'Control panel'!$E$7:$E$25,'Control panel'!$F$7:$F$25) -> 41.84616668 | I9: =B9 -> Preventative maintenance | J9: =C9*_xlfn.XLOOKUP($I9,'Control panel'!$E$7:$E$25,'Control panel'!$H$7:$H$25) -> 8.707932801 | K9: =D9*_xlfn.XLOOKUP($I9,'Control panel'!$E$7:$E$25,'Control panel'!$H$7:$H$25) -> 9.022940991 | L9: =E9*_xlfn.XLOOKUP($I9,'Control panel'!$E$7:$E$25,'Control panel'!$H$7:$H$25) -> 9.353598692 | M9: =F9*_xlfn.XLOOKUP($I9,'Control panel'!$E$7:$E$25,'Control panel'!$H$7:$H$25) -> 10.02893214 | N9: =G9*_xlfn.XLOOKUP($I9,'Control panel'!$E$7:$E$25,'Control panel'!$H$7:$H$25) -> 10.46154167 | P9: =B9 -> Preventative maintenance | Q9: =C9*_xlfn.XLOOKUP($P9,'Control panel'!$E$7:$E$25,'Control panel'!$I$7:$I$25) -> 26.1237984 | R9: =D9*_xlfn.XLOOKUP($P9,'Control panel'!$E$7:$E$25,'Control panel'!$I$7:$I$25) -> 27.06882297 | S9: =E9*_xlfn.XLOOKUP($P9,'Control panel'!$E$7:$E$25,'Control panel'!$I$7:$I$25) -> 28.06079608 | T9: =F9*_xlfn.XLOOKUP($P9,'Control panel'!$E$7:$E$25,'Control panel'!$I$7:$I$25) -> 30.08679643 | U9: =G9*_xlfn.XLOOKUP($P9,'Control panel'!$E$7:$E$25,'Control panel'!$I$7:$I$25) -> 31.38462501 | W9: 2025-26 | X9: ='PTRM Data'!B7 -> OH Sub-transmission lines | Y9: =_xlfn.XLOOKUP(X9,'Control panel'!$L$7:$L$36,'Control panel'!$P$7:$P$36) -> 1 | Z9: =SUMPRODUCT(_xlfn.XLOOKUP(W9,$AZ$9:$AZ$13,$BA$9:$BS$13),_xlfn.XLOOKUP(X9,$AE$9:$AE$38,$AF$9:$AX$38)) -> 2.699327716 | AA9: =_xlfn.XLOOKUP(W9,'BBM Costs'!$Q$6:$U$6,_xlfn.XLOOKUP(X9,'BBM Costs'!$P$7:$P$36,'BBM Costs'!$Q$7:$U$36))*_xlfn.XLOOKUP(X9,'Control panel'!$L$7:$L$36,'Control panel'!$M$7:$M$36) -> 0 | AB9: =_xlfn.XLOOKUP(W9,'BBM Costs'!$X$6:$AB$6,_xlfn.XLOOKUP(X9,'BBM Costs'!$W$7:$W$36,'BBM Costs'!$X$7:$AB$36))*_xlfn.XLOOKUP(X9,'Control panel'!$S$7:$S$36,'Control panel'!$T$7:$T$36) -> 0 | AC9: =SUM(Z9:AB9) -> 2.699327716 | AE9: ='PTRM Data'!B7 -> OH Sub-transmission lines | AF9: ='Control panel'!$AA7/SUMPRODUCT('Control panel'!$AA$7:$AA$36,'Control panel'!AB$7:AB$36)*'Control panel'!AB7 -> 0.05421540101 | AG9: ='Control panel'!$AA7/SUMPRODUCT('Control panel'!$AA$7:$AA$36,'Control panel'!AC$7:AC$36)*'Control panel'!AC7 -> 0.05421540101 | AH9: ='Control panel'!$AA7/SUMPRODUCT('Control panel'!$AA$7:$AA$36,'Control panel'!AD$7:AD$36)*'Control panel'!AD7 -> 0.05637345896 | AI9: ='Control panel'!$AA7/SUMPRODUCT('Control panel'!$AA$7:$AA$36,'Control panel'!AE$7:AE$36)*'Control panel'!AE7 -> 0.1529667292 | AJ9: ='Control panel'!$AA7/SUMPRODUCT('Control panel'!$AA$7:$AA$36,'Control panel'!AF$7:AF$36)*'Control panel'!AF7 -> 0.04952896842 | AK9: ='Control panel'!$AA7/SUMPRODUCT('Control panel'!$AA$7:$AA$36,'Control panel'!AG$7:AG$36)*'Control panel'!AG7 -> 0.0550451959 | AL9: ='Control panel'!$AA7/SUMPRODUCT('Control panel'!$AA$7:$AA$36,'Control panel'!AH$7:AH$36)*'Control panel'!AH7 -> 0 | AM9: ='Control panel'!$AA7/SUMPRODUCT('Control panel'!$AA$7:$AA$36,'Control panel'!AI$7:AI$36)*'Control panel'!AI7 -> 0.04952896842 | AN9: ='Control panel'!$AA7/SUMPRODUCT('Control panel'!$AA$7:$AA$36,'Control panel'!AJ$7:AJ$36)*'Control panel'!AJ7 -> 0 | AO9: ='Control panel'!$AA7/SUMPRODUCT('Control panel'!$AA$7:$AA$36,'Control panel'!AK$7:AK$36)*'Control panel'!AK7 -> 0.04952896842 | AP9: ='Control panel'!$AA7/SUMPRODUCT('Control panel'!$AA$7:$AA$36,'Control panel'!AL$7:AL$36)*'Control panel'!AL7 -> 0.04952896842 | AQ9: ='Control panel'!$AA7/SUMPRODUCT('Control panel'!$AA$7:$AA$36,'Control panel'!AM$7:AM$36)*'Control panel'!AM7 -> 0.0550451959 | AR9: ='Control panel'!$AA7/SUMPRODUCT('Control panel'!$AA$7:$AA$36,'Control panel'!AN$7:AN$36)*'Control panel'!AN7 -> 0.05504600552 | AT9: ='Control panel'!$AA7/SUMPRODUCT('Control panel'!$AA$7:$AA$36,'Control panel'!AP$7:AP$36)*'Control panel'!AP7 -> 0.0494576238 | AU9: ='Control panel'!$AA7/SUMPRODUCT('Control panel'!$AA$7:$AA$36,'Control panel'!AQ$7:AQ$36)*'Control panel'!AQ7 -> 0.0494576238 | AV9: ='Control panel'!$AA7/SUMPRODUCT('Control panel'!$AA$7:$AA$36,'Control panel'!AR$7:AR$36)*'Control panel'!AR7 -> 0.0494576238 | AW9: ='Control panel'!$AA7/SUMPRODUCT('Control panel'!$AA$7:$AA$36,'Control panel'!AS$7:AS$36)*'Control panel'!AS7 -> 0.0494576238 | AX9: ='Control panel'!$AA7/SUMPRODUCT('Control panel'!$AA$7:$AA$36,'Control panel'!AT$7:AT$36)*'Control panel'!AT7 -> 0.0494576238 | AZ9: 2025-26 | BA9: =_xlfn.XLOOKUP($AZ9,$Q$8:$U$8,_xlfn.XLOOKUP(BA$8,$P$9:$P$27,$Q$9:$U$27)) -> 26.1237984 | BB9: =_xlfn.XLOOKUP($AZ9,$Q$8:$U$8,_xlfn.XLOOKUP(BB$8,$P$9:$P$27,$Q$9:$U$27)) -> 17.2559461 | BC9: =_xlfn.XLOOKUP($AZ9,$Q$8:$U$8,_xlfn.XLOOKUP(BC$8,$P$9:$P$27,$Q$9:$U$27)) -> 0 | BD9: =_xlfn.XLOOKUP($AZ9,$Q$8:$U$8,_xlfn.XLOOKUP(BD$8,$P$9:$P$27,$Q$9:$U$27)) -> 0 | BE9: =_xlfn.XLOOKUP($AZ9,$Q$8:$U$8,_xlfn.XLOOKUP(BE$8,$P$9:$P$27,$Q$9:$U$27)) -> 0 | BF9: =_xlfn.XLOOKUP($AZ9,$Q$8:$U$8,_xlfn.XLOOKUP(BF$8,$P$9:$P$27,$Q$9:$U$27)) -> 0 | BG9: =_xlfn.XLOOKUP($AZ9,$Q$8:$U$8,_xlfn.XLOOKUP(BG$8,$P$9:$P$27,$Q$9:$U$27)) -> 0 | BH9: =_xlfn.XLOOKUP($AZ9,$Q$8:$U$8,_xlfn.XLOOKUP(BH$8,$P$9:$P$27,$Q$9:$U$27)) -> 0 | BI9: =_xlfn.XLOOKUP($AZ9,$Q$8:$U$8,_xlfn.XLOOKUP(BI$8,$P$9:$P$27,$Q$9:$U$27)) -> 1.017726832 | BJ9: =_xlfn.XLOOKUP($AZ9,$Q$8:$U$8,_xlfn.XLOOKUP(BJ$8,$P$9:$P$27,$Q$9:$U$27)) -> 0 | BK9: =_xlfn.XLOOKUP($AZ9,$Q$8:$U$8,_xlfn.XLOOKUP(BK$8,$P$9:$P$27,$Q$9:$U$27)) -> 0 | BL9: =_xlfn.XLOOKUP($AZ9,$Q$8:$U$8,_xlfn.XLOOKUP(BL$8,$P$9:$P$27,$Q$9:$U$27)) -> 6.312584896 | BM9: =_xlfn.XLOOKUP($AZ9,$Q$8:$U$8,_xlfn.XLOOKUP(BM$8,$P$9:$P$27,$Q$9:$U$27)) -> 0 | BN9: =_xlfn.XLOOKUP($AZ9,$Q$8:$U$8,_xlfn.XLOOKUP(BN$8,$P$9:$P$27,$Q$9:$U$27)) -> 0 | BO9: =_xlfn.XLOOKUP($AZ9,$Q$8:$U$8,_xlfn.XLOOKUP(BO$8,$P$9:$P$27,$Q$9:$U$27)) -> 0 | BP9: =_xlfn.XLOOKUP($AZ9,$Q$8:$U$8,_xlfn.XLOOKUP(BP$8,$P$9:$P$27,$Q$9:$U$27)) -> 0 | BQ9: =_xlfn.XLOOKUP($AZ9,$Q$8:$U$8,_xlfn.XLOOKUP(BQ$8,$P$9:$P$27,$Q$9:$U$27)) -> 0 | BR9: =_xlfn.XLOOKUP($AZ9,$Q$8:$U$8,_xlfn.XLOOKUP(BR$8,$P$9:$P$27,$Q$9:$U$27)) -> 0 | BS9: =_xlfn.XLOOKUP($AZ9,$Q$8:$U$8,_xlfn.XLOOKUP(BS$8,$P$9:$P$27,$Q$9:$U$27)) -> 0
B10: ='Opex costs'!B8 -> Corrective maintenance | C10: =_xlfn.XLOOKUP($B10,'BBM Costs'!$I$7:$I$25,'BBM Costs'!J$7:J$25)*_xlfn.XLOOKUP($B10,'Control panel'!$E$7:$E$25,'Control panel'!$F$7:$F$25) -> 23.00792813 | D10: =_xlfn.XLOOKUP($B10,'BBM Costs'!$I$7:$I$25,'BBM Costs'!K$7:K$25)*_xlfn.XLOOKUP($B10,'Control panel'!$E$7:$E$25,'Control panel'!$F$7:$F$25) -> 23.84023655 | E10: =_xlfn.XLOOKUP($B10,'BBM Costs'!$I$7:$I$25,'BBM Costs'!L$7:L$25)*_xlfn.XLOOKUP($B10,'Control panel'!$E$7:$E$25,'Control panel'!$F$7:$F$25) -> 24.7138938 | F10: =_xlfn.XLOOKUP($B10,'BBM Costs'!$I$7:$I$25,'BBM Costs'!M$7:M$25)*_xlfn.XLOOKUP($B10,'Control panel'!$E$7:$E$25,'Control panel'!$F$7:$F$25) -> 26.49824652 | G10: =_xlfn.XLOOKUP($B10,'BBM Costs'!$I$7:$I$25,'BBM Costs'!N$7:N$25)*_xlfn.XLOOKUP($B10,'Control panel'!$E$7:$E$25,'Control panel'!$F$7:$F$25) -> 27.64127887 | I10: =B10 -> Corrective maintenance | J10: =C10*_xlfn.XLOOKUP($I10,'Control panel'!$E$7:$E$25,'Control panel'!$H$7:$H$25) -> 5.751982033 | K10: =D10*_xlfn.XLOOKUP($I10,'Control panel'!$E$7:$E$25,'Control panel'!$H$7:$H$25) -> 5.960059139 | L10: =E10*_xlfn.XLOOKUP($I10,'Control panel'!$E$7:$E$25,'Control panel'!$H$7:$H$25) -> 6.178473451 | M10: =F10*_xlfn.XLOOKUP($I10,'Control panel'!$E$7:$E$25,'Control panel'!$H$7:$H$25) -> 6.62456163 | N10: =G10*_xlfn.XLOOKUP($I10,'Control panel'!$E$7:$E$25,'Control panel'!$H$7:$H$25) -> 6.910319717 | P10: =B10 -> Corrective maintenance | Q10: =C10*_xlfn.XLOOKUP($P10,'Control panel'!$E$7:$E$25,'Control panel'!$I$7:$I$25) -> 17.2559461 | R10: =D10*_xlfn.XLOOKUP($P10,'Control panel'!$E$7:$E$25,'Control panel'!$I$7:$I$25) -> 17.88017742 | S10: =E10*_xlfn.XLOOKUP($P10,'Control panel'!$E$7:$E$25,'Control panel'!$I$7:$I$25) -> 18.53542035 | T10: =F10*_xlfn.XLOOKUP($P10,'Control panel'!$E$7:$E$25,'Control panel'!$I$7:$I$25) -> 19.87368489 | U10: =G10*_xlfn.XLOOKUP($P10,'Control panel'!$E$7:$E$25,'Control panel'!$I$7:$I$25) -> 20.73095915 | W10: 2025-26 | X10: ='PTRM Data'!B8 -> UG Sub-transmission cables | Y10: =_xlfn.XLOOKUP(X10,'Control panel'!$L$7:$L$36,'Control panel'!$P$7:$P$36) -> 1 | Z10: =SUMPRODUCT(_xlfn.XLOOKUP(W10,$AZ$9:$AZ$13,$BA$9:$BS$13),_xlfn.XLOOKUP(X10,$AE$9:$AE$38,$AF$9:$AX$38)) -> 3.003157257 | AA10: =_xlfn.XLOOKUP(W10,'BBM Costs'!$Q$6:$U$6,_xlfn.XLOOKUP(X10,'BBM Costs'!$P$7:$P$36,'BBM Costs'!$Q$7:$U$36))*_xlfn.XLOOKUP(X10,'Control panel'!$L$7:$L$36,'Control panel'!$M$7:$M$36) -> 0 | AB10: =_xlfn.XLOOKUP(W10,'BBM Costs'!$X$6:$AB$6,_xlfn.XLOOKUP(X10,'BBM Costs'!$W$7:$W$36,'BBM Costs'!$X$7:$AB$36))*_xlfn.XLOOKUP(X10,'Control panel'!$S$7:$S$36,'Control panel'!$T$7:$T$36) -> 0 | AC10: =SUM(Z10:AB10) -> 3.003157257 | AE10: ='PTRM Data'!B8 -> UG Sub-transmission cables | AF10: ='Control panel'!$AA8/SUMPRODUCT('Control panel'!$AA$7:$AA$36,'Control panel'!AB$7:AB$36)*'Control panel'!AB8 -> 0.06031775025 | AG10: ='Control panel'!$AA8/SUMPRODUCT('Control panel'!$AA$7:$AA$36,'Control panel'!AC$7:AC$36)*'Control panel'!AC8 -> 0.06031775025 | AH10: ='Control panel'!$AA8/SUMPRODUCT('Control panel'!$AA$7:$AA$36,'Control panel'!AD$7:AD$36)*'Control panel'!AD8 -> 0.06271871377 | AI10: ='Control panel'!$AA8/SUMPRODUCT('Control panel'!$AA$7:$AA$36,'Control panel'!AE$7:AE$36)*'Control panel'!AE8 -> 0 | AJ10: ='Control panel'!$AA8/SUMPRODUCT('Control panel'!$AA$7:$AA$36,'Control panel'!AF$7:AF$36)*'Control panel'!AF8 -> 0.05510382459 | AK10: ='Control panel'!$AA8/SUMPRODUCT('Control panel'!$AA$7:$AA$36,'Control panel'!AG$7:AG$36)*'Control panel'!AG8 -> 0.06124094476 | AL10: ='Control panel'!$AA8/SUMPRODUCT('Control panel'!$AA$7:$AA$36,'Control panel'!AH$7:AH$36)*'Control panel'!AH8 -> 0 | AM10: ='Control panel'!$AA8/SUMPRODUCT('Control panel'!$AA$7:$AA$36,'Control panel'!AI$7:AI$36)*'Control panel'!AI8 -> 0.05510382459 | AN10: ='Control panel'!$AA8/SUMPRODUCT('Control panel'!$AA$7:$AA$36,'Control panel'!AJ$7:AJ$36)*'Control panel'!AJ8 -> 0 | AO10: ='Control panel'!$AA8/SUMPRODUCT('Control panel'!$AA$7:$AA$36,'Control panel'!AK$7:AK$36)*'Control panel'!AK8 -> 0.05510382459 | AP10: ='Control panel'!$AA8/SUMPRODUCT('Control panel'!$AA$7:$AA$36,'Control panel'!AL$7:AL$36)*'Control panel'!AL8 -> 0.05510382459 | AQ10: ='Control panel'!$AA8/SUMPRODUCT('Control panel'!$AA$7:$AA$36,'Control panel'!AM$7:AM$36)*'Control panel'!AM8 -> 0.06124094476 | AR10: ='Control panel'!$AA8/SUMPRODUCT('Control panel'!$AA$7:$AA$36,'Control panel'!AN$7:AN$36)*'Control panel'!AN8 -> 0.06124184552 | AT10: ='Control panel'!$AA8/SUMPRODUCT('Control panel'!$AA$7:$AA$36,'Control panel'!AP$7:AP$36)*'Control panel'!AP8 -> 0.05502444959 | AU10: ='Control panel'!$AA8/SUMPRODUCT('Control panel'!$AA$7:$AA$36,'Control panel'!AQ$7:AQ$36)*'Control panel'!AQ8 -> 0.05502444959 | AV10: ='Control panel'!$AA8/SUMPRODUCT('Control panel'!$AA$7:$AA$36,'Control panel'!AR$7:AR$36)*'Control panel'!AR8 -> 0.05502444959 | AW10: ='Control panel'!$AA8/SUMPRODUCT('Control panel'!$AA$7:$AA$36,'Control panel'!AS$7:AS$36)*'Control panel'!AS8 -> 0.05502444959 | AX10: ='Control panel'!$AA8/SUMPRODUCT('Control panel'!$AA$7:$AA$36,'Control panel'!AT$7:AT$36)*'Control panel'!AT8 -> 0.05502444959 | AZ10: 2026-27 | BA10: =_xlfn.XLOOKUP($AZ10,$Q$8:$U$8,_xlfn.XLOOKUP(BA$8,$P$9:$P$27,$Q$9:$U$27)) -> 27.06882297 | BB10: =_xlfn.XLOOKUP($AZ10,$Q$8:$U$8,_xlfn.XLOOKUP(BB$8,$P$9:$P$27,$Q$9:$U$27)) -> 17.88017742 | BC10: =_xlfn.XLOOKUP($AZ10,$Q$8:$U$8,_xlfn.XLOOKUP(BC$8,$P$9:$P$27,$Q$9:$U$27)) -> 0 | BD10: =_xlfn.XLOOKUP($AZ10,$Q$8:$U$8,_xlfn.XLOOKUP(BD$8,$P$9:$P$27,$Q$9:$U$27)) -> 0 | BE10: =_xlfn.XLOOKUP($AZ10,$Q$8:$U$8,_xlfn.XLOOKUP(BE$8,$P$9:$P$27,$Q$9:$U$27)) -> 0 | BF10: =_xlfn.XLOOKUP($AZ10,$Q$8:$U$8,_xlfn.XLOOKUP(BF$8,$P$9:$P$27,$Q$9:$U$27)) -> 0 | BG10: =_xlfn.XLOOKUP($AZ10,$Q$8:$U$8,_xlfn.XLOOKUP(BG$8,$P$9:$P$27,$Q$9:$U$27)) -> 0 | BH10: =_xlfn.XLOOKUP($AZ10,$Q$8:$U$8,_xlfn.XLOOKUP(BH$8,$P$9:$P$27,$Q$9:$U$27)) -> 0 | BI10: =_xlfn.XLOOKUP($AZ10,$Q$8:$U$8,_xlfn.XLOOKUP(BI$8,$P$9:$P$27,$Q$9:$U$27)) -> 1.05454295 | BJ10: =_xlfn.XLOOKUP($AZ10,$Q$8:$U$8,_xlfn.XLOOKUP(BJ$8,$P$9:$P$27,$Q$9:$U$27)) -> 0 | BK10: =_xlfn.XLOOKUP($AZ10,$Q$8:$U$8,_xlfn.XLOOKUP(BK$8,$P$9:$P$27,$Q$9:$U$27)) -> 0 | BL10: =_xlfn.XLOOKUP($AZ10,$Q$8:$U$8,_xlfn.XLOOKUP(BL$8,$P$9:$P$27,$Q$9:$U$27)) -> 6.540941727 | BM10: =_xlfn.XLOOKUP($AZ10,$Q$8:$U$8,_xlfn.XLOOKUP(BM$8,$P$9:$P$27,$Q$9:$U$27)) -> 0 | BN10: =_xlfn.XLOOKUP($AZ10,$Q$8:$U$8,_xlfn.XLOOKUP(BN$8,$P$9:$P$27,$Q$9:$U$27)) -> 0 | BO10: =_xlfn.XLOOKUP($AZ10,$Q$8:$U$8,_xlfn.XLOOKUP(BO$8,$P$9:$P$27,$Q$9:$U$27)) -> 0 | BP10: =_xlfn.XLOOKUP($AZ10,$Q$8:$U$8,_xlfn.XLOOKUP(BP$8,$P$9:$P$27,$Q$9:$U$27)) -> 0 | BQ10: =_xlfn.XLOOKUP($AZ10,$Q$8:$U$8,_xlfn.XLOOKUP(BQ$8,$P$9:$P$27,$Q$9:$U$27)) -> 0 | BR10: =_xlfn.XLOOKUP($AZ10,$Q$8:$U$8,_xlfn.XLOOKUP(BR$8,$P$9:$P$27,$Q$9:$U$27)) -> 0 | BS10: =_xlfn.XLOOKUP($AZ10,$Q$8:$U$8,_xlfn.XLOOKUP(BS$8,$P$9:$P$27,$Q$9:$U$27)) -> 0
B11: ='Opex costs'!B9 -> Vegetation management | C11: =_xlfn.XLOOKUP($B11,'BBM Costs'!$I$7:$I$25,'BBM Costs'!J$7:J$25)*_xlfn.XLOOKUP($B11,'Control panel'!$E$7:$E$25,'Control panel'!$F$7:$F$25) -> 0 | D11: =_xlfn.XLOOKUP($B11,'BBM Costs'!$I$7:$I$25,'BBM Costs'!K$7:K$25)*_xlfn.XLOOKUP($B11,'Control panel'!$E$7:$E$25,'Control panel'!$F$7:$F$25) -> 0 | E11: =_xlfn.XLOOKUP($B11,'BBM Costs'!$I$7:$I$25,'BBM Costs'!L$7:L$25)*_xlfn.XLOOKUP($B11,'Control panel'!$E$7:$E$25,'Control panel'!$F$7:$F$25) -> 0 | F11: =_xlfn.XLOOKUP($B11,'BBM Costs'!$I$7:$I$25,'BBM Costs'!M$7:M$25)*_xlfn.XLOOKUP($B11,'Control panel'!$E$7:$E$25,'Control panel'!$F$7:$F$25) -> 0 | G11: =_xlfn.XLOOKUP($B11,'BBM Costs'!$I$7:$I$25,'BBM Costs'!N$7:N$25)*_xlfn.XLOOKUP($B11,'Control panel'!$E$7:$E$25,'Control panel'!$F$7:$F$25) -> 0 | I11: Vegetation management | J11: =C11*_xlfn.XLOOKUP($I11,'Control panel'!$E$7:$E$25,'Control panel'!$H$7:$H$25) -> 0 | K11: =D11*_xlfn.XLOOKUP($I11,'Control panel'!$E$7:$E$25,'Control panel'!$H$7:$H$25) -> 0 | L11: =E11*_xlfn.XLOOKUP($I11,'Control panel'!$E$7:$E$25,'Control panel'!$H$7:$H$25) -> 0 | M11: =F11*_xlfn.XLOOKUP($I11,'Control panel'!$E$7:$E$25,'Control panel'!$H$7:$H$25) -> 0 | N11: =G11*_xlfn.XLOOKUP($I11,'Control panel'!$E$7:$E$25,'Control panel'!$H$7:$H$25) -> 0 | P11: Vegetation management | Q11: =C11*_xlfn.XLOOKUP($P11,'Control panel'!$E$7:$E$25,'Control panel'!$I$7:$I$25) -> 0 | R11: =D11*_xlfn.XLOOKUP($P11,'Control panel'!$E$7:$E$25,'Control panel'!$I$7:$I$25) -> 0 | S11: =E11*_xlfn.XLOOKUP($P11,'Control panel'!$E$7:$E$25,'Control panel'!$I$7:$I$25) -> 0 | T11: =F11*_xlfn.XLOOKUP($P11,'Control panel'!$E$7:$E$25,'Control panel'!$I$7:$I$25) -> 0 | U11: =G11*_xlfn.XLOOKUP($P11,'Control panel'!$E$7:$E$25,'Control panel'!$I$7:$I$25) -> 0 | W11: 2025-26 | X11: ='PTRM Data'!B9 -> OH Distribution Lines | Y11: =_xlfn.XLOOKUP(X11,'Control panel'!$L$7:$L$36,'Control panel'!$P$7:$P$36) -> 0.75 | Z11: 10.92384293 | AA11: =_xlfn.XLOOKUP(W11,'BBM Costs'!$Q$6:$U$6,_xlfn.XLOOKUP(X11,'BBM Costs'!$P$7:$P$36,'BBM Costs'!$Q$7:$U$36))*_xlfn.XLOOKUP(X11,'Control panel'!$L$7:$L$36,'Control panel'!$M$7:$M$36) -> 6.315902291 | AB11: =_xlfn.XLOOKUP(W11,'BBM Costs'!$X$6:$AB$6,_xlfn.XLOOKUP(X11,'BBM Costs'!$W$7:$W$36,'BBM Costs'!$X$7:$AB$36))*_xlfn.XLOOKUP(X11,'Control panel'!$S$7:$S$36,'Control panel'!$T$7:$T$36) -> 45.05621798 | AC11: 62.2959632 | AE11: ='PTRM Data'!B9 -> OH Distribution Lines | AF11: ='Control panel'!$AA9/SUMPRODUCT('Control panel'!$AA$7:$AA$36,'Control panel'!AB$7:AB$36)*'Control panel'!AB9 -> 0.2194029726 | AG11: ='Control panel'!$AA9/SUMPRODUCT('Control panel'!$AA$7:$AA$36,'Control panel'!AC$7:AC$36)*'Control panel'!AC9 -> 0.2194029726 | AH11: ='Control panel'!$AA9/SUMPRODUCT('Control panel'!$AA$7:$AA$36,'Control panel'!AD$7:AD$36)*'Control panel'!AD9 -> 0.2281363642 | AI11: ='Control panel'!$AA9/SUMPRODUCT('Control panel'!$AA$7:$AA$36,'Control panel'!AE$7:AE$36)*'Control panel'!AE9 -> 0.6190372931 | AJ11: ='Control panel'!$AA9/SUMPRODUCT('Control panel'!$AA$7:$AA$36,'Control panel'!AF$7:AF$36)*'Control panel'!AF9 -> 0.2004375638 | AK11: ='Control panel'!$AA9/SUMPRODUCT('Control panel'!$AA$7:$AA$36,'Control panel'!AG$7:AG$36)*'Control panel'!AG9 -> 0.2227610491 | AL11: ='Control panel'!$AA9/SUMPRODUCT('Control panel'!$AA$7:$AA$36,'Control panel'!AH$7:AH$36)*'Control panel'!AH9 -> 0 | AM11: ='Control panel'!$AA9/SUMPRODUCT('Control panel'!$AA$7:$AA$36,'Control panel'!AI$7:AI$36)*'Control panel'!AI9 -> 0.2004375638 | AN11: ='Control panel'!$AA9/SUMPRODUCT('Control panel'!$AA$7:$AA$36,'Control panel'!AJ$7:AJ$36)*'Control panel'!AJ9 -> 0 | AO11: ='Control panel'!$AA9/SUMPRODUCT('Control panel'!$AA$7:$AA$36,'Control panel'!AK$7:AK$36)*'Control panel'!AK9 -> 0.2004375638 | AP11: ='Control panel'!$AA9/SUMPRODUCT('Control panel'!$AA$7:$AA$36,'Control panel'!AL$7:AL$36)*'Control panel'!AL9 -> 0.2004375638 | AQ11: ='Control panel'!$AA9/SUMPRODUCT('Control panel'!$AA$7:$AA$36,'Control panel'!AM$7:AM$36)*'Control panel'!AM9 -> 0.2227610491 | AR11: ='Control panel'!$AA9/SUMPRODUCT('Control panel'!$AA$7:$AA$36,'Control panel'!AN$7:AN$36)*'Control panel'!AN9 -> 0.2227643255 | AT11: ='Control panel'!$AA9/SUMPRODUCT('Control panel'!$AA$7:$AA$36,'Control panel'!AP$7:AP$36)*'Control panel'!AP9 -> 0.200148841 | AU11: ='Control panel'!$AA9/SUMPRODUCT('Control panel'!$AA$7:$AA$36,'Control panel'!AQ$7:AQ$36)*'Control panel'!AQ9 -> 0.200148841 | AV11: ='Control panel'!$AA9/SUMPRODUCT('Control panel'!$AA$7:$AA$36,'Control panel'!AR$7:AR$36)*'Control panel'!AR9 -> 0.200148841 | AW11: ='Control panel'!$AA9/SUMPRODUCT('Control panel'!$AA$7:$AA$36,'Control panel'!AS$7:AS$36)*'Control panel'!AS9 -> 0.200148841 | AX11: ='Control panel'!$AA9/SUMPRODUCT('Control panel'!$AA$7:$AA$36,'Control panel'!AT$7:AT$36)*'Control panel'!AT9 -> 0.200148841 | AZ11: 2027-28 | BA11: =_xlfn.XLOOKUP($AZ11,$Q$8:$U$8,_xlfn.XLOOKUP(BA$8,$P$9:$P$27,$Q$9:$U$27)) -> 28.06079608 | BB11: =_xlfn.XLOOKUP($AZ11,$Q$8:$U$8,_xlfn.XLOOKUP(BB$8,$P$9:$P$27,$Q$9:$U$27)) -> 18.53542035 | BC11: =_xlfn.XLOOKUP($AZ11,$Q$8:$U$8,_xlfn.XLOOKUP(BC$8,$P$9:$P$27,$Q$9:$U$27)) -> 0 | BD11: =_xlfn.XLOOKUP($AZ11,$Q$8:$U$8,_xlfn.XLOOKUP(BD$8,$P$9:$P$27,$Q$9:$U$27)) -> 0 | BE11: =_xlfn.XLOOKUP($AZ11,$Q$8:$U$8,_xlfn.XLOOKUP(BE$8,$P$9:$P$27,$Q$9:$U$27)) -> 0 | BF11: =_xlfn.XLOOKUP($AZ11,$Q$8:$U$8,_xlfn.XLOOKUP(BF$8,$P$9:$P$27,$Q$9:$U$27)) -> 0 | BG11: =_xlfn.XLOOKUP($AZ11,$Q$8:$U$8,_xlfn.XLOOKUP(BG$8,$P$9:$P$27,$Q$9:$U$27)) -> 0 | BH11: =_xlfn.XLOOKUP($AZ11,$Q$8:$U$8,_xlfn.XLOOKUP(BH$8,$P$9:$P$27,$Q$9:$U$27)) -> 0 | BI11: =_xlfn.XLOOKUP($AZ11,$Q$8:$U$8,_xlfn.XLOOKUP(BI$8,$P$9:$P$27,$Q$9:$U$27)) -> 1.093188083 | BJ11: =_xlfn.XLOOKUP($AZ11,$Q$8:$U$8,_xlfn.XLOOKUP(BJ$8,$P$9:$P$27,$Q$9:$U$27)) -> 0 | BK11: =_xlfn.XLOOKUP($AZ11,$Q$8:$U$8,_xlfn.XLOOKUP(BK$8,$P$9:$P$27,$Q$9:$U$27)) -> 0 | BL11: =_xlfn.XLOOKUP($AZ11,$Q$8:$U$8,_xlfn.XLOOKUP(BL$8,$P$9:$P$27,$Q$9:$U$27)) -> 6.780643257 | BM11: =_xlfn.XLOOKUP($AZ11,$Q$8:$U$8,_xlfn.XLOOKUP(BM$8,$P$9:$P$27,$Q$9:$U$27)) -> 0 | BN11: =_xlfn.XLOOKUP($AZ11,$Q$8:$U$8,_xlfn.XLOOKUP(BN$8,$P$9:$P$27,$Q$9:$U$27)) -> 0 | BO11: =_xlfn.XLOOKUP($AZ11,$Q$8:$U$8,_xlfn.XLOOKUP(BO$8,$P$9:$P$27,$Q$9:$U$27)) -> 0 | BP11: =_xlfn.XLOOKUP($AZ11,$Q$8:$U$8,_xlfn.XLOOKUP(BP$8,$P$9:$P$27,$Q$9:$U$27)) -> 0 | BQ11: =_xlfn.XLOOKUP($AZ11,$Q$8:$U$8,_xlfn.XLOOKUP(BQ$8,$P$9:$P$27,$Q$9:$U$27)) -> 0 | BR11: =_xlfn.XLOOKUP($AZ11,$Q$8:$U$8,_xlfn.XLOOKUP(BR$8,$P$9:$P$27,$Q$9:$U$27)) -> 0 | BS11: =_xlfn.XLOOKUP($AZ11,$Q$8:$U$8,_xlfn.XLOOKUP(BS$8,$P$9:$P$27,$Q$9:$U$27)) -> 0
B12: ='Opex costs'!B10 -> Emergency response | C12: =_xlfn.XLOOKUP($B12,'BBM Costs'!$I$7:$I$25,'BBM Costs'!J$7:J$25)*_xlfn.XLOOKUP($B12,'Control panel'!$E$7:$E$25,'Control panel'!$F$7:$F$25) -> 0 | D12: =_xlfn.XLOOKUP($B12,'BBM Costs'!$I$7:$I$25,'BBM Costs'!K$7:K$25)*_xlfn.XLOOKUP($B12,'Control panel'!$E$7:$E$25,'Control panel'!$F$7:$F$25) -> 0 | E12: =_xlfn.XLOOKUP($B12,'BBM Costs'!$I$7:$I$25,'BBM Costs'!L$7:L$25)*_xlfn.XLOOKUP($B12,'Control panel'!$E$7:$E$25,'Control panel'!$F$7:$F$25) -> 0 | F12: =_xlfn.XLOOKUP($B12,'BBM Costs'!$I$7:$I$25,'BBM Costs'!M$7:M$25)*_xlfn.XLOOKUP($B12,'Control panel'!$E$7:$E$25,'Control panel'!$F$7:$F$25) -> 0 | G12: =_xlfn.XLOOKUP($B12,'BBM Costs'!$I$7:$I$25,'BBM Costs'!N$7:N$25)*_xlfn.XLOOKUP($B12,'Control panel'!$E$7:$E$25,'Control panel'!$F$7:$F$25) -> 0 | I12: Emergency response | J12: =C12*_xlfn.XLOOKUP($I12,'Control panel'!$E$7:$E$25,'Control panel'!$H$7:$H$25) -> 0 | K12: =D12*_xlfn.XLOOKUP($I12,'Control panel'!$E$7:$E$25,'Control panel'!$H$7:$H$25) -> 0 | L12: =E12*_xlfn.XLOOKUP($I12,'Control panel'!$E$7:$E$25,'Control panel'!$H$7:$H$25) -> 0 | M12: =F12*_xlfn.XLOOKUP($I12,'Control panel'!$E$7:$E$25,'Control panel'!$H$7:$H$25) -> 0 | N12: =G12*_xlfn.XLOOKUP($I12,'Control panel'!$E$7:$E$25,'Control panel'!$H$7:$H$25) -> 0 | P12: Emergency response | Q12: =C12*_xlfn.XLOOKUP($P12,'Control panel'!$E$7:$E$25,'Control panel'!$I$7:$I$25) -> 0 | R12: =D12*_xlfn.XLOOKUP($P12,'Control panel'!$E$7:$E$25,'Control panel'!$I$7:$I$25) -> 0 | S12: =E12*_xlfn.XLOOKUP($P12,'Control panel'!$E$7:$E$25,'Control panel'!$I$7:$I$25) -> 0 | T12: =F12*_xlfn.XLOOKUP($P12,'Control panel'!$E$7:$E$25,'Control panel'!$I$7:$I$25) -> 0 | U12: =G12*_xlfn.XLOOKUP($P12,'Control panel'!$E$7:$E$25,'Control panel'!$I$7:$I$25) -> 0 | W12: 2025-26 | X12: ='PTRM Data'!B10 -> UG Distribution Cables | Y12: =_xlfn.XLOOKUP(X12,'Control panel'!$L$7:$L$36,'Control panel'!$P$7:$P$36) -> 0.75 | Z12: 9.49147478 | AA12: =_xlfn.XLOOKUP(W12,'BBM Costs'!$Q$6:$U$6,_xlfn.XLOOKUP(X12,'BBM Costs'!$P$7:$P$36,'BBM Costs'!$Q$7:$U$36))*_xlfn.XLOOKUP(X12,'Control panel'!$L$7:$L$36,'Control panel'!$M$7:$M$36) -> -1.132442683 | AB12: =_xlfn.XLOOKUP(W12,'BBM Costs'!$X$6:$AB$6,_xlfn.XLOOKUP(X12,'BBM Costs'!$W$7:$W$36,'BBM Costs'!$X$7:$AB$36))*_xlfn.XLOOKUP(X12,'Control panel'!$S$7:$S$36,'Control panel'!$T$7:$T$36) -> 39.14830701 | AC12: 47.50733911 | AE12: ='PTRM Data'!B10 -> UG Distribution Cables | AF12: ='Control panel'!$AA10/SUMPRODUCT('Control panel'!$AA$7:$AA$36,'Control panel'!AB$7:AB$36)*'Control panel'!AB10 -> 0.1906341747 | AG12: ='Control panel'!$AA10/SUMPRODUCT('Control panel'!$AA$7:$AA$36,'Control panel'!AC$7:AC$36)*'Control panel'!AC10 -> 0.1906341747 | AH12: ='Control panel'!$AA10/SUMPRODUCT('Control panel'!$AA$7:$AA$36,'Control panel'!AD$7:AD$36)*'Control panel'!AD10 -> 0.1982224169 | AI12: ='Control panel'!$AA10/SUMPRODUCT('Control panel'!$AA$7:$AA$36,'Control panel'!AE$7:AE$36)*'Control panel'!AE10 -> 0 | AJ12: ='Control panel'!$AA10/SUMPRODUCT('Control panel'!$AA$7:$AA$36,'Control panel'!AF$7:AF$36)*'Control panel'!AF10 -> 0.1741555691 | AK12: ='Control panel'!$AA10/SUMPRODUCT('Control panel'!$AA$7:$AA$36,'Control panel'!AG$7:AG$36)*'Control panel'!AG10 -> 0.1935519298 | AL12: ='Control panel'!$AA10/SUMPRODUCT('Control panel'!$AA$7:$AA$36,'Control panel'!AH$7:AH$36)*'Control panel'!AH10 -> 0 | AM12: ='Control panel'!$AA10/SUMPRODUCT('Control panel'!$AA$7:$AA$36,'Control panel'!AI$7:AI$36)*'Control panel'!AI10 -> 0.1741555691 | AN12: ='Control panel'!$AA10/SUMPRODUCT('Control panel'!$AA$7:$AA$36,'Control panel'!AJ$7:AJ$36)*'Control panel'!AJ10 -> 0 | AO12: ='Control panel'!$AA10/SUMPRODUCT('Control panel'!$AA$7:$AA$36,'Control panel'!AK$7:AK$36)*'Control panel'!AK10 -> 0.1741555691 | AP12: ='Control panel'!$AA10/SUMPRODUCT('Control panel'!$AA$7:$AA$36,'Control panel'!AL$7:AL$36)*'Control panel'!AL10 -> 0.1741555691 | AQ12: ='Control panel'!$AA10/SUMPRODUCT('Control panel'!$AA$7:$AA$36,'Control panel'!AM$7:AM$36)*'Control panel'!AM10 -> 0.1935519298 | AR12: ='Control panel'!$AA10/SUMPRODUCT('Control panel'!$AA$7:$AA$36,'Control panel'!AN$7:AN$36)*'Control panel'!AN10 -> 0.1935547766 | AT12: ='Control panel'!$AA10/SUMPRODUCT('Control panel'!$AA$7:$AA$36,'Control panel'!AP$7:AP$36)*'Control panel'!AP10 -> 0.1739047046 | AU12: ='Control panel'!$AA10/SUMPRODUCT('Control panel'!$AA$7:$AA$36,'Control panel'!AQ$7:AQ$36)*'Control panel'!AQ10 -> 0.1739047046 | AV12: ='Control panel'!$AA10/SUMPRODUCT('Control panel'!$AA$7:$AA$36,'Control panel'!AR$7:AR$36)*'Control panel'!AR10 -> 0.1739047046 | AW12: ='Control panel'!$AA10/SUMPRODUCT('Control panel'!$AA$7:$AA$36,'Control panel'!AS$7:AS$36)*'Control panel'!AS10 -> 0.1739047046 | AX12: ='Control panel'!$AA10/SUMPRODUCT('Control panel'!$AA$7:$AA$36,'Control panel'!AT$7:AT$36)*'Control panel'!AT10 -> 0.1739047046 | AZ12: 2028-29 | BA12: =_xlfn.XLOOKUP($AZ12,$Q$8:$U$8,_xlfn.XLOOKUP(BA$8,$P$9:$P$27,$Q$9:$U$27)) -> 30.08679643 | BB12: =_xlfn.XLOOKUP($AZ12,$Q$8:$U$8,_xlfn.XLOOKUP(BB$8,$P$9:$P$27,$Q$9:$U$27)) -> 19.87368489 | BC12: =_xlfn.XLOOKUP($AZ12,$Q$8:$U$8,_xlfn.XLOOKUP(BC$8,$P$9:$P$27,$Q$9:$U$27)) -> 0 | BD12: =_xlfn.XLOOKUP($AZ12,$Q$8:$U$8,_xlfn.XLOOKUP(BD$8,$P$9:$P$27,$Q$9:$U$27)) -> 0 | BE12: =_xlfn.XLOOKUP($AZ12,$Q$8:$U$8,_xlfn.XLOOKUP(BE$8,$P$9:$P$27,$Q$9:$U$27)) -> 0 | BF12: =_xlfn.XLOOKUP($AZ12,$Q$8:$U$8,_xlfn.XLOOKUP(BF$8,$P$9:$P$27,$Q$9:$U$27)) -> 0 | BG12: =_xlfn.XLOOKUP($AZ12,$Q$8:$U$8,_xlfn.XLOOKUP(BG$8,$P$9:$P$27,$Q$9:$U$27)) -> 0 | BH12: =_xlfn.XLOOKUP($AZ12,$Q$8:$U$8,_xlfn.XLOOKUP(BH$8,$P$9:$P$27,$Q$9:$U$27)) -> 0 | BI12: =_xlfn.XLOOKUP($AZ12,$Q$8:$U$8,_xlfn.XLOOKUP(BI$8,$P$9:$P$27,$Q$9:$U$27)) -> 1.172116686 | BJ12: =_xlfn.XLOOKUP($AZ12,$Q$8:$U$8,_xlfn.XLOOKUP(BJ$8,$P$9:$P$27,$Q$9:$U$27)) -> 0 | BK12: =_xlfn.XLOOKUP($AZ12,$Q$8:$U$8,_xlfn.XLOOKUP(BK$8,$P$9:$P$27,$Q$9:$U$27)) -> 0 | BL12: =_xlfn.XLOOKUP($AZ12,$Q$8:$U$8,_xlfn.XLOOKUP(BL$8,$P$9:$P$27,$Q$9:$U$27)) -> 7.270208329 | BM12: =_xlfn.XLOOKUP($AZ12,$Q$8:$U$8,_xlfn.XLOOKUP(BM$8,$P$9:$P$27,$Q$9:$U$27)) -> 0 | BN12: =_xlfn.XLOOKUP($AZ12,$Q$8:$U$8,_xlfn.XLOOKUP(BN$8,$P$9:$P$27,$Q$9:$U$27)) -> 0 | BO12: =_xlfn.XLOOKUP($AZ12,$Q$8:$U$8,_xlfn.XLOOKUP(BO$8,$P$9:$P$27,$Q$9:$U$27)) -> 0 | BP12: =_xlfn.XLOOKUP($AZ12,$Q$8:$U$8,_xlfn.XLOOKUP(BP$8,$P$9:$P$27,$Q$9:$U$27)) -> 0 | BQ12: =_xlfn.XLOOKUP($AZ12,$Q$8:$U$8,_xlfn.XLOOKUP(BQ$8,$P$9:$P$27,$Q$9:$U$27)) -> 0 | BR12: =_xlfn.XLOOKUP($AZ12,$Q$8:$U$8,_xlfn.XLOOKUP(BR$8,$P$9:$P$27,$Q$9:$U$27)) -> 0 | BS12: =_xlfn.XLOOKUP($AZ12,$Q$8:$U$8,_xlfn.XLOOKUP(BS$8,$P$9:$P$27,$Q$9:$U$27)) -> 0
B13: ='Opex costs'!B11 -> Other network maintenance costs | C13: =_xlfn.XLOOKUP($B13,'BBM Costs'!$I$7:$I$25,'BBM Costs'!J$7:J$25)*_xlfn.XLOOKUP($B13,'Control panel'!$E$7:$E$25,'Control panel'!$F$7:$F$25) -> 0 | D13: =_xlfn.XLOOKUP($B13,'BBM Costs'!$I$7:$I$25,'BBM Costs'!K$7:K$25)*_xlfn.XLOOKUP($B13,'Control panel'!$E$7:$E$25,'Control panel'!$F$7:$F$25) -> 0 | E13: =_xlfn.XLOOKUP($B13,'BBM Costs'!$I$7:$I$25,'BBM Costs'!L$7:L$25)*_xlfn.XLOOKUP($B13,'Control panel'!$E$7:$E$25,'Control panel'!$F$7:$F$25) -> 0 | F13: =_xlfn.XLOOKUP($B13,'BBM Costs'!$I$7:$I$25,'BBM Costs'!M$7:M$25)*_xlfn.XLOOKUP($B13,'Control panel'!$E$7:$E$25,'Control panel'!$F$7:$F$25) -> 0 | G13: =_xlfn.XLOOKUP($B13,'BBM Costs'!$I$7:$I$25,'BBM Costs'!N$7:N$25)*_xlfn.XLOOKUP($B13,'Control panel'!$E$7:$E$25,'Control panel'!$F$7:$F$25) -> 0 | I13: Other network maintenance costs | J13: =C13*_xlfn.XLOOKUP($I13,'Control panel'!$E$7:$E$25,'Control panel'!$H$7:$H$25) -> 0 | K13: =D13*_xlfn.XLOOKUP($I13,'Control panel'!$E$7:$E$25,'Control panel'!$H$7:$H$25) -> 0 | L13: =E13*_xlfn.XLOOKUP($I13,'Control panel'!$E$7:$E$25,'Control panel'!$H$7:$H$25) -> 0 | M13: =F13*_xlfn.XLOOKUP($I13,'Control panel'!$E$7:$E$25,'Control panel'!$H$7:$H$25) -> 0 | N13: =G13*_xlfn.XLOOKUP($I13,'Control panel'!$E$7:$E$25,'Control panel'!$H$7:$H$25) -> 0 | P13: Other network maintenance costs | Q13: =C13*_xlfn.XLOOKUP($P13,'Control panel'!$E$7:$E$25,'Control panel'!$I$7:$I$25) -> 0 | R13: =D13*_xlfn.XLOOKUP($P13,'Control panel'!$E$7:$E$25,'Control panel'!$I$7:$I$25) -> 0 | S13: =E13*_xlfn.XLOOKUP($P13,'Control panel'!$E$7:$E$25,'Control panel'!$I$7:$I$25) -> 0 | T13: =F13*_xlfn.XLOOKUP($P13,'Control panel'!$E$7:$E$25,'Control panel'!$I$7:$I$25) -> 0 | U13: =G13*_xlfn.XLOOKUP($P13,'Control panel'!$E$7:$E$25,'Control panel'!$I$7:$I$25) -> 0 | W13: 2025-26 | X13: ='PTRM Data'!B11 -> Distribution Equipment | Y13: =_xlfn.XLOOKUP(X13,'Control panel'!$L$7:$L$36,'Control panel'!$P$7:$P$36) -> 0.75 | Z13: 1.963790372 | AA13: =_xlfn.XLOOKUP(W13,'BBM Costs'!$Q$6:$U$6,_xlfn.XLOOKUP(X13,'BBM Costs'!$P$7:$P$36,'BBM Costs'!$Q$7:$U$36))*_xlfn.XLOOKUP(X13,'Control panel'!$L$7:$L$36,'Control panel'!$M$7:$M$36) -> 2.026241731 | AB13: =_xlfn.XLOOKUP(W13,'BBM Costs'!$X$6:$AB$6,_xlfn.XLOOKUP(X13,'BBM Costs'!$W$7:$W$36,'BBM Costs'!$X$7:$AB$36))*_xlfn.XLOOKUP(X13,'Control panel'!$S$7:$S$36,'Control panel'!$T$7:$T$36) -> 8.099802208 | AC13: 12.08983431 | AE13: ='PTRM Data'!B11 -> Distribution Equipment | AF13: ='Control panel'!$AA11/SUMPRODUCT('Control panel'!$AA$7:$AA$36,'Control panel'!AB$7:AB$36)*'Control panel'!AB11 -> 0.0394422959 | AG13: ='Control panel'!$AA11/SUMPRODUCT('Control panel'!$AA$7:$AA$36,'Control panel'!AC$7:AC$36)*'Control panel'!AC11 -> 0.0394422959 | AH13: ='Control panel'!$AA11/SUMPRODUCT('Control panel'!$AA$7:$AA$36,'Control panel'!AD$7:AD$36)*'Control panel'!AD11 -> 0.04101230661 | AI13: ='Control panel'!$AA11/SUMPRODUCT('Control panel'!$AA$7:$AA$36,'Control panel'!AE$7:AE$36)*'Control panel'!AE11 -> 0 | AJ13: ='Control panel'!$AA11/SUMPRODUCT('Control panel'!$AA$7:$AA$36,'Control panel'!AF$7:AF$36)*'Control panel'!AF11 -> 0.03603286505 | AK13: ='Control panel'!$AA11/SUMPRODUCT('Control panel'!$AA$7:$AA$36,'Control panel'!AG$7:AG$36)*'Control panel'!AG11 -> 0.04004598073 | AL13: ='Control panel'!$AA11/SUMPRODUCT('Control panel'!$AA$7:$AA$36,'Control panel'!AH$7:AH$36)*'Control panel'!AH11 -> 0 | AM13: ='Control panel'!$AA11/SUMPRODUCT('Control panel'!$AA$7:$AA$36,'Control panel'!AI$7:AI$36)*'Control panel'!AI11 -> 0.03603286505 | AN13: ='Control panel'!$AA11/SUMPRODUCT('Control panel'!$AA$7:$AA$36,'Control panel'!AJ$7:AJ$36)*'Control panel'!AJ11 -> 0 | AO13: ='Control panel'!$AA11/SUMPRODUCT('Control panel'!$AA$7:$AA$36,'Control panel'!AK$7:AK$36)*'Control panel'!AK11 -> 0.03603286505 | AP13: ='Control panel'!$AA11/SUMPRODUCT('Control panel'!$AA$7:$AA$36,'Control panel'!AL$7:AL$36)*'Control panel'!AL11 -> 0.03603286505 | AQ13: ='Control panel'!$AA11/SUMPRODUCT('Control panel'!$AA$7:$AA$36,'Control panel'!AM$7:AM$36)*'Control panel'!AM11 -> 0.04004598073 | AR13: ='Control panel'!$AA11/SUMPRODUCT('Control panel'!$AA$7:$AA$36,'Control panel'!AN$7:AN$36)*'Control panel'!AN11 -> 0.04004656975 | AT13: ='Control panel'!$AA11/SUMPRODUCT('Control panel'!$AA$7:$AA$36,'Control panel'!AP$7:AP$36)*'Control panel'!AP11 -> 0.03598096105 | AU13: ='Control panel'!$AA11/SUMPRODUCT('Control panel'!$AA$7:$AA$36,'Control panel'!AQ$7:AQ$36)*'Control panel'!AQ11 -> 0.03598096105 | AV13: ='Control panel'!$AA11/SUMPRODUCT('Control panel'!$AA$7:$AA$36,'Control panel'!AR$7:AR$36)*'Control panel'!AR11 -> 0.03598096105 | AW13: ='Control panel'!$AA11/SUMPRODUCT('Control panel'!$AA$7:$AA$36,'Control panel'!AS$7:AS$36)*'Control panel'!AS11 -> 0.03598096105 | AX13: ='Control panel'!$AA11/SUMPRODUCT('Control panel'!$AA$7:$AA$36,'Control panel'!AT$7:AT$36)*'Control panel'!AT11 -> 0.03598096105 | AZ13: 2029-30 | BA13: =_xlfn.XLOOKUP($AZ13,$Q$8:$U$8,_xlfn.XLOOKUP(BA$8,$P$9:$P$27,$Q$9:$U$27)) -> 31.38462501 | BB13: =_xlfn.XLOOKUP($AZ13,$Q$8:$U$8,_xlfn.XLOOKUP(BB$8,$P$9:$P$27,$Q$9:$U$27)) -> 20.73095915 | BC13: =_xlfn.XLOOKUP($AZ13,$Q$8:$U$8,_xlfn.XLOOKUP(BC$8,$P$9:$P$27,$Q$9:$U$27)) -> 0 | BD13: =_xlfn.XLOOKUP($AZ13,$Q$8:$U$8,_xlfn.XLOOKUP(BD$8,$P$9:$P$27,$Q$9:$U$27)) -> 0 | BE13: =_xlfn.XLOOKUP($AZ13,$Q$8:$U$8,_xlfn.XLOOKUP(BE$8,$P$9:$P$27,$Q$9:$U$27)) -> 0 | BF13: =_xlfn.XLOOKUP($AZ13,$Q$8:$U$8,_xlfn.XLOOKUP(BF$8,$P$9:$P$27,$Q$9:$U$27)) -> 0 | BG13: =_xlfn.XLOOKUP($AZ13,$Q$8:$U$8,_xlfn.XLOOKUP(BG$8,$P$9:$P$27,$Q$9:$U$27)) -> 0 | BH13: =_xlfn.XLOOKUP($AZ13,$Q$8:$U$8,_xlfn.XLOOKUP(BH$8,$P$9:$P$27,$Q$9:$U$27)) -> 0 | BI13: =_xlfn.XLOOKUP($AZ13,$Q$8:$U$8,_xlfn.XLOOKUP(BI$8,$P$9:$P$27,$Q$9:$U$27)) -> 1.222677288 | BJ13: =_xlfn.XLOOKUP($AZ13,$Q$8:$U$8,_xlfn.XLOOKUP(BJ$8,$P$9:$P$27,$Q$9:$U$27)) -> 0 | BK13: =_xlfn.XLOOKUP($AZ13,$Q$8:$U$8,_xlfn.XLOOKUP(BK$8,$P$9:$P$27,$Q$9:$U$27)) -> 0 | BL13: =_xlfn.XLOOKUP($AZ13,$Q$8:$U$8,_xlfn.XLOOKUP(BL$8,$P$9:$P$27,$Q$9:$U$27)) -> 7.58381713 | BM13: =_xlfn.XLOOKUP($AZ13,$Q$8:$U$8,_xlfn.XLOOKUP(BM$8,$P$9:$P$27,$Q$9:$U$27)) -> 0 | BN13: =_xlfn.XLOOKUP($AZ13,$Q$8:$U$8,_xlfn.XLOOKUP(BN$8,$P$9:$P$27,$Q$9:$U$27)) -> 0 | BO13: =_xlfn.XLOOKUP($AZ13,$Q$8:$U$8,_xlfn.XLOOKUP(BO$8,$P$9:$P$27,$Q$9:$U$27)) -> 0 | BP13: =_xlfn.XLOOKUP($AZ13,$Q$8:$U$8,_xlfn.XLOOKUP(BP$8,$P$9:$P$27,$Q$9:$U$27)) -> 0 | BQ13: =_xlfn.XLOOKUP($AZ13,$Q$8:$U$8,_xlfn.XLOOKUP(BQ$8,$P$9:$P$27,$Q$9:$U$27)) -> 0 | BR13: =_xlfn.XLOOKUP($AZ13,$Q$8:$U$8,_xlfn.XLOOKUP(BR$8,$P$9:$P$27,$Q$9:$U$27)) -> 0 | BS13: =_xlfn.XLOOKUP($AZ13,$Q$8:$U$8,_xlfn.XLOOKUP(BS$8,$P$9:$P$27,$Q$9:$U$27)) -> 0
B14: ='Opex costs'!B12 -> Network operations | C14: =_xlfn.XLOOKUP($B14,'BBM Costs'!$I$7:$I$25,'BBM Costs'!J$7:J$25)*_xlfn.XLOOKUP($B14,'Control panel'!$E$7:$E$25,'Control panel'!$F$7:$F$25) -> 0 | D14: =_xlfn.XLOOKUP($B14,'BBM Costs'!$I$7:$I$25,'BBM Costs'!K$7:K$25)*_xlfn.XLOOKUP($B14,'Control panel'!$E$7:$E$25,'Control panel'!$F$7:$F$25) -> 0 | E14: =_xlfn.XLOOKUP($B14,'BBM Costs'!$I$7:$I$25,'BBM Costs'!L$7:L$25)*_xlfn.XLOOKUP($B14,'Control panel'!$E$7:$E$25,'Control panel'!$F$7:$F$25) -> 0 | F14: =_xlfn.XLOOKUP($B14,'BBM Costs'!$I$7:$I$25,'BBM Costs'!M$7:M$25)*_xlfn.XLOOKUP($B14,'Control panel'!$E$7:$E$25,'Control panel'!$F$7:$F$25) -> 0 | G14: =_xlfn.XLOOKUP($B14,'BBM Costs'!$I$7:$I$25,'BBM Costs'!N$7:N$25)*_xlfn.XLOOKUP($B14,'Control panel'!$E$7:$E$25,'Control panel'!$F$7:$F$25) -> 0 | I14: Network operations | J14: =C14*_xlfn.XLOOKUP($I14,'Control panel'!$E$7:$E$25,'Control panel'!$H$7:$H$25) -> 0 | K14: =D14*_xlfn.XLOOKUP($I14,'Control panel'!$E$7:$E$25,'Control panel'!$H$7:$H$25) -> 0 | L14: =E14*_xlfn.XLOOKUP($I14,'Control panel'!$E$7:$E$25,'Control panel'!$H$7:$H$25) -> 0 | M14: =F14*_xlfn.XLOOKUP($I14,'Control panel'!$E$7:$E$25,'Control panel'!$H$7:$H$25) -> 0 | N14: =G14*_xlfn.XLOOKUP($I14,'Control panel'!$E$7:$E$25,'Control panel'!$H$7:$H$25) -> 0 | P14: Network operations | Q14: =C14*_xlfn.XLOOKUP($P14,'Control panel'!$E$7:$E$25,'Control panel'!$I$7:$I$25) -> 0 | R14: =D14*_xlfn.XLOOKUP($P14,'Control panel'!$E$7:$E$25,'Control panel'!$I$7:$I$25) -> 0 | S14: =E14*_xlfn.XLOOKUP($P14,'Control panel'!$E$7:$E$25,'Control panel'!$I$7:$I$25) -> 0 | T14: =F14*_xlfn.XLOOKUP($P14,'Control panel'!$E$7:$E$25,'Control panel'!$I$7:$I$25) -> 0 | U14: =G14*_xlfn.XLOOKUP($P14,'Control panel'!$E$7:$E$25,'Control panel'!$I$7:$I$25) -> 0 | W14: 2025-26 | X14: ='PTRM Data'!B12 -> Substation Bays | Y14: =_xlfn.XLOOKUP(X14,'Control panel'!$L$7:$L$36,'Control panel'!$P$7:$P$36) -> 1 | Z14: 2.857295378 | AA14: =_xlfn.XLOOKUP(W14,'BBM Costs'!$Q$6:$U$6,_xlfn.XLOOKUP(X14,'BBM Costs'!$P$7:$P$36,'BBM Costs'!$Q$7:$U$36))*_xlfn.XLOOKUP(X14,'Control panel'!$L$7:$L$36,'Control panel'!$M$7:$M$36) -> 0 | AB14: =_xlfn.XLOOKUP(W14,'BBM Costs'!$X$6:$AB$6,_xlfn.XLOOKUP(X14,'BBM Costs'!$W$7:$W$36,'BBM Costs'!$X$7:$AB$36))*_xlfn.XLOOKUP(X14,'Control panel'!$S$7:$S$36,'Control panel'!$T$7:$T$36) -> 0 | AC14: 2.857295378 | AE14: ='PTRM Data'!B12 -> Substation Bays | AF14: ='Control panel'!$AA12/SUMPRODUCT('Control panel'!$AA$7:$AA$36,'Control panel'!AB$7:AB$36)*'Control panel'!AB12 -> 0.05738814661 | AG14: ='Control panel'!$AA12/SUMPRODUCT('Control panel'!$AA$7:$AA$36,'Control panel'!AC$7:AC$36)*'Control panel'!AC12 -> 0.05738814661 | AH14: ='Control panel'!$AA12/SUMPRODUCT('Control panel'!$AA$7:$AA$36,'Control panel'!AD$7:AD$36)*'Control panel'!AD12 -> 0.05967249652 | AI14: ='Control panel'!$AA12/SUMPRODUCT('Control panel'!$AA$7:$AA$36,'Control panel'!AE$7:AE$36)*'Control panel'!AE12 -> 0 | AJ14: ='Control panel'!$AA12/SUMPRODUCT('Control panel'!$AA$7:$AA$36,'Control panel'!AF$7:AF$36)*'Control panel'!AF12 -> 0.05242745877 | AK14: ='Control panel'!$AA12/SUMPRODUCT('Control panel'!$AA$7:$AA$36,'Control panel'!AG$7:AG$36)*'Control panel'!AG12 -> 0.05826650202 | AL14: ='Control panel'!$AA12/SUMPRODUCT('Control panel'!$AA$7:$AA$36,'Control panel'!AH$7:AH$36)*'Control panel'!AH12 -> 0 | AM14: ='Control panel'!$AA12/SUMPRODUCT('Control panel'!$AA$7:$AA$36,'Control panel'!AI$7:AI$36)*'Control panel'!AI12 -> 0.05242745877 | AN14: ='Control panel'!$AA12/SUMPRODUCT('Control panel'!$AA$7:$AA$36,'Control panel'!AJ$7:AJ$36)*'Control panel'!AJ12 -> 0 | AO14: ='Control panel'!$AA12/SUMPRODUCT('Control panel'!$AA$7:$AA$36,'Control panel'!AK$7:AK$36)*'Control panel'!AK12 -> 0.05242745877 | AP14: ='Control panel'!$AA12/SUMPRODUCT('Control panel'!$AA$7:$AA$36,'Control panel'!AL$7:AL$36)*'Control panel'!AL12 -> 0.05242745877 | AQ14: ='Control panel'!$AA12/SUMPRODUCT('Control panel'!$AA$7:$AA$36,'Control panel'!AM$7:AM$36)*'Control panel'!AM12 -> 0.05826650202 | AR14: ='Control panel'!$AA12/SUMPRODUCT('Control panel'!$AA$7:$AA$36,'Control panel'!AN$7:AN$36)*'Control panel'!AN12 -> 0.05826735903 | AT14: ='Control panel'!$AA12/SUMPRODUCT('Control panel'!$AA$7:$AA$36,'Control panel'!AP$7:AP$36)*'Control panel'!AP12 -> 0.05235193898 | AU14: ='Control panel'!$AA12/SUMPRODUCT('Control panel'!$AA$7:$AA$36,'Control panel'!AQ$7:AQ$36)*'Control panel'!AQ12 -> 0.05235193898 | AV14: ='Control panel'!$AA12/SUMPRODUCT('Control panel'!$AA$7:$AA$36,'Control panel'!AR$7:AR$36)*'Control panel'!AR12 -> 0.05235193898 | AW14: ='Control panel'!$AA12/SUMPRODUCT('Control panel'!$AA$7:$AA$36,'Control panel'!AS$7:AS$36)*'Control panel'!AS12 -> 0.05235193898 | AX14: ='Control panel'!$AA12/SUMPRODUCT('Control panel'!$AA$7:$AA$36,'Control panel'!AT$7:AT$36)*'Control panel'!AT12 -> 0.05235193898
B15: ='Opex costs'!B13 -> Network billing and other energy market services | C15: =_xlfn.XLOOKUP($B15,'BBM Costs'!$I$7:$I$25,'BBM Costs'!J$7:J$25)*_xlfn.XLOOKUP($B15,'Control panel'!$E$7:$E$25,'Control panel'!$F$7:$F$25) -> 3.8900765 | D15: =_xlfn.XLOOKUP($B15,'BBM Costs'!$I$7:$I$25,'BBM Costs'!K$7:K$25)*_xlfn.XLOOKUP($B15,'Control panel'!$E$7:$E$25,'Control panel'!$F$7:$F$25) -> 4.030799446 | E15: =_xlfn.XLOOKUP($B15,'BBM Costs'!$I$7:$I$25,'BBM Costs'!L$7:L$25)*_xlfn.XLOOKUP($B15,'Control panel'!$E$7:$E$25,'Control panel'!$F$7:$F$25) -> 4.178513465 | F15: =_xlfn.XLOOKUP($B15,'BBM Costs'!$I$7:$I$25,'BBM Costs'!M$7:M$25)*_xlfn.XLOOKUP($B15,'Control panel'!$E$7:$E$25,'Control panel'!$F$7:$F$25) -> 4.480203758 | G15: =_xlfn.XLOOKUP($B15,'BBM Costs'!$I$7:$I$25,'BBM Costs'!N$7:N$25)*_xlfn.XLOOKUP($B15,'Control panel'!$E$7:$E$25,'Control panel'!$F$7:$F$25) -> 4.673462501 | I15: Network billing and other energy market services | J15: =C15*_xlfn.XLOOKUP($I15,'Control panel'!$E$7:$E$25,'Control panel'!$H$7:$H$25) -> 3.8900765 | K15: =D15*_xlfn.XLOOKUP($I15,'Control panel'!$E$7:$E$25,'Control panel'!$H$7:$H$25) -> 4.030799446 | L15: =E15*_xlfn.XLOOKUP($I15,'Control panel'!$E$7:$E$25,'Control panel'!$H$7:$H$25) -> 4.178513465 | M15: =F15*_xlfn.XLOOKUP($I15,'Control panel'!$E$7:$E$25,'Control panel'!$H$7:$H$25) -> 4.480203758 | N15: =G15*_xlfn.XLOOKUP($I15,'Control panel'!$E$7:$E$25,'Control panel'!$H$7:$H$25) -> 4.673462501 | P15: Network billing and other energy market services | Q15: =C15*_xlfn.XLOOKUP($P15,'Control panel'!$E$7:$E$25,'Control panel'!$I$7:$I$25) -> 0 | R15: =D15*_xlfn.XLOOKUP($P15,'Control panel'!$E$7:$E$25,'Control panel'!$I$7:$I$25) -> 0 | S15: =E15*_xlfn.XLOOKUP($P15,'Control panel'!$E$7:$E$25,'Control panel'!$I$7:$I$25) -> 0 | T15: =F15*_xlfn.XLOOKUP($P15,'Control panel'!$E$7:$E$25,'Control panel'!$I$7:$I$25) -> 0 | U15: =G15*_xlfn.XLOOKUP($P15,'Control panel'!$E$7:$E$25,'Control panel'!$I$7:$I$25) -> 0 | W15: 2025-26 | X15: ='PTRM Data'!B13 -> Substation Establishment | Y15: =_xlfn.XLOOKUP(X15,'Control panel'!$L$7:$L$36,'Control panel'!$P$7:$P$36) -> 1 | Z15: 2.059268167 | AA15: =_xlfn.XLOOKUP(W15,'BBM Costs'!$Q$6:$U$6,_xlfn.XLOOKUP(X15,'BBM Costs'!$P$7:$P$36,'BBM Costs'!$Q$7:$U$36))*_xlfn.XLOOKUP(X15,'Control panel'!$L$7:$L$36,'Control panel'!$M$7:$M$36) -> 0 | AB15: =_xlfn.XLOOKUP(W15,'BBM Costs'!$X$6:$AB$6,_xlfn.XLOOKUP(X15,'BBM Costs'!$W$7:$W$36,'BBM Costs'!$X$7:$AB$36))*_xlfn.XLOOKUP(X15,'Control panel'!$S$7:$S$36,'Control panel'!$T$7:$T$36) -> 0 | AC15: 2.059268167 | AE15: ='PTRM Data'!B13 -> Substation Establishment | AF15: ='Control panel'!$AA13/SUMPRODUCT('Control panel'!$AA$7:$AA$36,'Control panel'!AB$7:AB$36)*'Control panel'!AB13 -> 0.04135994633 | AG15: ='Control panel'!$AA13/SUMPRODUCT('Control panel'!$AA$7:$AA$36,'Control panel'!AC$7:AC$36)*'Control panel'!AC13 -> 0.04135994633 | AH15: ='Control panel'!$AA13/SUMPRODUCT('Control panel'!$AA$7:$AA$36,'Control panel'!AD$7:AD$36)*'Control panel'!AD13 -> 0.0430062896 | AI15: ='Control panel'!$AA13/SUMPRODUCT('Control panel'!$AA$7:$AA$36,'Control panel'!AE$7:AE$36)*'Control panel'!AE13 -> 0.1166955439 | AJ15: ='Control panel'!$AA13/SUMPRODUCT('Control panel'!$AA$7:$AA$36,'Control panel'!AF$7:AF$36)*'Control panel'!AF13 -> 0.03778475188 | AK15: ='Control panel'!$AA13/SUMPRODUCT('Control panel'!$AA$7:$AA$36,'Control panel'!AG$7:AG$36)*'Control panel'!AG13 -> 0.0419929818 | AL15: ='Control panel'!$AA13/SUMPRODUCT('Control panel'!$AA$7:$AA$36,'Control panel'!AH$7:AH$36)*'Control panel'!AH13 -> 0 | AM15: ='Control panel'!$AA13/SUMPRODUCT('Control panel'!$AA$7:$AA$36,'Control panel'!AI$7:AI$36)*'Control panel'!AI13 -> 0.03778475188 | AN15: ='Control panel'!$AA13/SUMPRODUCT('Control panel'!$AA$7:$AA$36,'Control panel'!AJ$7:AJ$36)*'Control panel'!AJ13 -> 0 | AO15: ='Control panel'!$AA13/SUMPRODUCT('Control panel'!$AA$7:$AA$36,'Control panel'!AK$7:AK$36)*'Control panel'!AK13 -> 0.03778475188 | AP15: ='Control panel'!$AA13/SUMPRODUCT('Control panel'!$AA$7:$AA$36,'Control panel'!AL$7:AL$36)*'Control panel'!AL13 -> 0.03778475188 | AQ15: ='Control panel'!$AA13/SUMPRODUCT('Control panel'!$AA$7:$AA$36,'Control panel'!AM$7:AM$36)*'Control panel'!AM13 -> 0.0419929818 | AR15: ='Control panel'!$AA13/SUMPRODUCT('Control panel'!$AA$7:$AA$36,'Control panel'!AN$7:AN$36)*'Control panel'!AN13 -> 0.04199359945 | AT15: ='Control panel'!$AA13/SUMPRODUCT('Control panel'!$AA$7:$AA$36,'Control panel'!AP$7:AP$36)*'Control panel'!AP13 -> 0.03773032436 | AU15: ='Control panel'!$AA13/SUMPRODUCT('Control panel'!$AA$7:$AA$36,'Control panel'!AQ$7:AQ$36)*'Control panel'!AQ13 -> 0.03773032436 | AV15: ='Control panel'!$AA13/SUMPRODUCT('Control panel'!$AA$7:$AA$36,'Control panel'!AR$7:AR$36)*'Control panel'!AR13 -> 0.03773032436 | AW15: ='Control panel'!$AA13/SUMPRODUCT('Control panel'!$AA$7:$AA$36,'Control panel'!AS$7:AS$36)*'Control panel'!AS13 -> 0.03773032436 | AX15: ='Control panel'!$AA13/SUMPRODUCT('Control panel'!$AA$7:$AA$36,'Control panel'!AT$7:AT$36)*'Control panel'!AT13 -> 0.03773032436
B16: ='Opex costs'!B14 -> Customer services | C16: =_xlfn.XLOOKUP($B16,'BBM Costs'!$I$7:$I$25,'BBM Costs'!J$7:J$25)*_xlfn.XLOOKUP($B16,'Control panel'!$E$7:$E$25,'Control panel'!$F$7:$F$25) -> 18.43385022 | D16: =_xlfn.XLOOKUP($B16,'BBM Costs'!$I$7:$I$25,'BBM Costs'!K$7:K$25)*_xlfn.XLOOKUP($B16,'Control panel'!$E$7:$E$25,'Control panel'!$F$7:$F$25) -> 19.10069205 | E16: =_xlfn.XLOOKUP($B16,'BBM Costs'!$I$7:$I$25,'BBM Costs'!L$7:L$25)*_xlfn.XLOOKUP($B16,'Control panel'!$E$7:$E$25,'Control panel'!$F$7:$F$25) -> 19.80066237 | F16: =_xlfn.XLOOKUP($B16,'BBM Costs'!$I$7:$I$25,'BBM Costs'!M$7:M$25)*_xlfn.XLOOKUP($B16,'Control panel'!$E$7:$E$25,'Control panel'!$F$7:$F$25) -> 21.23027787 | G16: =_xlfn.XLOOKUP($B16,'BBM Costs'!$I$7:$I$25,'BBM Costs'!N$7:N$25)*_xlfn.XLOOKUP($B16,'Control panel'!$E$7:$E$25,'Control panel'!$F$7:$F$25) -> 22.14607033 | I16: Customer services | J16: =C16*_xlfn.XLOOKUP($I16,'Control panel'!$E$7:$E$25,'Control panel'!$H$7:$H$25) -> 18.43385022 | K16: =D16*_xlfn.XLOOKUP($I16,'Control panel'!$E$7:$E$25,'Control panel'!$H$7:$H$25) -> 19.10069205 | L16: =E16*_xlfn.XLOOKUP($I16,'Control panel'!$E$7:$E$25,'Control panel'!$H$7:$H$25) -> 19.80066237 | M16: =F16*_xlfn.XLOOKUP($I16,'Control panel'!$E$7:$E$25,'Control panel'!$H$7:$H$25) -> 21.23027787 | N16: =G16*_xlfn.XLOOKUP($I16,'Control panel'!$E$7:$E$25,'Control panel'!$H$7:$H$25) -> 22.14607033 | P16: Customer services | Q16: =C16*_xlfn.XLOOKUP($P16,'Control panel'!$E$7:$E$25,'Control panel'!$I$7:$I$25) -> 0 | R16: =D16*_xlfn.XLOOKUP($P16,'Control panel'!$E$7:$E$25,'Control panel'!$I$7:$I$25) -> 0 | S16: =E16*_xlfn.XLOOKUP($P16,'Control panel'!$E$7:$E$25,'Control panel'!$I$7:$I$25) -> 0 | T16: =F16*_xlfn.XLOOKUP($P16,'Control panel'!$E$7:$E$25,'Control panel'!$I$7:$I$25) -> 0 | U16: =G16*_xlfn.XLOOKUP($P16,'Control panel'!$E$7:$E$25,'Control panel'!$I$7:$I$25) -> 0 | W16: 2025-26 | X16: ='PTRM Data'!B14 -> Distribution Substation Switchgear | Y16: =_xlfn.XLOOKUP(X16,'Control panel'!$L$7:$L$36,'Control panel'!$P$7:$P$36) -> 0.75 | Z16: 0.687986408 | AA16: =_xlfn.XLOOKUP(W16,'BBM Costs'!$Q$6:$U$6,_xlfn.XLOOKUP(X16,'BBM Costs'!$P$7:$P$36,'BBM Costs'!$Q$7:$U$36))*_xlfn.XLOOKUP(X16,'Control panel'!$L$7:$L$36,'Control panel'!$M$7:$M$36) -> 0.3250784711 | AB16: =_xlfn.XLOOKUP(W16,'BBM Costs'!$X$6:$AB$6,_xlfn.XLOOKUP(X16,'BBM Costs'!$W$7:$W$36,'BBM Costs'!$X$7:$AB$36))*_xlfn.XLOOKUP(X16,'Control panel'!$S$7:$S$36,'Control panel'!$T$7:$T$36) -> 2.837652077 | AC16: 3.850716956 | AE16: ='PTRM Data'!B14 -> Distribution Substation Switchgear | AF16: ='Control panel'!$AA14/SUMPRODUCT('Control panel'!$AA$7:$AA$36,'Control panel'!AB$7:AB$36)*'Control panel'!AB14 -> 0.01381805506 | AG16: ='Control panel'!$AA14/SUMPRODUCT('Control panel'!$AA$7:$AA$36,'Control panel'!AC$7:AC$36)*'Control panel'!AC14 -> 0.01381805506 | AH16: ='Control panel'!$AA14/SUMPRODUCT('Control panel'!$AA$7:$AA$36,'Control panel'!AD$7:AD$36)*'Control panel'!AD14 -> 0.01436808629 | AI16: ='Control panel'!$AA14/SUMPRODUCT('Control panel'!$AA$7:$AA$36,'Control panel'!AE$7:AE$36)*'Control panel'!AE14 -> 0 | AJ16: ='Control panel'!$AA14/SUMPRODUCT('Control panel'!$AA$7:$AA$36,'Control panel'!AF$7:AF$36)*'Control panel'!AF14 -> 0.01262360879 | AK16: ='Control panel'!$AA14/SUMPRODUCT('Control panel'!$AA$7:$AA$36,'Control panel'!AG$7:AG$36)*'Control panel'!AG14 -> 0.01402954757 | AL16: ='Control panel'!$AA14/SUMPRODUCT('Control panel'!$AA$7:$AA$36,'Control panel'!AH$7:AH$36)*'Control panel'!AH14 -> 0 | AM16: ='Control panel'!$AA14/SUMPRODUCT('Control panel'!$AA$7:$AA$36,'Control panel'!AI$7:AI$36)*'Control panel'!AI14 -> 0.01262360879 | AN16: ='Control panel'!$AA14/SUMPRODUCT('Control panel'!$AA$7:$AA$36,'Control panel'!AJ$7:AJ$36)*'Control panel'!AJ14 -> 0 | AO16: ='Control panel'!$AA14/SUMPRODUCT('Control panel'!$AA$7:$AA$36,'Control panel'!AK$7:AK$36)*'Control panel'!AK14 -> 0.01262360879 | AP16: ='Control panel'!$AA14/SUMPRODUCT('Control panel'!$AA$7:$AA$36,'Control panel'!AL$7:AL$36)*'Control panel'!AL14 -> 0.01262360879 | AQ16: ='Control panel'!$AA14/SUMPRODUCT('Control panel'!$AA$7:$AA$36,'Control panel'!AM$7:AM$36)*'Control panel'!AM14 -> 0.01402954757 | AR16: ='Control panel'!$AA14/SUMPRODUCT('Control panel'!$AA$7:$AA$36,'Control panel'!AN$7:AN$36)*'Control panel'!AN14 -> 0.01402975392 | AT16: ='Control panel'!$AA14/SUMPRODUCT('Control panel'!$AA$7:$AA$36,'Control panel'!AP$7:AP$36)*'Control panel'!AP14 -> 0.01260542495 | AU16: ='Control panel'!$AA14/SUMPRODUCT('Control panel'!$AA$7:$AA$36,'Control panel'!AQ$7:AQ$36)*'Control panel'!AQ14 -> 0.01260542495 | AV16: ='Control panel'!$AA14/SUMPRODUCT('Control panel'!$AA$7:$AA$36,'Control panel'!AR$7:AR$36)*'Control panel'!AR14 -> 0.01260542495 | AW16: ='Control panel'!$AA14/SUMPRODUCT('Control panel'!$AA$7:$AA$36,'Control panel'!AS$7:AS$36)*'Control panel'!AS14 -> 0.01260542495 | AX16: ='Control panel'!$AA14/SUMPRODUCT('Control panel'!$AA$7:$AA$36,'Control panel'!AT$7:AT$36)*'Control panel'!AT14 -> 0.01260542495
B17: ='Opex costs'!B15 -> DSM initiatives | C17: =_xlfn.XLOOKUP($B17,'BBM Costs'!$I$7:$I$25,'BBM Costs'!J$7:J$25)*_xlfn.XLOOKUP($B17,'Control panel'!$E$7:$E$25,'Control panel'!$F$7:$F$25) -> 5.088634158 | D17: =_xlfn.XLOOKUP($B17,'BBM Costs'!$I$7:$I$25,'BBM Costs'!K$7:K$25)*_xlfn.XLOOKUP($B17,'Control panel'!$E$7:$E$25,'Control panel'!$F$7:$F$25) -> 5.272714752 | E17: =_xlfn.XLOOKUP($B17,'BBM Costs'!$I$7:$I$25,'BBM Costs'!L$7:L$25)*_xlfn.XLOOKUP($B17,'Control panel'!$E$7:$E$25,'Control panel'!$F$7:$F$25) -> 5.465940413 | F17: =_xlfn.XLOOKUP($B17,'BBM Costs'!$I$7:$I$25,'BBM Costs'!M$7:M$25)*_xlfn.XLOOKUP($B17,'Control panel'!$E$7:$E$25,'Control panel'!$F$7:$F$25) -> 5.86058343 | G17: =_xlfn.XLOOKUP($B17,'BBM Costs'!$I$7:$I$25,'BBM Costs'!N$7:N$25)*_xlfn.XLOOKUP($B17,'Control panel'!$E$7:$E$25,'Control panel'!$F$7:$F$25) -> 6.113386439 | I17: DSM initiatives | J17: =C17*_xlfn.XLOOKUP($I17,'Control panel'!$E$7:$E$25,'Control panel'!$H$7:$H$25) -> 4.070907327 | K17: =D17*_xlfn.XLOOKUP($I17,'Control panel'!$E$7:$E$25,'Control panel'!$H$7:$H$25) -> 4.218171801 | L17: =E17*_xlfn.XLOOKUP($I17,'Control panel'!$E$7:$E$25,'Control panel'!$H$7:$H$25) -> 4.37275233 | M17: =F17*_xlfn.XLOOKUP($I17,'Control panel'!$E$7:$E$25,'Control panel'!$H$7:$H$25) -> 4.688466744 | N17: =G17*_xlfn.XLOOKUP($I17,'Control panel'!$E$7:$E$25,'Control panel'!$H$7:$H$25) -> 4.890709151 | P17: DSM initiatives | Q17: =C17*_xlfn.XLOOKUP($P17,'Control panel'!$E$7:$E$25,'Control panel'!$I$7:$I$25) -> 1.017726832 | R17: =D17*_xlfn.XLOOKUP($P17,'Control panel'!$E$7:$E$25,'Control panel'!$I$7:$I$25) -> 1.05454295 | S17: =E17*_xlfn.XLOOKUP($P17,'Control panel'!$E$7:$E$25,'Control panel'!$I$7:$I$25) -> 1.093188083 | T17: =F17*_xlfn.XLOOKUP($P17,'Control panel'!$E$7:$E$25,'Control panel'!$I$7:$I$25) -> 1.172116686 | U17: =G17*_xlfn.XLOOKUP($P17,'Control panel'!$E$7:$E$25,'Control panel'!$I$7:$I$25) -> 1.222677288 | W17: 2025-26 | X17: ='PTRM Data'!B15 -> Zone Transformers | Y17: =_xlfn.XLOOKUP(X17,'Control panel'!$L$7:$L$36,'Control panel'!$P$7:$P$36) -> 1 | Z17: 3.774600931 | AA17: =_xlfn.XLOOKUP(W17,'BBM Costs'!$Q$6:$U$6,_xlfn.XLOOKUP(X17,'BBM Costs'!$P$7:$P$36,'BBM Costs'!$Q$7:$U$36))*_xlfn.XLOOKUP(X17,'Control panel'!$L$7:$L$36,'Control panel'!$M$7:$M$36) -> 0 | AB17: =_xlfn.XLOOKUP(W17,'BBM Costs'!$X$6:$AB$6,_xlfn.XLOOKUP(X17,'BBM Costs'!$W$7:$W$36,'BBM Costs'!$X$7:$AB$36))*_xlfn.XLOOKUP(X17,'Control panel'!$S$7:$S$36,'Control panel'!$T$7:$T$36) -> 0 | AC17: 3.774600931 | AE17: ='PTRM Data'!B15 -> Zone Transformers | AF17: ='Control panel'!$AA15/SUMPRODUCT('Control panel'!$AA$7:$AA$36,'Control panel'!AB$7:AB$36)*'Control panel'!AB15 -> 0.07581202604 | AG17: ='Control panel'!$AA15/SUMPRODUCT('Control panel'!$AA$7:$AA$36,'Control panel'!AC$7:AC$36)*'Control panel'!AC15 -> 0.07581202604 | AH17: ='Control panel'!$AA15/SUMPRODUCT('Control panel'!$AA$7:$AA$36,'Control panel'!AD$7:AD$36)*'Control panel'!AD15 -> 0.07882974319 | AI17: ='Control panel'!$AA15/SUMPRODUCT('Control panel'!$AA$7:$AA$36,'Control panel'!AE$7:AE$36)*'Control panel'!AE15 -> 0 | AJ17: ='Control panel'!$AA15/SUMPRODUCT('Control panel'!$AA$7:$AA$36,'Control panel'!AF$7:AF$36)*'Control panel'!AF15 -> 0.06925875994 | AK17: ='Control panel'!$AA15/SUMPRODUCT('Control panel'!$AA$7:$AA$36,'Control panel'!AG$7:AG$36)*'Control panel'!AG15 -> 0.07697236849 | AL17: ='Control panel'!$AA15/SUMPRODUCT('Control panel'!$AA$7:$AA$36,'Control panel'!AH$7:AH$36)*'Control panel'!AH15 -> 0 | AM17: ='Control panel'!$AA15/SUMPRODUCT('Control panel'!$AA$7:$AA$36,'Control panel'!AI$7:AI$36)*'Control panel'!AI15 -> 0.06925875994 | AN17: ='Control panel'!$AA15/SUMPRODUCT('Control panel'!$AA$7:$AA$36,'Control panel'!AJ$7:AJ$36)*'Control panel'!AJ15 -> 0 | AO17: ='Control panel'!$AA15/SUMPRODUCT('Control panel'!$AA$7:$AA$36,'Control panel'!AK$7:AK$36)*'Control panel'!AK15 -> 0.06925875994 | AP17: ='Control panel'!$AA15/SUMPRODUCT('Control panel'!$AA$7:$AA$36,'Control panel'!AL$7:AL$36)*'Control panel'!AL15 -> 0.06925875994 | AQ17: ='Control panel'!$AA15/SUMPRODUCT('Control panel'!$AA$7:$AA$36,'Control panel'!AM$7:AM$36)*'Control panel'!AM15 -> 0.07697236849 | AR17: ='Control panel'!$AA15/SUMPRODUCT('Control panel'!$AA$7:$AA$36,'Control panel'!AN$7:AN$36)*'Control panel'!AN15 -> 0.07697350064 | AT17: ='Control panel'!$AA15/SUMPRODUCT('Control panel'!$AA$7:$AA$36,'Control panel'!AP$7:AP$36)*'Control panel'!AP15 -> 0.06915899529 | AU17: ='Control panel'!$AA15/SUMPRODUCT('Control panel'!$AA$7:$AA$36,'Control panel'!AQ$7:AQ$36)*'Control panel'!AQ15 -> 0.06915899529 | AV17: ='Control panel'!$AA15/SUMPRODUCT('Control panel'!$AA$7:$AA$36,'Control panel'!AR$7:AR$36)*'Control panel'!AR15 -> 0.06915899529 | AW17: ='Control panel'!$AA15/SUMPRODUCT('Control panel'!$AA$7:$AA$36,'Control panel'!AS$7:AS$36)*'Control panel'!AS15 -> 0.06915899529 | AX17: ='Control panel'!$AA15/SUMPRODUCT('Control panel'!$AA$7:$AA$36,'Control panel'!AT$7:AT$36)*'Control panel'!AT15 -> 0.06915899529
B18: ='Opex costs'!B16 -> Levies | C18: =_xlfn.XLOOKUP($B18,'BBM Costs'!$I$7:$I$25,'BBM Costs'!J$7:J$25)*_xlfn.XLOOKUP($B18,'Control panel'!$E$7:$E$25,'Control panel'!$F$7:$F$25) -> 0 | D18: =_xlfn.XLOOKUP($B18,'BBM Costs'!$I$7:$I$25,'BBM Costs'!K$7:K$25)*_xlfn.XLOOKUP($B18,'Control panel'!$E$7:$E$25,'Control panel'!$F$7:$F$25) -> 0 | E18: =_xlfn.XLOOKUP($B18,'BBM Costs'!$I$7:$I$25,'BBM Costs'!L$7:L$25)*_xlfn.XLOOKUP($B18,'Control panel'!$E$7:$E$25,'Control panel'!$F$7:$F$25) -> 0 | F18: =_xlfn.XLOOKUP($B18,'BBM Costs'!$I$7:$I$25,'BBM Costs'!M$7:M$25)*_xlfn.XLOOKUP($B18,'Control panel'!$E$7:$E$25,'Control panel'!$F$7:$F$25) -> 0 | G18: =_xlfn.XLOOKUP($B18,'BBM Costs'!$I$7:$I$25,'BBM Costs'!N$7:N$25)*_xlfn.XLOOKUP($B18,'Control panel'!$E$7:$E$25,'Control panel'!$F$7:$F$25) -> 0 | I18: Levies | J18: =C18*_xlfn.XLOOKUP($I18,'Control panel'!$E$7:$E$25,'Control panel'!$H$7:$H$25) -> 0 | K18: =D18*_xlfn.XLOOKUP($I18,'Control panel'!$E$7:$E$25,'Control panel'!$H$7:$H$25) -> 0 | L18: =E18*_xlfn.XLOOKUP($I18,'Control panel'!$E$7:$E$25,'Control panel'!$H$7:$H$25) -> 0 | M18: =F18*_xlfn.XLOOKUP($I18,'Control panel'!$E$7:$E$25,'Control panel'!$H$7:$H$25) -> 0 | N18: =G18*_xlfn.XLOOKUP($I18,'Control panel'!$E$7:$E$25,'Control panel'!$H$7:$H$25) -> 0 | P18: Levies | Q18: =C18*_xlfn.XLOOKUP($P18,'Control panel'!$E$7:$E$25,'Control panel'!$I$7:$I$25) -> 0 | R18: =D18*_xlfn.XLOOKUP($P18,'Control panel'!$E$7:$E$25,'Control panel'!$I$7:$I$25) -> 0 | S18: =E18*_xlfn.XLOOKUP($P18,'Control panel'!$E$7:$E$25,'Control panel'!$I$7:$I$25) -> 0 | T18: =F18*_xlfn.XLOOKUP($P18,'Control panel'!$E$7:$E$25,'Control panel'!$I$7:$I$25) -> 0 | U18: =G18*_xlfn.XLOOKUP($P18,'Control panel'!$E$7:$E$25,'Control panel'!$I$7:$I$25) -> 0 | W18: 2025-26 | X18: ='PTRM Data'!B16 -> Distribution Transformers | Y18: =_xlfn.XLOOKUP(X18,'Control panel'!$L$7:$L$36,'Control panel'!$P$7:$P$36) -> 0.2 | Z18: 6.283707826 | AA18: =_xlfn.XLOOKUP(W18,'BBM Costs'!$Q$6:$U$6,_xlfn.XLOOKUP(X18,'BBM Costs'!$P$7:$P$36,'BBM Costs'!$Q$7:$U$36))*_xlfn.XLOOKUP(X18,'Control panel'!$L$7:$L$36,'Control panel'!$M$7:$M$36) -> 7.363630294 | AB18: =_xlfn.XLOOKUP(W18,'BBM Costs'!$X$6:$AB$6,_xlfn.XLOOKUP(X18,'BBM Costs'!$W$7:$W$36,'BBM Costs'!$X$7:$AB$36))*_xlfn.XLOOKUP(X18,'Control panel'!$S$7:$S$36,'Control panel'!$T$7:$T$36) -> 25.91762912 | AC18: 39.56496724 | AE18: ='PTRM Data'!B16 -> Distribution Transformers | AF18: ='Control panel'!$AA16/SUMPRODUCT('Control panel'!$AA$7:$AA$36,'Control panel'!AB$7:AB$36)*'Control panel'!AB16 -> 0.1262068839 | AG18: ='Control panel'!$AA16/SUMPRODUCT('Control panel'!$AA$7:$AA$36,'Control panel'!AC$7:AC$36)*'Control panel'!AC16 -> 0.1262068839 | AH18: ='Control panel'!$AA16/SUMPRODUCT('Control panel'!$AA$7:$AA$36,'Control panel'!AD$7:AD$36)*'Control panel'!AD16 -> 0.1312305813 | AI18: ='Control panel'!$AA16/SUMPRODUCT('Control panel'!$AA$7:$AA$36,'Control panel'!AE$7:AE$36)*'Control panel'!AE16 -> 0 | AJ18: ='Control panel'!$AA16/SUMPRODUCT('Control panel'!$AA$7:$AA$36,'Control panel'!AF$7:AF$36)*'Control panel'!AF16 -> 0.1152974367 | AK18: ='Control panel'!$AA16/SUMPRODUCT('Control panel'!$AA$7:$AA$36,'Control panel'!AG$7:AG$36)*'Control panel'!AG16 -> 0.1281385458 | AL18: ='Control panel'!$AA16/SUMPRODUCT('Control panel'!$AA$7:$AA$36,'Control panel'!AH$7:AH$36)*'Control panel'!AH16 -> 0 | AM18: ='Control panel'!$AA16/SUMPRODUCT('Control panel'!$AA$7:$AA$36,'Control panel'!AI$7:AI$36)*'Control panel'!AI16 -> 0.1152974367 | AN18: ='Control panel'!$AA16/SUMPRODUCT('Control panel'!$AA$7:$AA$36,'Control panel'!AJ$7:AJ$36)*'Control panel'!AJ16 -> 0 | AO18: ='Control panel'!$AA16/SUMPRODUCT('Control panel'!$AA$7:$AA$36,'Control panel'!AK$7:AK$36)*'Control panel'!AK16 -> 0.1152974367 | AP18: ='Control panel'!$AA16/SUMPRODUCT('Control panel'!$AA$7:$AA$36,'Control panel'!AL$7:AL$36)*'Control panel'!AL16 -> 0.1152974367 | AQ18: ='Control panel'!$AA16/SUMPRODUCT('Control panel'!$AA$7:$AA$36,'Control panel'!AM$7:AM$36)*'Control panel'!AM16 -> 0.1281385458 | AR18: ='Control panel'!$AA16/SUMPRODUCT('Control panel'!$AA$7:$AA$36,'Control panel'!AN$7:AN$36)*'Control panel'!AN16 -> 0.1281404305 | AT18: ='Control panel'!$AA16/SUMPRODUCT('Control panel'!$AA$7:$AA$36,'Control panel'!AP$7:AP$36)*'Control panel'!AP16 -> 0.1151313551 | AU18: ='Control panel'!$AA16/SUMPRODUCT('Control panel'!$AA$7:$AA$36,'Control panel'!AQ$7:AQ$36)*'Control panel'!AQ16 -> 0.1151313551 | AV18: ='Control panel'!$AA16/SUMPRODUCT('Control panel'!$AA$7:$AA$36,'Control panel'!AR$7:AR$36)*'Control panel'!AR16 -> 0.1151313551 | AW18: ='Control panel'!$AA16/SUMPRODUCT('Control panel'!$AA$7:$AA$36,'Control panel'!AS$7:AS$36)*'Control panel'!AS16 -> 0.1151313551 | AX18: ='Control panel'!$AA16/SUMPRODUCT('Control panel'!$AA$7:$AA$36,'Control panel'!AT$7:AT$36)*'Control panel'!AT16 -> 0.1151313551
B19: ='Opex costs'!B17 -> Debt raising costs | C19: =_xlfn.XLOOKUP($B19,'BBM Costs'!$I$7:$I$25,'BBM Costs'!J$7:J$25)*_xlfn.XLOOKUP($B19,'Control panel'!$E$7:$E$25,'Control panel'!$F$7:$F$25) -> 0 | D19: =_xlfn.XLOOKUP($B19,'BBM Costs'!$I$7:$I$25,'BBM Costs'!K$7:K$25)*_xlfn.XLOOKUP($B19,'Control panel'!$E$7:$E$25,'Control panel'!$F$7:$F$25) -> 0 | E19: =_xlfn.XLOOKUP($B19,'BBM Costs'!$I$7:$I$25,'BBM Costs'!L$7:L$25)*_xlfn.XLOOKUP($B19,'Control panel'!$E$7:$E$25,'Control panel'!$F$7:$F$25) -> 0 | F19: =_xlfn.XLOOKUP($B19,'BBM Costs'!$I$7:$I$25,'BBM Costs'!M$7:M$25)*_xlfn.XLOOKUP($B19,'Control panel'!$E$7:$E$25,'Control panel'!$F$7:$F$25) -> 0 | G19: =_xlfn.XLOOKUP($B19,'BBM Costs'!$I$7:$I$25,'BBM Costs'!N$7:N$25)*_xlfn.XLOOKUP($B19,'Control panel'!$E$7:$E$25,'Control panel'!$F$7:$F$25) -> 0 | I19: Debt raising costs | J19: =C19*_xlfn.XLOOKUP($I19,'Control panel'!$E$7:$E$25,'Control panel'!$H$7:$H$25) -> 0 | K19: =D19*_xlfn.XLOOKUP($I19,'Control panel'!$E$7:$E$25,'Control panel'!$H$7:$H$25) -> 0 | L19: =E19*_xlfn.XLOOKUP($I19,'Control panel'!$E$7:$E$25,'Control panel'!$H$7:$H$25) -> 0 | M19: =F19*_xlfn.XLOOKUP($I19,'Control panel'!$E$7:$E$25,'Control panel'!$H$7:$H$25) -> 0 | N19: =G19*_xlfn.XLOOKUP($I19,'Control panel'!$E$7:$E$25,'Control panel'!$H$7:$H$25) -> 0 | P19: Debt raising costs | Q19: =C19*_xlfn.XLOOKUP($P19,'Control panel'!$E$7:$E$25,'Control panel'!$I$7:$I$25) -> 0 | R19: =D19*_xlfn.XLOOKUP($P19,'Control panel'!$E$7:$E$25,'Control panel'!$I$7:$I$25) -> 0 | S19: =E19*_xlfn.XLOOKUP($P19,'Control panel'!$E$7:$E$25,'Control panel'!$I$7:$I$25) -> 0 | T19: =F19*_xlfn.XLOOKUP($P19,'Control panel'!$E$7:$E$25,'Control panel'!$I$7:$I$25) -> 0 | U19: =G19*_xlfn.XLOOKUP($P19,'Control panel'!$E$7:$E$25,'Control panel'!$I$7:$I$25) -> 0 | W19: 2025-26 | X19: ='PTRM Data'!B17 -> Low Voltage Services | Y19: =_xlfn.XLOOKUP(X19,'Control panel'!$L$7:$L$36,'Control panel'!$P$7:$P$36) -> 0 | Z19: 3.008126723 | AA19: =_xlfn.XLOOKUP(W19,'BBM Costs'!$Q$6:$U$6,_xlfn.XLOOKUP(X19,'BBM Costs'!$P$7:$P$36,'BBM Costs'!$Q$7:$U$36))*_xlfn.XLOOKUP(X19,'Control panel'!$L$7:$L$36,'Control panel'!$M$7:$M$36) -> 0 | AB19: =_xlfn.XLOOKUP(W19,'BBM Costs'!$X$6:$AB$6,_xlfn.XLOOKUP(X19,'BBM Costs'!$W$7:$W$36,'BBM Costs'!$X$7:$AB$36))*_xlfn.XLOOKUP(X19,'Control panel'!$S$7:$S$36,'Control panel'!$T$7:$T$36) -> 0 | AC19: 3.008126723 | AE19: ='PTRM Data'!B17 -> Low Voltage Services | AF19: ='Control panel'!$AA17/SUMPRODUCT('Control panel'!$AA$7:$AA$36,'Control panel'!AB$7:AB$36)*'Control panel'!AB17 -> 0.04198594365 | AG19: ='Control panel'!$AA17/SUMPRODUCT('Control panel'!$AA$7:$AA$36,'Control panel'!AC$7:AC$36)*'Control panel'!AC17 -> 0.04198594365 | AH19: ='Control panel'!$AA17/SUMPRODUCT('Control panel'!$AA$7:$AA$36,'Control panel'!AD$7:AD$36)*'Control panel'!AD17 -> 0.04365720491 | AI19: ='Control panel'!$AA17/SUMPRODUCT('Control panel'!$AA$7:$AA$36,'Control panel'!AE$7:AE$36)*'Control panel'!AE17 -> 0 | AJ19: ='Control panel'!$AA17/SUMPRODUCT('Control panel'!$AA$7:$AA$36,'Control panel'!AF$7:AF$36)*'Control panel'!AF17 -> 0.03835663738 | AK19: ='Control panel'!$AA17/SUMPRODUCT('Control panel'!$AA$7:$AA$36,'Control panel'!AG$7:AG$36)*'Control panel'!AG17 -> 0.04262856033 | AL19: ='Control panel'!$AA17/SUMPRODUCT('Control panel'!$AA$7:$AA$36,'Control panel'!AH$7:AH$36)*'Control panel'!AH17 -> 0.5051190087 | AM19: ='Control panel'!$AA17/SUMPRODUCT('Control panel'!$AA$7:$AA$36,'Control panel'!AI$7:AI$36)*'Control panel'!AI17 -> 0.03835663738 | AN19: ='Control panel'!$AA17/SUMPRODUCT('Control panel'!$AA$7:$AA$36,'Control panel'!AJ$7:AJ$36)*'Control panel'!AJ17 -> 0.9017064113 | AO19: ='Control panel'!$AA17/SUMPRODUCT('Control panel'!$AA$7:$AA$36,'Control panel'!AK$7:AK$36)*'Control panel'!AK17 -> 0.03835663738 | AP19: ='Control panel'!$AA17/SUMPRODUCT('Control panel'!$AA$7:$AA$36,'Control panel'!AL$7:AL$36)*'Control panel'!AL17 -> 0.03835663738 | AQ19: ='Control panel'!$AA17/SUMPRODUCT('Control panel'!$AA$7:$AA$36,'Control panel'!AM$7:AM$36)*'Control panel'!AM17 -> 0.04262856033 | AR19: ='Control panel'!$AA17/SUMPRODUCT('Control panel'!$AA$7:$AA$36,'Control panel'!AN$7:AN$36)*'Control panel'!AN17 -> 0.04262918733 | AT19: ='Control panel'!$AA17/SUMPRODUCT('Control panel'!$AA$7:$AA$36,'Control panel'!AP$7:AP$36)*'Control panel'!AP17 -> 0.03830138608 | AU19: ='Control panel'!$AA17/SUMPRODUCT('Control panel'!$AA$7:$AA$36,'Control panel'!AQ$7:AQ$36)*'Control panel'!AQ17 -> 0.03830138608 | AV19: ='Control panel'!$AA17/SUMPRODUCT('Control panel'!$AA$7:$AA$36,'Control panel'!AR$7:AR$36)*'Control panel'!AR17 -> 0.03830138608 | AW19: ='Control panel'!$AA17/SUMPRODUCT('Control panel'!$AA$7:$AA$36,'Control panel'!AS$7:AS$36)*'Control panel'!AS17 -> 0.03830138608 | AX19: ='Control panel'!$AA17/SUMPRODUCT('Control panel'!$AA$7:$AA$36,'Control panel'!AT$7:AT$36)*'Control panel'!AT17 -> 0.03830138608
B20: ='Opex costs'!B18 -> Other support costs | C20: =_xlfn.XLOOKUP($B20,'BBM Costs'!$I$7:$I$25,'BBM Costs'!J$7:J$25)*_xlfn.XLOOKUP($B20,'Control panel'!$E$7:$E$25,'Control panel'!$F$7:$F$25) -> 31.56292448 | D20: =_xlfn.XLOOKUP($B20,'BBM Costs'!$I$7:$I$25,'BBM Costs'!K$7:K$25)*_xlfn.XLOOKUP($B20,'Control panel'!$E$7:$E$25,'Control panel'!$F$7:$F$25) -> 32.70470864 | E20: =_xlfn.XLOOKUP($B20,'BBM Costs'!$I$7:$I$25,'BBM Costs'!L$7:L$25)*_xlfn.XLOOKUP($B20,'Control panel'!$E$7:$E$25,'Control panel'!$F$7:$F$25) -> 33.90321628 | F20: =_xlfn.XLOOKUP($B20,'BBM Costs'!$I$7:$I$25,'BBM Costs'!M$7:M$25)*_xlfn.XLOOKUP($B20,'Control panel'!$E$7:$E$25,'Control panel'!$F$7:$F$25) -> 36.35104165 | G20: =_xlfn.XLOOKUP($B20,'BBM Costs'!$I$7:$I$25,'BBM Costs'!N$7:N$25)*_xlfn.XLOOKUP($B20,'Control panel'!$E$7:$E$25,'Control panel'!$F$7:$F$25) -> 37.91908565 | I20: Other support costs | J20: =C20*_xlfn.XLOOKUP($I20,'Control panel'!$E$7:$E$25,'Control panel'!$H$7:$H$25) -> 25.25033958 | K20: =D20*_xlfn.XLOOKUP($I20,'Control panel'!$E$7:$E$25,'Control panel'!$H$7:$H$25) -> 26.16376691 | L20: =E20*_xlfn.XLOOKUP($I20,'Control panel'!$E$7:$E$25,'Control panel'!$H$7:$H$25) -> 27.12257303 | M20: =F20*_xlfn.XLOOKUP($I20,'Control panel'!$E$7:$E$25,'Control panel'!$H$7:$H$25) -> 29.08083332 | N20: =G20*_xlfn.XLOOKUP($I20,'Control panel'!$E$7:$E$25,'Control panel'!$H$7:$H$25) -> 30.33526852 | P20: Other support costs | Q20: =C20*_xlfn.XLOOKUP($P20,'Control panel'!$E$7:$E$25,'Control panel'!$I$7:$I$25) -> 6.312584896 | R20: =D20*_xlfn.XLOOKUP($P20,'Control panel'!$E$7:$E$25,'Control panel'!$I$7:$I$25) -> 6.540941727 | S20: =E20*_xlfn.XLOOKUP($P20,'Control panel'!$E$7:$E$25,'Control panel'!$I$7:$I$25) -> 6.780643257 | T20: =F20*_xlfn.XLOOKUP($P20,'Control panel'!$E$7:$E$25,'Control panel'!$I$7:$I$25) -> 7.270208329 | U20: =G20*_xlfn.XLOOKUP($P20,'Control panel'!$E$7:$E$25,'Control panel'!$I$7:$I$25) -> 7.58381713 | W20: 2025-26 | X20: ='PTRM Data'!B18 -> Load Control & Network Metering Devices | Y20: =_xlfn.XLOOKUP(X20,'Control panel'!$L$7:$L$36,'Control panel'!$P$7:$P$36) -> 0 | Z20: 0.327911133 | AA20: =_xlfn.XLOOKUP(W20,'BBM Costs'!$Q$6:$U$6,_xlfn.XLOOKUP(X20,'BBM Costs'!$P$7:$P$36,'BBM Costs'!$Q$7:$U$36))*_xlfn.XLOOKUP(X20,'Control panel'!$L$7:$L$36,'Control panel'!$M$7:$M$36) -> 0 | AB20: =_xlfn.XLOOKUP(W20,'BBM Costs'!$X$6:$AB$6,_xlfn.XLOOKUP(X20,'BBM Costs'!$W$7:$W$36,'BBM Costs'!$X$7:$AB$36))*_xlfn.XLOOKUP(X20,'Control panel'!$S$7:$S$36,'Control panel'!$T$7:$T$36) -> 0 | AC20: 0.327911133 | AE20: ='PTRM Data'!B18 -> Load Control & Network Metering Devices | AF20: ='Control panel'!$AA18/SUMPRODUCT('Control panel'!$AA$7:$AA$36,'Control panel'!AB$7:AB$36)*'Control panel'!AB18 -> 0.004576821265 | AG20: ='Control panel'!$AA18/SUMPRODUCT('Control panel'!$AA$7:$AA$36,'Control panel'!AC$7:AC$36)*'Control panel'!AC18 -> 0.004576821265 | AH20: ='Control panel'!$AA18/SUMPRODUCT('Control panel'!$AA$7:$AA$36,'Control panel'!AD$7:AD$36)*'Control panel'!AD18 -> 0.00475900281 | AI20: ='Control panel'!$AA18/SUMPRODUCT('Control panel'!$AA$7:$AA$36,'Control panel'!AE$7:AE$36)*'Control panel'!AE18 -> 0 | AJ20: ='Control panel'!$AA18/SUMPRODUCT('Control panel'!$AA$7:$AA$36,'Control panel'!AF$7:AF$36)*'Control panel'!AF18 -> 0.004181196333 | AK20: ='Control panel'!$AA18/SUMPRODUCT('Control panel'!$AA$7:$AA$36,'Control panel'!AG$7:AG$36)*'Control panel'!AG18 -> 0.004646871892 | AL20: ='Control panel'!$AA18/SUMPRODUCT('Control panel'!$AA$7:$AA$36,'Control panel'!AH$7:AH$36)*'Control panel'!AH18 -> 0.05506222367 | AM20: ='Control panel'!$AA18/SUMPRODUCT('Control panel'!$AA$7:$AA$36,'Control panel'!AI$7:AI$36)*'Control panel'!AI18 -> 0.004181196333 | AN20: ='Control panel'!$AA18/SUMPRODUCT('Control panel'!$AA$7:$AA$36,'Control panel'!AJ$7:AJ$36)*'Control panel'!AJ18 -> 0.09829358873 | AO20: ='Control panel'!$AA18/SUMPRODUCT('Control panel'!$AA$7:$AA$36,'Control panel'!AK$7:AK$36)*'Control panel'!AK18 -> 0.004181196333 | AP20: ='Control panel'!$AA18/SUMPRODUCT('Control panel'!$AA$7:$AA$36,'Control panel'!AL$7:AL$36)*'Control panel'!AL18 -> 0.004181196333 | AQ20: ='Control panel'!$AA18/SUMPRODUCT('Control panel'!$AA$7:$AA$36,'Control panel'!AM$7:AM$36)*'Control panel'!AM18 -> 0.004646871892 | AR20: ='Control panel'!$AA18/SUMPRODUCT('Control panel'!$AA$7:$AA$36,'Control panel'!AN$7:AN$36)*'Control panel'!AN18 -> 0.004646940241 | AT20: ='Control panel'!$AA18/SUMPRODUCT('Control panel'!$AA$7:$AA$36,'Control panel'!AP$7:AP$36)*'Control panel'!AP18 -> 0.004175173476 | AU20: ='Control panel'!$AA18/SUMPRODUCT('Control panel'!$AA$7:$AA$36,'Control panel'!AQ$7:AQ$36)*'Control panel'!AQ18 -> 0.004175173476 | AV20: ='Control panel'!$AA18/SUMPRODUCT('Control panel'!$AA$7:$AA$36,'Control panel'!AR$7:AR$36)*'Control panel'!AR18 -> 0.004175173476 | AW20: ='Control panel'!$AA18/SUMPRODUCT('Control panel'!$AA$7:$AA$36,'Control panel'!AS$7:AS$36)*'Control panel'!AS18 -> 0.004175173476 | AX20: ='Control panel'!$AA18/SUMPRODUCT('Control panel'!$AA$7:$AA$36,'Control panel'!AT$7:AT$36)*'Control panel'!AT18 -> 0.004175173476
B21: ='Opex costs'!B19 -> Corporate allocations | C21: =_xlfn.XLOOKUP($B21,'BBM Costs'!$I$7:$I$25,'BBM Costs'!J$7:J$25)*_xlfn.XLOOKUP($B21,'Control panel'!$E$7:$E$25,'Control panel'!$F$7:$F$25) -> 0 | D21: =_xlfn.XLOOKUP($B21,'BBM Costs'!$I$7:$I$25,'BBM Costs'!K$7:K$25)*_xlfn.XLOOKUP($B21,'Control panel'!$E$7:$E$25,'Control panel'!$F$7:$F$25) -> 0 | E21: =_xlfn.XLOOKUP($B21,'BBM Costs'!$I$7:$I$25,'BBM Costs'!L$7:L$25)*_xlfn.XLOOKUP($B21,'Control panel'!$E$7:$E$25,'Control panel'!$F$7:$F$25) -> 0 | F21: =_xlfn.XLOOKUP($B21,'BBM Costs'!$I$7:$I$25,'BBM Costs'!M$7:M$25)*_xlfn.XLOOKUP($B21,'Control panel'!$E$7:$E$25,'Control panel'!$F$7:$F$25) -> 0 | G21: =_xlfn.XLOOKUP($B21,'BBM Costs'!$I$7:$I$25,'BBM Costs'!N$7:N$25)*_xlfn.XLOOKUP($B21,'Control panel'!$E$7:$E$25,'Control panel'!$F$7:$F$25) -> 0 | I21: Corporate allocations | J21: =C21*_xlfn.XLOOKUP($I21,'Control panel'!$E$7:$E$25,'Control panel'!$H$7:$H$25) -> 0 | K21: =D21*_xlfn.XLOOKUP($I21,'Control panel'!$E$7:$E$25,'Control panel'!$H$7:$H$25) -> 0 | L21: =E21*_xlfn.XLOOKUP($I21,'Control panel'!$E$7:$E$25,'Control panel'!$H$7:$H$25) -> 0 | M21: =F21*_xlfn.XLOOKUP($I21,'Control panel'!$E$7:$E$25,'Control panel'!$H$7:$H$25) -> 0 | N21: =G21*_xlfn.XLOOKUP($I21,'Control panel'!$E$7:$E$25,'Control panel'!$H$7:$H$25) -> 0 | P21: Corporate allocations | Q21: =C21*_xlfn.XLOOKUP($P21,'Control panel'!$E$7:$E$25,'Control panel'!$I$7:$I$25) -> 0 | R21: =D21*_xlfn.XLOOKUP($P21,'Control panel'!$E$7:$E$25,'Control panel'!$I$7:$I$25) -> 0 | S21: =E21*_xlfn.XLOOKUP($P21,'Control panel'!$E$7:$E$25,'Control panel'!$I$7:$I$25) -> 0 | T21: =F21*_xlfn.XLOOKUP($P21,'Control panel'!$E$7:$E$25,'Control panel'!$I$7:$I$25) -> 0 | U21: =G21*_xlfn.XLOOKUP($P21,'Control panel'!$E$7:$E$25,'Control panel'!$I$7:$I$25) -> 0 | W21: 2025-26 | X21: ='PTRM Data'!B19 -> Communications - Pilot Wires | Y21: =_xlfn.XLOOKUP(X21,'Control panel'!$L$7:$L$36,'Control panel'!$P$7:$P$36) -> 1 | Z21: 1.820190751 | AA21: =_xlfn.XLOOKUP(W21,'BBM Costs'!$Q$6:$U$6,_xlfn.XLOOKUP(X21,'BBM Costs'!$P$7:$P$36,'BBM Costs'!$Q$7:$U$36))*_xlfn.XLOOKUP(X21,'Control panel'!$L$7:$L$36,'Control panel'!$M$7:$M$36) -> 0 | AB21: =_xlfn.XLOOKUP(W21,'BBM Costs'!$X$6:$AB$6,_xlfn.XLOOKUP(X21,'BBM Costs'!$W$7:$W$36,'BBM Costs'!$X$7:$AB$36))*_xlfn.XLOOKUP(X21,'Control panel'!$S$7:$S$36,'Control panel'!$T$7:$T$36) -> 0 | AC21: 1.820190751 | AE21: ='PTRM Data'!B19 -> Communications - Pilot Wires | AF21: ='Control panel'!$AA19/SUMPRODUCT('Control panel'!$AA$7:$AA$36,'Control panel'!AB$7:AB$36)*'Control panel'!AB19 -> 0.03655812922 | AG21: ='Control panel'!$AA19/SUMPRODUCT('Control panel'!$AA$7:$AA$36,'Control panel'!AC$7:AC$36)*'Control panel'!AC19 -> 0.03655812922 | AH21: ='Control panel'!$AA19/SUMPRODUCT('Control panel'!$AA$7:$AA$36,'Control panel'!AD$7:AD$36)*'Control panel'!AD19 -> 0.03801333494 | AI21: ='Control panel'!$AA19/SUMPRODUCT('Control panel'!$AA$7:$AA$36,'Control panel'!AE$7:AE$36)*'Control panel'!AE19 -> 0 | AJ21: ='Control panel'!$AA19/SUMPRODUCT('Control panel'!$AA$7:$AA$36,'Control panel'!AF$7:AF$36)*'Control panel'!AF19 -> 0.03339800857 | AK21: ='Control panel'!$AA19/SUMPRODUCT('Control panel'!$AA$7:$AA$36,'Control panel'!AG$7:AG$36)*'Control panel'!AG19 -> 0.03711767039 | AL21: ='Control panel'!$AA19/SUMPRODUCT('Control panel'!$AA$7:$AA$36,'Control panel'!AH$7:AH$36)*'Control panel'!AH19 -> 0.4398187676 | AM21: ='Control panel'!$AA19/SUMPRODUCT('Control panel'!$AA$7:$AA$36,'Control panel'!AI$7:AI$36)*'Control panel'!AI19 -> 0.03339800857 | AN21: ='Control panel'!$AA19/SUMPRODUCT('Control panel'!$AA$7:$AA$36,'Control panel'!AJ$7:AJ$36)*'Control panel'!AJ19 -> 0 | AO21: ='Control panel'!$AA19/SUMPRODUCT('Control panel'!$AA$7:$AA$36,'Control panel'!AK$7:AK$36)*'Control panel'!AK19 -> 0.03339800857 | AP21: ='Control panel'!$AA19/SUMPRODUCT('Control panel'!$AA$7:$AA$36,'Control panel'!AL$7:AL$36)*'Control panel'!AL19 -> 0.03339800857 | AQ21: ='Control panel'!$AA19/SUMPRODUCT('Control panel'!$AA$7:$AA$36,'Control panel'!AM$7:AM$36)*'Control panel'!AM19 -> 0.03711767039 | AR21: ='Control panel'!$AA19/SUMPRODUCT('Control panel'!$AA$7:$AA$36,'Control panel'!AN$7:AN$36)*'Control panel'!AN19 -> 0.03711821633 | AT21: ='Control panel'!$AA19/SUMPRODUCT('Control panel'!$AA$7:$AA$36,'Control panel'!AP$7:AP$36)*'Control panel'!AP19 -> 0.03334989999 | AU21: ='Control panel'!$AA19/SUMPRODUCT('Control panel'!$AA$7:$AA$36,'Control panel'!AQ$7:AQ$36)*'Control panel'!AQ19 -> 0.03334989999 | AV21: ='Control panel'!$AA19/SUMPRODUCT('Control panel'!$AA$7:$AA$36,'Control panel'!AR$7:AR$36)*'Control panel'!AR19 -> 0.03334989999 | AW21: ='Control panel'!$AA19/SUMPRODUCT('Control panel'!$AA$7:$AA$36,'Control panel'!AS$7:AS$36)*'Control panel'!AS19 -> 0.03334989999 | AX21: ='Control panel'!$AA19/SUMPRODUCT('Control panel'!$AA$7:$AA$36,'Control panel'!AT$7:AT$36)*'Control panel'!AT19 -> 0.03334989999
W22: 2025-26 | X22: ='PTRM Data'!B20 -> Streetlighting (Residual Rate 2 Assets) | Y22: =_xlfn.XLOOKUP(X22,'Control panel'!$L$7:$L$36,'Control panel'!$P$7:$P$36) -> 1 | Z22: 0 | AA22: =_xlfn.XLOOKUP(W22,'BBM Costs'!$Q$6:$U$6,_xlfn.XLOOKUP(X22,'BBM Costs'!$P$7:$P$36,'BBM Costs'!$Q$7:$U$36))*_xlfn.XLOOKUP(X22,'Control panel'!$L$7:$L$36,'Control panel'!$M$7:$M$36) -> 0 | AB22: =_xlfn.XLOOKUP(W22,'BBM Costs'!$X$6:$AB$6,_xlfn.XLOOKUP(X22,'BBM Costs'!$W$7:$W$36,'BBM Costs'!$X$7:$AB$36))*_xlfn.XLOOKUP(X22,'Control panel'!$S$7:$S$36,'Control panel'!$T$7:$T$36) -> 0 | AC22: 0 | AE22: ='PTRM Data'!B20 -> Streetlighting (Residual Rate 2 Assets) | AF22: ='Control panel'!$AA20/SUMPRODUCT('Control panel'!$AA$7:$AA$36,'Control panel'!AB$7:AB$36)*'Control panel'!AB20 -> 0 | AG22: ='Control panel'!$AA20/SUMPRODUCT('Control panel'!$AA$7:$AA$36,'Control panel'!AC$7:AC$36)*'Control panel'!AC20 -> 0 | AH22: ='Control panel'!$AA20/SUMPRODUCT('Control panel'!$AA$7:$AA$36,'Control panel'!AD$7:AD$36)*'Control panel'!AD20 -> 0 | AI22: ='Control panel'!$AA20/SUMPRODUCT('Control panel'!$AA$7:$AA$36,'Control panel'!AE$7:AE$36)*'Control panel'!AE20 -> 0 | AJ22: ='Control panel'!$AA20/SUMPRODUCT('Control panel'!$AA$7:$AA$36,'Control panel'!AF$7:AF$36)*'Control panel'!AF20 -> -1.32342771e-05 | AK22: ='Control panel'!$AA20/SUMPRODUCT('Control panel'!$AA$7:$AA$36,'Control panel'!AG$7:AG$36)*'Control panel'!AG20 -> 0 | AL22: ='Control panel'!$AA20/SUMPRODUCT('Control panel'!$AA$7:$AA$36,'Control panel'!AH$7:AH$36)*'Control panel'!AH20 -> 0 | AM22: ='Control panel'!$AA20/SUMPRODUCT('Control panel'!$AA$7:$AA$36,'Control panel'!AI$7:AI$36)*'Control panel'!AI20 -> -1.32342771e-05 | AN22: ='Control panel'!$AA20/SUMPRODUCT('Control panel'!$AA$7:$AA$36,'Control panel'!AJ$7:AJ$36)*'Control panel'!AJ20 -> 0 | AO22: ='Control panel'!$AA20/SUMPRODUCT('Control panel'!$AA$7:$AA$36,'Control panel'!AK$7:AK$36)*'Control panel'!AK20 -> -1.32342771e-05 | AP22: ='Control panel'!$AA20/SUMPRODUCT('Control panel'!$AA$7:$AA$36,'Control panel'!AL$7:AL$36)*'Control panel'!AL20 -> -1.32342771e-05 | AQ22: ='Control panel'!$AA20/SUMPRODUCT('Control panel'!$AA$7:$AA$36,'Control panel'!AM$7:AM$36)*'Control panel'!AM20 -> 0 | AR22: ='Control panel'!$AA20/SUMPRODUCT('Control panel'!$AA$7:$AA$36,'Control panel'!AN$7:AN$36)*'Control panel'!AN20 -> -1.470844465e-05 | AT22: ='Control panel'!$AA20/SUMPRODUCT('Control panel'!$AA$7:$AA$36,'Control panel'!AP$7:AP$36)*'Control panel'!AP20 -> -1.321521362e-05 | AU22: ='Control panel'!$AA20/SUMPRODUCT('Control panel'!$AA$7:$AA$36,'Control panel'!AQ$7:AQ$36)*'Control panel'!AQ20 -> -1.321521362e-05 | AV22: ='Control panel'!$AA20/SUMPRODUCT('Control panel'!$AA$7:$AA$36,'Control panel'!AR$7:AR$36)*'Control panel'!AR20 -> -1.321521362e-05 | AW22: ='Control panel'!$AA20/SUMPRODUCT('Control panel'!$AA$7:$AA$36,'Control panel'!AS$7:AS$36)*'Control panel'!AS20 -> -1.321521362e-05 | AX22: ='Control panel'!$AA20/SUMPRODUCT('Control panel'!$AA$7:$AA$36,'Control panel'!AT$7:AT$36)*'Control panel'!AT20 -> -1.321521362e-05
B23: EBSS | C23: =_xlfn.XLOOKUP($B23,'BBM Costs'!$I$7:$I$25,'BBM Costs'!J$7:J$25)*_xlfn.XLOOKUP($B23,'Control panel'!$E$7:$E$25,'Control panel'!$F$7:$F$25) -> 0 | D23: =_xlfn.XLOOKUP($B23,'BBM Costs'!$I$7:$I$25,'BBM Costs'!K$7:K$25)*_xlfn.XLOOKUP($B23,'Control panel'!$E$7:$E$25,'Control panel'!$F$7:$F$25) -> 0 | E23: =_xlfn.XLOOKUP($B23,'BBM Costs'!$I$7:$I$25,'BBM Costs'!L$7:L$25)*_xlfn.XLOOKUP($B23,'Control panel'!$E$7:$E$25,'Control panel'!$F$7:$F$25) -> 0 | F23: =_xlfn.XLOOKUP($B23,'BBM Costs'!$I$7:$I$25,'BBM Costs'!M$7:M$25)*_xlfn.XLOOKUP($B23,'Control panel'!$E$7:$E$25,'Control panel'!$F$7:$F$25) -> 0 | G23: =_xlfn.XLOOKUP($B23,'BBM Costs'!$I$7:$I$25,'BBM Costs'!N$7:N$25)*_xlfn.XLOOKUP($B23,'Control panel'!$E$7:$E$25,'Control panel'!$F$7:$F$25) -> 0 | I23: EBSS | J23: =C23*_xlfn.XLOOKUP($I23,'Control panel'!$E$7:$E$25,'Control panel'!$H$7:$H$25) -> 0 | K23: =D23*_xlfn.XLOOKUP($I23,'Control panel'!$E$7:$E$25,'Control panel'!$H$7:$H$25) -> 0 | L23: =E23*_xlfn.XLOOKUP($I23,'Control panel'!$E$7:$E$25,'Control panel'!$H$7:$H$25) -> 0 | M23: =F23*_xlfn.XLOOKUP($I23,'Control panel'!$E$7:$E$25,'Control panel'!$H$7:$H$25) -> 0 | N23: =G23*_xlfn.XLOOKUP($I23,'Control panel'!$E$7:$E$25,'Control panel'!$H$7:$H$25) -> 0 | P23: EBSS | Q23: =C23*_xlfn.XLOOKUP($P23,'Control panel'!$E$7:$E$25,'Control panel'!$I$7:$I$25) -> 0 | R23: =D23*_xlfn.XLOOKUP($P23,'Control panel'!$E$7:$E$25,'Control panel'!$I$7:$I$25) -> 0 | S23: =E23*_xlfn.XLOOKUP($P23,'Control panel'!$E$7:$E$25,'Control panel'!$I$7:$I$25) -> 0 | T23: =F23*_xlfn.XLOOKUP($P23,'Control panel'!$E$7:$E$25,'Control panel'!$I$7:$I$25) -> 0 | U23: =G23*_xlfn.XLOOKUP($P23,'Control panel'!$E$7:$E$25,'Control panel'!$I$7:$I$25) -> 0 | W23: 2025-26 | X23: ='PTRM Data'!B21 -> Systems Buildings | Y23: =_xlfn.XLOOKUP(X23,'Control panel'!$L$7:$L$36,'Control panel'!$P$7:$P$36) -> 1 | Z23: 1.150428431 | AA23: =_xlfn.XLOOKUP(W23,'BBM Costs'!$Q$6:$U$6,_xlfn.XLOOKUP(X23,'BBM Costs'!$P$7:$P$36,'BBM Costs'!$Q$7:$U$36))*_xlfn.XLOOKUP(X23,'Control panel'!$L$7:$L$36,'Control panel'!$M$7:$M$36) -> 0 | AB23: =_xlfn.XLOOKUP(W23,'BBM Costs'!$X$6:$AB$6,_xlfn.XLOOKUP(X23,'BBM Costs'!$W$7:$W$36,'BBM Costs'!$X$7:$AB$36))*_xlfn.XLOOKUP(X23,'Control panel'!$S$7:$S$36,'Control panel'!$T$7:$T$36) -> 0 | AC23: 1.150428431 | AE23: ='PTRM Data'!B21 -> Systems Buildings | AF23: ='Control panel'!$AA21/SUMPRODUCT('Control panel'!$AA$7:$AA$36,'Control panel'!AB$7:AB$36)*'Control panel'!AB21 -> 0.02310610096 | AG23: ='Control panel'!$AA21/SUMPRODUCT('Control panel'!$AA$7:$AA$36,'Control panel'!AC$7:AC$36)*'Control panel'!AC21 -> 0.02310610096 | AH23: ='Control panel'!$AA21/SUMPRODUCT('Control panel'!$AA$7:$AA$36,'Control panel'!AD$7:AD$36)*'Control panel'!AD21 -> 0 | AI23: ='Control panel'!$AA21/SUMPRODUCT('Control panel'!$AA$7:$AA$36,'Control panel'!AE$7:AE$36)*'Control panel'!AE21 -> 0 | AJ23: ='Control panel'!$AA21/SUMPRODUCT('Control panel'!$AA$7:$AA$36,'Control panel'!AF$7:AF$36)*'Control panel'!AF21 -> 0.02110878686 | AK23: ='Control panel'!$AA21/SUMPRODUCT('Control panel'!$AA$7:$AA$36,'Control panel'!AG$7:AG$36)*'Control panel'!AG21 -> 0.02345975184 | AL23: ='Control panel'!$AA21/SUMPRODUCT('Control panel'!$AA$7:$AA$36,'Control panel'!AH$7:AH$36)*'Control panel'!AH21 -> 0 | AM23: ='Control panel'!$AA21/SUMPRODUCT('Control panel'!$AA$7:$AA$36,'Control panel'!AI$7:AI$36)*'Control panel'!AI21 -> 0.02110878686 | AN23: ='Control panel'!$AA21/SUMPRODUCT('Control panel'!$AA$7:$AA$36,'Control panel'!AJ$7:AJ$36)*'Control panel'!AJ21 -> 0 | AO23: ='Control panel'!$AA21/SUMPRODUCT('Control panel'!$AA$7:$AA$36,'Control panel'!AK$7:AK$36)*'Control panel'!AK21 -> 0.02110878686 | AP23: ='Control panel'!$AA21/SUMPRODUCT('Control panel'!$AA$7:$AA$36,'Control panel'!AL$7:AL$36)*'Control panel'!AL21 -> 0.02110878686 | AQ23: ='Control panel'!$AA21/SUMPRODUCT('Control panel'!$AA$7:$AA$36,'Control panel'!AM$7:AM$36)*'Control panel'!AM21 -> 0.02345975184 | AR23: ='Control panel'!$AA21/SUMPRODUCT('Control panel'!$AA$7:$AA$36,'Control panel'!AN$7:AN$36)*'Control panel'!AN21 -> 0.0234600969 | AT23: ='Control panel'!$AA21/SUMPRODUCT('Control panel'!$AA$7:$AA$36,'Control panel'!AP$7:AP$36)*'Control panel'!AP21 -> 0.02107838045 | AU23: ='Control panel'!$AA21/SUMPRODUCT('Control panel'!$AA$7:$AA$36,'Control panel'!AQ$7:AQ$36)*'Control panel'!AQ21 -> 0.02107838045 | AV23: ='Control panel'!$AA21/SUMPRODUCT('Control panel'!$AA$7:$AA$36,'Control panel'!AR$7:AR$36)*'Control panel'!AR21 -> 0.02107838045 | AW23: ='Control panel'!$AA21/SUMPRODUCT('Control panel'!$AA$7:$AA$36,'Control panel'!AS$7:AS$36)*'Control panel'!AS21 -> 0.02107838045 | AX23: ='Control panel'!$AA21/SUMPRODUCT('Control panel'!$AA$7:$AA$36,'Control panel'!AT$7:AT$36)*'Control panel'!AT21 -> 0.02107838045
B24: CESS | C24: =_xlfn.XLOOKUP($B24,'BBM Costs'!$I$7:$I$25,'BBM Costs'!J$7:J$25)*_xlfn.XLOOKUP($B24,'Control panel'!$E$7:$E$25,'Control panel'!$F$7:$F$25) -> 0 | D24: =_xlfn.XLOOKUP($B24,'BBM Costs'!$I$7:$I$25,'BBM Costs'!K$7:K$25)*_xlfn.XLOOKUP($B24,'Control panel'!$E$7:$E$25,'Control panel'!$F$7:$F$25) -> 0 | E24: =_xlfn.XLOOKUP($B24,'BBM Costs'!$I$7:$I$25,'BBM Costs'!L$7:L$25)*_xlfn.XLOOKUP($B24,'Control panel'!$E$7:$E$25,'Control panel'!$F$7:$F$25) -> 0 | F24: =_xlfn.XLOOKUP($B24,'BBM Costs'!$I$7:$I$25,'BBM Costs'!M$7:M$25)*_xlfn.XLOOKUP($B24,'Control panel'!$E$7:$E$25,'Control panel'!$F$7:$F$25) -> 0 | G24: =_xlfn.XLOOKUP($B24,'BBM Costs'!$I$7:$I$25,'BBM Costs'!N$7:N$25)*_xlfn.XLOOKUP($B24,'Control panel'!$E$7:$E$25,'Control panel'!$F$7:$F$25) -> 0 | I24: CESS | J24: =C24*_xlfn.XLOOKUP($I24,'Control panel'!$E$7:$E$25,'Control panel'!$H$7:$H$25) -> 0 | K24: =D24*_xlfn.XLOOKUP($I24,'Control panel'!$E$7:$E$25,'Control panel'!$H$7:$H$25) -> 0 | L24: =E24*_xlfn.XLOOKUP($I24,'Control panel'!$E$7:$E$25,'Control panel'!$H$7:$H$25) -> 0 | M24: =F24*_xlfn.XLOOKUP($I24,'Control panel'!$E$7:$E$25,'Control panel'!$H$7:$H$25) -> 0 | N24: =G24*_xlfn.XLOOKUP($I24,'Control panel'!$E$7:$E$25,'Control panel'!$H$7:$H$25) -> 0 | P24: CESS | Q24: =C24*_xlfn.XLOOKUP($P24,'Control panel'!$E$7:$E$25,'Control panel'!$I$7:$I$25) -> 0 | R24: =D24*_xlfn.XLOOKUP($P24,'Control panel'!$E$7:$E$25,'Control panel'!$I$7:$I$25) -> 0 | S24: =E24*_xlfn.XLOOKUP($P24,'Control panel'!$E$7:$E$25,'Control panel'!$I$7:$I$25) -> 0 | T24: =F24*_xlfn.XLOOKUP($P24,'Control panel'!$E$7:$E$25,'Control panel'!$I$7:$I$25) -> 0 | U24: =G24*_xlfn.XLOOKUP($P24,'Control panel'!$E$7:$E$25,'Control panel'!$I$7:$I$25) -> 0 | W24: 2025-26 | X24: ='PTRM Data'!B22 -> Systems Easements | Y24: =_xlfn.XLOOKUP(X24,'Control panel'!$L$7:$L$36,'Control panel'!$P$7:$P$36) -> 1 | Z24: 0.6539406292 | AA24: =_xlfn.XLOOKUP(W24,'BBM Costs'!$Q$6:$U$6,_xlfn.XLOOKUP(X24,'BBM Costs'!$P$7:$P$36,'BBM Costs'!$Q$7:$U$36))*_xlfn.XLOOKUP(X24,'Control panel'!$L$7:$L$36,'Control panel'!$M$7:$M$36) -> 0 | AB24: =_xlfn.XLOOKUP(W24,'BBM Costs'!$X$6:$AB$6,_xlfn.XLOOKUP(X24,'BBM Costs'!$W$7:$W$36,'BBM Costs'!$X$7:$AB$36))*_xlfn.XLOOKUP(X24,'Control panel'!$S$7:$S$36,'Control panel'!$T$7:$T$36) -> 0 | AC24: 0.6539406292 | AE24: ='PTRM Data'!B22 -> Systems Easements | AF24: ='Control panel'!$AA22/SUMPRODUCT('Control panel'!$AA$7:$AA$36,'Control panel'!AB$7:AB$36)*'Control panel'!AB22 -> 0.01507479209 | AG24: ='Control panel'!$AA22/SUMPRODUCT('Control panel'!$AA$7:$AA$36,'Control panel'!AC$7:AC$36)*'Control panel'!AC22 -> 0.01507479209 | AH24: ='Control panel'!$AA22/SUMPRODUCT('Control panel'!$AA$7:$AA$36,'Control panel'!AD$7:AD$36)*'Control panel'!AD22 -> 0 | AI24: ='Control panel'!$AA22/SUMPRODUCT('Control panel'!$AA$7:$AA$36,'Control panel'!AE$7:AE$36)*'Control panel'!AE22 -> 0.04253296288 | AJ24: ='Control panel'!$AA22/SUMPRODUCT('Control panel'!$AA$7:$AA$36,'Control panel'!AF$7:AF$36)*'Control panel'!AF22 -> 0.01377171223 | AK24: ='Control panel'!$AA22/SUMPRODUCT('Control panel'!$AA$7:$AA$36,'Control panel'!AG$7:AG$36)*'Control panel'!AG22 -> 0 | AL24: ='Control panel'!$AA22/SUMPRODUCT('Control panel'!$AA$7:$AA$36,'Control panel'!AH$7:AH$36)*'Control panel'!AH22 -> 0 | AM24: ='Control panel'!$AA22/SUMPRODUCT('Control panel'!$AA$7:$AA$36,'Control panel'!AI$7:AI$36)*'Control panel'!AI22 -> 0.01377171223 | AN24: ='Control panel'!$AA22/SUMPRODUCT('Control panel'!$AA$7:$AA$36,'Control panel'!AJ$7:AJ$36)*'Control panel'!AJ22 -> 0 | AO24: ='Control panel'!$AA22/SUMPRODUCT('Control panel'!$AA$7:$AA$36,'Control panel'!AK$7:AK$36)*'Control panel'!AK22 -> 0.01377171223 | AP24: ='Control panel'!$AA22/SUMPRODUCT('Control panel'!$AA$7:$AA$36,'Control panel'!AL$7:AL$36)*'Control panel'!AL22 -> 0.01377171223 | AQ24: ='Control panel'!$AA22/SUMPRODUCT('Control panel'!$AA$7:$AA$36,'Control panel'!AM$7:AM$36)*'Control panel'!AM22 -> 0 | AR24: ='Control panel'!$AA22/SUMPRODUCT('Control panel'!$AA$7:$AA$36,'Control panel'!AN$7:AN$36)*'Control panel'!AN22 -> 0 | AT24: ='Control panel'!$AA22/SUMPRODUCT('Control panel'!$AA$7:$AA$36,'Control panel'!AP$7:AP$36)*'Control panel'!AP22 -> 0.0137518746 | AU24: ='Control panel'!$AA22/SUMPRODUCT('Control panel'!$AA$7:$AA$36,'Control panel'!AQ$7:AQ$36)*'Control panel'!AQ22 -> 0.0137518746 | AV24: ='Control panel'!$AA22/SUMPRODUCT('Control panel'!$AA$7:$AA$36,'Control panel'!AR$7:AR$36)*'Control panel'!AR22 -> 0.0137518746 | AW24: ='Control panel'!$AA22/SUMPRODUCT('Control panel'!$AA$7:$AA$36,'Control panel'!AS$7:AS$36)*'Control panel'!AS22 -> 0.0137518746 | AX24: ='Control panel'!$AA22/SUMPRODUCT('Control panel'!$AA$7:$AA$36,'Control panel'!AT$7:AT$36)*'Control panel'!AT22 -> 0.0137518746
B25: Control period carryover | C25: =_xlfn.XLOOKUP($B25,'BBM Costs'!$I$7:$I$25,'BBM Costs'!J$7:J$25)*_xlfn.XLOOKUP($B25,'Control panel'!$E$7:$E$25,'Control panel'!$F$7:$F$25) -> 0 | D25: =_xlfn.XLOOKUP($B25,'BBM Costs'!$I$7:$I$25,'BBM Costs'!K$7:K$25)*_xlfn.XLOOKUP($B25,'Control panel'!$E$7:$E$25,'Control panel'!$F$7:$F$25) -> 0 | E25: =_xlfn.XLOOKUP($B25,'BBM Costs'!$I$7:$I$25,'BBM Costs'!L$7:L$25)*_xlfn.XLOOKUP($B25,'Control panel'!$E$7:$E$25,'Control panel'!$F$7:$F$25) -> 0 | F25: =_xlfn.XLOOKUP($B25,'BBM Costs'!$I$7:$I$25,'BBM Costs'!M$7:M$25)*_xlfn.XLOOKUP($B25,'Control panel'!$E$7:$E$25,'Control panel'!$F$7:$F$25) -> 0 | G25: =_xlfn.XLOOKUP($B25,'BBM Costs'!$I$7:$I$25,'BBM Costs'!N$7:N$25)*_xlfn.XLOOKUP($B25,'Control panel'!$E$7:$E$25,'Control panel'!$F$7:$F$25) -> 0 | I25: Control period carryover | J25: =C25*_xlfn.XLOOKUP($I25,'Control panel'!$E$7:$E$25,'Control panel'!$H$7:$H$25) -> 0 | K25: =D25*_xlfn.XLOOKUP($I25,'Control panel'!$E$7:$E$25,'Control panel'!$H$7:$H$25) -> 0 | L25: =E25*_xlfn.XLOOKUP($I25,'Control panel'!$E$7:$E$25,'Control panel'!$H$7:$H$25) -> 0 | M25: =F25*_xlfn.XLOOKUP($I25,'Control panel'!$E$7:$E$25,'Control panel'!$H$7:$H$25) -> 0 | N25: =G25*_xlfn.XLOOKUP($I25,'Control panel'!$E$7:$E$25,'Control panel'!$H$7:$H$25) -> 0 | P25: Control period carryover | Q25: =C25*_xlfn.XLOOKUP($P25,'Control panel'!$E$7:$E$25,'Control panel'!$I$7:$I$25) -> 0 | R25: =D25*_xlfn.XLOOKUP($P25,'Control panel'!$E$7:$E$25,'Control panel'!$I$7:$I$25) -> 0 | S25: =E25*_xlfn.XLOOKUP($P25,'Control panel'!$E$7:$E$25,'Control panel'!$I$7:$I$25) -> 0 | T25: =F25*_xlfn.XLOOKUP($P25,'Control panel'!$E$7:$E$25,'Control panel'!$I$7:$I$25) -> 0 | U25: =G25*_xlfn.XLOOKUP($P25,'Control panel'!$E$7:$E$25,'Control panel'!$I$7:$I$25) -> 0 | W25: 2025-26 | X25: ='PTRM Data'!B23 -> System Land | Y25: =_xlfn.XLOOKUP(X25,'Control panel'!$L$7:$L$36,'Control panel'!$P$7:$P$36) -> 1 | Z25: 0 | AA25: =_xlfn.XLOOKUP(W25,'BBM Costs'!$Q$6:$U$6,_xlfn.XLOOKUP(X25,'BBM Costs'!$P$7:$P$36,'BBM Costs'!$Q$7:$U$36))*_xlfn.XLOOKUP(X25,'Control panel'!$L$7:$L$36,'Control panel'!$M$7:$M$36) -> 0 | AB25: =_xlfn.XLOOKUP(W25,'BBM Costs'!$X$6:$AB$6,_xlfn.XLOOKUP(X25,'BBM Costs'!$W$7:$W$36,'BBM Costs'!$X$7:$AB$36))*_xlfn.XLOOKUP(X25,'Control panel'!$S$7:$S$36,'Control panel'!$T$7:$T$36) -> 0 | AC25: 0 | AE25: ='PTRM Data'!B23 -> System Land | AF25: ='Control panel'!$AA23/SUMPRODUCT('Control panel'!$AA$7:$AA$36,'Control panel'!AB$7:AB$36)*'Control panel'!AB23 -> 0 | AG25: ='Control panel'!$AA23/SUMPRODUCT('Control panel'!$AA$7:$AA$36,'Control panel'!AC$7:AC$36)*'Control panel'!AC23 -> 0 | AH25: ='Control panel'!$AA23/SUMPRODUCT('Control panel'!$AA$7:$AA$36,'Control panel'!AD$7:AD$36)*'Control panel'!AD23 -> 0 | AI25: ='Control panel'!$AA23/SUMPRODUCT('Control panel'!$AA$7:$AA$36,'Control panel'!AE$7:AE$36)*'Control panel'!AE23 -> 0.06876747094 | AJ25: ='Control panel'!$AA23/SUMPRODUCT('Control panel'!$AA$7:$AA$36,'Control panel'!AF$7:AF$36)*'Control panel'!AF23 -> 0.0222661615 | AK25: ='Control panel'!$AA23/SUMPRODUCT('Control panel'!$AA$7:$AA$36,'Control panel'!AG$7:AG$36)*'Control panel'!AG23 -> 0 | AL25: ='Control panel'!$AA23/SUMPRODUCT('Control panel'!$AA$7:$AA$36,'Control panel'!AH$7:AH$36)*'Control panel'!AH23 -> 0 | AM25: ='Control panel'!$AA23/SUMPRODUCT('Control panel'!$AA$7:$AA$36,'Control panel'!AI$7:AI$36)*'Control panel'!AI23 -> 0.0222661615 | AN25: ='Control panel'!$AA23/SUMPRODUCT('Control panel'!$AA$7:$AA$36,'Control panel'!AJ$7:AJ$36)*'Control panel'!AJ23 -> 0 | AO25: ='Control panel'!$AA23/SUMPRODUCT('Control panel'!$AA$7:$AA$36,'Control panel'!AK$7:AK$36)*'Control panel'!AK23 -> 0.0222661615 | AP25: ='Control panel'!$AA23/SUMPRODUCT('Control panel'!$AA$7:$AA$36,'Control panel'!AL$7:AL$36)*'Control panel'!AL23 -> 0.0222661615 | AQ25: ='Control panel'!$AA23/SUMPRODUCT('Control panel'!$AA$7:$AA$36,'Control panel'!AM$7:AM$36)*'Control panel'!AM23 -> 0 | AR25: ='Control panel'!$AA23/SUMPRODUCT('Control panel'!$AA$7:$AA$36,'Control panel'!AN$7:AN$36)*'Control panel'!AN23 -> 0 | AT25: ='Control panel'!$AA23/SUMPRODUCT('Control panel'!$AA$7:$AA$36,'Control panel'!AP$7:AP$36)*'Control panel'!AP23 -> 0.02223408793 | AU25: ='Control panel'!$AA23/SUMPRODUCT('Control panel'!$AA$7:$AA$36,'Control panel'!AQ$7:AQ$36)*'Control panel'!AQ23 -> 0.02223408793 | AV25: ='Control panel'!$AA23/SUMPRODUCT('Control panel'!$AA$7:$AA$36,'Control panel'!AR$7:AR$36)*'Control panel'!AR23 -> 0.02223408793 | AW25: ='Control panel'!$AA23/SUMPRODUCT('Control panel'!$AA$7:$AA$36,'Control panel'!AS$7:AS$36)*'Control panel'!AS23 -> 0.02223408793 | AX25: ='Control panel'!$AA23/SUMPRODUCT('Control panel'!$AA$7:$AA$36,'Control panel'!AT$7:AT$36)*'Control panel'!AT23 -> 0.02223408793
B26: Shared asset decrements | C26: =_xlfn.XLOOKUP($B26,'BBM Costs'!$I$7:$I$25,'BBM Costs'!J$7:J$25)*_xlfn.XLOOKUP($B26,'Control panel'!$E$7:$E$25,'Control panel'!$F$7:$F$25) -> 0 | D26: =_xlfn.XLOOKUP($B26,'BBM Costs'!$I$7:$I$25,'BBM Costs'!K$7:K$25)*_xlfn.XLOOKUP($B26,'Control panel'!$E$7:$E$25,'Control panel'!$F$7:$F$25) -> 0 | E26: =_xlfn.XLOOKUP($B26,'BBM Costs'!$I$7:$I$25,'BBM Costs'!L$7:L$25)*_xlfn.XLOOKUP($B26,'Control panel'!$E$7:$E$25,'Control panel'!$F$7:$F$25) -> 0 | F26: =_xlfn.XLOOKUP($B26,'BBM Costs'!$I$7:$I$25,'BBM Costs'!M$7:M$25)*_xlfn.XLOOKUP($B26,'Control panel'!$E$7:$E$25,'Control panel'!$F$7:$F$25) -> 0 | G26: =_xlfn.XLOOKUP($B26,'BBM Costs'!$I$7:$I$25,'BBM Costs'!N$7:N$25)*_xlfn.XLOOKUP($B26,'Control panel'!$E$7:$E$25,'Control panel'!$F$7:$F$25) -> 0 | I26: Shared asset decrements | J26: =C26*_xlfn.XLOOKUP($I26,'Control panel'!$E$7:$E$25,'Control panel'!$H$7:$H$25) -> 0 | K26: =D26*_xlfn.XLOOKUP($I26,'Control panel'!$E$7:$E$25,'Control panel'!$H$7:$H$25) -> 0 | L26: =E26*_xlfn.XLOOKUP($I26,'Control panel'!$E$7:$E$25,'Control panel'!$H$7:$H$25) -> 0 | M26: =F26*_xlfn.XLOOKUP($I26,'Control panel'!$E$7:$E$25,'Control panel'!$H$7:$H$25) -> 0 | N26: =G26*_xlfn.XLOOKUP($I26,'Control panel'!$E$7:$E$25,'Control panel'!$H$7:$H$25) -> 0 | P26: Shared asset decrements | Q26: =C26*_xlfn.XLOOKUP($P26,'Control panel'!$E$7:$E$25,'Control panel'!$I$7:$I$25) -> 0 | R26: =D26*_xlfn.XLOOKUP($P26,'Control panel'!$E$7:$E$25,'Control panel'!$I$7:$I$25) -> 0 | S26: =E26*_xlfn.XLOOKUP($P26,'Control panel'!$E$7:$E$25,'Control panel'!$I$7:$I$25) -> 0 | T26: =F26*_xlfn.XLOOKUP($P26,'Control panel'!$E$7:$E$25,'Control panel'!$I$7:$I$25) -> 0 | U26: =G26*_xlfn.XLOOKUP($P26,'Control panel'!$E$7:$E$25,'Control panel'!$I$7:$I$25) -> 0 | W26: 2025-26 | X26: ='PTRM Data'!B24 -> Control Centre - SCADA | Y26: =_xlfn.XLOOKUP(X26,'Control panel'!$L$7:$L$36,'Control panel'!$P$7:$P$36) -> 1 | Z26: 0.00500680025 | AA26: =_xlfn.XLOOKUP(W26,'BBM Costs'!$Q$6:$U$6,_xlfn.XLOOKUP(X26,'BBM Costs'!$P$7:$P$36,'BBM Costs'!$Q$7:$U$36))*_xlfn.XLOOKUP(X26,'Control panel'!$L$7:$L$36,'Control panel'!$M$7:$M$36) -> 0 | AB26: =_xlfn.XLOOKUP(W26,'BBM Costs'!$X$6:$AB$6,_xlfn.XLOOKUP(X26,'BBM Costs'!$W$7:$W$36,'BBM Costs'!$X$7:$AB$36))*_xlfn.XLOOKUP(X26,'Control panel'!$S$7:$S$36,'Control panel'!$T$7:$T$36) -> 0 | AC26: 0.00500680025 | AE26: ='PTRM Data'!B24 -> Control Centre - SCADA | AF26: ='Control panel'!$AA24/SUMPRODUCT('Control panel'!$AA$7:$AA$36,'Control panel'!AB$7:AB$36)*'Control panel'!AB24 -> 0.0001005604772 | AG26: ='Control panel'!$AA24/SUMPRODUCT('Control panel'!$AA$7:$AA$36,'Control panel'!AC$7:AC$36)*'Control panel'!AC24 -> 0.0001005604772 | AH26: ='Control panel'!$AA24/SUMPRODUCT('Control panel'!$AA$7:$AA$36,'Control panel'!AD$7:AD$36)*'Control panel'!AD24 -> 0 | AI26: ='Control panel'!$AA24/SUMPRODUCT('Control panel'!$AA$7:$AA$36,'Control panel'!AE$7:AE$36)*'Control panel'!AE24 -> 0 | AJ26: ='Control panel'!$AA24/SUMPRODUCT('Control panel'!$AA$7:$AA$36,'Control panel'!AF$7:AF$36)*'Control panel'!AF24 -> 9.186793066e-05 | AK26: ='Control panel'!$AA24/SUMPRODUCT('Control panel'!$AA$7:$AA$36,'Control panel'!AG$7:AG$36)*'Control panel'!AG24 -> 0.0001020996076 | AL26: ='Control panel'!$AA24/SUMPRODUCT('Control panel'!$AA$7:$AA$36,'Control panel'!AH$7:AH$36)*'Control panel'!AH24 -> 0 | AM26: ='Control panel'!$AA24/SUMPRODUCT('Control panel'!$AA$7:$AA$36,'Control panel'!AI$7:AI$36)*'Control panel'!AI24 -> 9.186793066e-05 | AN26: ='Control panel'!$AA24/SUMPRODUCT('Control panel'!$AA$7:$AA$36,'Control panel'!AJ$7:AJ$36)*'Control panel'!AJ24 -> 0 | AO26: ='Control panel'!$AA24/SUMPRODUCT('Control panel'!$AA$7:$AA$36,'Control panel'!AK$7:AK$36)*'Control panel'!AK24 -> 9.186793066e-05 | AP26: ='Control panel'!$AA24/SUMPRODUCT('Control panel'!$AA$7:$AA$36,'Control panel'!AL$7:AL$36)*'Control panel'!AL24 -> 9.186793066e-05 | AQ26: ='Control panel'!$AA24/SUMPRODUCT('Control panel'!$AA$7:$AA$36,'Control panel'!AM$7:AM$36)*'Control panel'!AM24 -> 0.0001020996076 | AR26: ='Control panel'!$AA24/SUMPRODUCT('Control panel'!$AA$7:$AA$36,'Control panel'!AN$7:AN$36)*'Control panel'!AN24 -> 0.0001021011093 | AT26: ='Control panel'!$AA24/SUMPRODUCT('Control panel'!$AA$7:$AA$36,'Control panel'!AP$7:AP$36)*'Control panel'!AP24 -> 9.173559835e-05 | AU26: ='Control panel'!$AA24/SUMPRODUCT('Control panel'!$AA$7:$AA$36,'Control panel'!AQ$7:AQ$36)*'Control panel'!AQ24 -> 9.173559835e-05 | AV26: ='Control panel'!$AA24/SUMPRODUCT('Control panel'!$AA$7:$AA$36,'Control panel'!AR$7:AR$36)*'Control panel'!AR24 -> 9.173559835e-05 | AW26: ='Control panel'!$AA24/SUMPRODUCT('Control panel'!$AA$7:$AA$36,'Control panel'!AS$7:AS$36)*'Control panel'!AS24 -> 9.173559835e-05 | AX26: ='Control panel'!$AA24/SUMPRODUCT('Control panel'!$AA$7:$AA$36,'Control panel'!AT$7:AT$36)*'Control panel'!AT24 -> 9.173559835e-05
B27: DMIA | C27: =_xlfn.XLOOKUP($B27,'BBM Costs'!$I$7:$I$25,'BBM Costs'!J$7:J$25)*_xlfn.XLOOKUP($B27,'Control panel'!$E$7:$E$25,'Control panel'!$F$7:$F$25) -> 0 | D27: =_xlfn.XLOOKUP($B27,'BBM Costs'!$I$7:$I$25,'BBM Costs'!K$7:K$25)*_xlfn.XLOOKUP($B27,'Control panel'!$E$7:$E$25,'Control panel'!$F$7:$F$25) -> 0 | E27: =_xlfn.XLOOKUP($B27,'BBM Costs'!$I$7:$I$25,'BBM Costs'!L$7:L$25)*_xlfn.XLOOKUP($B27,'Control panel'!$E$7:$E$25,'Control panel'!$F$7:$F$25) -> 0 | F27: =_xlfn.XLOOKUP($B27,'BBM Costs'!$I$7:$I$25,'BBM Costs'!M$7:M$25)*_xlfn.XLOOKUP($B27,'Control panel'!$E$7:$E$25,'Control panel'!$F$7:$F$25) -> 0 | G27: =_xlfn.XLOOKUP($B27,'BBM Costs'!$I$7:$I$25,'BBM Costs'!N$7:N$25)*_xlfn.XLOOKUP($B27,'Control panel'!$E$7:$E$25,'Control panel'!$F$7:$F$25) -> 0 | I27: DMIA | J27: =C27*_xlfn.XLOOKUP($I27,'Control panel'!$E$7:$E$25,'Control panel'!$H$7:$H$25) -> 0 | K27: =D27*_xlfn.XLOOKUP($I27,'Control panel'!$E$7:$E$25,'Control panel'!$H$7:$H$25) -> 0 | L27: =E27*_xlfn.XLOOKUP($I27,'Control panel'!$E$7:$E$25,'Control panel'!$H$7:$H$25) -> 0 | M27: =F27*_xlfn.XLOOKUP($I27,'Control panel'!$E$7:$E$25,'Control panel'!$H$7:$H$25) -> 0 | N27: =G27*_xlfn.XLOOKUP($I27,'Control panel'!$E$7:$E$25,'Control panel'!$H$7:$H$25) -> 0 | P27: DMIA | Q27: =C27*_xlfn.XLOOKUP($P27,'Control panel'!$E$7:$E$25,'Control panel'!$I$7:$I$25) -> 0 | R27: =D27*_xlfn.XLOOKUP($P27,'Control panel'!$E$7:$E$25,'Control panel'!$I$7:$I$25) -> 0 | S27: =E27*_xlfn.XLOOKUP($P27,'Control panel'!$E$7:$E$25,'Control panel'!$I$7:$I$25) -> 0 | T27: =F27*_xlfn.XLOOKUP($P27,'Control panel'!$E$7:$E$25,'Control panel'!$I$7:$I$25) -> 0 | U27: =G27*_xlfn.XLOOKUP($P27,'Control panel'!$E$7:$E$25,'Control panel'!$I$7:$I$25) -> 0 | W27: 2025-26 | X27: ='PTRM Data'!B25 -> Motor Vehicles | Y27: =_xlfn.XLOOKUP(X27,'Control panel'!$L$7:$L$36,'Control panel'!$P$7:$P$36) -> 1 | Z27: 0 | AA27: =_xlfn.XLOOKUP(W27,'BBM Costs'!$Q$6:$U$6,_xlfn.XLOOKUP(X27,'BBM Costs'!$P$7:$P$36,'BBM Costs'!$Q$7:$U$36))*_xlfn.XLOOKUP(X27,'Control panel'!$L$7:$L$36,'Control panel'!$M$7:$M$36) -> 0 | AB27: =_xlfn.XLOOKUP(W27,'BBM Costs'!$X$6:$AB$6,_xlfn.XLOOKUP(X27,'BBM Costs'!$W$7:$W$36,'BBM Costs'!$X$7:$AB$36))*_xlfn.XLOOKUP(X27,'Control panel'!$S$7:$S$36,'Control panel'!$T$7:$T$36) -> 0 | AC27: 0 | AE27: ='PTRM Data'!B25 -> Motor Vehicles | AF27: ='Control panel'!$AA25/SUMPRODUCT('Control panel'!$AA$7:$AA$36,'Control panel'!AB$7:AB$36)*'Control panel'!AB25 -> 0 | AG27: ='Control panel'!$AA25/SUMPRODUCT('Control panel'!$AA$7:$AA$36,'Control panel'!AC$7:AC$36)*'Control panel'!AC25 -> 0 | AH27: ='Control panel'!$AA25/SUMPRODUCT('Control panel'!$AA$7:$AA$36,'Control panel'!AD$7:AD$36)*'Control panel'!AD25 -> 0 | AI27: ='Control panel'!$AA25/SUMPRODUCT('Control panel'!$AA$7:$AA$36,'Control panel'!AE$7:AE$36)*'Control panel'!AE25 -> 0 | AJ27: ='Control panel'!$AA25/SUMPRODUCT('Control panel'!$AA$7:$AA$36,'Control panel'!AF$7:AF$36)*'Control panel'!AF25 -> 0.00752090535 | AK27: ='Control panel'!$AA25/SUMPRODUCT('Control panel'!$AA$7:$AA$36,'Control panel'!AG$7:AG$36)*'Control panel'!AG25 -> 0 | AL27: ='Control panel'!$AA25/SUMPRODUCT('Control panel'!$AA$7:$AA$36,'Control panel'!AH$7:AH$36)*'Control panel'!AH25 -> 0 | AM27: ='Control panel'!$AA25/SUMPRODUCT('Control panel'!$AA$7:$AA$36,'Control panel'!AI$7:AI$36)*'Control panel'!AI25 -> 0.00752090535 | AN27: ='Control panel'!$AA25/SUMPRODUCT('Control panel'!$AA$7:$AA$36,'Control panel'!AJ$7:AJ$36)*'Control panel'!AJ25 -> 0 | AO27: ='Control panel'!$AA25/SUMPRODUCT('Control panel'!$AA$7:$AA$36,'Control panel'!AK$7:AK$36)*'Control panel'!AK25 -> 0.00752090535 | AP27: ='Control panel'!$AA25/SUMPRODUCT('Control panel'!$AA$7:$AA$36,'Control panel'!AL$7:AL$36)*'Control panel'!AL25 -> 0.00752090535 | AQ27: ='Control panel'!$AA25/SUMPRODUCT('Control panel'!$AA$7:$AA$36,'Control panel'!AM$7:AM$36)*'Control panel'!AM25 -> 0 | AR27: ='Control panel'!$AA25/SUMPRODUCT('Control panel'!$AA$7:$AA$36,'Control panel'!AN$7:AN$36)*'Control panel'!AN25 -> 0 | AT27: ='Control panel'!$AA25/SUMPRODUCT('Control panel'!$AA$7:$AA$36,'Control panel'!AP$7:AP$36)*'Control panel'!AP25 -> 0.007510071767 | AU27: ='Control panel'!$AA25/SUMPRODUCT('Control panel'!$AA$7:$AA$36,'Control panel'!AQ$7:AQ$36)*'Control panel'!AQ25 -> 0.007510071767 | AV27: ='Control panel'!$AA25/SUMPRODUCT('Control panel'!$AA$7:$AA$36,'Control panel'!AR$7:AR$36)*'Control panel'!AR25 -> 0.007510071767 | AW27: ='Control panel'!$AA25/SUMPRODUCT('Control panel'!$AA$7:$AA$36,'Control panel'!AS$7:AS$36)*'Control panel'!AS25 -> 0.007510071767 | AX27: ='Control panel'!$AA25/SUMPRODUCT('Control panel'!$AA$7:$AA$36,'Control panel'!AT$7:AT$36)*'Control panel'!AT25 -> 0.007510071767
W28: 2025-26 | X28: ='PTRM Data'!B26 -> Plant & Equipment | Y28: =_xlfn.XLOOKUP(X28,'Control panel'!$L$7:$L$36,'Control panel'!$P$7:$P$36) -> 1 | Z28: 0 | AA28: =_xlfn.XLOOKUP(W28,'BBM Costs'!$Q$6:$U$6,_xlfn.XLOOKUP(X28,'BBM Costs'!$P$7:$P$36,'BBM Costs'!$Q$7:$U$36))*_xlfn.XLOOKUP(X28,'Control panel'!$L$7:$L$36,'Control panel'!$M$7:$M$36) -> 0 | AB28: =_xlfn.XLOOKUP(W28,'BBM Costs'!$X$6:$AB$6,_xlfn.XLOOKUP(X28,'BBM Costs'!$W$7:$W$36,'BBM Costs'!$X$7:$AB$36))*_xlfn.XLOOKUP(X28,'Control panel'!$S$7:$S$36,'Control panel'!$T$7:$T$36) -> 0 | AC28: 0 | AE28: ='PTRM Data'!B26 -> Plant & Equipment | AF28: ='Control panel'!$AA26/SUMPRODUCT('Control panel'!$AA$7:$AA$36,'Control panel'!AB$7:AB$36)*'Control panel'!AB26 -> 0 | AG28: ='Control panel'!$AA26/SUMPRODUCT('Control panel'!$AA$7:$AA$36,'Control panel'!AC$7:AC$36)*'Control panel'!AC26 -> 0 | AH28: ='Control panel'!$AA26/SUMPRODUCT('Control panel'!$AA$7:$AA$36,'Control panel'!AD$7:AD$36)*'Control panel'!AD26 -> 0 | AI28: ='Control panel'!$AA26/SUMPRODUCT('Control panel'!$AA$7:$AA$36,'Control panel'!AE$7:AE$36)*'Control panel'!AE26 -> 0 | AJ28: ='Control panel'!$AA26/SUMPRODUCT('Control panel'!$AA$7:$AA$36,'Control panel'!AF$7:AF$36)*'Control panel'!AF26 -> 0.001321635404 | AK28: ='Control panel'!$AA26/SUMPRODUCT('Control panel'!$AA$7:$AA$36,'Control panel'!AG$7:AG$36)*'Control panel'!AG26 -> 0 | AL28: ='Control panel'!$AA26/SUMPRODUCT('Control panel'!$AA$7:$AA$36,'Control panel'!AH$7:AH$36)*'Control panel'!AH26 -> 0 | AM28: ='Control panel'!$AA26/SUMPRODUCT('Control panel'!$AA$7:$AA$36,'Control panel'!AI$7:AI$36)*'Control panel'!AI26 -> 0.001321635404 | AN28: ='Control panel'!$AA26/SUMPRODUCT('Control panel'!$AA$7:$AA$36,'Control panel'!AJ$7:AJ$36)*'Control panel'!AJ26 -> 0 | AO28: ='Control panel'!$AA26/SUMPRODUCT('Control panel'!$AA$7:$AA$36,'Control panel'!AK$7:AK$36)*'Control panel'!AK26 -> 0.001321635404 | AP28: ='Control panel'!$AA26/SUMPRODUCT('Control panel'!$AA$7:$AA$36,'Control panel'!AL$7:AL$36)*'Control panel'!AL26 -> 0.001321635404 | AQ28: ='Control panel'!$AA26/SUMPRODUCT('Control panel'!$AA$7:$AA$36,'Control panel'!AM$7:AM$36)*'Control panel'!AM26 -> 0 | AR28: ='Control panel'!$AA26/SUMPRODUCT('Control panel'!$AA$7:$AA$36,'Control panel'!AN$7:AN$36)*'Control panel'!AN26 -> 0 | AT28: ='Control panel'!$AA26/SUMPRODUCT('Control panel'!$AA$7:$AA$36,'Control panel'!AP$7:AP$36)*'Control panel'!AP26 -> 0.001319731638 | AU28: ='Control panel'!$AA26/SUMPRODUCT('Control panel'!$AA$7:$AA$36,'Control panel'!AQ$7:AQ$36)*'Control panel'!AQ26 -> 0.001319731638 | AV28: ='Control panel'!$AA26/SUMPRODUCT('Control panel'!$AA$7:$AA$36,'Control panel'!AR$7:AR$36)*'Control panel'!AR26 -> 0.001319731638 | AW28: ='Control panel'!$AA26/SUMPRODUCT('Control panel'!$AA$7:$AA$36,'Control panel'!AS$7:AS$36)*'Control panel'!AS26 -> 0.001319731638 | AX28: ='Control panel'!$AA26/SUMPRODUCT('Control panel'!$AA$7:$AA$36,'Control panel'!AT$7:AT$36)*'Control panel'!AT26 -> 0.001319731638
B29: Total | C29: =SUM(C9:C27) -> 116.8151447 | D29: =SUM(D9:D27) -> 121.0409154 | E29: 125.4766211 | F29: 134.5360818 | G29: 140.3394505 | I29: Total | J29: =SUM(J9:J27) -> 66.10508846 | K29: =SUM(K9:K27) -> 68.49643033 | L29: 71.00657334 | M29: 76.13327546 | N29: 79.41737189 | P29: Total | Q29: =SUM(Q9:Q27) -> 50.71005623 | R29: =SUM(R9:R27) -> 52.54448507 | S29: 54.47004777 | T29: 58.40280634 | U29: 60.92207858 | W29: 2025-26 | X29: ='PTRM Data'!B27 -> Buildings | Y29: =_xlfn.XLOOKUP(X29,'Control panel'!$L$7:$L$36,'Control panel'!$P$7:$P$36) -> 1 | Z29: 0 | AA29: =_xlfn.XLOOKUP(W29,'BBM Costs'!$Q$6:$U$6,_xlfn.XLOOKUP(X29,'BBM Costs'!$P$7:$P$36,'BBM Costs'!$Q$7:$U$36))*_xlfn.XLOOKUP(X29,'Control panel'!$L$7:$L$36,'Control panel'!$M$7:$M$36) -> 0 | AB29: =_xlfn.XLOOKUP(W29,'BBM Costs'!$X$6:$AB$6,_xlfn.XLOOKUP(X29,'BBM Costs'!$W$7:$W$36,'BBM Costs'!$X$7:$AB$36))*_xlfn.XLOOKUP(X29,'Control panel'!$S$7:$S$36,'Control panel'!$T$7:$T$36) -> 0 | AC29: 0 | AE29: ='PTRM Data'!B27 -> Buildings | AF29: ='Control panel'!$AA27/SUMPRODUCT('Control panel'!$AA$7:$AA$36,'Control panel'!AB$7:AB$36)*'Control panel'!AB27 -> 0 | AG29: ='Control panel'!$AA27/SUMPRODUCT('Control panel'!$AA$7:$AA$36,'Control panel'!AC$7:AC$36)*'Control panel'!AC27 -> 0 | AH29: ='Control panel'!$AA27/SUMPRODUCT('Control panel'!$AA$7:$AA$36,'Control panel'!AD$7:AD$36)*'Control panel'!AD27 -> 0 | AI29: ='Control panel'!$AA27/SUMPRODUCT('Control panel'!$AA$7:$AA$36,'Control panel'!AE$7:AE$36)*'Control panel'!AE27 -> 0 | AJ29: ='Control panel'!$AA27/SUMPRODUCT('Control panel'!$AA$7:$AA$36,'Control panel'!AF$7:AF$36)*'Control panel'!AF27 -> 0.01852073882 | AK29: ='Control panel'!$AA27/SUMPRODUCT('Control panel'!$AA$7:$AA$36,'Control panel'!AG$7:AG$36)*'Control panel'!AG27 -> 0 | AL29: ='Control panel'!$AA27/SUMPRODUCT('Control panel'!$AA$7:$AA$36,'Control panel'!AH$7:AH$36)*'Control panel'!AH27 -> 0 | AM29: ='Control panel'!$AA27/SUMPRODUCT('Control panel'!$AA$7:$AA$36,'Control panel'!AI$7:AI$36)*'Control panel'!AI27 -> 0.01852073882 | AN29: ='Control panel'!$AA27/SUMPRODUCT('Control panel'!$AA$7:$AA$36,'Control panel'!AJ$7:AJ$36)*'Control panel'!AJ27 -> 0 | AO29: ='Control panel'!$AA27/SUMPRODUCT('Control panel'!$AA$7:$AA$36,'Control panel'!AK$7:AK$36)*'Control panel'!AK27 -> 0.01852073882 | AP29: ='Control panel'!$AA27/SUMPRODUCT('Control panel'!$AA$7:$AA$36,'Control panel'!AL$7:AL$36)*'Control panel'!AL27 -> 0.01852073882 | AQ29: ='Control panel'!$AA27/SUMPRODUCT('Control panel'!$AA$7:$AA$36,'Control panel'!AM$7:AM$36)*'Control panel'!AM27 -> 0 | AR29: ='Control panel'!$AA27/SUMPRODUCT('Control panel'!$AA$7:$AA$36,'Control panel'!AN$7:AN$36)*'Control panel'!AN27 -> 0 | AT29: ='Control panel'!$AA27/SUMPRODUCT('Control panel'!$AA$7:$AA$36,'Control panel'!AP$7:AP$36)*'Control panel'!AP27 -> 0.01849406039 | AU29: ='Control panel'!$AA27/SUMPRODUCT('Control panel'!$AA$7:$AA$36,'Control panel'!AQ$7:AQ$36)*'Control panel'!AQ27 -> 0.01849406039 | AV29: ='Control panel'!$AA27/SUMPRODUCT('Control panel'!$AA$7:$AA$36,'Control panel'!AR$7:AR$36)*'Control panel'!AR27 -> 0.01849406039 | AW29: ='Control panel'!$AA27/SUMPRODUCT('Control panel'!$AA$7:$AA$36,'Control panel'!AS$7:AS$36)*'Control panel'!AS27 -> 0.01849406039 | AX29: ='Control panel'!$AA27/SUMPRODUCT('Control panel'!$AA$7:$AA$36,'Control panel'!AT$7:AT$36)*'Control panel'!AT27 -> 0.01849406039
W30: 2025-26 | X30: ='PTRM Data'!B28 -> Office Equipment & Furniture | Y30: =_xlfn.XLOOKUP(X30,'Control panel'!$L$7:$L$36,'Control panel'!$P$7:$P$36) -> 1 | Z30: 0 | AA30: =_xlfn.XLOOKUP(W30,'BBM Costs'!$Q$6:$U$6,_xlfn.XLOOKUP(X30,'BBM Costs'!$P$7:$P$36,'BBM Costs'!$Q$7:$U$36))*_xlfn.XLOOKUP(X30,'Control panel'!$L$7:$L$36,'Control panel'!$M$7:$M$36) -> 0 | AB30: =_xlfn.XLOOKUP(W30,'BBM Costs'!$X$6:$AB$6,_xlfn.XLOOKUP(X30,'BBM Costs'!$W$7:$W$36,'BBM Costs'!$X$7:$AB$36))*_xlfn.XLOOKUP(X30,'Control panel'!$S$7:$S$36,'Control panel'!$T$7:$T$36) -> 0 | AC30: 0 | AE30: ='PTRM Data'!B28 -> Office Equipment & Furniture | AF30: ='Control panel'!$AA28/SUMPRODUCT('Control panel'!$AA$7:$AA$36,'Control panel'!AB$7:AB$36)*'Control panel'!AB28 -> 0 | AG30: ='Control panel'!$AA28/SUMPRODUCT('Control panel'!$AA$7:$AA$36,'Control panel'!AC$7:AC$36)*'Control panel'!AC28 -> 0 | AH30: ='Control panel'!$AA28/SUMPRODUCT('Control panel'!$AA$7:$AA$36,'Control panel'!AD$7:AD$36)*'Control panel'!AD28 -> 0 | AI30: ='Control panel'!$AA28/SUMPRODUCT('Control panel'!$AA$7:$AA$36,'Control panel'!AE$7:AE$36)*'Control panel'!AE28 -> 0 | AJ30: ='Control panel'!$AA28/SUMPRODUCT('Control panel'!$AA$7:$AA$36,'Control panel'!AF$7:AF$36)*'Control panel'!AF28 -> -0.0009110099424 | AK30: ='Control panel'!$AA28/SUMPRODUCT('Control panel'!$AA$7:$AA$36,'Control panel'!AG$7:AG$36)*'Control panel'!AG28 -> 0 | AL30: ='Control panel'!$AA28/SUMPRODUCT('Control panel'!$AA$7:$AA$36,'Control panel'!AH$7:AH$36)*'Control panel'!AH28 -> 0 | AM30: ='Control panel'!$AA28/SUMPRODUCT('Control panel'!$AA$7:$AA$36,'Control panel'!AI$7:AI$36)*'Control panel'!AI28 -> -0.0009110099424 | AN30: ='Control panel'!$AA28/SUMPRODUCT('Control panel'!$AA$7:$AA$36,'Control panel'!AJ$7:AJ$36)*'Control panel'!AJ28 -> 0 | AO30: ='Control panel'!$AA28/SUMPRODUCT('Control panel'!$AA$7:$AA$36,'Control panel'!AK$7:AK$36)*'Control panel'!AK28 -> -0.0009110099424 | AP30: ='Control panel'!$AA28/SUMPRODUCT('Control panel'!$AA$7:$AA$36,'Control panel'!AL$7:AL$36)*'Control panel'!AL28 -> -0.0009110099424 | AQ30: ='Control panel'!$AA28/SUMPRODUCT('Control panel'!$AA$7:$AA$36,'Control panel'!AM$7:AM$36)*'Control panel'!AM28 -> 0 | AR30: ='Control panel'!$AA28/SUMPRODUCT('Control panel'!$AA$7:$AA$36,'Control panel'!AN$7:AN$36)*'Control panel'!AN28 -> 0 | AT30: ='Control panel'!$AA28/SUMPRODUCT('Control panel'!$AA$7:$AA$36,'Control panel'!AP$7:AP$36)*'Control panel'!AP28 -> -0.0009096976666 | AU30: ='Control panel'!$AA28/SUMPRODUCT('Control panel'!$AA$7:$AA$36,'Control panel'!AQ$7:AQ$36)*'Control panel'!AQ28 -> -0.0009096976666 | AV30: ='Control panel'!$AA28/SUMPRODUCT('Control panel'!$AA$7:$AA$36,'Control panel'!AR$7:AR$36)*'Control panel'!AR28 -> -0.0009096976666 | AW30: ='Control panel'!$AA28/SUMPRODUCT('Control panel'!$AA$7:$AA$36,'Control panel'!AS$7:AS$36)*'Control panel'!AS28 -> -0.0009096976666 | AX30: ='Control panel'!$AA28/SUMPRODUCT('Control panel'!$AA$7:$AA$36,'Control panel'!AT$7:AT$36)*'Control panel'!AT28 -> -0.0009096976666
W31: 2025-26 | X31: ='PTRM Data'!B29 -> Initial Leases (10 yr life) | Y31: =_xlfn.XLOOKUP(X31,'Control panel'!$L$7:$L$36,'Control panel'!$P$7:$P$36) -> 1 | Z31: 0 | AA31: =_xlfn.XLOOKUP(W31,'BBM Costs'!$Q$6:$U$6,_xlfn.XLOOKUP(X31,'BBM Costs'!$P$7:$P$36,'BBM Costs'!$Q$7:$U$36))*_xlfn.XLOOKUP(X31,'Control panel'!$L$7:$L$36,'Control panel'!$M$7:$M$36) -> 0 | AB31: =_xlfn.XLOOKUP(W31,'BBM Costs'!$X$6:$AB$6,_xlfn.XLOOKUP(X31,'BBM Costs'!$W$7:$W$36,'BBM Costs'!$X$7:$AB$36))*_xlfn.XLOOKUP(X31,'Control panel'!$S$7:$S$36,'Control panel'!$T$7:$T$36) -> 0 | AC31: 0 | AE31: ='PTRM Data'!B29 -> Initial Leases (10 yr life) | AF31: ='Control panel'!$AA29/SUMPRODUCT('Control panel'!$AA$7:$AA$36,'Control panel'!AB$7:AB$36)*'Control panel'!AB29 -> 0 | AG31: ='Control panel'!$AA29/SUMPRODUCT('Control panel'!$AA$7:$AA$36,'Control panel'!AC$7:AC$36)*'Control panel'!AC29 -> 0 | AH31: ='Control panel'!$AA29/SUMPRODUCT('Control panel'!$AA$7:$AA$36,'Control panel'!AD$7:AD$36)*'Control panel'!AD29 -> 0 | AI31: ='Control panel'!$AA29/SUMPRODUCT('Control panel'!$AA$7:$AA$36,'Control panel'!AE$7:AE$36)*'Control panel'!AE29 -> 0 | AJ31: ='Control panel'!$AA29/SUMPRODUCT('Control panel'!$AA$7:$AA$36,'Control panel'!AF$7:AF$36)*'Control panel'!AF29 -> 0.00285222345 | AK31: ='Control panel'!$AA29/SUMPRODUCT('Control panel'!$AA$7:$AA$36,'Control panel'!AG$7:AG$36)*'Control panel'!AG29 -> 0 | AL31: ='Control panel'!$AA29/SUMPRODUCT('Control panel'!$AA$7:$AA$36,'Control panel'!AH$7:AH$36)*'Control panel'!AH29 -> 0 | AM31: ='Control panel'!$AA29/SUMPRODUCT('Control panel'!$AA$7:$AA$36,'Control panel'!AI$7:AI$36)*'Control panel'!AI29 -> 0.00285222345 | AN31: ='Control panel'!$AA29/SUMPRODUCT('Control panel'!$AA$7:$AA$36,'Control panel'!AJ$7:AJ$36)*'Control panel'!AJ29 -> 0 | AO31: ='Control panel'!$AA29/SUMPRODUCT('Control panel'!$AA$7:$AA$36,'Control panel'!AK$7:AK$36)*'Control panel'!AK29 -> 0.00285222345 | AP31: ='Control panel'!$AA29/SUMPRODUCT('Control panel'!$AA$7:$AA$36,'Control panel'!AL$7:AL$36)*'Control panel'!AL29 -> 0.00285222345 | AQ31: ='Control panel'!$AA29/SUMPRODUCT('Control panel'!$AA$7:$AA$36,'Control panel'!AM$7:AM$36)*'Control panel'!AM29 -> 0 | AR31: ='Control panel'!$AA29/SUMPRODUCT('Control panel'!$AA$7:$AA$36,'Control panel'!AN$7:AN$36)*'Control panel'!AN29 -> 0 | AT31: ='Control panel'!$AA29/SUMPRODUCT('Control panel'!$AA$7:$AA$36,'Control panel'!AP$7:AP$36)*'Control panel'!AP29 -> 0.002848114929 | AU31: ='Control panel'!$AA29/SUMPRODUCT('Control panel'!$AA$7:$AA$36,'Control panel'!AQ$7:AQ$36)*'Control panel'!AQ29 -> 0.002848114929 | AV31: ='Control panel'!$AA29/SUMPRODUCT('Control panel'!$AA$7:$AA$36,'Control panel'!AR$7:AR$36)*'Control panel'!AR29 -> 0.002848114929 | AW31: ='Control panel'!$AA29/SUMPRODUCT('Control panel'!$AA$7:$AA$36,'Control panel'!AS$7:AS$36)*'Control panel'!AS29 -> 0.002848114929 | AX31: ='Control panel'!$AA29/SUMPRODUCT('Control panel'!$AA$7:$AA$36,'Control panel'!AT$7:AT$36)*'Control panel'!AT29 -> 0.002848114929
W32: 2025-26 | X32: ='PTRM Data'!B30 -> Lease Extensions (5yr Life) | Y32: =_xlfn.XLOOKUP(X32,'Control panel'!$L$7:$L$36,'Control panel'!$P$7:$P$36) -> 1 | Z32: 0 | AA32: =_xlfn.XLOOKUP(W32,'BBM Costs'!$Q$6:$U$6,_xlfn.XLOOKUP(X32,'BBM Costs'!$P$7:$P$36,'BBM Costs'!$Q$7:$U$36))*_xlfn.XLOOKUP(X32,'Control panel'!$L$7:$L$36,'Control panel'!$M$7:$M$36) -> 0 | AB32: =_xlfn.XLOOKUP(W32,'BBM Costs'!$X$6:$AB$6,_xlfn.XLOOKUP(X32,'BBM Costs'!$W$7:$W$36,'BBM Costs'!$X$7:$AB$36))*_xlfn.XLOOKUP(X32,'Control panel'!$S$7:$S$36,'Control panel'!$T$7:$T$36) -> 0 | AC32: 0 | AE32: ='PTRM Data'!B30 -> Lease Extensions (5yr Life) | AF32: ='Control panel'!$AA30/SUMPRODUCT('Control panel'!$AA$7:$AA$36,'Control panel'!AB$7:AB$36)*'Control panel'!AB30 -> 0 | AG32: ='Control panel'!$AA30/SUMPRODUCT('Control panel'!$AA$7:$AA$36,'Control panel'!AC$7:AC$36)*'Control panel'!AC30 -> 0 | AH32: ='Control panel'!$AA30/SUMPRODUCT('Control panel'!$AA$7:$AA$36,'Control panel'!AD$7:AD$36)*'Control panel'!AD30 -> 0 | AI32: ='Control panel'!$AA30/SUMPRODUCT('Control panel'!$AA$7:$AA$36,'Control panel'!AE$7:AE$36)*'Control panel'!AE30 -> 0 | AJ32: ='Control panel'!$AA30/SUMPRODUCT('Control panel'!$AA$7:$AA$36,'Control panel'!AF$7:AF$36)*'Control panel'!AF30 -> 0 | AK32: ='Control panel'!$AA30/SUMPRODUCT('Control panel'!$AA$7:$AA$36,'Control panel'!AG$7:AG$36)*'Control panel'!AG30 -> 0 | AL32: ='Control panel'!$AA30/SUMPRODUCT('Control panel'!$AA$7:$AA$36,'Control panel'!AH$7:AH$36)*'Control panel'!AH30 -> 0 | AM32: ='Control panel'!$AA30/SUMPRODUCT('Control panel'!$AA$7:$AA$36,'Control panel'!AI$7:AI$36)*'Control panel'!AI30 -> 0 | AN32: ='Control panel'!$AA30/SUMPRODUCT('Control panel'!$AA$7:$AA$36,'Control panel'!AJ$7:AJ$36)*'Control panel'!AJ30 -> 0 | AO32: ='Control panel'!$AA30/SUMPRODUCT('Control panel'!$AA$7:$AA$36,'Control panel'!AK$7:AK$36)*'Control panel'!AK30 -> 0 | AP32: ='Control panel'!$AA30/SUMPRODUCT('Control panel'!$AA$7:$AA$36,'Control panel'!AL$7:AL$36)*'Control panel'!AL30 -> 0 | AQ32: ='Control panel'!$AA30/SUMPRODUCT('Control panel'!$AA$7:$AA$36,'Control panel'!AM$7:AM$36)*'Control panel'!AM30 -> 0 | AR32: ='Control panel'!$AA30/SUMPRODUCT('Control panel'!$AA$7:$AA$36,'Control panel'!AN$7:AN$36)*'Control panel'!AN30 -> 0 | AT32: ='Control panel'!$AA30/SUMPRODUCT('Control panel'!$AA$7:$AA$36,'Control panel'!AP$7:AP$36)*'Control panel'!AP30 -> 0 | AU32: ='Control panel'!$AA30/SUMPRODUCT('Control panel'!$AA$7:$AA$36,'Control panel'!AQ$7:AQ$36)*'Control panel'!AQ30 -> 0 | AV32: ='Control panel'!$AA30/SUMPRODUCT('Control panel'!$AA$7:$AA$36,'Control panel'!AR$7:AR$36)*'Control panel'!AR30 -> 0 | AW32: ='Control panel'!$AA30/SUMPRODUCT('Control panel'!$AA$7:$AA$36,'Control panel'!AS$7:AS$36)*'Control panel'!AS30 -> 0 | AX32: ='Control panel'!$AA30/SUMPRODUCT('Control panel'!$AA$7:$AA$36,'Control panel'!AT$7:AT$36)*'Control panel'!AT30 -> 0
W33: 2025-26 | X33: ='PTRM Data'!B31 -> Land | Y33: =_xlfn.XLOOKUP(X33,'Control panel'!$L$7:$L$36,'Control panel'!$P$7:$P$36) -> 1 | Z33: 0 | AA33: =_xlfn.XLOOKUP(W33,'BBM Costs'!$Q$6:$U$6,_xlfn.XLOOKUP(X33,'BBM Costs'!$P$7:$P$36,'BBM Costs'!$Q$7:$U$36))*_xlfn.XLOOKUP(X33,'Control panel'!$L$7:$L$36,'Control panel'!$M$7:$M$36) -> 0 | AB33: =_xlfn.XLOOKUP(W33,'BBM Costs'!$X$6:$AB$6,_xlfn.XLOOKUP(X33,'BBM Costs'!$W$7:$W$36,'BBM Costs'!$X$7:$AB$36))*_xlfn.XLOOKUP(X33,'Control panel'!$S$7:$S$36,'Control panel'!$T$7:$T$36) -> 0 | AC33: 0 | AE33: ='PTRM Data'!B31 -> Land | AF33: ='Control panel'!$AA31/SUMPRODUCT('Control panel'!$AA$7:$AA$36,'Control panel'!AB$7:AB$36)*'Control panel'!AB31 -> 0 | AG33: ='Control panel'!$AA31/SUMPRODUCT('Control panel'!$AA$7:$AA$36,'Control panel'!AC$7:AC$36)*'Control panel'!AC31 -> 0 | AH33: ='Control panel'!$AA31/SUMPRODUCT('Control panel'!$AA$7:$AA$36,'Control panel'!AD$7:AD$36)*'Control panel'!AD31 -> 0 | AI33: ='Control panel'!$AA31/SUMPRODUCT('Control panel'!$AA$7:$AA$36,'Control panel'!AE$7:AE$36)*'Control panel'!AE31 -> 0 | AJ33: ='Control panel'!$AA31/SUMPRODUCT('Control panel'!$AA$7:$AA$36,'Control panel'!AF$7:AF$36)*'Control panel'!AF31 -> 0.01238138689 | AK33: ='Control panel'!$AA31/SUMPRODUCT('Control panel'!$AA$7:$AA$36,'Control panel'!AG$7:AG$36)*'Control panel'!AG31 -> 0 | AL33: ='Control panel'!$AA31/SUMPRODUCT('Control panel'!$AA$7:$AA$36,'Control panel'!AH$7:AH$36)*'Control panel'!AH31 -> 0 | AM33: ='Control panel'!$AA31/SUMPRODUCT('Control panel'!$AA$7:$AA$36,'Control panel'!AI$7:AI$36)*'Control panel'!AI31 -> 0.01238138689 | AN33: ='Control panel'!$AA31/SUMPRODUCT('Control panel'!$AA$7:$AA$36,'Control panel'!AJ$7:AJ$36)*'Control panel'!AJ31 -> 0 | AO33: ='Control panel'!$AA31/SUMPRODUCT('Control panel'!$AA$7:$AA$36,'Control panel'!AK$7:AK$36)*'Control panel'!AK31 -> 0.01238138689 | AP33: ='Control panel'!$AA31/SUMPRODUCT('Control panel'!$AA$7:$AA$36,'Control panel'!AL$7:AL$36)*'Control panel'!AL31 -> 0.01238138689 | AQ33: ='Control panel'!$AA31/SUMPRODUCT('Control panel'!$AA$7:$AA$36,'Control panel'!AM$7:AM$36)*'Control panel'!AM31 -> 0 | AR33: ='Control panel'!$AA31/SUMPRODUCT('Control panel'!$AA$7:$AA$36,'Control panel'!AN$7:AN$36)*'Control panel'!AN31 -> 0 | AT33: ='Control panel'!$AA31/SUMPRODUCT('Control panel'!$AA$7:$AA$36,'Control panel'!AP$7:AP$36)*'Control panel'!AP31 -> 0.01236355196 | AU33: ='Control panel'!$AA31/SUMPRODUCT('Control panel'!$AA$7:$AA$36,'Control panel'!AQ$7:AQ$36)*'Control panel'!AQ31 -> 0.01236355196 | AV33: ='Control panel'!$AA31/SUMPRODUCT('Control panel'!$AA$7:$AA$36,'Control panel'!AR$7:AR$36)*'Control panel'!AR31 -> 0.01236355196 | AW33: ='Control panel'!$AA31/SUMPRODUCT('Control panel'!$AA$7:$AA$36,'Control panel'!AS$7:AS$36)*'Control panel'!AS31 -> 0.01236355196 | AX33: ='Control panel'!$AA31/SUMPRODUCT('Control panel'!$AA$7:$AA$36,'Control panel'!AT$7:AT$36)*'Control panel'!AT31 -> 0.01236355196
W34: 2025-26 | X34: ='PTRM Data'!B32 -> In-house software | Y34: =_xlfn.XLOOKUP(X34,'Control panel'!$L$7:$L$36,'Control panel'!$P$7:$P$36) -> 1 | Z34: 0 | AA34: =_xlfn.XLOOKUP(W34,'BBM Costs'!$Q$6:$U$6,_xlfn.XLOOKUP(X34,'BBM Costs'!$P$7:$P$36,'BBM Costs'!$Q$7:$U$36))*_xlfn.XLOOKUP(X34,'Control panel'!$L$7:$L$36,'Control panel'!$M$7:$M$36) -> 0 | AB34: =_xlfn.XLOOKUP(W34,'BBM Costs'!$X$6:$AB$6,_xlfn.XLOOKUP(X34,'BBM Costs'!$W$7:$W$36,'BBM Costs'!$X$7:$AB$36))*_xlfn.XLOOKUP(X34,'Control panel'!$S$7:$S$36,'Control panel'!$T$7:$T$36) -> 0 | AC34: 0 | AE34: ='PTRM Data'!B32 -> In-house software | AF34: ='Control panel'!$AA32/SUMPRODUCT('Control panel'!$AA$7:$AA$36,'Control panel'!AB$7:AB$36)*'Control panel'!AB32 -> 0 | AG34: ='Control panel'!$AA32/SUMPRODUCT('Control panel'!$AA$7:$AA$36,'Control panel'!AC$7:AC$36)*'Control panel'!AC32 -> 0 | AH34: ='Control panel'!$AA32/SUMPRODUCT('Control panel'!$AA$7:$AA$36,'Control panel'!AD$7:AD$36)*'Control panel'!AD32 -> 0 | AI34: ='Control panel'!$AA32/SUMPRODUCT('Control panel'!$AA$7:$AA$36,'Control panel'!AE$7:AE$36)*'Control panel'!AE32 -> 0 | AJ34: ='Control panel'!$AA32/SUMPRODUCT('Control panel'!$AA$7:$AA$36,'Control panel'!AF$7:AF$36)*'Control panel'!AF32 -> 0.009115077393 | AK34: ='Control panel'!$AA32/SUMPRODUCT('Control panel'!$AA$7:$AA$36,'Control panel'!AG$7:AG$36)*'Control panel'!AG32 -> 0 | AL34: ='Control panel'!$AA32/SUMPRODUCT('Control panel'!$AA$7:$AA$36,'Control panel'!AH$7:AH$36)*'Control panel'!AH32 -> 0 | AM34: ='Control panel'!$AA32/SUMPRODUCT('Control panel'!$AA$7:$AA$36,'Control panel'!AI$7:AI$36)*'Control panel'!AI32 -> 0.009115077393 | AN34: ='Control panel'!$AA32/SUMPRODUCT('Control panel'!$AA$7:$AA$36,'Control panel'!AJ$7:AJ$36)*'Control panel'!AJ32 -> 0 | AO34: ='Control panel'!$AA32/SUMPRODUCT('Control panel'!$AA$7:$AA$36,'Control panel'!AK$7:AK$36)*'Control panel'!AK32 -> 0.009115077393 | AP34: ='Control panel'!$AA32/SUMPRODUCT('Control panel'!$AA$7:$AA$36,'Control panel'!AL$7:AL$36)*'Control panel'!AL32 -> 0.009115077393 | AQ34: ='Control panel'!$AA32/SUMPRODUCT('Control panel'!$AA$7:$AA$36,'Control panel'!AM$7:AM$36)*'Control panel'!AM32 -> 0 | AR34: ='Control panel'!$AA32/SUMPRODUCT('Control panel'!$AA$7:$AA$36,'Control panel'!AN$7:AN$36)*'Control panel'!AN32 -> 0 | AT34: ='Control panel'!$AA32/SUMPRODUCT('Control panel'!$AA$7:$AA$36,'Control panel'!AP$7:AP$36)*'Control panel'!AP32 -> 0.009101947465 | AU34: ='Control panel'!$AA32/SUMPRODUCT('Control panel'!$AA$7:$AA$36,'Control panel'!AQ$7:AQ$36)*'Control panel'!AQ32 -> 0.009101947465 | AV34: ='Control panel'!$AA32/SUMPRODUCT('Control panel'!$AA$7:$AA$36,'Control panel'!AR$7:AR$36)*'Control panel'!AR32 -> 0.009101947465 | AW34: ='Control panel'!$AA32/SUMPRODUCT('Control panel'!$AA$7:$AA$36,'Control panel'!AS$7:AS$36)*'Control panel'!AS32 -> 0.009101947465 | AX34: ='Control panel'!$AA32/SUMPRODUCT('Control panel'!$AA$7:$AA$36,'Control panel'!AT$7:AT$36)*'Control panel'!AT32 -> 0.009101947465
W35: 2025-26 | X35: ='PTRM Data'!B33 -> IT Systems | Y35: =_xlfn.XLOOKUP(X35,'Control panel'!$L$7:$L$36,'Control panel'!$P$7:$P$36) -> 1 | Z35: 0 | AA35: =_xlfn.XLOOKUP(W35,'BBM Costs'!$Q$6:$U$6,_xlfn.XLOOKUP(X35,'BBM Costs'!$P$7:$P$36,'BBM Costs'!$Q$7:$U$36))*_xlfn.XLOOKUP(X35,'Control panel'!$L$7:$L$36,'Control panel'!$M$7:$M$36) -> 0 | AB35: =_xlfn.XLOOKUP(W35,'BBM Costs'!$X$6:$AB$6,_xlfn.XLOOKUP(X35,'BBM Costs'!$W$7:$W$36,'BBM Costs'!$X$7:$AB$36))*_xlfn.XLOOKUP(X35,'Control panel'!$S$7:$S$36,'Control panel'!$T$7:$T$36) -> 0 | AC35: 0 | AE35: ='PTRM Data'!B33 -> IT Systems | AF35: ='Control panel'!$AA33/SUMPRODUCT('Control panel'!$AA$7:$AA$36,'Control panel'!AB$7:AB$36)*'Control panel'!AB33 -> 0 | AG35: ='Control panel'!$AA33/SUMPRODUCT('Control panel'!$AA$7:$AA$36,'Control panel'!AC$7:AC$36)*'Control panel'!AC33 -> 0 | AH35: ='Control panel'!$AA33/SUMPRODUCT('Control panel'!$AA$7:$AA$36,'Control panel'!AD$7:AD$36)*'Control panel'!AD33 -> 0 | AI35: ='Control panel'!$AA33/SUMPRODUCT('Control panel'!$AA$7:$AA$36,'Control panel'!AE$7:AE$36)*'Control panel'!AE33 -> 0 | AJ35: ='Control panel'!$AA33/SUMPRODUCT('Control panel'!$AA$7:$AA$36,'Control panel'!AF$7:AF$36)*'Control panel'!AF33 -> 0.0003737198806 | AK35: ='Control panel'!$AA33/SUMPRODUCT('Control panel'!$AA$7:$AA$36,'Control panel'!AG$7:AG$36)*'Control panel'!AG33 -> 0 | AL35: ='Control panel'!$AA33/SUMPRODUCT('Control panel'!$AA$7:$AA$36,'Control panel'!AH$7:AH$36)*'Control panel'!AH33 -> 0 | AM35: ='Control panel'!$AA33/SUMPRODUCT('Control panel'!$AA$7:$AA$36,'Control panel'!AI$7:AI$36)*'Control panel'!AI33 -> 0.0003737198806 | AN35: ='Control panel'!$AA33/SUMPRODUCT('Control panel'!$AA$7:$AA$36,'Control panel'!AJ$7:AJ$36)*'Control panel'!AJ33 -> 0 | AO35: ='Control panel'!$AA33/SUMPRODUCT('Control panel'!$AA$7:$AA$36,'Control panel'!AK$7:AK$36)*'Control panel'!AK33 -> 0.0003737198806 | AP35: ='Control panel'!$AA33/SUMPRODUCT('Control panel'!$AA$7:$AA$36,'Control panel'!AL$7:AL$36)*'Control panel'!AL33 -> 0.0003737198806 | AQ35: ='Control panel'!$AA33/SUMPRODUCT('Control panel'!$AA$7:$AA$36,'Control panel'!AM$7:AM$36)*'Control panel'!AM33 -> 0 | AR35: ='Control panel'!$AA33/SUMPRODUCT('Control panel'!$AA$7:$AA$36,'Control panel'!AN$7:AN$36)*'Control panel'!AN33 -> 0 | AT35: ='Control panel'!$AA33/SUMPRODUCT('Control panel'!$AA$7:$AA$36,'Control panel'!AP$7:AP$36)*'Control panel'!AP33 -> 0.0003731815511 | AU35: ='Control panel'!$AA33/SUMPRODUCT('Control panel'!$AA$7:$AA$36,'Control panel'!AQ$7:AQ$36)*'Control panel'!AQ33 -> 0.0003731815511 | AV35: ='Control panel'!$AA33/SUMPRODUCT('Control panel'!$AA$7:$AA$36,'Control panel'!AR$7:AR$36)*'Control panel'!AR33 -> 0.0003731815511 | AW35: ='Control panel'!$AA33/SUMPRODUCT('Control panel'!$AA$7:$AA$36,'Control panel'!AS$7:AS$36)*'Control panel'!AS33 -> 0.0003731815511 | AX35: ='Control panel'!$AA33/SUMPRODUCT('Control panel'!$AA$7:$AA$36,'Control panel'!AT$7:AT$36)*'Control panel'!AT33 -> 0.0003731815511
W36: 2025-26 | X36: ='PTRM Data'!B34 -> Legacy ICT | Y36: =_xlfn.XLOOKUP(X36,'Control panel'!$L$7:$L$36,'Control panel'!$P$7:$P$36) -> 1 | Z36: 0 | AA36: =_xlfn.XLOOKUP(W36,'BBM Costs'!$Q$6:$U$6,_xlfn.XLOOKUP(X36,'BBM Costs'!$P$7:$P$36,'BBM Costs'!$Q$7:$U$36))*_xlfn.XLOOKUP(X36,'Control panel'!$L$7:$L$36,'Control panel'!$M$7:$M$36) -> 0 | AB36: =_xlfn.XLOOKUP(W36,'BBM Costs'!$X$6:$AB$6,_xlfn.XLOOKUP(X36,'BBM Costs'!$W$7:$W$36,'BBM Costs'!$X$7:$AB$36))*_xlfn.XLOOKUP(X36,'Control panel'!$S$7:$S$36,'Control panel'!$T$7:$T$36) -> 0 | AC36: 0 | AE36: ='PTRM Data'!B34 -> Legacy ICT | AF36: ='Control panel'!$AA34/SUMPRODUCT('Control panel'!$AA$7:$AA$36,'Control panel'!AB$7:AB$36)*'Control panel'!AB34 -> 0 | AG36: ='Control panel'!$AA34/SUMPRODUCT('Control panel'!$AA$7:$AA$36,'Control panel'!AC$7:AC$36)*'Control panel'!AC34 -> 0 | AH36: ='Control panel'!$AA34/SUMPRODUCT('Control panel'!$AA$7:$AA$36,'Control panel'!AD$7:AD$36)*'Control panel'!AD34 -> 0 | AI36: ='Control panel'!$AA34/SUMPRODUCT('Control panel'!$AA$7:$AA$36,'Control panel'!AE$7:AE$36)*'Control panel'!AE34 -> 0 | AJ36: ='Control panel'!$AA34/SUMPRODUCT('Control panel'!$AA$7:$AA$36,'Control panel'!AF$7:AF$36)*'Control panel'!AF34 -> 0.004742559715 | AK36: ='Control panel'!$AA34/SUMPRODUCT('Control panel'!$AA$7:$AA$36,'Control panel'!AG$7:AG$36)*'Control panel'!AG34 -> 0 | AL36: ='Control panel'!$AA34/SUMPRODUCT('Control panel'!$AA$7:$AA$36,'Control panel'!AH$7:AH$36)*'Control panel'!AH34 -> 0 | AM36: ='Control panel'!$AA34/SUMPRODUCT('Control panel'!$AA$7:$AA$36,'Control panel'!AI$7:AI$36)*'Control panel'!AI34 -> 0.004742559715 | AN36: ='Control panel'!$AA34/SUMPRODUCT('Control panel'!$AA$7:$AA$36,'Control panel'!AJ$7:AJ$36)*'Control panel'!AJ34 -> 0 | AO36: ='Control panel'!$AA34/SUMPRODUCT('Control panel'!$AA$7:$AA$36,'Control panel'!AK$7:AK$36)*'Control panel'!AK34 -> 0.004742559715 | AP36: ='Control panel'!$AA34/SUMPRODUCT('Control panel'!$AA$7:$AA$36,'Control panel'!AL$7:AL$36)*'Control panel'!AL34 -> 0.004742559715 | AQ36: ='Control panel'!$AA34/SUMPRODUCT('Control panel'!$AA$7:$AA$36,'Control panel'!AM$7:AM$36)*'Control panel'!AM34 -> 0 | AR36: ='Control panel'!$AA34/SUMPRODUCT('Control panel'!$AA$7:$AA$36,'Control panel'!AN$7:AN$36)*'Control panel'!AN34 -> 0 | AT36: ='Control panel'!$AA34/SUMPRODUCT('Control panel'!$AA$7:$AA$36,'Control panel'!AP$7:AP$36)*'Control panel'!AP34 -> 0.004735728235 | AU36: ='Control panel'!$AA34/SUMPRODUCT('Control panel'!$AA$7:$AA$36,'Control panel'!AQ$7:AQ$36)*'Control panel'!AQ34 -> 0.004735728235 | AV36: ='Control panel'!$AA34/SUMPRODUCT('Control panel'!$AA$7:$AA$36,'Control panel'!AR$7:AR$36)*'Control panel'!AR34 -> 0.004735728235 | AW36: ='Control panel'!$AA34/SUMPRODUCT('Control panel'!$AA$7:$AA$36,'Control panel'!AS$7:AS$36)*'Control panel'!AS34 -> 0.004735728235 | AX36: ='Control panel'!$AA34/SUMPRODUCT('Control panel'!$AA$7:$AA$36,'Control panel'!AT$7:AT$36)*'Control panel'!AT34 -> 0.004735728235
W37: 2025-26 | X37: ='PTRM Data'!B35 -> Buildings - capital works | Y37: =_xlfn.XLOOKUP(X37,'Control panel'!$L$7:$L$36,'Control panel'!$P$7:$P$36) -> 1 | Z37: 0 | AA37: =_xlfn.XLOOKUP(W37,'BBM Costs'!$Q$6:$U$6,_xlfn.XLOOKUP(X37,'BBM Costs'!$P$7:$P$36,'BBM Costs'!$Q$7:$U$36))*_xlfn.XLOOKUP(X37,'Control panel'!$L$7:$L$36,'Control panel'!$M$7:$M$36) -> 0 | AB37: =_xlfn.XLOOKUP(W37,'BBM Costs'!$X$6:$AB$6,_xlfn.XLOOKUP(X37,'BBM Costs'!$W$7:$W$36,'BBM Costs'!$X$7:$AB$36))*_xlfn.XLOOKUP(X37,'Control panel'!$S$7:$S$36,'Control panel'!$T$7:$T$36) -> 0 | AC37: 0 | AE37: ='PTRM Data'!B35 -> Buildings - capital works | AF37: ='Control panel'!$AA35/SUMPRODUCT('Control panel'!$AA$7:$AA$36,'Control panel'!AB$7:AB$36)*'Control panel'!AB35 -> 0 | AG37: ='Control panel'!$AA35/SUMPRODUCT('Control panel'!$AA$7:$AA$36,'Control panel'!AC$7:AC$36)*'Control panel'!AC35 -> 0 | AH37: ='Control panel'!$AA35/SUMPRODUCT('Control panel'!$AA$7:$AA$36,'Control panel'!AD$7:AD$36)*'Control panel'!AD35 -> 0 | AI37: ='Control panel'!$AA35/SUMPRODUCT('Control panel'!$AA$7:$AA$36,'Control panel'!AE$7:AE$36)*'Control panel'!AE35 -> 0 | AJ37: ='Control panel'!$AA35/SUMPRODUCT('Control panel'!$AA$7:$AA$36,'Control panel'!AF$7:AF$36)*'Control panel'!AF35 -> 0.008270819395 | AK37: ='Control panel'!$AA35/SUMPRODUCT('Control panel'!$AA$7:$AA$36,'Control panel'!AG$7:AG$36)*'Control panel'!AG35 -> 0 | AL37: ='Control panel'!$AA35/SUMPRODUCT('Control panel'!$AA$7:$AA$36,'Control panel'!AH$7:AH$36)*'Control panel'!AH35 -> 0 | AM37: ='Control panel'!$AA35/SUMPRODUCT('Control panel'!$AA$7:$AA$36,'Control panel'!AI$7:AI$36)*'Control panel'!AI35 -> 0.008270819395 | AN37: ='Control panel'!$AA35/SUMPRODUCT('Control panel'!$AA$7:$AA$36,'Control panel'!AJ$7:AJ$36)*'Control panel'!AJ35 -> 0 | AO37: ='Control panel'!$AA35/SUMPRODUCT('Control panel'!$AA$7:$AA$36,'Control panel'!AK$7:AK$36)*'Control panel'!AK35 -> 0.008270819395 | AP37: ='Control panel'!$AA35/SUMPRODUCT('Control panel'!$AA$7:$AA$36,'Control panel'!AL$7:AL$36)*'Control panel'!AL35 -> 0.008270819395 | AQ37: ='Control panel'!$AA35/SUMPRODUCT('Control panel'!$AA$7:$AA$36,'Control panel'!AM$7:AM$36)*'Control panel'!AM35 -> 0 | AR37: ='Control panel'!$AA35/SUMPRODUCT('Control panel'!$AA$7:$AA$36,'Control panel'!AN$7:AN$36)*'Control panel'!AN35 -> 0 | AT37: ='Control panel'!$AA35/SUMPRODUCT('Control panel'!$AA$7:$AA$36,'Control panel'!AP$7:AP$36)*'Control panel'!AP35 -> 0.008258905589 | AU37: ='Control panel'!$AA35/SUMPRODUCT('Control panel'!$AA$7:$AA$36,'Control panel'!AQ$7:AQ$36)*'Control panel'!AQ35 -> 0.008258905589 | AV37: ='Control panel'!$AA35/SUMPRODUCT('Control panel'!$AA$7:$AA$36,'Control panel'!AR$7:AR$36)*'Control panel'!AR35 -> 0.008258905589 | AW37: ='Control panel'!$AA35/SUMPRODUCT('Control panel'!$AA$7:$AA$36,'Control panel'!AS$7:AS$36)*'Control panel'!AS35 -> 0.008258905589 | AX37: ='Control panel'!$AA35/SUMPRODUCT('Control panel'!$AA$7:$AA$36,'Control panel'!AT$7:AT$36)*'Control panel'!AT35 -> 0.008258905589
W38: 2025-26 | X38: ='PTRM Data'!B36 -> Equity raising costs | Y38: =_xlfn.XLOOKUP(X38,'Control panel'!$L$7:$L$36,'Control panel'!$P$7:$P$36) -> 1 | Z38: 0 | AA38: =_xlfn.XLOOKUP(W38,'BBM Costs'!$Q$6:$U$6,_xlfn.XLOOKUP(X38,'BBM Costs'!$P$7:$P$36,'BBM Costs'!$Q$7:$U$36))*_xlfn.XLOOKUP(X38,'Control panel'!$L$7:$L$36,'Control panel'!$M$7:$M$36) -> 0 | AB38: =_xlfn.XLOOKUP(W38,'BBM Costs'!$X$6:$AB$6,_xlfn.XLOOKUP(X38,'BBM Costs'!$W$7:$W$36,'BBM Costs'!$X$7:$AB$36))*_xlfn.XLOOKUP(X38,'Control panel'!$S$7:$S$36,'Control panel'!$T$7:$T$36) -> 0 | AC38: 0 | AE38: ='PTRM Data'!B36 -> Equity raising costs | AF38: ='Control panel'!$AA36/SUMPRODUCT('Control panel'!$AA$7:$AA$36,'Control panel'!AB$7:AB$36)*'Control panel'!AB36 -> 0 | AG38: ='Control panel'!$AA36/SUMPRODUCT('Control panel'!$AA$7:$AA$36,'Control panel'!AC$7:AC$36)*'Control panel'!AC36 -> 0 | AH38: ='Control panel'!$AA36/SUMPRODUCT('Control panel'!$AA$7:$AA$36,'Control panel'!AD$7:AD$36)*'Control panel'!AD36 -> 0 | AI38: ='Control panel'!$AA36/SUMPRODUCT('Control panel'!$AA$7:$AA$36,'Control panel'!AE$7:AE$36)*'Control panel'!AE36 -> 0 | AJ38: ='Control panel'!$AA36/SUMPRODUCT('Control panel'!$AA$7:$AA$36,'Control panel'!AF$7:AF$36)*'Control panel'!AF36 -> 0 | AK38: ='Control panel'!$AA36/SUMPRODUCT('Control panel'!$AA$7:$AA$36,'Control panel'!AG$7:AG$36)*'Control panel'!AG36 -> 0 | AL38: ='Control panel'!$AA36/SUMPRODUCT('Control panel'!$AA$7:$AA$36,'Control panel'!AH$7:AH$36)*'Control panel'!AH36 -> 0 | AM38: ='Control panel'!$AA36/SUMPRODUCT('Control panel'!$AA$7:$AA$36,'Control panel'!AI$7:AI$36)*'Control panel'!AI36 -> 0 | AN38: ='Control panel'!$AA36/SUMPRODUCT('Control panel'!$AA$7:$AA$36,'Control panel'!AJ$7:AJ$36)*'Control panel'!AJ36 -> 0 | AO38: ='Control panel'!$AA36/SUMPRODUCT('Control panel'!$AA$7:$AA$36,'Control panel'!AK$7:AK$36)*'Control panel'!AK36 -> 0 | AP38: ='Control panel'!$AA36/SUMPRODUCT('Control panel'!$AA$7:$AA$36,'Control panel'!AL$7:AL$36)*'Control panel'!AL36 -> 0 | AQ38: ='Control panel'!$AA36/SUMPRODUCT('Control panel'!$AA$7:$AA$36,'Control panel'!AM$7:AM$36)*'Control panel'!AM36 -> 0 | AR38: ='Control panel'!$AA36/SUMPRODUCT('Control panel'!$AA$7:$AA$36,'Control panel'!AN$7:AN$36)*'Control panel'!AN36 -> 0 | AT38: ='Control panel'!$AA36/SUMPRODUCT('Control panel'!$AA$7:$AA$36,'Control panel'!AP$7:AP$36)*'Control panel'!AP36 -> 0.001440462582 | AU38: ='Control panel'!$AA36/SUMPRODUCT('Control panel'!$AA$7:$AA$36,'Control panel'!AQ$7:AQ$36)*'Control panel'!AQ36 -> 0.001440462582 | AV38: ='Control panel'!$AA36/SUMPRODUCT('Control panel'!$AA$7:$AA$36,'Control panel'!AR$7:AR$36)*'Control panel'!AR36 -> 0.001440462582 | AW38: ='Control panel'!$AA36/SUMPRODUCT('Control panel'!$AA$7:$AA$36,'Control panel'!AS$7:AS$36)*'Control panel'!AS36 -> 0.001440462582 | AX38: ='Control panel'!$AA36/SUMPRODUCT('Control panel'!$AA$7:$AA$36,'Control panel'!AT$7:AT$36)*'Control panel'!AT36 -> 0.001440462582
W39: 2026-27 | X39: ='PTRM Data'!B7 -> OH Sub-transmission lines | Y39: =_xlfn.XLOOKUP(X39,'Control panel'!$L$7:$L$36,'Control panel'!$P$7:$P$36) -> 1 | Z39: 2.7969755 | AA39: =_xlfn.XLOOKUP(W39,'BBM Costs'!$Q$6:$U$6,_xlfn.XLOOKUP(X39,'BBM Costs'!$P$7:$P$36,'BBM Costs'!$Q$7:$U$36))*_xlfn.XLOOKUP(X39,'Control panel'!$L$7:$L$36,'Control panel'!$M$7:$M$36) -> 0 | AB39: =_xlfn.XLOOKUP(W39,'BBM Costs'!$X$6:$AB$6,_xlfn.XLOOKUP(X39,'BBM Costs'!$W$7:$W$36,'BBM Costs'!$X$7:$AB$36))*_xlfn.XLOOKUP(X39,'Control panel'!$S$7:$S$36,'Control panel'!$T$7:$T$36) -> 0 | AC39: 2.7969755
W40: 2026-27 | X40: ='PTRM Data'!B8 -> UG Sub-transmission cables | Y40: =_xlfn.XLOOKUP(X40,'Control panel'!$L$7:$L$36,'Control panel'!$P$7:$P$36) -> 1 | Z40: 3.11179603 | AA40: =_xlfn.XLOOKUP(W40,'BBM Costs'!$Q$6:$U$6,_xlfn.XLOOKUP(X40,'BBM Costs'!$P$7:$P$36,'BBM Costs'!$Q$7:$U$36))*_xlfn.XLOOKUP(X40,'Control panel'!$L$7:$L$36,'Control panel'!$M$7:$M$36) -> 0 | AB40: =_xlfn.XLOOKUP(W40,'BBM Costs'!$X$6:$AB$6,_xlfn.XLOOKUP(X40,'BBM Costs'!$W$7:$W$36,'BBM Costs'!$X$7:$AB$36))*_xlfn.XLOOKUP(X40,'Control panel'!$S$7:$S$36,'Control panel'!$T$7:$T$36) -> 0 | AC40: 3.11179603
W41: 2026-27 | X41: ='PTRM Data'!B9 -> OH Distribution Lines | Y41: =_xlfn.XLOOKUP(X41,'Control panel'!$L$7:$L$36,'Control panel'!$P$7:$P$36) -> 0.75 | Z41: 11.31901134 | AA41: =_xlfn.XLOOKUP(W41,'BBM Costs'!$Q$6:$U$6,_xlfn.XLOOKUP(X41,'BBM Costs'!$P$7:$P$36,'BBM Costs'!$Q$7:$U$36))*_xlfn.XLOOKUP(X41,'Control panel'!$L$7:$L$36,'Control panel'!$M$7:$M$36) -> 6.24054852 | AB41: =_xlfn.XLOOKUP(W41,'BBM Costs'!$X$6:$AB$6,_xlfn.XLOOKUP(X41,'BBM Costs'!$W$7:$W$36,'BBM Costs'!$X$7:$AB$36))*_xlfn.XLOOKUP(X41,'Control panel'!$S$7:$S$36,'Control panel'!$T$7:$T$36) -> 47.94629787 | AC41: 65.50585773
W42: 2026-27 | X42: ='PTRM Data'!B10 -> UG Distribution Cables | Y42: =_xlfn.XLOOKUP(X42,'Control panel'!$L$7:$L$36,'Control panel'!$P$7:$P$36) -> 0.75 | Z42: 9.834827487 | AA42: =_xlfn.XLOOKUP(W42,'BBM Costs'!$Q$6:$U$6,_xlfn.XLOOKUP(X42,'BBM Costs'!$P$7:$P$36,'BBM Costs'!$Q$7:$U$36))*_xlfn.XLOOKUP(X42,'Control panel'!$L$7:$L$36,'Control panel'!$M$7:$M$36) -> -1.337122168 | AB42: =_xlfn.XLOOKUP(W42,'BBM Costs'!$X$6:$AB$6,_xlfn.XLOOKUP(X42,'BBM Costs'!$W$7:$W$36,'BBM Costs'!$X$7:$AB$36))*_xlfn.XLOOKUP(X42,'Control panel'!$S$7:$S$36,'Control panel'!$T$7:$T$36) -> 40.83103641 | AC42: 49.32874173
W43: 2026-27 | X43: ='PTRM Data'!B11 -> Distribution Equipment | Y43: =_xlfn.XLOOKUP(X43,'Control panel'!$L$7:$L$36,'Control panel'!$P$7:$P$36) -> 0.75 | Z43: 2.0348302 | AA43: =_xlfn.XLOOKUP(W43,'BBM Costs'!$Q$6:$U$6,_xlfn.XLOOKUP(X43,'BBM Costs'!$P$7:$P$36,'BBM Costs'!$Q$7:$U$36))*_xlfn.XLOOKUP(X43,'Control panel'!$L$7:$L$36,'Control panel'!$M$7:$M$36) -> 2.084761498 | AB43: =_xlfn.XLOOKUP(W43,'BBM Costs'!$X$6:$AB$6,_xlfn.XLOOKUP(X43,'BBM Costs'!$W$7:$W$36,'BBM Costs'!$X$7:$AB$36))*_xlfn.XLOOKUP(X43,'Control panel'!$S$7:$S$36,'Control panel'!$T$7:$T$36) -> 8.75088 | AC43: 12.8704717
W44: 2026-27 | X44: ='PTRM Data'!B12 -> Substation Bays | Y44: =_xlfn.XLOOKUP(X44,'Control panel'!$L$7:$L$36,'Control panel'!$P$7:$P$36) -> 1 | Z44: 2.960657619 | AA44: =_xlfn.XLOOKUP(W44,'BBM Costs'!$Q$6:$U$6,_xlfn.XLOOKUP(X44,'BBM Costs'!$P$7:$P$36,'BBM Costs'!$Q$7:$U$36))*_xlfn.XLOOKUP(X44,'Control panel'!$L$7:$L$36,'Control panel'!$M$7:$M$36) -> 0 | AB44: =_xlfn.XLOOKUP(W44,'BBM Costs'!$X$6:$AB$6,_xlfn.XLOOKUP(X44,'BBM Costs'!$W$7:$W$36,'BBM Costs'!$X$7:$AB$36))*_xlfn.XLOOKUP(X44,'Control panel'!$S$7:$S$36,'Control panel'!$T$7:$T$36) -> 0 | AC44: 2.960657619
W45: 2026-27 | X45: ='PTRM Data'!B13 -> Substation Establishment | Y45: =_xlfn.XLOOKUP(X45,'Control panel'!$L$7:$L$36,'Control panel'!$P$7:$P$36) -> 1 | Z45: 2.13376189 | AA45: =_xlfn.XLOOKUP(W45,'BBM Costs'!$Q$6:$U$6,_xlfn.XLOOKUP(X45,'BBM Costs'!$P$7:$P$36,'BBM Costs'!$Q$7:$U$36))*_xlfn.XLOOKUP(X45,'Control panel'!$L$7:$L$36,'Control panel'!$M$7:$M$36) -> 0 | AB45: =_xlfn.XLOOKUP(W45,'BBM Costs'!$X$6:$AB$6,_xlfn.XLOOKUP(X45,'BBM Costs'!$W$7:$W$36,'BBM Costs'!$X$7:$AB$36))*_xlfn.XLOOKUP(X45,'Control panel'!$S$7:$S$36,'Control panel'!$T$7:$T$36) -> 0 | AC45: 2.13376189
W46: 2026-27 | X46: ='PTRM Data'!B14 -> Distribution Substation Switchgear | Y46: =_xlfn.XLOOKUP(X46,'Control panel'!$L$7:$L$36,'Control panel'!$P$7:$P$36) -> 0.75 | Z46: 0.7128742153 | AA46: =_xlfn.XLOOKUP(W46,'BBM Costs'!$Q$6:$U$6,_xlfn.XLOOKUP(X46,'BBM Costs'!$P$7:$P$36,'BBM Costs'!$Q$7:$U$36))*_xlfn.XLOOKUP(X46,'Control panel'!$L$7:$L$36,'Control panel'!$M$7:$M$36) -> 0.3114228849 | AB46: =_xlfn.XLOOKUP(W46,'BBM Costs'!$X$6:$AB$6,_xlfn.XLOOKUP(X46,'BBM Costs'!$W$7:$W$36,'BBM Costs'!$X$7:$AB$36))*_xlfn.XLOOKUP(X46,'Control panel'!$S$7:$S$36,'Control panel'!$T$7:$T$36) -> 3.087661292 | AC46: 4.111958392
W47: 2026-27 | X47: ='PTRM Data'!B15 -> Zone Transformers | Y47: =_xlfn.XLOOKUP(X47,'Control panel'!$L$7:$L$36,'Control panel'!$P$7:$P$36) -> 1 | Z47: 3.911146565 | AA47: =_xlfn.XLOOKUP(W47,'BBM Costs'!$Q$6:$U$6,_xlfn.XLOOKUP(X47,'BBM Costs'!$P$7:$P$36,'BBM Costs'!$Q$7:$U$36))*_xlfn.XLOOKUP(X47,'Control panel'!$L$7:$L$36,'Control panel'!$M$7:$M$36) -> 0 | AB47: =_xlfn.XLOOKUP(W47,'BBM Costs'!$X$6:$AB$6,_xlfn.XLOOKUP(X47,'BBM Costs'!$W$7:$W$36,'BBM Costs'!$X$7:$AB$36))*_xlfn.XLOOKUP(X47,'Control panel'!$S$7:$S$36,'Control panel'!$T$7:$T$36) -> 0 | AC47: 3.911146565
W48: 2026-27 | X48: ='PTRM Data'!B16 -> Distribution Transformers | Y48: =_xlfn.XLOOKUP(X48,'Control panel'!$L$7:$L$36,'Control panel'!$P$7:$P$36) -> 0.2 | Z48: 6.511020034 | AA48: =_xlfn.XLOOKUP(W48,'BBM Costs'!$Q$6:$U$6,_xlfn.XLOOKUP(X48,'BBM Costs'!$P$7:$P$36,'BBM Costs'!$Q$7:$U$36))*_xlfn.XLOOKUP(X48,'Control panel'!$L$7:$L$36,'Control panel'!$M$7:$M$36) -> 7.503862857 | AB48: =_xlfn.XLOOKUP(W48,'BBM Costs'!$X$6:$AB$6,_xlfn.XLOOKUP(X48,'BBM Costs'!$W$7:$W$36,'BBM Costs'!$X$7:$AB$36))*_xlfn.XLOOKUP(X48,'Control panel'!$S$7:$S$36,'Control panel'!$T$7:$T$36) -> 27.04911271 | AC48: 41.0639956
W49: 2026-27 | X49: ='PTRM Data'!B17 -> Low Voltage Services | Y49: =_xlfn.XLOOKUP(X49,'Control panel'!$L$7:$L$36,'Control panel'!$P$7:$P$36) -> 0 | Z49: 3.116945266 | AA49: =_xlfn.XLOOKUP(W49,'BBM Costs'!$Q$6:$U$6,_xlfn.XLOOKUP(X49,'BBM Costs'!$P$7:$P$36,'BBM Costs'!$Q$7:$U$36))*_xlfn.XLOOKUP(X49,'Control panel'!$L$7:$L$36,'Control panel'!$M$7:$M$36) -> 0 | AB49: =_xlfn.XLOOKUP(W49,'BBM Costs'!$X$6:$AB$6,_xlfn.XLOOKUP(X49,'BBM Costs'!$W$7:$W$36,'BBM Costs'!$X$7:$AB$36))*_xlfn.XLOOKUP(X49,'Control panel'!$S$7:$S$36,'Control panel'!$T$7:$T$36) -> 0 | AC49: 3.116945266
W50: 2026-27 | X50: ='PTRM Data'!B18 -> Load Control & Network Metering Devices | Y50: =_xlfn.XLOOKUP(X50,'Control panel'!$L$7:$L$36,'Control panel'!$P$7:$P$36) -> 0 | Z50: 0.3397732701 | AA50: =_xlfn.XLOOKUP(W50,'BBM Costs'!$Q$6:$U$6,_xlfn.XLOOKUP(X50,'BBM Costs'!$P$7:$P$36,'BBM Costs'!$Q$7:$U$36))*_xlfn.XLOOKUP(X50,'Control panel'!$L$7:$L$36,'Control panel'!$M$7:$M$36) -> 0 | AB50: =_xlfn.XLOOKUP(W50,'BBM Costs'!$X$6:$AB$6,_xlfn.XLOOKUP(X50,'BBM Costs'!$W$7:$W$36,'BBM Costs'!$X$7:$AB$36))*_xlfn.XLOOKUP(X50,'Control panel'!$S$7:$S$36,'Control panel'!$T$7:$T$36) -> 0 | AC50: 0.3397732701
W51: 2026-27 | X51: ='PTRM Data'!B19 -> Communications - Pilot Wires | Y51: =_xlfn.XLOOKUP(X51,'Control panel'!$L$7:$L$36,'Control panel'!$P$7:$P$36) -> 1 | Z51: 1.886035884 | AA51: =_xlfn.XLOOKUP(W51,'BBM Costs'!$Q$6:$U$6,_xlfn.XLOOKUP(X51,'BBM Costs'!$P$7:$P$36,'BBM Costs'!$Q$7:$U$36))*_xlfn.XLOOKUP(X51,'Control panel'!$L$7:$L$36,'Control panel'!$M$7:$M$36) -> 0 | AB51: =_xlfn.XLOOKUP(W51,'BBM Costs'!$X$6:$AB$6,_xlfn.XLOOKUP(X51,'BBM Costs'!$W$7:$W$36,'BBM Costs'!$X$7:$AB$36))*_xlfn.XLOOKUP(X51,'Control panel'!$S$7:$S$36,'Control panel'!$T$7:$T$36) -> 0 | AC51: 1.886035884
W52: 2026-27 | X52: ='PTRM Data'!B20 -> Streetlighting (Residual Rate 2 Assets) | Y52: =_xlfn.XLOOKUP(X52,'Control panel'!$L$7:$L$36,'Control panel'!$P$7:$P$36) -> 1 | Z52: 0 | AA52: =_xlfn.XLOOKUP(W52,'BBM Costs'!$Q$6:$U$6,_xlfn.XLOOKUP(X52,'BBM Costs'!$P$7:$P$36,'BBM Costs'!$Q$7:$U$36))*_xlfn.XLOOKUP(X52,'Control panel'!$L$7:$L$36,'Control panel'!$M$7:$M$36) -> 0 | AB52: =_xlfn.XLOOKUP(W52,'BBM Costs'!$X$6:$AB$6,_xlfn.XLOOKUP(X52,'BBM Costs'!$W$7:$W$36,'BBM Costs'!$X$7:$AB$36))*_xlfn.XLOOKUP(X52,'Control panel'!$S$7:$S$36,'Control panel'!$T$7:$T$36) -> 0 | AC52: 0
W53: 2026-27 | X53: ='PTRM Data'!B21 -> Systems Buildings | Y53: =_xlfn.XLOOKUP(X53,'Control panel'!$L$7:$L$36,'Control panel'!$P$7:$P$36) -> 1 | Z53: 1.192045011 | AA53: =_xlfn.XLOOKUP(W53,'BBM Costs'!$Q$6:$U$6,_xlfn.XLOOKUP(X53,'BBM Costs'!$P$7:$P$36,'BBM Costs'!$Q$7:$U$36))*_xlfn.XLOOKUP(X53,'Control panel'!$L$7:$L$36,'Control panel'!$M$7:$M$36) -> 0 | AB53: =_xlfn.XLOOKUP(W53,'BBM Costs'!$X$6:$AB$6,_xlfn.XLOOKUP(X53,'BBM Costs'!$W$7:$W$36,'BBM Costs'!$X$7:$AB$36))*_xlfn.XLOOKUP(X53,'Control panel'!$S$7:$S$36,'Control panel'!$T$7:$T$36) -> 0 | AC53: 1.192045011
W54: 2026-27 | X54: ='PTRM Data'!B22 -> Systems Easements | Y54: =_xlfn.XLOOKUP(X54,'Control panel'!$L$7:$L$36,'Control panel'!$P$7:$P$36) -> 1 | Z54: 0.6775968354 | AA54: =_xlfn.XLOOKUP(W54,'BBM Costs'!$Q$6:$U$6,_xlfn.XLOOKUP(X54,'BBM Costs'!$P$7:$P$36,'BBM Costs'!$Q$7:$U$36))*_xlfn.XLOOKUP(X54,'Control panel'!$L$7:$L$36,'Control panel'!$M$7:$M$36) -> 0 | AB54: =_xlfn.XLOOKUP(W54,'BBM Costs'!$X$6:$AB$6,_xlfn.XLOOKUP(X54,'BBM Costs'!$W$7:$W$36,'BBM Costs'!$X$7:$AB$36))*_xlfn.XLOOKUP(X54,'Control panel'!$S$7:$S$36,'Control panel'!$T$7:$T$36) -> 0 | AC54: 0.6775968354
W55: 2026-27 | X55: ='PTRM Data'!B23 -> System Land | Y55: =_xlfn.XLOOKUP(X55,'Control panel'!$L$7:$L$36,'Control panel'!$P$7:$P$36) -> 1 | Z55: 0 | AA55: =_xlfn.XLOOKUP(W55,'BBM Costs'!$Q$6:$U$6,_xlfn.XLOOKUP(X55,'BBM Costs'!$P$7:$P$36,'BBM Costs'!$Q$7:$U$36))*_xlfn.XLOOKUP(X55,'Control panel'!$L$7:$L$36,'Control panel'!$M$7:$M$36) -> 0 | AB55: =_xlfn.XLOOKUP(W55,'BBM Costs'!$X$6:$AB$6,_xlfn.XLOOKUP(X55,'BBM Costs'!$W$7:$W$36,'BBM Costs'!$X$7:$AB$36))*_xlfn.XLOOKUP(X55,'Control panel'!$S$7:$S$36,'Control panel'!$T$7:$T$36) -> 0 | AC55: 0
W56: 2026-27 | X56: ='PTRM Data'!B24 -> Control Centre - SCADA | Y56: =_xlfn.XLOOKUP(X56,'Control panel'!$L$7:$L$36,'Control panel'!$P$7:$P$36) -> 1 | Z56: 0.005187920513 | AA56: =_xlfn.XLOOKUP(W56,'BBM Costs'!$Q$6:$U$6,_xlfn.XLOOKUP(X56,'BBM Costs'!$P$7:$P$36,'BBM Costs'!$Q$7:$U$36))*_xlfn.XLOOKUP(X56,'Control panel'!$L$7:$L$36,'Control panel'!$M$7:$M$36) -> 0 | AB56: =_xlfn.XLOOKUP(W56,'BBM Costs'!$X$6:$AB$6,_xlfn.XLOOKUP(X56,'BBM Costs'!$W$7:$W$36,'BBM Costs'!$X$7:$AB$36))*_xlfn.XLOOKUP(X56,'Control panel'!$S$7:$S$36,'Control panel'!$T$7:$T$36) -> 0 | AC56: 0.005187920513
W57: 2026-27 | X57: ='PTRM Data'!B25 -> Motor Vehicles | Y57: =_xlfn.XLOOKUP(X57,'Control panel'!$L$7:$L$36,'Control panel'!$P$7:$P$36) -> 1 | Z57: 0 | AA57: =_xlfn.XLOOKUP(W57,'BBM Costs'!$Q$6:$U$6,_xlfn.XLOOKUP(X57,'BBM Costs'!$P$7:$P$36,'BBM Costs'!$Q$7:$U$36))*_xlfn.XLOOKUP(X57,'Control panel'!$L$7:$L$36,'Control panel'!$M$7:$M$36) -> 0 | AB57: =_xlfn.XLOOKUP(W57,'BBM Costs'!$X$6:$AB$6,_xlfn.XLOOKUP(X57,'BBM Costs'!$W$7:$W$36,'BBM Costs'!$X$7:$AB$36))*_xlfn.XLOOKUP(X57,'Control panel'!$S$7:$S$36,'Control panel'!$T$7:$T$36) -> 0 | AC57: 0
W58: 2026-27 | X58: ='PTRM Data'!B26 -> Plant & Equipment | Y58: =_xlfn.XLOOKUP(X58,'Control panel'!$L$7:$L$36,'Control panel'!$P$7:$P$36) -> 1 | Z58: 0 | AA58: =_xlfn.XLOOKUP(W58,'BBM Costs'!$Q$6:$U$6,_xlfn.XLOOKUP(X58,'BBM Costs'!$P$7:$P$36,'BBM Costs'!$Q$7:$U$36))*_xlfn.XLOOKUP(X58,'Control panel'!$L$7:$L$36,'Control panel'!$M$7:$M$36) -> 0 | AB58: =_xlfn.XLOOKUP(W58,'BBM Costs'!$X$6:$AB$6,_xlfn.XLOOKUP(X58,'BBM Costs'!$W$7:$W$36,'BBM Costs'!$X$7:$AB$36))*_xlfn.XLOOKUP(X58,'Control panel'!$S$7:$S$36,'Control panel'!$T$7:$T$36) -> 0 | AC58: 0
W59: 2026-27 | X59: ='PTRM Data'!B27 -> Buildings | Y59: =_xlfn.XLOOKUP(X59,'Control panel'!$L$7:$L$36,'Control panel'!$P$7:$P$36) -> 1 | Z59: 0 | AA59: =_xlfn.XLOOKUP(W59,'BBM Costs'!$Q$6:$U$6,_xlfn.XLOOKUP(X59,'BBM Costs'!$P$7:$P$36,'BBM Costs'!$Q$7:$U$36))*_xlfn.XLOOKUP(X59,'Control panel'!$L$7:$L$36,'Control panel'!$M$7:$M$36) -> 0 | AB59: =_xlfn.XLOOKUP(W59,'BBM Costs'!$X$6:$AB$6,_xlfn.XLOOKUP(X59,'BBM Costs'!$W$7:$W$36,'BBM Costs'!$X$7:$AB$36))*_xlfn.XLOOKUP(X59,'Control panel'!$S$7:$S$36,'Control panel'!$T$7:$T$36) -> 0 | AC59: 0
W60: 2026-27 | X60: ='PTRM Data'!B28 -> Office Equipment & Furniture | Y60: =_xlfn.XLOOKUP(X60,'Control panel'!$L$7:$L$36,'Control panel'!$P$7:$P$36) -> 1 | Z60: 0 | AA60: =_xlfn.XLOOKUP(W60,'BBM Costs'!$Q$6:$U$6,_xlfn.XLOOKUP(X60,'BBM Costs'!$P$7:$P$36,'BBM Costs'!$Q$7:$U$36))*_xlfn.XLOOKUP(X60,'Control panel'!$L$7:$L$36,'Control panel'!$M$7:$M$36) -> 0 | AB60: =_xlfn.XLOOKUP(W60,'BBM Costs'!$X$6:$AB$6,_xlfn.XLOOKUP(X60,'BBM Costs'!$W$7:$W$36,'BBM Costs'!$X$7:$AB$36))*_xlfn.XLOOKUP(X60,'Control panel'!$S$7:$S$36,'Control panel'!$T$7:$T$36) -> 0 | AC60: 0
W61: 2026-27 | X61: ='PTRM Data'!B29 -> Initial Leases (10 yr life) | Y61: =_xlfn.XLOOKUP(X61,'Control panel'!$L$7:$L$36,'Control panel'!$P$7:$P$36) -> 1 | Z61: 0 | AA61: =_xlfn.XLOOKUP(W61,'BBM Costs'!$Q$6:$U$6,_xlfn.XLOOKUP(X61,'BBM Costs'!$P$7:$P$36,'BBM Costs'!$Q$7:$U$36))*_xlfn.XLOOKUP(X61,'Control panel'!$L$7:$L$36,'Control panel'!$M$7:$M$36) -> 0 | AB61: =_xlfn.XLOOKUP(W61,'BBM Costs'!$X$6:$AB$6,_xlfn.XLOOKUP(X61,'BBM Costs'!$W$7:$W$36,'BBM Costs'!$X$7:$AB$36))*_xlfn.XLOOKUP(X61,'Control panel'!$S$7:$S$36,'Control panel'!$T$7:$T$36) -> 0 | AC61: 0
W62: 2026-27 | X62: ='PTRM Data'!B30 -> Lease Extensions (5yr Life) | Y62: =_xlfn.XLOOKUP(X62,'Control panel'!$L$7:$L$36,'Control panel'!$P$7:$P$36) -> 1 | Z62: 0 | AA62: =_xlfn.XLOOKUP(W62,'BBM Costs'!$Q$6:$U$6,_xlfn.XLOOKUP(X62,'BBM Costs'!$P$7:$P$36,'BBM Costs'!$Q$7:$U$36))*_xlfn.XLOOKUP(X62,'Control panel'!$L$7:$L$36,'Control panel'!$M$7:$M$36) -> 0 | AB62: =_xlfn.XLOOKUP(W62,'BBM Costs'!$X$6:$AB$6,_xlfn.XLOOKUP(X62,'BBM Costs'!$W$7:$W$36,'BBM Costs'!$X$7:$AB$36))*_xlfn.XLOOKUP(X62,'Control panel'!$S$7:$S$36,'Control panel'!$T$7:$T$36) -> 0 | AC62: 0
W63: 2026-27 | X63: ='PTRM Data'!B31 -> Land | Y63: =_xlfn.XLOOKUP(X63,'Control panel'!$L$7:$L$36,'Control panel'!$P$7:$P$36) -> 1 | Z63: 0 | AA63: =_xlfn.XLOOKUP(W63,'BBM Costs'!$Q$6:$U$6,_xlfn.XLOOKUP(X63,'BBM Costs'!$P$7:$P$36,'BBM Costs'!$Q$7:$U$36))*_xlfn.XLOOKUP(X63,'Control panel'!$L$7:$L$36,'Control panel'!$M$7:$M$36) -> 0 | AB63: =_xlfn.XLOOKUP(W63,'BBM Costs'!$X$6:$AB$6,_xlfn.XLOOKUP(X63,'BBM Costs'!$W$7:$W$36,'BBM Costs'!$X$7:$AB$36))*_xlfn.XLOOKUP(X63,'Control panel'!$S$7:$S$36,'Control panel'!$T$7:$T$36) -> 0 | AC63: 0
W64: 2026-27 | X64: ='PTRM Data'!B32 -> In-house software | Y64: =_xlfn.XLOOKUP(X64,'Control panel'!$L$7:$L$36,'Control panel'!$P$7:$P$36) -> 1 | Z64: 0 | AA64: =_xlfn.XLOOKUP(W64,'BBM Costs'!$Q$6:$U$6,_xlfn.XLOOKUP(X64,'BBM Costs'!$P$7:$P$36,'BBM Costs'!$Q$7:$U$36))*_xlfn.XLOOKUP(X64,'Control panel'!$L$7:$L$36,'Control panel'!$M$7:$M$36) -> 0 | AB64: =_xlfn.XLOOKUP(W64,'BBM Costs'!$X$6:$AB$6,_xlfn.XLOOKUP(X64,'BBM Costs'!$W$7:$W$36,'BBM Costs'!$X$7:$AB$36))*_xlfn.XLOOKUP(X64,'Control panel'!$S$7:$S$36,'Control panel'!$T$7:$T$36) -> 0 | AC64: 0
W65: 2026-27 | X65: ='PTRM Data'!B33 -> IT Systems | Y65: =_xlfn.XLOOKUP(X65,'Control panel'!$L$7:$L$36,'Control panel'!$P$7:$P$36) -> 1 | Z65: 0 | AA65: =_xlfn.XLOOKUP(W65,'BBM Costs'!$Q$6:$U$6,_xlfn.XLOOKUP(X65,'BBM Costs'!$P$7:$P$36,'BBM Costs'!$Q$7:$U$36))*_xlfn.XLOOKUP(X65,'Control panel'!$L$7:$L$36,'Control panel'!$M$7:$M$36) -> 0 | AB65: =_xlfn.XLOOKUP(W65,'BBM Costs'!$X$6:$AB$6,_xlfn.XLOOKUP(X65,'BBM Costs'!$W$7:$W$36,'BBM Costs'!$X$7:$AB$36))*_xlfn.XLOOKUP(X65,'Control panel'!$S$7:$S$36,'Control panel'!$T$7:$T$36) -> 0 | AC65: 0
W66: 2026-27 | X66: ='PTRM Data'!B34 -> Legacy ICT | Y66: =_xlfn.XLOOKUP(X66,'Control panel'!$L$7:$L$36,'Control panel'!$P$7:$P$36) -> 1 | Z66: 0 | AA66: =_xlfn.XLOOKUP(W66,'BBM Costs'!$Q$6:$U$6,_xlfn.XLOOKUP(X66,'BBM Costs'!$P$7:$P$36,'BBM Costs'!$Q$7:$U$36))*_xlfn.XLOOKUP(X66,'Control panel'!$L$7:$L$36,'Control panel'!$M$7:$M$36) -> 0 | AB66: =_xlfn.XLOOKUP(W66,'BBM Costs'!$X$6:$AB$6,_xlfn.XLOOKUP(X66,'BBM Costs'!$W$7:$W$36,'BBM Costs'!$X$7:$AB$36))*_xlfn.XLOOKUP(X66,'Control panel'!$S$7:$S$36,'Control panel'!$T$7:$T$36) -> 0 | AC66: 0
W67: 2026-27 | X67: ='PTRM Data'!B35 -> Buildings - capital works | Y67: =_xlfn.XLOOKUP(X67,'Control panel'!$L$7:$L$36,'Control panel'!$P$7:$P$36) -> 1 | Z67: 0 | AA67: =_xlfn.XLOOKUP(W67,'BBM Costs'!$Q$6:$U$6,_xlfn.XLOOKUP(X67,'BBM Costs'!$P$7:$P$36,'BBM Costs'!$Q$7:$U$36))*_xlfn.XLOOKUP(X67,'Control panel'!$L$7:$L$36,'Control panel'!$M$7:$M$36) -> 0 | AB67: =_xlfn.XLOOKUP(W67,'BBM Costs'!$X$6:$AB$6,_xlfn.XLOOKUP(X67,'BBM Costs'!$W$7:$W$36,'BBM Costs'!$X$7:$AB$36))*_xlfn.XLOOKUP(X67,'Control panel'!$S$7:$S$36,'Control panel'!$T$7:$T$36) -> 0 | AC67: 0
W68: 2026-27 | X68: ='PTRM Data'!B36 -> Equity raising costs | Y68: =_xlfn.XLOOKUP(X68,'Control panel'!$L$7:$L$36,'Control panel'!$P$7:$P$36) -> 1 | Z68: 0 | AA68: =_xlfn.XLOOKUP(W68,'BBM Costs'!$Q$6:$U$6,_xlfn.XLOOKUP(X68,'BBM Costs'!$P$7:$P$36,'BBM Costs'!$Q$7:$U$36))*_xlfn.XLOOKUP(X68,'Control panel'!$L$7:$L$36,'Control panel'!$M$7:$M$36) -> 0 | AB68: =_xlfn.XLOOKUP(W68,'BBM Costs'!$X$6:$AB$6,_xlfn.XLOOKUP(X68,'BBM Costs'!$W$7:$W$36,'BBM Costs'!$X$7:$AB$36))*_xlfn.XLOOKUP(X68,'Control panel'!$S$7:$S$36,'Control panel'!$T$7:$T$36) -> 0 | AC68: 0
W69: 2027-28 | X69: ='PTRM Data'!B7 -> OH Sub-transmission lines | Y69: =_xlfn.XLOOKUP(X69,'Control panel'!$L$7:$L$36,'Control panel'!$P$7:$P$36) -> 1 | Z69: 2.899474396 | AA69: =_xlfn.XLOOKUP(W69,'BBM Costs'!$Q$6:$U$6,_xlfn.XLOOKUP(X69,'BBM Costs'!$P$7:$P$36,'BBM Costs'!$Q$7:$U$36))*_xlfn.XLOOKUP(X69,'Control panel'!$L$7:$L$36,'Control panel'!$M$7:$M$36) -> 0 | AB69: =_xlfn.XLOOKUP(W69,'BBM Costs'!$X$6:$AB$6,_xlfn.XLOOKUP(X69,'BBM Costs'!$W$7:$W$36,'BBM Costs'!$X$7:$AB$36))*_xlfn.XLOOKUP(X69,'Control panel'!$S$7:$S$36,'Control panel'!$T$7:$T$36) -> 0 | AC69: 2.899474396
W70: 2027-28 | X70: ='PTRM Data'!B8 -> UG Sub-transmission cables | Y70: =_xlfn.XLOOKUP(X70,'Control panel'!$L$7:$L$36,'Control panel'!$P$7:$P$36) -> 1 | Z70: 3.225831944 | AA70: =_xlfn.XLOOKUP(W70,'BBM Costs'!$Q$6:$U$6,_xlfn.XLOOKUP(X70,'BBM Costs'!$P$7:$P$36,'BBM Costs'!$Q$7:$U$36))*_xlfn.XLOOKUP(X70,'Control panel'!$L$7:$L$36,'Control panel'!$M$7:$M$36) -> 0 | AB70: =_xlfn.XLOOKUP(W70,'BBM Costs'!$X$6:$AB$6,_xlfn.XLOOKUP(X70,'BBM Costs'!$W$7:$W$36,'BBM Costs'!$X$7:$AB$36))*_xlfn.XLOOKUP(X70,'Control panel'!$S$7:$S$36,'Control panel'!$T$7:$T$36) -> 0 | AC70: 3.225831944
W71: 2027-28 | X71: ='PTRM Data'!B9 -> OH Distribution Lines | Y71: =_xlfn.XLOOKUP(X71,'Control panel'!$L$7:$L$36,'Control panel'!$P$7:$P$36) -> 0.75 | Z71: 11.7338116 | AA71: =_xlfn.XLOOKUP(W71,'BBM Costs'!$Q$6:$U$6,_xlfn.XLOOKUP(X71,'BBM Costs'!$P$7:$P$36,'BBM Costs'!$Q$7:$U$36))*_xlfn.XLOOKUP(X71,'Control panel'!$L$7:$L$36,'Control panel'!$M$7:$M$36) -> 6.828622343 | AB71: =_xlfn.XLOOKUP(W71,'BBM Costs'!$X$6:$AB$6,_xlfn.XLOOKUP(X71,'BBM Costs'!$W$7:$W$36,'BBM Costs'!$X$7:$AB$36))*_xlfn.XLOOKUP(X71,'Control panel'!$S$7:$S$36,'Control panel'!$T$7:$T$36) -> 51.44301652 | AC71: 70.00545046
W72: 2027-28 | X72: ='PTRM Data'!B10 -> UG Distribution Cables | Y72: =_xlfn.XLOOKUP(X72,'Control panel'!$L$7:$L$36,'Control panel'!$P$7:$P$36) -> 0.75 | Z72: 10.19523785 | AA72: =_xlfn.XLOOKUP(W72,'BBM Costs'!$Q$6:$U$6,_xlfn.XLOOKUP(X72,'BBM Costs'!$P$7:$P$36,'BBM Costs'!$Q$7:$U$36))*_xlfn.XLOOKUP(X72,'Control panel'!$L$7:$L$36,'Control panel'!$M$7:$M$36) -> -0.9864916568 | AB72: =_xlfn.XLOOKUP(W72,'BBM Costs'!$X$6:$AB$6,_xlfn.XLOOKUP(X72,'BBM Costs'!$W$7:$W$36,'BBM Costs'!$X$7:$AB$36))*_xlfn.XLOOKUP(X72,'Control panel'!$S$7:$S$36,'Control panel'!$T$7:$T$36) -> 43.00649934 | AC72: 52.21524553
W73: 2027-28 | X73: ='PTRM Data'!B11 -> Distribution Equipment | Y73: =_xlfn.XLOOKUP(X73,'Control panel'!$L$7:$L$36,'Control panel'!$P$7:$P$36) -> 0.75 | Z73: 2.109399265 | AA73: =_xlfn.XLOOKUP(W73,'BBM Costs'!$Q$6:$U$6,_xlfn.XLOOKUP(X73,'BBM Costs'!$P$7:$P$36,'BBM Costs'!$Q$7:$U$36))*_xlfn.XLOOKUP(X73,'Control panel'!$L$7:$L$36,'Control panel'!$M$7:$M$36) -> 2.266471128 | AB73: =_xlfn.XLOOKUP(W73,'BBM Costs'!$X$6:$AB$6,_xlfn.XLOOKUP(X73,'BBM Costs'!$W$7:$W$36,'BBM Costs'!$X$7:$AB$36))*_xlfn.XLOOKUP(X73,'Control panel'!$S$7:$S$36,'Control panel'!$T$7:$T$36) -> 9.535605596 | AC73: 13.91147599
W74: 2027-28 | X74: ='PTRM Data'!B12 -> Substation Bays | Y74: =_xlfn.XLOOKUP(X74,'Control panel'!$L$7:$L$36,'Control panel'!$P$7:$P$36) -> 1 | Z74: =SUMPRODUCT(_xlfn.XLOOKUP(W74,$AZ$9:$AZ$13,$BA$9:$BS$13),_xlfn.XLOOKUP(X74,$AE$9:$AE$38,$AF$9:$AX$38)) -> 3.069154864 | AA74: =_xlfn.XLOOKUP(W74,'BBM Costs'!$Q$6:$U$6,_xlfn.XLOOKUP(X74,'BBM Costs'!$P$7:$P$36,'BBM Costs'!$Q$7:$U$36))*_xlfn.XLOOKUP(X74,'Control panel'!$L$7:$L$36,'Control panel'!$M$7:$M$36) -> 0 | AB74: =_xlfn.XLOOKUP(W74,'BBM Costs'!$X$6:$AB$6,_xlfn.XLOOKUP(X74,'BBM Costs'!$W$7:$W$36,'BBM Costs'!$X$7:$AB$36))*_xlfn.XLOOKUP(X74,'Control panel'!$S$7:$S$36,'Control panel'!$T$7:$T$36) -> 0 | AC74: =SUM(Z74:AB74) -> 3.069154864
W75: 2027-28 | X75: ='PTRM Data'!B13 -> Substation Establishment | Y75: =_xlfn.XLOOKUP(X75,'Control panel'!$L$7:$L$36,'Control panel'!$P$7:$P$36) -> 1 | Z75: 2.211956439 | AA75: =_xlfn.XLOOKUP(W75,'BBM Costs'!$Q$6:$U$6,_xlfn.XLOOKUP(X75,'BBM Costs'!$P$7:$P$36,'BBM Costs'!$Q$7:$U$36))*_xlfn.XLOOKUP(X75,'Control panel'!$L$7:$L$36,'Control panel'!$M$7:$M$36) -> 0 | AB75: =_xlfn.XLOOKUP(W75,'BBM Costs'!$X$6:$AB$6,_xlfn.XLOOKUP(X75,'BBM Costs'!$W$7:$W$36,'BBM Costs'!$X$7:$AB$36))*_xlfn.XLOOKUP(X75,'Control panel'!$S$7:$S$36,'Control panel'!$T$7:$T$36) -> 0 | AC75: 2.211956439
W76: 2027-28 | X76: ='PTRM Data'!B14 -> Distribution Substation Switchgear | Y76: =_xlfn.XLOOKUP(X76,'Control panel'!$L$7:$L$36,'Control panel'!$P$7:$P$36) -> 0.75 | Z76: 0.7389984412 | AA76: =_xlfn.XLOOKUP(W76,'BBM Costs'!$Q$6:$U$6,_xlfn.XLOOKUP(X76,'BBM Costs'!$P$7:$P$36,'BBM Costs'!$Q$7:$U$36))*_xlfn.XLOOKUP(X76,'Control panel'!$L$7:$L$36,'Control panel'!$M$7:$M$36) -> 0.3391024497 | AB76: =_xlfn.XLOOKUP(W76,'BBM Costs'!$X$6:$AB$6,_xlfn.XLOOKUP(X76,'BBM Costs'!$W$7:$W$36,'BBM Costs'!$X$7:$AB$36))*_xlfn.XLOOKUP(X76,'Control panel'!$S$7:$S$36,'Control panel'!$T$7:$T$36) -> 3.393570196 | AC76: 4.471671087
W77: 2027-28 | X77: ='PTRM Data'!B15 -> Zone Transformers | Y77: =_xlfn.XLOOKUP(X77,'Control panel'!$L$7:$L$36,'Control panel'!$P$7:$P$36) -> 1 | Z77: 4.054475745 | AA77: =_xlfn.XLOOKUP(W77,'BBM Costs'!$Q$6:$U$6,_xlfn.XLOOKUP(X77,'BBM Costs'!$P$7:$P$36,'BBM Costs'!$Q$7:$U$36))*_xlfn.XLOOKUP(X77,'Control panel'!$L$7:$L$36,'Control panel'!$M$7:$M$36) -> 0 | AB77: =_xlfn.XLOOKUP(W77,'BBM Costs'!$X$6:$AB$6,_xlfn.XLOOKUP(X77,'BBM Costs'!$W$7:$W$36,'BBM Costs'!$X$7:$AB$36))*_xlfn.XLOOKUP(X77,'Control panel'!$S$7:$S$36,'Control panel'!$T$7:$T$36) -> 0 | AC77: 4.054475745
W78: 2027-28 | X78: ='PTRM Data'!B16 -> Distribution Transformers | Y78: =_xlfn.XLOOKUP(X78,'Control panel'!$L$7:$L$36,'Control panel'!$P$7:$P$36) -> 0.2 | Z78: 6.749625043 | AA78: =_xlfn.XLOOKUP(W78,'BBM Costs'!$Q$6:$U$6,_xlfn.XLOOKUP(X78,'BBM Costs'!$P$7:$P$36,'BBM Costs'!$Q$7:$U$36))*_xlfn.XLOOKUP(X78,'Control panel'!$L$7:$L$36,'Control panel'!$M$7:$M$36) -> 8.021159593 | AB78: =_xlfn.XLOOKUP(W78,'BBM Costs'!$X$6:$AB$6,_xlfn.XLOOKUP(X78,'BBM Costs'!$W$7:$W$36,'BBM Costs'!$X$7:$AB$36))*_xlfn.XLOOKUP(X78,'Control panel'!$S$7:$S$36,'Control panel'!$T$7:$T$36) -> 28.51129709 | AC78: 43.28208173
W79: 2027-28 | X79: ='PTRM Data'!B17 -> Low Voltage Services | Y79: =_xlfn.XLOOKUP(X79,'Control panel'!$L$7:$L$36,'Control panel'!$P$7:$P$36) -> 0 | Z79: 3.23116988 | AA79: =_xlfn.XLOOKUP(W79,'BBM Costs'!$Q$6:$U$6,_xlfn.XLOOKUP(X79,'BBM Costs'!$P$7:$P$36,'BBM Costs'!$Q$7:$U$36))*_xlfn.XLOOKUP(X79,'Control panel'!$L$7:$L$36,'Control panel'!$M$7:$M$36) -> 0 | AB79: =_xlfn.XLOOKUP(W79,'BBM Costs'!$X$6:$AB$6,_xlfn.XLOOKUP(X79,'BBM Costs'!$W$7:$W$36,'BBM Costs'!$X$7:$AB$36))*_xlfn.XLOOKUP(X79,'Control panel'!$S$7:$S$36,'Control panel'!$T$7:$T$36) -> 0 | AC79: 3.23116988
W80: 2027-28 | X80: ='PTRM Data'!B18 -> Load Control & Network Metering Devices | Y80: =_xlfn.XLOOKUP(X80,'Control panel'!$L$7:$L$36,'Control panel'!$P$7:$P$36) -> 0 | Z80: 0.3522247146 | AA80: =_xlfn.XLOOKUP(W80,'BBM Costs'!$Q$6:$U$6,_xlfn.XLOOKUP(X80,'BBM Costs'!$P$7:$P$36,'BBM Costs'!$Q$7:$U$36))*_xlfn.XLOOKUP(X80,'Control panel'!$L$7:$L$36,'Control panel'!$M$7:$M$36) -> 0 | AB80: =_xlfn.XLOOKUP(W80,'BBM Costs'!$X$6:$AB$6,_xlfn.XLOOKUP(X80,'BBM Costs'!$W$7:$W$36,'BBM Costs'!$X$7:$AB$36))*_xlfn.XLOOKUP(X80,'Control panel'!$S$7:$S$36,'Control panel'!$T$7:$T$36) -> 0 | AC80: 0.3522247146
W81: 2027-28 | X81: ='PTRM Data'!B19 -> Communications - Pilot Wires | Y81: =_xlfn.XLOOKUP(X81,'Control panel'!$L$7:$L$36,'Control panel'!$P$7:$P$36) -> 1 | Z81: 1.955152183 | AA81: =_xlfn.XLOOKUP(W81,'BBM Costs'!$Q$6:$U$6,_xlfn.XLOOKUP(X81,'BBM Costs'!$P$7:$P$36,'BBM Costs'!$Q$7:$U$36))*_xlfn.XLOOKUP(X81,'Control panel'!$L$7:$L$36,'Control panel'!$M$7:$M$36) -> 0 | AB81: =_xlfn.XLOOKUP(W81,'BBM Costs'!$X$6:$AB$6,_xlfn.XLOOKUP(X81,'BBM Costs'!$W$7:$W$36,'BBM Costs'!$X$7:$AB$36))*_xlfn.XLOOKUP(X81,'Control panel'!$S$7:$S$36,'Control panel'!$T$7:$T$36) -> 0 | AC81: 1.955152183
W82: 2027-28 | X82: ='PTRM Data'!B20 -> Streetlighting (Residual Rate 2 Assets) | Y82: =_xlfn.XLOOKUP(X82,'Control panel'!$L$7:$L$36,'Control panel'!$P$7:$P$36) -> 1 | Z82: 0 | AA82: =_xlfn.XLOOKUP(W82,'BBM Costs'!$Q$6:$U$6,_xlfn.XLOOKUP(X82,'BBM Costs'!$P$7:$P$36,'BBM Costs'!$Q$7:$U$36))*_xlfn.XLOOKUP(X82,'Control panel'!$L$7:$L$36,'Control panel'!$M$7:$M$36) -> 0 | AB82: =_xlfn.XLOOKUP(W82,'BBM Costs'!$X$6:$AB$6,_xlfn.XLOOKUP(X82,'BBM Costs'!$W$7:$W$36,'BBM Costs'!$X$7:$AB$36))*_xlfn.XLOOKUP(X82,'Control panel'!$S$7:$S$36,'Control panel'!$T$7:$T$36) -> 0 | AC82: 0
W83: 2027-28 | X83: ='PTRM Data'!B21 -> Systems Buildings | Y83: =_xlfn.XLOOKUP(X83,'Control panel'!$L$7:$L$36,'Control panel'!$P$7:$P$36) -> 1 | Z83: 1.235729089 | AA83: =_xlfn.XLOOKUP(W83,'BBM Costs'!$Q$6:$U$6,_xlfn.XLOOKUP(X83,'BBM Costs'!$P$7:$P$36,'BBM Costs'!$Q$7:$U$36))*_xlfn.XLOOKUP(X83,'Control panel'!$L$7:$L$36,'Control panel'!$M$7:$M$36) -> 0 | AB83: =_xlfn.XLOOKUP(W83,'BBM Costs'!$X$6:$AB$6,_xlfn.XLOOKUP(X83,'BBM Costs'!$W$7:$W$36,'BBM Costs'!$X$7:$AB$36))*_xlfn.XLOOKUP(X83,'Control panel'!$S$7:$S$36,'Control panel'!$T$7:$T$36) -> 0 | AC83: 1.235729089
W84: 2027-28 | X84: ='PTRM Data'!B22 -> Systems Easements | Y84: =_xlfn.XLOOKUP(X84,'Control panel'!$L$7:$L$36,'Control panel'!$P$7:$P$36) -> 1 | Z84: 0.7024282748 | AA84: =_xlfn.XLOOKUP(W84,'BBM Costs'!$Q$6:$U$6,_xlfn.XLOOKUP(X84,'BBM Costs'!$P$7:$P$36,'BBM Costs'!$Q$7:$U$36))*_xlfn.XLOOKUP(X84,'Control panel'!$L$7:$L$36,'Control panel'!$M$7:$M$36) -> 0 | AB84: =_xlfn.XLOOKUP(W84,'BBM Costs'!$X$6:$AB$6,_xlfn.XLOOKUP(X84,'BBM Costs'!$W$7:$W$36,'BBM Costs'!$X$7:$AB$36))*_xlfn.XLOOKUP(X84,'Control panel'!$S$7:$S$36,'Control panel'!$T$7:$T$36) -> 0 | AC84: 0.7024282748
W85: 2027-28 | X85: ='PTRM Data'!B23 -> System Land | Y85: =_xlfn.XLOOKUP(X85,'Control panel'!$L$7:$L$36,'Control panel'!$P$7:$P$36) -> 1 | Z85: 0 | AA85: =_xlfn.XLOOKUP(W85,'BBM Costs'!$Q$6:$U$6,_xlfn.XLOOKUP(X85,'BBM Costs'!$P$7:$P$36,'BBM Costs'!$Q$7:$U$36))*_xlfn.XLOOKUP(X85,'Control panel'!$L$7:$L$36,'Control panel'!$M$7:$M$36) -> 0 | AB85: =_xlfn.XLOOKUP(W85,'BBM Costs'!$X$6:$AB$6,_xlfn.XLOOKUP(X85,'BBM Costs'!$W$7:$W$36,'BBM Costs'!$X$7:$AB$36))*_xlfn.XLOOKUP(X85,'Control panel'!$S$7:$S$36,'Control panel'!$T$7:$T$36) -> 0 | AC85: 0
W86: 2027-28 | X86: ='PTRM Data'!B24 -> Control Centre - SCADA | Y86: =_xlfn.XLOOKUP(X86,'Control panel'!$L$7:$L$36,'Control panel'!$P$7:$P$36) -> 1 | Z86: 0.005378038777 | AA86: =_xlfn.XLOOKUP(W86,'BBM Costs'!$Q$6:$U$6,_xlfn.XLOOKUP(X86,'BBM Costs'!$P$7:$P$36,'BBM Costs'!$Q$7:$U$36))*_xlfn.XLOOKUP(X86,'Control panel'!$L$7:$L$36,'Control panel'!$M$7:$M$36) -> 0 | AB86: =_xlfn.XLOOKUP(W86,'BBM Costs'!$X$6:$AB$6,_xlfn.XLOOKUP(X86,'BBM Costs'!$W$7:$W$36,'BBM Costs'!$X$7:$AB$36))*_xlfn.XLOOKUP(X86,'Control panel'!$S$7:$S$36,'Control panel'!$T$7:$T$36) -> 0 | AC86: 0.005378038777
W87: 2027-28 | X87: ='PTRM Data'!B25 -> Motor Vehicles | Y87: =_xlfn.XLOOKUP(X87,'Control panel'!$L$7:$L$36,'Control panel'!$P$7:$P$36) -> 1 | Z87: 0 | AA87: =_xlfn.XLOOKUP(W87,'BBM Costs'!$Q$6:$U$6,_xlfn.XLOOKUP(X87,'BBM Costs'!$P$7:$P$36,'BBM Costs'!$Q$7:$U$36))*_xlfn.XLOOKUP(X87,'Control panel'!$L$7:$L$36,'Control panel'!$M$7:$M$36) -> 0 | AB87: =_xlfn.XLOOKUP(W87,'BBM Costs'!$X$6:$AB$6,_xlfn.XLOOKUP(X87,'BBM Costs'!$W$7:$W$36,'BBM Costs'!$X$7:$AB$36))*_xlfn.XLOOKUP(X87,'Control panel'!$S$7:$S$36,'Control panel'!$T$7:$T$36) -> 0 | AC87: 0
W88: 2027-28 | X88: ='PTRM Data'!B26 -> Plant & Equipment | Y88: =_xlfn.XLOOKUP(X88,'Control panel'!$L$7:$L$36,'Control panel'!$P$7:$P$36) -> 1 | Z88: 0 | AA88: =_xlfn.XLOOKUP(W88,'BBM Costs'!$Q$6:$U$6,_xlfn.XLOOKUP(X88,'BBM Costs'!$P$7:$P$36,'BBM Costs'!$Q$7:$U$36))*_xlfn.XLOOKUP(X88,'Control panel'!$L$7:$L$36,'Control panel'!$M$7:$M$36) -> 0 | AB88: =_xlfn.XLOOKUP(W88,'BBM Costs'!$X$6:$AB$6,_xlfn.XLOOKUP(X88,'BBM Costs'!$W$7:$W$36,'BBM Costs'!$X$7:$AB$36))*_xlfn.XLOOKUP(X88,'Control panel'!$S$7:$S$36,'Control panel'!$T$7:$T$36) -> 0 | AC88: 0
W89: 2027-28 | X89: ='PTRM Data'!B27 -> Buildings | Y89: =_xlfn.XLOOKUP(X89,'Control panel'!$L$7:$L$36,'Control panel'!$P$7:$P$36) -> 1 | Z89: 0 | AA89: =_xlfn.XLOOKUP(W89,'BBM Costs'!$Q$6:$U$6,_xlfn.XLOOKUP(X89,'BBM Costs'!$P$7:$P$36,'BBM Costs'!$Q$7:$U$36))*_xlfn.XLOOKUP(X89,'Control panel'!$L$7:$L$36,'Control panel'!$M$7:$M$36) -> 0 | AB89: =_xlfn.XLOOKUP(W89,'BBM Costs'!$X$6:$AB$6,_xlfn.XLOOKUP(X89,'BBM Costs'!$W$7:$W$36,'BBM Costs'!$X$7:$AB$36))*_xlfn.XLOOKUP(X89,'Control panel'!$S$7:$S$36,'Control panel'!$T$7:$T$36) -> 0 | AC89: 0
W90: 2027-28 | X90: ='PTRM Data'!B28 -> Office Equipment & Furniture | Y90: =_xlfn.XLOOKUP(X90,'Control panel'!$L$7:$L$36,'Control panel'!$P$7:$P$36) -> 1 | Z90: 0 | AA90: =_xlfn.XLOOKUP(W90,'BBM Costs'!$Q$6:$U$6,_xlfn.XLOOKUP(X90,'BBM Costs'!$P$7:$P$36,'BBM Costs'!$Q$7:$U$36))*_xlfn.XLOOKUP(X90,'Control panel'!$L$7:$L$36,'Control panel'!$M$7:$M$36) -> 0 | AB90: =_xlfn.XLOOKUP(W90,'BBM Costs'!$X$6:$AB$6,_xlfn.XLOOKUP(X90,'BBM Costs'!$W$7:$W$36,'BBM Costs'!$X$7:$AB$36))*_xlfn.XLOOKUP(X90,'Control panel'!$S$7:$S$36,'Control panel'!$T$7:$T$36) -> 0 | AC90: 0
W91: 2027-28 | X91: ='PTRM Data'!B29 -> Initial Leases (10 yr life) | Y91: =_xlfn.XLOOKUP(X91,'Control panel'!$L$7:$L$36,'Control panel'!$P$7:$P$36) -> 1 | Z91: 0 | AA91: =_xlfn.XLOOKUP(W91,'BBM Costs'!$Q$6:$U$6,_xlfn.XLOOKUP(X91,'BBM Costs'!$P$7:$P$36,'BBM Costs'!$Q$7:$U$36))*_xlfn.XLOOKUP(X91,'Control panel'!$L$7:$L$36,'Control panel'!$M$7:$M$36) -> 0 | AB91: =_xlfn.XLOOKUP(W91,'BBM Costs'!$X$6:$AB$6,_xlfn.XLOOKUP(X91,'BBM Costs'!$W$7:$W$36,'BBM Costs'!$X$7:$AB$36))*_xlfn.XLOOKUP(X91,'Control panel'!$S$7:$S$36,'Control panel'!$T$7:$T$36) -> 0 | AC91: 0
W92: 2027-28 | X92: ='PTRM Data'!B30 -> Lease Extensions (5yr Life) | Y92: =_xlfn.XLOOKUP(X92,'Control panel'!$L$7:$L$36,'Control panel'!$P$7:$P$36) -> 1 | Z92: 0 | AA92: =_xlfn.XLOOKUP(W92,'BBM Costs'!$Q$6:$U$6,_xlfn.XLOOKUP(X92,'BBM Costs'!$P$7:$P$36,'BBM Costs'!$Q$7:$U$36))*_xlfn.XLOOKUP(X92,'Control panel'!$L$7:$L$36,'Control panel'!$M$7:$M$36) -> 0 | AB92: =_xlfn.XLOOKUP(W92,'BBM Costs'!$X$6:$AB$6,_xlfn.XLOOKUP(X92,'BBM Costs'!$W$7:$W$36,'BBM Costs'!$X$7:$AB$36))*_xlfn.XLOOKUP(X92,'Control panel'!$S$7:$S$36,'Control panel'!$T$7:$T$36) -> 0 | AC92: 0
W93: 2027-28 | X93: ='PTRM Data'!B31 -> Land | Y93: =_xlfn.XLOOKUP(X93,'Control panel'!$L$7:$L$36,'Control panel'!$P$7:$P$36) -> 1 | Z93: 0 | AA93: =_xlfn.XLOOKUP(W93,'BBM Costs'!$Q$6:$U$6,_xlfn.XLOOKUP(X93,'BBM Costs'!$P$7:$P$36,'BBM Costs'!$Q$7:$U$36))*_xlfn.XLOOKUP(X93,'Control panel'!$L$7:$L$36,'Control panel'!$M$7:$M$36) -> 0 | AB93: =_xlfn.XLOOKUP(W93,'BBM Costs'!$X$6:$AB$6,_xlfn.XLOOKUP(X93,'BBM Costs'!$W$7:$W$36,'BBM Costs'!$X$7:$AB$36))*_xlfn.XLOOKUP(X93,'Control panel'!$S$7:$S$36,'Control panel'!$T$7:$T$36) -> 0 | AC93: 0
W94: 2027-28 | X94: ='PTRM Data'!B32 -> In-house software | Y94: =_xlfn.XLOOKUP(X94,'Control panel'!$L$7:$L$36,'Control panel'!$P$7:$P$36) -> 1 | Z94: 0 | AA94: =_xlfn.XLOOKUP(W94,'BBM Costs'!$Q$6:$U$6,_xlfn.XLOOKUP(X94,'BBM Costs'!$P$7:$P$36,'BBM Costs'!$Q$7:$U$36))*_xlfn.XLOOKUP(X94,'Control panel'!$L$7:$L$36,'Control panel'!$M$7:$M$36) -> 0 | AB94: =_xlfn.XLOOKUP(W94,'BBM Costs'!$X$6:$AB$6,_xlfn.XLOOKUP(X94,'BBM Costs'!$W$7:$W$36,'BBM Costs'!$X$7:$AB$36))*_xlfn.XLOOKUP(X94,'Control panel'!$S$7:$S$36,'Control panel'!$T$7:$T$36) -> 0 | AC94: 0
W95: 2027-28 | X95: ='PTRM Data'!B33 -> IT Systems | Y95: =_xlfn.XLOOKUP(X95,'Control panel'!$L$7:$L$36,'Control panel'!$P$7:$P$36) -> 1 | Z95: 0 | AA95: =_xlfn.XLOOKUP(W95,'BBM Costs'!$Q$6:$U$6,_xlfn.XLOOKUP(X95,'BBM Costs'!$P$7:$P$36,'BBM Costs'!$Q$7:$U$36))*_xlfn.XLOOKUP(X95,'Control panel'!$L$7:$L$36,'Control panel'!$M$7:$M$36) -> 0 | AB95: =_xlfn.XLOOKUP(W95,'BBM Costs'!$X$6:$AB$6,_xlfn.XLOOKUP(X95,'BBM Costs'!$W$7:$W$36,'BBM Costs'!$X$7:$AB$36))*_xlfn.XLOOKUP(X95,'Control panel'!$S$7:$S$36,'Control panel'!$T$7:$T$36) -> 0 | AC95: 0
W96: 2027-28 | X96: ='PTRM Data'!B34 -> Legacy ICT | Y96: =_xlfn.XLOOKUP(X96,'Control panel'!$L$7:$L$36,'Control panel'!$P$7:$P$36) -> 1 | Z96: 0 | AA96: =_xlfn.XLOOKUP(W96,'BBM Costs'!$Q$6:$U$6,_xlfn.XLOOKUP(X96,'BBM Costs'!$P$7:$P$36,'BBM Costs'!$Q$7:$U$36))*_xlfn.XLOOKUP(X96,'Control panel'!$L$7:$L$36,'Control panel'!$M$7:$M$36) -> 0 | AB96: =_xlfn.XLOOKUP(W96,'BBM Costs'!$X$6:$AB$6,_xlfn.XLOOKUP(X96,'BBM Costs'!$W$7:$W$36,'BBM Costs'!$X$7:$AB$36))*_xlfn.XLOOKUP(X96,'Control panel'!$S$7:$S$36,'Control panel'!$T$7:$T$36) -> 0 | AC96: 0
W97: 2027-28 | X97: ='PTRM Data'!B35 -> Buildings - capital works | Y97: =_xlfn.XLOOKUP(X97,'Control panel'!$L$7:$L$36,'Control panel'!$P$7:$P$36) -> 1 | Z97: 0 | AA97: =_xlfn.XLOOKUP(W97,'BBM Costs'!$Q$6:$U$6,_xlfn.XLOOKUP(X97,'BBM Costs'!$P$7:$P$36,'BBM Costs'!$Q$7:$U$36))*_xlfn.XLOOKUP(X97,'Control panel'!$L$7:$L$36,'Control panel'!$M$7:$M$36) -> 0 | AB97: =_xlfn.XLOOKUP(W97,'BBM Costs'!$X$6:$AB$6,_xlfn.XLOOKUP(X97,'BBM Costs'!$W$7:$W$36,'BBM Costs'!$X$7:$AB$36))*_xlfn.XLOOKUP(X97,'Control panel'!$S$7:$S$36,'Control panel'!$T$7:$T$36) -> 0 | AC97: 0
W98: 2027-28 | X98: ='PTRM Data'!B36 -> Equity raising costs | Y98: =_xlfn.XLOOKUP(X98,'Control panel'!$L$7:$L$36,'Control panel'!$P$7:$P$36) -> 1 | Z98: 0 | AA98: =_xlfn.XLOOKUP(W98,'BBM Costs'!$Q$6:$U$6,_xlfn.XLOOKUP(X98,'BBM Costs'!$P$7:$P$36,'BBM Costs'!$Q$7:$U$36))*_xlfn.XLOOKUP(X98,'Control panel'!$L$7:$L$36,'Control panel'!$M$7:$M$36) -> 0 | AB98: =_xlfn.XLOOKUP(W98,'BBM Costs'!$X$6:$AB$6,_xlfn.XLOOKUP(X98,'BBM Costs'!$W$7:$W$36,'BBM Costs'!$X$7:$AB$36))*_xlfn.XLOOKUP(X98,'Control panel'!$S$7:$S$36,'Control panel'!$T$7:$T$36) -> 0 | AC98: 0
W99: 2028-29 | X99: ='PTRM Data'!B7 -> OH Sub-transmission lines | Y99: =_xlfn.XLOOKUP(X99,'Control panel'!$L$7:$L$36,'Control panel'!$P$7:$P$36) -> 1 | Z99: 3.108817571 | AA99: =_xlfn.XLOOKUP(W99,'BBM Costs'!$Q$6:$U$6,_xlfn.XLOOKUP(X99,'BBM Costs'!$P$7:$P$36,'BBM Costs'!$Q$7:$U$36))*_xlfn.XLOOKUP(X99,'Control panel'!$L$7:$L$36,'Control panel'!$M$7:$M$36) -> 0 | AB99: =_xlfn.XLOOKUP(W99,'BBM Costs'!$X$6:$AB$6,_xlfn.XLOOKUP(X99,'BBM Costs'!$W$7:$W$36,'BBM Costs'!$X$7:$AB$36))*_xlfn.XLOOKUP(X99,'Control panel'!$S$7:$S$36,'Control panel'!$T$7:$T$36) -> 0 | AC99: 3.108817571
W100: 2028-29 | X100: ='PTRM Data'!B8 -> UG Sub-transmission cables | Y100: =_xlfn.XLOOKUP(X100,'Control panel'!$L$7:$L$36,'Control panel'!$P$7:$P$36) -> 1 | Z100: 3.458738261 | AA100: =_xlfn.XLOOKUP(W100,'BBM Costs'!$Q$6:$U$6,_xlfn.XLOOKUP(X100,'BBM Costs'!$P$7:$P$36,'BBM Costs'!$Q$7:$U$36))*_xlfn.XLOOKUP(X100,'Control panel'!$L$7:$L$36,'Control panel'!$M$7:$M$36) -> 0 | AB100: =_xlfn.XLOOKUP(W100,'BBM Costs'!$X$6:$AB$6,_xlfn.XLOOKUP(X100,'BBM Costs'!$W$7:$W$36,'BBM Costs'!$X$7:$AB$36))*_xlfn.XLOOKUP(X100,'Control panel'!$S$7:$S$36,'Control panel'!$T$7:$T$36) -> 0 | AC100: 3.458738261
W101: 2028-29 | X101: ='PTRM Data'!B9 -> OH Distribution Lines | Y101: =_xlfn.XLOOKUP(X101,'Control panel'!$L$7:$L$36,'Control panel'!$P$7:$P$36) -> 0.75 | Z101: 12.58099735 | AA101: =_xlfn.XLOOKUP(W101,'BBM Costs'!$Q$6:$U$6,_xlfn.XLOOKUP(X101,'BBM Costs'!$P$7:$P$36,'BBM Costs'!$Q$7:$U$36))*_xlfn.XLOOKUP(X101,'Control panel'!$L$7:$L$36,'Control panel'!$M$7:$M$36) -> 7.444585251 | AB101: =_xlfn.XLOOKUP(W101,'BBM Costs'!$X$6:$AB$6,_xlfn.XLOOKUP(X101,'BBM Costs'!$W$7:$W$36,'BBM Costs'!$X$7:$AB$36))*_xlfn.XLOOKUP(X101,'Control panel'!$S$7:$S$36,'Control panel'!$T$7:$T$36) -> 57.33645112 | AC101: 77.36203372
W102: 2028-29 | X102: ='PTRM Data'!B10 -> UG Distribution Cables | Y102: =_xlfn.XLOOKUP(X102,'Control panel'!$L$7:$L$36,'Control panel'!$P$7:$P$36) -> 0.75 | Z102: 10.93133798 | AA102: =_xlfn.XLOOKUP(W102,'BBM Costs'!$Q$6:$U$6,_xlfn.XLOOKUP(X102,'BBM Costs'!$P$7:$P$36,'BBM Costs'!$Q$7:$U$36))*_xlfn.XLOOKUP(X102,'Control panel'!$L$7:$L$36,'Control panel'!$M$7:$M$36) -> -0.6449489511 | AB102: =_xlfn.XLOOKUP(W102,'BBM Costs'!$X$6:$AB$6,_xlfn.XLOOKUP(X102,'BBM Costs'!$W$7:$W$36,'BBM Costs'!$X$7:$AB$36))*_xlfn.XLOOKUP(X102,'Control panel'!$S$7:$S$36,'Control panel'!$T$7:$T$36) -> 47.20871661 | AC102: 57.49510563
W103: 2028-29 | X103: ='PTRM Data'!B11 -> Distribution Equipment | Y103: =_xlfn.XLOOKUP(X103,'Control panel'!$L$7:$L$36,'Control panel'!$P$7:$P$36) -> 0.75 | Z103: 2.26169871 | AA103: =_xlfn.XLOOKUP(W103,'BBM Costs'!$Q$6:$U$6,_xlfn.XLOOKUP(X103,'BBM Costs'!$P$7:$P$36,'BBM Costs'!$Q$7:$U$36))*_xlfn.XLOOKUP(X103,'Control panel'!$L$7:$L$36,'Control panel'!$M$7:$M$36) -> 2.456929869 | AB103: =_xlfn.XLOOKUP(W103,'BBM Costs'!$X$6:$AB$6,_xlfn.XLOOKUP(X103,'BBM Costs'!$W$7:$W$36,'BBM Costs'!$X$7:$AB$36))*_xlfn.XLOOKUP(X103,'Control panel'!$S$7:$S$36,'Control panel'!$T$7:$T$36) -> 10.7838962 | AC103: 15.50252478
W104: 2028-29 | X104: ='PTRM Data'!B12 -> Substation Bays | Y104: =_xlfn.XLOOKUP(X104,'Control panel'!$L$7:$L$36,'Control panel'!$P$7:$P$36) -> 1 | Z104: 3.290749035 | AA104: =_xlfn.XLOOKUP(W104,'BBM Costs'!$Q$6:$U$6,_xlfn.XLOOKUP(X104,'BBM Costs'!$P$7:$P$36,'BBM Costs'!$Q$7:$U$36))*_xlfn.XLOOKUP(X104,'Control panel'!$L$7:$L$36,'Control panel'!$M$7:$M$36) -> 0 | AB104: =_xlfn.XLOOKUP(W104,'BBM Costs'!$X$6:$AB$6,_xlfn.XLOOKUP(X104,'BBM Costs'!$W$7:$W$36,'BBM Costs'!$X$7:$AB$36))*_xlfn.XLOOKUP(X104,'Control panel'!$S$7:$S$36,'Control panel'!$T$7:$T$36) -> 0 | AC104: 3.290749035
W105: 2028-29 | X105: ='PTRM Data'!B13 -> Substation Establishment | Y105: =_xlfn.XLOOKUP(X105,'Control panel'!$L$7:$L$36,'Control panel'!$P$7:$P$36) -> 1 | Z105: 2.371660552 | AA105: =_xlfn.XLOOKUP(W105,'BBM Costs'!$Q$6:$U$6,_xlfn.XLOOKUP(X105,'BBM Costs'!$P$7:$P$36,'BBM Costs'!$Q$7:$U$36))*_xlfn.XLOOKUP(X105,'Control panel'!$L$7:$L$36,'Control panel'!$M$7:$M$36) -> 0 | AB105: =_xlfn.XLOOKUP(W105,'BBM Costs'!$X$6:$AB$6,_xlfn.XLOOKUP(X105,'BBM Costs'!$W$7:$W$36,'BBM Costs'!$X$7:$AB$36))*_xlfn.XLOOKUP(X105,'Control panel'!$S$7:$S$36,'Control panel'!$T$7:$T$36) -> 0 | AC105: 2.371660552
W106: 2028-29 | X106: ='PTRM Data'!B14 -> Distribution Substation Switchgear | Y106: =_xlfn.XLOOKUP(X106,'Control panel'!$L$7:$L$36,'Control panel'!$P$7:$P$36) -> 0.75 | Z106: 0.7923544153 | AA106: =_xlfn.XLOOKUP(W106,'BBM Costs'!$Q$6:$U$6,_xlfn.XLOOKUP(X106,'BBM Costs'!$P$7:$P$36,'BBM Costs'!$Q$7:$U$36))*_xlfn.XLOOKUP(X106,'Control panel'!$L$7:$L$36,'Control panel'!$M$7:$M$36) -> 0.3693223816 | AB106: =_xlfn.XLOOKUP(W106,'BBM Costs'!$X$6:$AB$6,_xlfn.XLOOKUP(X106,'BBM Costs'!$W$7:$W$36,'BBM Costs'!$X$7:$AB$36))*_xlfn.XLOOKUP(X106,'Control panel'!$S$7:$S$36,'Control panel'!$T$7:$T$36) -> 3.868629262 | AC106: 5.030306059
W107: 2028-29 | X107: ='PTRM Data'!B15 -> Zone Transformers | Y107: =_xlfn.XLOOKUP(X107,'Control panel'!$L$7:$L$36,'Control panel'!$P$7:$P$36) -> 1 | Z107: 4.347210466 | AA107: =_xlfn.XLOOKUP(W107,'BBM Costs'!$Q$6:$U$6,_xlfn.XLOOKUP(X107,'BBM Costs'!$P$7:$P$36,'BBM Costs'!$Q$7:$U$36))*_xlfn.XLOOKUP(X107,'Control panel'!$L$7:$L$36,'Control panel'!$M$7:$M$36) -> 0 | AB107: =_xlfn.XLOOKUP(W107,'BBM Costs'!$X$6:$AB$6,_xlfn.XLOOKUP(X107,'BBM Costs'!$W$7:$W$36,'BBM Costs'!$X$7:$AB$36))*_xlfn.XLOOKUP(X107,'Control panel'!$S$7:$S$36,'Control panel'!$T$7:$T$36) -> 0 | AC107: 4.347210466
W108: 2028-29 | X108: ='PTRM Data'!B16 -> Distribution Transformers | Y108: =_xlfn.XLOOKUP(X108,'Control panel'!$L$7:$L$36,'Control panel'!$P$7:$P$36) -> 0.2 | Z108: 7.236950588 | AA108: =_xlfn.XLOOKUP(W108,'BBM Costs'!$Q$6:$U$6,_xlfn.XLOOKUP(X108,'BBM Costs'!$P$7:$P$36,'BBM Costs'!$Q$7:$U$36))*_xlfn.XLOOKUP(X108,'Control panel'!$L$7:$L$36,'Control panel'!$M$7:$M$36) -> 8.551635839 | AB108: =_xlfn.XLOOKUP(W108,'BBM Costs'!$X$6:$AB$6,_xlfn.XLOOKUP(X108,'BBM Costs'!$W$7:$W$36,'BBM Costs'!$X$7:$AB$36))*_xlfn.XLOOKUP(X108,'Control panel'!$S$7:$S$36,'Control panel'!$T$7:$T$36) -> 31.23752102 | AC108: 47.02610745
W109: 2028-29 | X109: ='PTRM Data'!B17 -> Low Voltage Services | Y109: =_xlfn.XLOOKUP(X109,'Control panel'!$L$7:$L$36,'Control panel'!$P$7:$P$36) -> 0 | Z109: 3.464461599 | AA109: =_xlfn.XLOOKUP(W109,'BBM Costs'!$Q$6:$U$6,_xlfn.XLOOKUP(X109,'BBM Costs'!$P$7:$P$36,'BBM Costs'!$Q$7:$U$36))*_xlfn.XLOOKUP(X109,'Control panel'!$L$7:$L$36,'Control panel'!$M$7:$M$36) -> 0 | AB109: =_xlfn.XLOOKUP(W109,'BBM Costs'!$X$6:$AB$6,_xlfn.XLOOKUP(X109,'BBM Costs'!$W$7:$W$36,'BBM Costs'!$X$7:$AB$36))*_xlfn.XLOOKUP(X109,'Control panel'!$S$7:$S$36,'Control panel'!$T$7:$T$36) -> 0 | AC109: 3.464461599
W110: 2028-29 | X110: ='PTRM Data'!B18 -> Load Control & Network Metering Devices | Y110: =_xlfn.XLOOKUP(X110,'Control panel'!$L$7:$L$36,'Control panel'!$P$7:$P$36) -> 0 | Z110: 0.3776554756 | AA110: =_xlfn.XLOOKUP(W110,'BBM Costs'!$Q$6:$U$6,_xlfn.XLOOKUP(X110,'BBM Costs'!$P$7:$P$36,'BBM Costs'!$Q$7:$U$36))*_xlfn.XLOOKUP(X110,'Control panel'!$L$7:$L$36,'Control panel'!$M$7:$M$36) -> 0 | AB110: =_xlfn.XLOOKUP(W110,'BBM Costs'!$X$6:$AB$6,_xlfn.XLOOKUP(X110,'BBM Costs'!$W$7:$W$36,'BBM Costs'!$X$7:$AB$36))*_xlfn.XLOOKUP(X110,'Control panel'!$S$7:$S$36,'Control panel'!$T$7:$T$36) -> 0 | AC110: 0.3776554756
W111: 2028-29 | X111: ='PTRM Data'!B19 -> Communications - Pilot Wires | Y111: =_xlfn.XLOOKUP(X111,'Control panel'!$L$7:$L$36,'Control panel'!$P$7:$P$36) -> 1 | Z111: 2.096314929 | AA111: =_xlfn.XLOOKUP(W111,'BBM Costs'!$Q$6:$U$6,_xlfn.XLOOKUP(X111,'BBM Costs'!$P$7:$P$36,'BBM Costs'!$Q$7:$U$36))*_xlfn.XLOOKUP(X111,'Control panel'!$L$7:$L$36,'Control panel'!$M$7:$M$36) -> 0 | AB111: =_xlfn.XLOOKUP(W111,'BBM Costs'!$X$6:$AB$6,_xlfn.XLOOKUP(X111,'BBM Costs'!$W$7:$W$36,'BBM Costs'!$X$7:$AB$36))*_xlfn.XLOOKUP(X111,'Control panel'!$S$7:$S$36,'Control panel'!$T$7:$T$36) -> 0 | AC111: 2.096314929
W112: 2028-29 | X112: ='PTRM Data'!B20 -> Streetlighting (Residual Rate 2 Assets) | Y112: =_xlfn.XLOOKUP(X112,'Control panel'!$L$7:$L$36,'Control panel'!$P$7:$P$36) -> 1 | Z112: 0 | AA112: =_xlfn.XLOOKUP(W112,'BBM Costs'!$Q$6:$U$6,_xlfn.XLOOKUP(X112,'BBM Costs'!$P$7:$P$36,'BBM Costs'!$Q$7:$U$36))*_xlfn.XLOOKUP(X112,'Control panel'!$L$7:$L$36,'Control panel'!$M$7:$M$36) -> 0 | AB112: =_xlfn.XLOOKUP(W112,'BBM Costs'!$X$6:$AB$6,_xlfn.XLOOKUP(X112,'BBM Costs'!$W$7:$W$36,'BBM Costs'!$X$7:$AB$36))*_xlfn.XLOOKUP(X112,'Control panel'!$S$7:$S$36,'Control panel'!$T$7:$T$36) -> 0 | AC112: 0
W113: 2028-29 | X113: ='PTRM Data'!B21 -> Systems Buildings | Y113: =_xlfn.XLOOKUP(X113,'Control panel'!$L$7:$L$36,'Control panel'!$P$7:$P$36) -> 1 | Z113: 1.324949209 | AA113: =_xlfn.XLOOKUP(W113,'BBM Costs'!$Q$6:$U$6,_xlfn.XLOOKUP(X113,'BBM Costs'!$P$7:$P$36,'BBM Costs'!$Q$7:$U$36))*_xlfn.XLOOKUP(X113,'Control panel'!$L$7:$L$36,'Control panel'!$M$7:$M$36) -> 0 | AB113: =_xlfn.XLOOKUP(W113,'BBM Costs'!$X$6:$AB$6,_xlfn.XLOOKUP(X113,'BBM Costs'!$W$7:$W$36,'BBM Costs'!$X$7:$AB$36))*_xlfn.XLOOKUP(X113,'Control panel'!$S$7:$S$36,'Control panel'!$T$7:$T$36) -> 0 | AC113: 1.324949209
W114: 2028-29 | X114: ='PTRM Data'!B22 -> Systems Easements | Y114: =_xlfn.XLOOKUP(X114,'Control panel'!$L$7:$L$36,'Control panel'!$P$7:$P$36) -> 1 | Z114: 0.7531438686 | AA114: =_xlfn.XLOOKUP(W114,'BBM Costs'!$Q$6:$U$6,_xlfn.XLOOKUP(X114,'BBM Costs'!$P$7:$P$36,'BBM Costs'!$Q$7:$U$36))*_xlfn.XLOOKUP(X114,'Control panel'!$L$7:$L$36,'Control panel'!$M$7:$M$36) -> 0 | AB114: =_xlfn.XLOOKUP(W114,'BBM Costs'!$X$6:$AB$6,_xlfn.XLOOKUP(X114,'BBM Costs'!$W$7:$W$36,'BBM Costs'!$X$7:$AB$36))*_xlfn.XLOOKUP(X114,'Control panel'!$S$7:$S$36,'Control panel'!$T$7:$T$36) -> 0 | AC114: 0.7531438686
W115: 2028-29 | X115: ='PTRM Data'!B23 -> System Land | Y115: =_xlfn.XLOOKUP(X115,'Control panel'!$L$7:$L$36,'Control panel'!$P$7:$P$36) -> 1 | Z115: 0 | AA115: =_xlfn.XLOOKUP(W115,'BBM Costs'!$Q$6:$U$6,_xlfn.XLOOKUP(X115,'BBM Costs'!$P$7:$P$36,'BBM Costs'!$Q$7:$U$36))*_xlfn.XLOOKUP(X115,'Control panel'!$L$7:$L$36,'Control panel'!$M$7:$M$36) -> 0 | AB115: =_xlfn.XLOOKUP(W115,'BBM Costs'!$X$6:$AB$6,_xlfn.XLOOKUP(X115,'BBM Costs'!$W$7:$W$36,'BBM Costs'!$X$7:$AB$36))*_xlfn.XLOOKUP(X115,'Control panel'!$S$7:$S$36,'Control panel'!$T$7:$T$36) -> 0 | AC115: 0
W116: 2028-29 | X116: ='PTRM Data'!B24 -> Control Centre - SCADA | Y116: =_xlfn.XLOOKUP(X116,'Control panel'!$L$7:$L$36,'Control panel'!$P$7:$P$36) -> 1 | Z116: 0.005766335262 | AA116: =_xlfn.XLOOKUP(W116,'BBM Costs'!$Q$6:$U$6,_xlfn.XLOOKUP(X116,'BBM Costs'!$P$7:$P$36,'BBM Costs'!$Q$7:$U$36))*_xlfn.XLOOKUP(X116,'Control panel'!$L$7:$L$36,'Control panel'!$M$7:$M$36) -> 0 | AB116: =_xlfn.XLOOKUP(W116,'BBM Costs'!$X$6:$AB$6,_xlfn.XLOOKUP(X116,'BBM Costs'!$W$7:$W$36,'BBM Costs'!$X$7:$AB$36))*_xlfn.XLOOKUP(X116,'Control panel'!$S$7:$S$36,'Control panel'!$T$7:$T$36) -> 0 | AC116: 0.005766335262
W117: 2028-29 | X117: ='PTRM Data'!B25 -> Motor Vehicles | Y117: =_xlfn.XLOOKUP(X117,'Control panel'!$L$7:$L$36,'Control panel'!$P$7:$P$36) -> 1 | Z117: 0 | AA117: =_xlfn.XLOOKUP(W117,'BBM Costs'!$Q$6:$U$6,_xlfn.XLOOKUP(X117,'BBM Costs'!$P$7:$P$36,'BBM Costs'!$Q$7:$U$36))*_xlfn.XLOOKUP(X117,'Control panel'!$L$7:$L$36,'Control panel'!$M$7:$M$36) -> 0 | AB117: =_xlfn.XLOOKUP(W117,'BBM Costs'!$X$6:$AB$6,_xlfn.XLOOKUP(X117,'BBM Costs'!$W$7:$W$36,'BBM Costs'!$X$7:$AB$36))*_xlfn.XLOOKUP(X117,'Control panel'!$S$7:$S$36,'Control panel'!$T$7:$T$36) -> 0 | AC117: 0
W118: 2028-29 | X118: ='PTRM Data'!B26 -> Plant & Equipment | Y118: =_xlfn.XLOOKUP(X118,'Control panel'!$L$7:$L$36,'Control panel'!$P$7:$P$36) -> 1 | Z118: 0 | AA118: =_xlfn.XLOOKUP(W118,'BBM Costs'!$Q$6:$U$6,_xlfn.XLOOKUP(X118,'BBM Costs'!$P$7:$P$36,'BBM Costs'!$Q$7:$U$36))*_xlfn.XLOOKUP(X118,'Control panel'!$L$7:$L$36,'Control panel'!$M$7:$M$36) -> 0 | AB118: =_xlfn.XLOOKUP(W118,'BBM Costs'!$X$6:$AB$6,_xlfn.XLOOKUP(X118,'BBM Costs'!$W$7:$W$36,'BBM Costs'!$X$7:$AB$36))*_xlfn.XLOOKUP(X118,'Control panel'!$S$7:$S$36,'Control panel'!$T$7:$T$36) -> 0 | AC118: 0
W119: 2028-29 | X119: ='PTRM Data'!B27 -> Buildings | Y119: =_xlfn.XLOOKUP(X119,'Control panel'!$L$7:$L$36,'Control panel'!$P$7:$P$36) -> 1 | Z119: 0 | AA119: =_xlfn.XLOOKUP(W119,'BBM Costs'!$Q$6:$U$6,_xlfn.XLOOKUP(X119,'BBM Costs'!$P$7:$P$36,'BBM Costs'!$Q$7:$U$36))*_xlfn.XLOOKUP(X119,'Control panel'!$L$7:$L$36,'Control panel'!$M$7:$M$36) -> 0 | AB119: =_xlfn.XLOOKUP(W119,'BBM Costs'!$X$6:$AB$6,_xlfn.XLOOKUP(X119,'BBM Costs'!$W$7:$W$36,'BBM Costs'!$X$7:$AB$36))*_xlfn.XLOOKUP(X119,'Control panel'!$S$7:$S$36,'Control panel'!$T$7:$T$36) -> 0 | AC119: 0
W120: 2028-29 | X120: ='PTRM Data'!B28 -> Office Equipment & Furniture | Y120: =_xlfn.XLOOKUP(X120,'Control panel'!$L$7:$L$36,'Control panel'!$P$7:$P$36) -> 1 | Z120: 0 | AA120: =_xlfn.XLOOKUP(W120,'BBM Costs'!$Q$6:$U$6,_xlfn.XLOOKUP(X120,'BBM Costs'!$P$7:$P$36,'BBM Costs'!$Q$7:$U$36))*_xlfn.XLOOKUP(X120,'Control panel'!$L$7:$L$36,'Control panel'!$M$7:$M$36) -> 0 | AB120: =_xlfn.XLOOKUP(W120,'BBM Costs'!$X$6:$AB$6,_xlfn.XLOOKUP(X120,'BBM Costs'!$W$7:$W$36,'BBM Costs'!$X$7:$AB$36))*_xlfn.XLOOKUP(X120,'Control panel'!$S$7:$S$36,'Control panel'!$T$7:$T$36) -> 0 | AC120: 0
W121: 2028-29 | X121: ='PTRM Data'!B29 -> Initial Leases (10 yr life) | Y121: =_xlfn.XLOOKUP(X121,'Control panel'!$L$7:$L$36,'Control panel'!$P$7:$P$36) -> 1 | Z121: 0 | AA121: =_xlfn.XLOOKUP(W121,'BBM Costs'!$Q$6:$U$6,_xlfn.XLOOKUP(X121,'BBM Costs'!$P$7:$P$36,'BBM Costs'!$Q$7:$U$36))*_xlfn.XLOOKUP(X121,'Control panel'!$L$7:$L$36,'Control panel'!$M$7:$M$36) -> 0 | AB121: =_xlfn.XLOOKUP(W121,'BBM Costs'!$X$6:$AB$6,_xlfn.XLOOKUP(X121,'BBM Costs'!$W$7:$W$36,'BBM Costs'!$X$7:$AB$36))*_xlfn.XLOOKUP(X121,'Control panel'!$S$7:$S$36,'Control panel'!$T$7:$T$36) -> 0 | AC121: 0
W122: 2028-29 | X122: ='PTRM Data'!B30 -> Lease Extensions (5yr Life) | Y122: =_xlfn.XLOOKUP(X122,'Control panel'!$L$7:$L$36,'Control panel'!$P$7:$P$36) -> 1 | Z122: 0 | AA122: =_xlfn.XLOOKUP(W122,'BBM Costs'!$Q$6:$U$6,_xlfn.XLOOKUP(X122,'BBM Costs'!$P$7:$P$36,'BBM Costs'!$Q$7:$U$36))*_xlfn.XLOOKUP(X122,'Control panel'!$L$7:$L$36,'Control panel'!$M$7:$M$36) -> 0 | AB122: =_xlfn.XLOOKUP(W122,'BBM Costs'!$X$6:$AB$6,_xlfn.XLOOKUP(X122,'BBM Costs'!$W$7:$W$36,'BBM Costs'!$X$7:$AB$36))*_xlfn.XLOOKUP(X122,'Control panel'!$S$7:$S$36,'Control panel'!$T$7:$T$36) -> 0 | AC122: 0
W123: 2028-29 | X123: ='PTRM Data'!B31 -> Land | Y123: =_xlfn.XLOOKUP(X123,'Control panel'!$L$7:$L$36,'Control panel'!$P$7:$P$36) -> 1 | Z123: 0 | AA123: =_xlfn.XLOOKUP(W123,'BBM Costs'!$Q$6:$U$6,_xlfn.XLOOKUP(X123,'BBM Costs'!$P$7:$P$36,'BBM Costs'!$Q$7:$U$36))*_xlfn.XLOOKUP(X123,'Control panel'!$L$7:$L$36,'Control panel'!$M$7:$M$36) -> 0 | AB123: =_xlfn.XLOOKUP(W123,'BBM Costs'!$X$6:$AB$6,_xlfn.XLOOKUP(X123,'BBM Costs'!$W$7:$W$36,'BBM Costs'!$X$7:$AB$36))*_xlfn.XLOOKUP(X123,'Control panel'!$S$7:$S$36,'Control panel'!$T$7:$T$36) -> 0 | AC123: 0
W124: 2028-29 | X124: ='PTRM Data'!B32 -> In-house software | Y124: =_xlfn.XLOOKUP(X124,'Control panel'!$L$7:$L$36,'Control panel'!$P$7:$P$36) -> 1 | Z124: 0 | AA124: =_xlfn.XLOOKUP(W124,'BBM Costs'!$Q$6:$U$6,_xlfn.XLOOKUP(X124,'BBM Costs'!$P$7:$P$36,'BBM Costs'!$Q$7:$U$36))*_xlfn.XLOOKUP(X124,'Control panel'!$L$7:$L$36,'Control panel'!$M$7:$M$36) -> 0 | AB124: =_xlfn.XLOOKUP(W124,'BBM Costs'!$X$6:$AB$6,_xlfn.XLOOKUP(X124,'BBM Costs'!$W$7:$W$36,'BBM Costs'!$X$7:$AB$36))*_xlfn.XLOOKUP(X124,'Control panel'!$S$7:$S$36,'Control panel'!$T$7:$T$36) -> 0 | AC124: 0
W125: 2028-29 | X125: ='PTRM Data'!B33 -> IT Systems | Y125: =_xlfn.XLOOKUP(X125,'Control panel'!$L$7:$L$36,'Control panel'!$P$7:$P$36) -> 1 | Z125: 0 | AA125: =_xlfn.XLOOKUP(W125,'BBM Costs'!$Q$6:$U$6,_xlfn.XLOOKUP(X125,'BBM Costs'!$P$7:$P$36,'BBM Costs'!$Q$7:$U$36))*_xlfn.XLOOKUP(X125,'Control panel'!$L$7:$L$36,'Control panel'!$M$7:$M$36) -> 0 | AB125: =_xlfn.XLOOKUP(W125,'BBM Costs'!$X$6:$AB$6,_xlfn.XLOOKUP(X125,'BBM Costs'!$W$7:$W$36,'BBM Costs'!$X$7:$AB$36))*_xlfn.XLOOKUP(X125,'Control panel'!$S$7:$S$36,'Control panel'!$T$7:$T$36) -> 0 | AC125: 0
W126: 2028-29 | X126: ='PTRM Data'!B34 -> Legacy ICT | Y126: =_xlfn.XLOOKUP(X126,'Control panel'!$L$7:$L$36,'Control panel'!$P$7:$P$36) -> 1 | Z126: 0 | AA126: =_xlfn.XLOOKUP(W126,'BBM Costs'!$Q$6:$U$6,_xlfn.XLOOKUP(X126,'BBM Costs'!$P$7:$P$36,'BBM Costs'!$Q$7:$U$36))*_xlfn.XLOOKUP(X126,'Control panel'!$L$7:$L$36,'Control panel'!$M$7:$M$36) -> 0 | AB126: =_xlfn.XLOOKUP(W126,'BBM Costs'!$X$6:$AB$6,_xlfn.XLOOKUP(X126,'BBM Costs'!$W$7:$W$36,'BBM Costs'!$X$7:$AB$36))*_xlfn.XLOOKUP(X126,'Control panel'!$S$7:$S$36,'Control panel'!$T$7:$T$36) -> 0 | AC126: 0
W127: 2028-29 | X127: ='PTRM Data'!B35 -> Buildings - capital works | Y127: =_xlfn.XLOOKUP(X127,'Control panel'!$L$7:$L$36,'Control panel'!$P$7:$P$36) -> 1 | Z127: 0 | AA127: =_xlfn.XLOOKUP(W127,'BBM Costs'!$Q$6:$U$6,_xlfn.XLOOKUP(X127,'BBM Costs'!$P$7:$P$36,'BBM Costs'!$Q$7:$U$36))*_xlfn.XLOOKUP(X127,'Control panel'!$L$7:$L$36,'Control panel'!$M$7:$M$36) -> 0 | AB127: =_xlfn.XLOOKUP(W127,'BBM Costs'!$X$6:$AB$6,_xlfn.XLOOKUP(X127,'BBM Costs'!$W$7:$W$36,'BBM Costs'!$X$7:$AB$36))*_xlfn.XLOOKUP(X127,'Control panel'!$S$7:$S$36,'Control panel'!$T$7:$T$36) -> 0 | AC127: 0
W128: 2028-29 | X128: ='PTRM Data'!B36 -> Equity raising costs | Y128: =_xlfn.XLOOKUP(X128,'Control panel'!$L$7:$L$36,'Control panel'!$P$7:$P$36) -> 1 | Z128: 0 | AA128: =_xlfn.XLOOKUP(W128,'BBM Costs'!$Q$6:$U$6,_xlfn.XLOOKUP(X128,'BBM Costs'!$P$7:$P$36,'BBM Costs'!$Q$7:$U$36))*_xlfn.XLOOKUP(X128,'Control panel'!$L$7:$L$36,'Control panel'!$M$7:$M$36) -> 0 | AB128: =_xlfn.XLOOKUP(W128,'BBM Costs'!$X$6:$AB$6,_xlfn.XLOOKUP(X128,'BBM Costs'!$W$7:$W$36,'BBM Costs'!$X$7:$AB$36))*_xlfn.XLOOKUP(X128,'Control panel'!$S$7:$S$36,'Control panel'!$T$7:$T$36) -> 0 | AC128: 0
W129: 2029-30 | X129: ='PTRM Data'!B7 -> OH Sub-transmission lines | Y129: =_xlfn.XLOOKUP(X129,'Control panel'!$L$7:$L$36,'Control panel'!$P$7:$P$36) -> 1 | Z129: 3.242919994 | AA129: =_xlfn.XLOOKUP(W129,'BBM Costs'!$Q$6:$U$6,_xlfn.XLOOKUP(X129,'BBM Costs'!$P$7:$P$36,'BBM Costs'!$Q$7:$U$36))*_xlfn.XLOOKUP(X129,'Control panel'!$L$7:$L$36,'Control panel'!$M$7:$M$36) -> 0 | AB129: =_xlfn.XLOOKUP(W129,'BBM Costs'!$X$6:$AB$6,_xlfn.XLOOKUP(X129,'BBM Costs'!$W$7:$W$36,'BBM Costs'!$X$7:$AB$36))*_xlfn.XLOOKUP(X129,'Control panel'!$S$7:$S$36,'Control panel'!$T$7:$T$36) -> 0 | AC129: 3.242919994
W130: 2029-30 | X130: ='PTRM Data'!B8 -> UG Sub-transmission cables | Y130: =_xlfn.XLOOKUP(X130,'Control panel'!$L$7:$L$36,'Control panel'!$P$7:$P$36) -> 1 | Z130: 3.607934916 | AA130: =_xlfn.XLOOKUP(W130,'BBM Costs'!$Q$6:$U$6,_xlfn.XLOOKUP(X130,'BBM Costs'!$P$7:$P$36,'BBM Costs'!$Q$7:$U$36))*_xlfn.XLOOKUP(X130,'Control panel'!$L$7:$L$36,'Control panel'!$M$7:$M$36) -> 0 | AB130: =_xlfn.XLOOKUP(W130,'BBM Costs'!$X$6:$AB$6,_xlfn.XLOOKUP(X130,'BBM Costs'!$W$7:$W$36,'BBM Costs'!$X$7:$AB$36))*_xlfn.XLOOKUP(X130,'Control panel'!$S$7:$S$36,'Control panel'!$T$7:$T$36) -> 0 | AC130: 3.607934916
W131: 2029-30 | X131: ='PTRM Data'!B9 -> OH Distribution Lines | Y131: =_xlfn.XLOOKUP(X131,'Control panel'!$L$7:$L$36,'Control panel'!$P$7:$P$36) -> 0.75 | Z131: 13.12369314 | AA131: =_xlfn.XLOOKUP(W131,'BBM Costs'!$Q$6:$U$6,_xlfn.XLOOKUP(X131,'BBM Costs'!$P$7:$P$36,'BBM Costs'!$Q$7:$U$36))*_xlfn.XLOOKUP(X131,'Control panel'!$L$7:$L$36,'Control panel'!$M$7:$M$36) -> 8.083606726 | AB131: =_xlfn.XLOOKUP(W131,'BBM Costs'!$X$6:$AB$6,_xlfn.XLOOKUP(X131,'BBM Costs'!$W$7:$W$36,'BBM Costs'!$X$7:$AB$36))*_xlfn.XLOOKUP(X131,'Control panel'!$S$7:$S$36,'Control panel'!$T$7:$T$36) -> 61.54598048 | AC131: 82.75328035
W132: 2029-30 | X132: ='PTRM Data'!B10 -> UG Distribution Cables | Y132: =_xlfn.XLOOKUP(X132,'Control panel'!$L$7:$L$36,'Control panel'!$P$7:$P$36) -> 0.75 | Z132: 11.40287382 | AA132: =_xlfn.XLOOKUP(W132,'BBM Costs'!$Q$6:$U$6,_xlfn.XLOOKUP(X132,'BBM Costs'!$P$7:$P$36,'BBM Costs'!$Q$7:$U$36))*_xlfn.XLOOKUP(X132,'Control panel'!$L$7:$L$36,'Control panel'!$M$7:$M$36) -> -0.3002342522 | AB132: =_xlfn.XLOOKUP(W132,'BBM Costs'!$X$6:$AB$6,_xlfn.XLOOKUP(X132,'BBM Costs'!$W$7:$W$36,'BBM Costs'!$X$7:$AB$36))*_xlfn.XLOOKUP(X132,'Control panel'!$S$7:$S$36,'Control panel'!$T$7:$T$36) -> 49.95253731 | AC132: 61.05517687
W133: 2029-30 | X133: ='PTRM Data'!B11 -> Distribution Equipment | Y133: =_xlfn.XLOOKUP(X133,'Control panel'!$L$7:$L$36,'Control panel'!$P$7:$P$36) -> 0.75 | Z133: 2.359259686 | AA133: =_xlfn.XLOOKUP(W133,'BBM Costs'!$Q$6:$U$6,_xlfn.XLOOKUP(X133,'BBM Costs'!$P$7:$P$36,'BBM Costs'!$Q$7:$U$36))*_xlfn.XLOOKUP(X133,'Control panel'!$L$7:$L$36,'Control panel'!$M$7:$M$36) -> 2.65617022 | AB133: =_xlfn.XLOOKUP(W133,'BBM Costs'!$X$6:$AB$6,_xlfn.XLOOKUP(X133,'BBM Costs'!$W$7:$W$36,'BBM Costs'!$X$7:$AB$36))*_xlfn.XLOOKUP(X133,'Control panel'!$S$7:$S$36,'Control panel'!$T$7:$T$36) -> 11.73535701 | AC133: 16.75078691
W134: 2029-30 | X134: ='PTRM Data'!B12 -> Substation Bays | Y134: =_xlfn.XLOOKUP(X134,'Control panel'!$L$7:$L$36,'Control panel'!$P$7:$P$36) -> 1 | Z134: 3.432699281 | AA134: =_xlfn.XLOOKUP(W134,'BBM Costs'!$Q$6:$U$6,_xlfn.XLOOKUP(X134,'BBM Costs'!$P$7:$P$36,'BBM Costs'!$Q$7:$U$36))*_xlfn.XLOOKUP(X134,'Control panel'!$L$7:$L$36,'Control panel'!$M$7:$M$36) -> 0 | AB134: =_xlfn.XLOOKUP(W134,'BBM Costs'!$X$6:$AB$6,_xlfn.XLOOKUP(X134,'BBM Costs'!$W$7:$W$36,'BBM Costs'!$X$7:$AB$36))*_xlfn.XLOOKUP(X134,'Control panel'!$S$7:$S$36,'Control panel'!$T$7:$T$36) -> 0 | AC134: 3.432699281
W135: 2029-30 | X135: ='PTRM Data'!B13 -> Substation Establishment | Y135: =_xlfn.XLOOKUP(X135,'Control panel'!$L$7:$L$36,'Control panel'!$P$7:$P$36) -> 1 | Z135: 2.473964858 | AA135: =_xlfn.XLOOKUP(W135,'BBM Costs'!$Q$6:$U$6,_xlfn.XLOOKUP(X135,'BBM Costs'!$P$7:$P$36,'BBM Costs'!$Q$7:$U$36))*_xlfn.XLOOKUP(X135,'Control panel'!$L$7:$L$36,'Control panel'!$M$7:$M$36) -> 0 | AB135: =_xlfn.XLOOKUP(W135,'BBM Costs'!$X$6:$AB$6,_xlfn.XLOOKUP(X135,'BBM Costs'!$W$7:$W$36,'BBM Costs'!$X$7:$AB$36))*_xlfn.XLOOKUP(X135,'Control panel'!$S$7:$S$36,'Control panel'!$T$7:$T$36) -> 0 | AC135: 2.473964858
W136: 2029-30 | X136: ='PTRM Data'!B14 -> Distribution Substation Switchgear | Y136: =_xlfn.XLOOKUP(X136,'Control panel'!$L$7:$L$36,'Control panel'!$P$7:$P$36) -> 0.75 | Z136: 0.8265335346 | AA136: =_xlfn.XLOOKUP(W136,'BBM Costs'!$Q$6:$U$6,_xlfn.XLOOKUP(X136,'BBM Costs'!$P$7:$P$36,'BBM Costs'!$Q$7:$U$36))*_xlfn.XLOOKUP(X136,'Control panel'!$L$7:$L$36,'Control panel'!$M$7:$M$36) -> 0.4022898896 | AB136: =_xlfn.XLOOKUP(W136,'BBM Costs'!$X$6:$AB$6,_xlfn.XLOOKUP(X136,'BBM Costs'!$W$7:$W$36,'BBM Costs'!$X$7:$AB$36))*_xlfn.XLOOKUP(X136,'Control panel'!$S$7:$S$36,'Control panel'!$T$7:$T$36) -> 4.235655517 | AC136: 5.464478941
W137: 2029-30 | X137: ='PTRM Data'!B15 -> Zone Transformers | Y137: =_xlfn.XLOOKUP(X137,'Control panel'!$L$7:$L$36,'Control panel'!$P$7:$P$36) -> 1 | Z137: 4.534732391 | AA137: =_xlfn.XLOOKUP(W137,'BBM Costs'!$Q$6:$U$6,_xlfn.XLOOKUP(X137,'BBM Costs'!$P$7:$P$36,'BBM Costs'!$Q$7:$U$36))*_xlfn.XLOOKUP(X137,'Control panel'!$L$7:$L$36,'Control panel'!$M$7:$M$36) -> 0 | AB137: =_xlfn.XLOOKUP(W137,'BBM Costs'!$X$6:$AB$6,_xlfn.XLOOKUP(X137,'BBM Costs'!$W$7:$W$36,'BBM Costs'!$X$7:$AB$36))*_xlfn.XLOOKUP(X137,'Control panel'!$S$7:$S$36,'Control panel'!$T$7:$T$36) -> 0 | AC137: 4.534732391
W138: 2029-30 | X138: ='PTRM Data'!B16 -> Distribution Transformers | Y138: =_xlfn.XLOOKUP(X138,'Control panel'!$L$7:$L$36,'Control panel'!$P$7:$P$36) -> 0.2 | Z138: =SUMPRODUCT(_xlfn.XLOOKUP(W138,$AZ$9:$AZ$13,$BA$9:$BS$13),_xlfn.XLOOKUP(X138,$AE$9:$AE$38,$AF$9:$AX$38)) -> 7.549124778 | AA138: =_xlfn.XLOOKUP(W138,'BBM Costs'!$Q$6:$U$6,_xlfn.XLOOKUP(X138,'BBM Costs'!$P$7:$P$36,'BBM Costs'!$Q$7:$U$36))*_xlfn.XLOOKUP(X138,'Control panel'!$L$7:$L$36,'Control panel'!$M$7:$M$36) -> 9.09364435 | AB138: =_xlfn.XLOOKUP(W138,'BBM Costs'!$X$6:$AB$6,_xlfn.XLOOKUP(X138,'BBM Costs'!$W$7:$W$36,'BBM Costs'!$X$7:$AB$36))*_xlfn.XLOOKUP(X138,'Control panel'!$S$7:$S$36,'Control panel'!$T$7:$T$36) -> 32.98053269 | AC138: =SUM(Z138:AB138) -> 49.62330182
W139: 2029-30 | X139: ='PTRM Data'!B17 -> Low Voltage Services | Y139: =_xlfn.XLOOKUP(X139,'Control panel'!$L$7:$L$36,'Control panel'!$P$7:$P$36) -> 0 | Z139: 3.613905135 | AA139: =_xlfn.XLOOKUP(W139,'BBM Costs'!$Q$6:$U$6,_xlfn.XLOOKUP(X139,'BBM Costs'!$P$7:$P$36,'BBM Costs'!$Q$7:$U$36))*_xlfn.XLOOKUP(X139,'Control panel'!$L$7:$L$36,'Control panel'!$M$7:$M$36) -> 0 | AB139: =_xlfn.XLOOKUP(W139,'BBM Costs'!$X$6:$AB$6,_xlfn.XLOOKUP(X139,'BBM Costs'!$W$7:$W$36,'BBM Costs'!$X$7:$AB$36))*_xlfn.XLOOKUP(X139,'Control panel'!$S$7:$S$36,'Control panel'!$T$7:$T$36) -> 0 | AC139: 3.613905135
W140: 2029-30 | X140: ='PTRM Data'!B18 -> Load Control & Network Metering Devices | Y140: =_xlfn.XLOOKUP(X140,'Control panel'!$L$7:$L$36,'Control panel'!$P$7:$P$36) -> 0 | Z140: 0.393946079 | AA140: =_xlfn.XLOOKUP(W140,'BBM Costs'!$Q$6:$U$6,_xlfn.XLOOKUP(X140,'BBM Costs'!$P$7:$P$36,'BBM Costs'!$Q$7:$U$36))*_xlfn.XLOOKUP(X140,'Control panel'!$L$7:$L$36,'Control panel'!$M$7:$M$36) -> 0 | AB140: =_xlfn.XLOOKUP(W140,'BBM Costs'!$X$6:$AB$6,_xlfn.XLOOKUP(X140,'BBM Costs'!$W$7:$W$36,'BBM Costs'!$X$7:$AB$36))*_xlfn.XLOOKUP(X140,'Control panel'!$S$7:$S$36,'Control panel'!$T$7:$T$36) -> 0 | AC140: 0.393946079
W141: 2029-30 | X141: ='PTRM Data'!B19 -> Communications - Pilot Wires | Y141: =_xlfn.XLOOKUP(X141,'Control panel'!$L$7:$L$36,'Control panel'!$P$7:$P$36) -> 1 | Z141: 2.186741885 | AA141: =_xlfn.XLOOKUP(W141,'BBM Costs'!$Q$6:$U$6,_xlfn.XLOOKUP(X141,'BBM Costs'!$P$7:$P$36,'BBM Costs'!$Q$7:$U$36))*_xlfn.XLOOKUP(X141,'Control panel'!$L$7:$L$36,'Control panel'!$M$7:$M$36) -> 0 | AB141: =_xlfn.XLOOKUP(W141,'BBM Costs'!$X$6:$AB$6,_xlfn.XLOOKUP(X141,'BBM Costs'!$W$7:$W$36,'BBM Costs'!$X$7:$AB$36))*_xlfn.XLOOKUP(X141,'Control panel'!$S$7:$S$36,'Control panel'!$T$7:$T$36) -> 0 | AC141: 2.186741885
W142: 2029-30 | X142: ='PTRM Data'!B20 -> Streetlighting (Residual Rate 2 Assets) | Y142: =_xlfn.XLOOKUP(X142,'Control panel'!$L$7:$L$36,'Control panel'!$P$7:$P$36) -> 1 | Z142: 0 | AA142: =_xlfn.XLOOKUP(W142,'BBM Costs'!$Q$6:$U$6,_xlfn.XLOOKUP(X142,'BBM Costs'!$P$7:$P$36,'BBM Costs'!$Q$7:$U$36))*_xlfn.XLOOKUP(X142,'Control panel'!$L$7:$L$36,'Control panel'!$M$7:$M$36) -> 0 | AB142: =_xlfn.XLOOKUP(W142,'BBM Costs'!$X$6:$AB$6,_xlfn.XLOOKUP(X142,'BBM Costs'!$W$7:$W$36,'BBM Costs'!$X$7:$AB$36))*_xlfn.XLOOKUP(X142,'Control panel'!$S$7:$S$36,'Control panel'!$T$7:$T$36) -> 0 | AC142: 0
W143: 2029-30 | X143: ='PTRM Data'!B21 -> Systems Buildings | Y143: =_xlfn.XLOOKUP(X143,'Control panel'!$L$7:$L$36,'Control panel'!$P$7:$P$36) -> 1 | Z143: 1.382102417 | AA143: =_xlfn.XLOOKUP(W143,'BBM Costs'!$Q$6:$U$6,_xlfn.XLOOKUP(X143,'BBM Costs'!$P$7:$P$36,'BBM Costs'!$Q$7:$U$36))*_xlfn.XLOOKUP(X143,'Control panel'!$L$7:$L$36,'Control panel'!$M$7:$M$36) -> 0 | AB143: =_xlfn.XLOOKUP(W143,'BBM Costs'!$X$6:$AB$6,_xlfn.XLOOKUP(X143,'BBM Costs'!$W$7:$W$36,'BBM Costs'!$X$7:$AB$36))*_xlfn.XLOOKUP(X143,'Control panel'!$S$7:$S$36,'Control panel'!$T$7:$T$36) -> 0 | AC143: 1.382102417
W144: 2029-30 | X144: ='PTRM Data'!B22 -> Systems Easements | Y144: =_xlfn.XLOOKUP(X144,'Control panel'!$L$7:$L$36,'Control panel'!$P$7:$P$36) -> 1 | Z144: 0.7856315958 | AA144: =_xlfn.XLOOKUP(W144,'BBM Costs'!$Q$6:$U$6,_xlfn.XLOOKUP(X144,'BBM Costs'!$P$7:$P$36,'BBM Costs'!$Q$7:$U$36))*_xlfn.XLOOKUP(X144,'Control panel'!$L$7:$L$36,'Control panel'!$M$7:$M$36) -> 0 | AB144: =_xlfn.XLOOKUP(W144,'BBM Costs'!$X$6:$AB$6,_xlfn.XLOOKUP(X144,'BBM Costs'!$W$7:$W$36,'BBM Costs'!$X$7:$AB$36))*_xlfn.XLOOKUP(X144,'Control panel'!$S$7:$S$36,'Control panel'!$T$7:$T$36) -> 0 | AC144: 0.7856315958
W145: 2029-30 | X145: ='PTRM Data'!B23 -> System Land | Y145: =_xlfn.XLOOKUP(X145,'Control panel'!$L$7:$L$36,'Control panel'!$P$7:$P$36) -> 1 | Z145: 0 | AA145: =_xlfn.XLOOKUP(W145,'BBM Costs'!$Q$6:$U$6,_xlfn.XLOOKUP(X145,'BBM Costs'!$P$7:$P$36,'BBM Costs'!$Q$7:$U$36))*_xlfn.XLOOKUP(X145,'Control panel'!$L$7:$L$36,'Control panel'!$M$7:$M$36) -> 0 | AB145: =_xlfn.XLOOKUP(W145,'BBM Costs'!$X$6:$AB$6,_xlfn.XLOOKUP(X145,'BBM Costs'!$W$7:$W$36,'BBM Costs'!$X$7:$AB$36))*_xlfn.XLOOKUP(X145,'Control panel'!$S$7:$S$36,'Control panel'!$T$7:$T$36) -> 0 | AC145: 0
W146: 2029-30 | X146: ='PTRM Data'!B24 -> Control Centre - SCADA | Y146: =_xlfn.XLOOKUP(X146,'Control panel'!$L$7:$L$36,'Control panel'!$P$7:$P$36) -> 1 | Z146: 0.006015072767 | AA146: =_xlfn.XLOOKUP(W146,'BBM Costs'!$Q$6:$U$6,_xlfn.XLOOKUP(X146,'BBM Costs'!$P$7:$P$36,'BBM Costs'!$Q$7:$U$36))*_xlfn.XLOOKUP(X146,'Control panel'!$L$7:$L$36,'Control panel'!$M$7:$M$36) -> 0 | AB146: =_xlfn.XLOOKUP(W146,'BBM Costs'!$X$6:$AB$6,_xlfn.XLOOKUP(X146,'BBM Costs'!$W$7:$W$36,'BBM Costs'!$X$7:$AB$36))*_xlfn.XLOOKUP(X146,'Control panel'!$S$7:$S$36,'Control panel'!$T$7:$T$36) -> 0 | AC146: 0.006015072767
W147: 2029-30 | X147: ='PTRM Data'!B25 -> Motor Vehicles | Y147: =_xlfn.XLOOKUP(X147,'Control panel'!$L$7:$L$36,'Control panel'!$P$7:$P$36) -> 1 | Z147: 0 | AA147: =_xlfn.XLOOKUP(W147,'BBM Costs'!$Q$6:$U$6,_xlfn.XLOOKUP(X147,'BBM Costs'!$P$7:$P$36,'BBM Costs'!$Q$7:$U$36))*_xlfn.XLOOKUP(X147,'Control panel'!$L$7:$L$36,'Control panel'!$M$7:$M$36) -> 0 | AB147: =_xlfn.XLOOKUP(W147,'BBM Costs'!$X$6:$AB$6,_xlfn.XLOOKUP(X147,'BBM Costs'!$W$7:$W$36,'BBM Costs'!$X$7:$AB$36))*_xlfn.XLOOKUP(X147,'Control panel'!$S$7:$S$36,'Control panel'!$T$7:$T$36) -> 0 | AC147: 0
W148: 2029-30 | X148: ='PTRM Data'!B26 -> Plant & Equipment | Y148: =_xlfn.XLOOKUP(X148,'Control panel'!$L$7:$L$36,'Control panel'!$P$7:$P$36) -> 1 | Z148: 0 | AA148: =_xlfn.XLOOKUP(W148,'BBM Costs'!$Q$6:$U$6,_xlfn.XLOOKUP(X148,'BBM Costs'!$P$7:$P$36,'BBM Costs'!$Q$7:$U$36))*_xlfn.XLOOKUP(X148,'Control panel'!$L$7:$L$36,'Control panel'!$M$7:$M$36) -> 0 | AB148: =_xlfn.XLOOKUP(W148,'BBM Costs'!$X$6:$AB$6,_xlfn.XLOOKUP(X148,'BBM Costs'!$W$7:$W$36,'BBM Costs'!$X$7:$AB$36))*_xlfn.XLOOKUP(X148,'Control panel'!$S$7:$S$36,'Control panel'!$T$7:$T$36) -> 0 | AC148: 0
W149: 2029-30 | X149: ='PTRM Data'!B27 -> Buildings | Y149: =_xlfn.XLOOKUP(X149,'Control panel'!$L$7:$L$36,'Control panel'!$P$7:$P$36) -> 1 | Z149: 0 | AA149: =_xlfn.XLOOKUP(W149,'BBM Costs'!$Q$6:$U$6,_xlfn.XLOOKUP(X149,'BBM Costs'!$P$7:$P$36,'BBM Costs'!$Q$7:$U$36))*_xlfn.XLOOKUP(X149,'Control panel'!$L$7:$L$36,'Control panel'!$M$7:$M$36) -> 0 | AB149: =_xlfn.XLOOKUP(W149,'BBM Costs'!$X$6:$AB$6,_xlfn.XLOOKUP(X149,'BBM Costs'!$W$7:$W$36,'BBM Costs'!$X$7:$AB$36))*_xlfn.XLOOKUP(X149,'Control panel'!$S$7:$S$36,'Control panel'!$T$7:$T$36) -> 0 | AC149: 0
W150: 2029-30 | X150: ='PTRM Data'!B28 -> Office Equipment & Furniture | Y150: =_xlfn.XLOOKUP(X150,'Control panel'!$L$7:$L$36,'Control panel'!$P$7:$P$36) -> 1 | Z150: 0 | AA150: =_xlfn.XLOOKUP(W150,'BBM Costs'!$Q$6:$U$6,_xlfn.XLOOKUP(X150,'BBM Costs'!$P$7:$P$36,'BBM Costs'!$Q$7:$U$36))*_xlfn.XLOOKUP(X150,'Control panel'!$L$7:$L$36,'Control panel'!$M$7:$M$36) -> 0 | AB150: =_xlfn.XLOOKUP(W150,'BBM Costs'!$X$6:$AB$6,_xlfn.XLOOKUP(X150,'BBM Costs'!$W$7:$W$36,'BBM Costs'!$X$7:$AB$36))*_xlfn.XLOOKUP(X150,'Control panel'!$S$7:$S$36,'Control panel'!$T$7:$T$36) -> 0 | AC150: 0
W151: 2029-30 | X151: ='PTRM Data'!B29 -> Initial Leases (10 yr life) | Y151: =_xlfn.XLOOKUP(X151,'Control panel'!$L$7:$L$36,'Control panel'!$P$7:$P$36) -> 1 | Z151: 0 | AA151: =_xlfn.XLOOKUP(W151,'BBM Costs'!$Q$6:$U$6,_xlfn.XLOOKUP(X151,'BBM Costs'!$P$7:$P$36,'BBM Costs'!$Q$7:$U$36))*_xlfn.XLOOKUP(X151,'Control panel'!$L$7:$L$36,'Control panel'!$M$7:$M$36) -> 0 | AB151: =_xlfn.XLOOKUP(W151,'BBM Costs'!$X$6:$AB$6,_xlfn.XLOOKUP(X151,'BBM Costs'!$W$7:$W$36,'BBM Costs'!$X$7:$AB$36))*_xlfn.XLOOKUP(X151,'Control panel'!$S$7:$S$36,'Control panel'!$T$7:$T$36) -> 0 | AC151: 0
W152: 2029-30 | X152: ='PTRM Data'!B30 -> Lease Extensions (5yr Life) | Y152: =_xlfn.XLOOKUP(X152,'Control panel'!$L$7:$L$36,'Control panel'!$P$7:$P$36) -> 1 | Z152: 0 | AA152: =_xlfn.XLOOKUP(W152,'BBM Costs'!$Q$6:$U$6,_xlfn.XLOOKUP(X152,'BBM Costs'!$P$7:$P$36,'BBM Costs'!$Q$7:$U$36))*_xlfn.XLOOKUP(X152,'Control panel'!$L$7:$L$36,'Control panel'!$M$7:$M$36) -> 0 | AB152: =_xlfn.XLOOKUP(W152,'BBM Costs'!$X$6:$AB$6,_xlfn.XLOOKUP(X152,'BBM Costs'!$W$7:$W$36,'BBM Costs'!$X$7:$AB$36))*_xlfn.XLOOKUP(X152,'Control panel'!$S$7:$S$36,'Control panel'!$T$7:$T$36) -> 0 | AC152: 0
W153: 2029-30 | X153: ='PTRM Data'!B31 -> Land | Y153: =_xlfn.XLOOKUP(X153,'Control panel'!$L$7:$L$36,'Control panel'!$P$7:$P$36) -> 1 | Z153: 0 | AA153: =_xlfn.XLOOKUP(W153,'BBM Costs'!$Q$6:$U$6,_xlfn.XLOOKUP(X153,'BBM Costs'!$P$7:$P$36,'BBM Costs'!$Q$7:$U$36))*_xlfn.XLOOKUP(X153,'Control panel'!$L$7:$L$36,'Control panel'!$M$7:$M$36) -> 0 | AB153: =_xlfn.XLOOKUP(W153,'BBM Costs'!$X$6:$AB$6,_xlfn.XLOOKUP(X153,'BBM Costs'!$W$7:$W$36,'BBM Costs'!$X$7:$AB$36))*_xlfn.XLOOKUP(X153,'Control panel'!$S$7:$S$36,'Control panel'!$T$7:$T$36) -> 0 | AC153: 0
W154: 2029-30 | X154: ='PTRM Data'!B32 -> In-house software | Y154: =_xlfn.XLOOKUP(X154,'Control panel'!$L$7:$L$36,'Control panel'!$P$7:$P$36) -> 1 | Z154: 0 | AA154: =_xlfn.XLOOKUP(W154,'BBM Costs'!$Q$6:$U$6,_xlfn.XLOOKUP(X154,'BBM Costs'!$P$7:$P$36,'BBM Costs'!$Q$7:$U$36))*_xlfn.XLOOKUP(X154,'Control panel'!$L$7:$L$36,'Control panel'!$M$7:$M$36) -> 0 | AB154: =_xlfn.XLOOKUP(W154,'BBM Costs'!$X$6:$AB$6,_xlfn.XLOOKUP(X154,'BBM Costs'!$W$7:$W$36,'BBM Costs'!$X$7:$AB$36))*_xlfn.XLOOKUP(X154,'Control panel'!$S$7:$S$36,'Control panel'!$T$7:$T$36) -> 0 | AC154: 0
W155: 2029-30 | X155: ='PTRM Data'!B33 -> IT Systems | Y155: =_xlfn.XLOOKUP(X155,'Control panel'!$L$7:$L$36,'Control panel'!$P$7:$P$36) -> 1 | Z155: 0 | AA155: =_xlfn.XLOOKUP(W155,'BBM Costs'!$Q$6:$U$6,_xlfn.XLOOKUP(X155,'BBM Costs'!$P$7:$P$36,'BBM Costs'!$Q$7:$U$36))*_xlfn.XLOOKUP(X155,'Control panel'!$L$7:$L$36,'Control panel'!$M$7:$M$36) -> 0 | AB155: =_xlfn.XLOOKUP(W155,'BBM Costs'!$X$6:$AB$6,_xlfn.XLOOKUP(X155,'BBM Costs'!$W$7:$W$36,'BBM Costs'!$X$7:$AB$36))*_xlfn.XLOOKUP(X155,'Control panel'!$S$7:$S$36,'Control panel'!$T$7:$T$36) -> 0 | AC155: 0
W156: 2029-30 | X156: ='PTRM Data'!B34 -> Legacy ICT | Y156: =_xlfn.XLOOKUP(X156,'Control panel'!$L$7:$L$36,'Control panel'!$P$7:$P$36) -> 1 | Z156: 0 | AA156: =_xlfn.XLOOKUP(W156,'BBM Costs'!$Q$6:$U$6,_xlfn.XLOOKUP(X156,'BBM Costs'!$P$7:$P$36,'BBM Costs'!$Q$7:$U$36))*_xlfn.XLOOKUP(X156,'Control panel'!$L$7:$L$36,'Control panel'!$M$7:$M$36) -> 0 | AB156: =_xlfn.XLOOKUP(W156,'BBM Costs'!$X$6:$AB$6,_xlfn.XLOOKUP(X156,'BBM Costs'!$W$7:$W$36,'BBM Costs'!$X$7:$AB$36))*_xlfn.XLOOKUP(X156,'Control panel'!$S$7:$S$36,'Control panel'!$T$7:$T$36) -> 0 | AC156: 0
W157: 2029-30 | X157: ='PTRM Data'!B35 -> Buildings - capital works | Y157: =_xlfn.XLOOKUP(X157,'Control panel'!$L$7:$L$36,'Control panel'!$P$7:$P$36) -> 1 | Z157: 0 | AA157: =_xlfn.XLOOKUP(W157,'BBM Costs'!$Q$6:$U$6,_xlfn.XLOOKUP(X157,'BBM Costs'!$P$7:$P$36,'BBM Costs'!$Q$7:$U$36))*_xlfn.XLOOKUP(X157,'Control panel'!$L$7:$L$36,'Control panel'!$M$7:$M$36) -> 0 | AB157: =_xlfn.XLOOKUP(W157,'BBM Costs'!$X$6:$AB$6,_xlfn.XLOOKUP(X157,'BBM Costs'!$W$7:$W$36,'BBM Costs'!$X$7:$AB$36))*_xlfn.XLOOKUP(X157,'Control panel'!$S$7:$S$36,'Control panel'!$T$7:$T$36) -> 0 | AC157: 0
W158: 2029-30 | X158: ='PTRM Data'!B36 -> Equity raising costs | Y158: =_xlfn.XLOOKUP(X158,'Control panel'!$L$7:$L$36,'Control panel'!$P$7:$P$36) -> 1 | Z158: 0 | AA158: =_xlfn.XLOOKUP(W158,'BBM Costs'!$Q$6:$U$6,_xlfn.XLOOKUP(X158,'BBM Costs'!$P$7:$P$36,'BBM Costs'!$Q$7:$U$36))*_xlfn.XLOOKUP(X158,'Control panel'!$L$7:$L$36,'Control panel'!$M$7:$M$36) -> 0 | AB158: =_xlfn.XLOOKUP(W158,'BBM Costs'!$X$6:$AB$6,_xlfn.XLOOKUP(X158,'BBM Costs'!$W$7:$W$36,'BBM Costs'!$X$7:$AB$36))*_xlfn.XLOOKUP(X158,'Control panel'!$S$7:$S$36,'Control panel'!$T$7:$T$36) -> 0 | AC158: 0

Sheet PTRM Revenue data
B2: PTRM Revenue Data
B4: Smoothed building Block Components | I4: Forecast inflation | P4: Other PTRM Components
B6: Asset class | C6: 2025-26 | D6: 2026-27 | E6: 2027-28 | F6: 2028-29 | G6: 2029-30 | I6: Asset class | J6: 2025-26 | K6: 2026-27 | L6: 2027-28 | M6: 2028-29 | N6: 2029-30 | P6: Asset class | Q6: 2025-26 | R6: 2026-27 | S6: 2027-28 | T6: 2028-29 | U6: 2029-30
B7: Return on Capital | C7: =C17*C$24 -> 886.8748528 | D7: =D17*D$24 -> 928.5534775 | E7: 974.9413701 | F7: 1060.46511 | G7: 1121.482425 | I7: Forecast inflation | J7: ='X-factors'!G10 -> 0.02849702235 | K7: ='X-factors'!H10 -> 0.02849702235 | L7: ='X-factors'!I10 -> 0.02849702235 | M7: ='X-factors'!J10 -> 0.02849702235 | N7: ='X-factors'!K10 -> 0.02849702235 | P7: EBSS | Q7: ='PTRM Input'!G345 -> 0 | R7: ='PTRM Input'!H345 -> 0 | S7: ='PTRM Input'!I345 -> 0 | T7: ='PTRM Input'!J345 -> 0 | U7: ='PTRM Input'!K345 -> 0
B8: Return of Capital (regulatory depreciation) | C8: =C18*C$24 -> 175.7334277 | D8: 204.8866702 | E8: 240.0128046 | F8: 276.4636556 | G8: 294.5014745 | I8: Inflation index | J8: =1+J7 -> 1.028497022 | K8: =1+K7 -> 1.028497022 | L8: 1.028497022 | M8: 1.028497022 | N8: 1.028497022 | P8: CESS | Q8: ='PTRM Input'!G346 -> -12.99592349 | R8: ='PTRM Input'!H346 -> -12.99592349 | S8: ='PTRM Input'!I346 -> -12.99592349 | T8: ='PTRM Input'!J346 -> -12.99592349 | U8: ='PTRM Input'!K346 -> -12.99592349
B9: Operating Expenditure | C9: 499.9591814 | D9: 518.5558633 | E9: 538.0534324 | F9: 577.8037679 | G9: 603.2807595 | P9: Control period carryover | Q9: ='PTRM Input'!G347 -> 0 | R9: ='PTRM Input'!H347 -> 0 | S9: ='PTRM Input'!I347 -> 0 | T9: ='PTRM Input'!J347 -> 0 | U9: ='PTRM Input'!K347 -> 0
B10: Revenue Adjustments | C10: -12.6327675 | D10: -13.15211334 | E10: -13.66754131 | F10: -14.67954807 | G10: -15.34662323 | P10: Shared asset decrements | Q10: ='PTRM Input'!G348 -> 0 | R10: ='PTRM Input'!H348 -> 0 | S10: ='PTRM Input'!I348 -> 0 | T10: ='PTRM Input'!J348 -> 0 | U10: ='PTRM Input'!K348 -> 0
B11: Net Tax Allowance | C11: 13.57938424 | D11: 16.6304204 | E11: 21.56462327 | F11: 30.12271791 | G11: 30.89142693 | P11: DMIA | Q11: ='PTRM Input'!G349 -> 1.453968933 | R11: ='PTRM Input'!H349 -> 1.472391718 | S11: ='PTRM Input'!I349 -> 1.498271818 | T11: ='PTRM Input'!J349 -> 1.521288645 | U11: ='PTRM Input'!K349 -> 1.530844947
B12: Total validation | C12: =SUM(C7:C11) -> 1563.514079 | D12: =SUM(D7:D11) -> 1655.474318 | E12: 1760.904689 | F12: 1930.175703 | G12: 2034.809463
B14: Unsmoothed building block components
B16: Asset class | C16: 2025-26 | D16: 2026-27 | E16: 2027-28 | F16: 2028-29 | G16: 2029-30
B17: Return on Capital | C17: ='X-factors'!G30 -> 922.8362399 | D17: ='X-factors'!H30 -> 953.1225791 | E17: ='X-factors'!I30 -> 988.4323409 | F17: ='X-factors'!J30 -> 1027.685035 | G17: ='X-factors'!K30 -> 1068.396472
B18: Return of Capital (regulatory depreciation) | C18: ='X-factors'!G31 -> 182.8591431 | D18: ='X-factors'!H31 -> 210.3078781 | E18: ='X-factors'!I31 -> 243.3340358 | F18: ='X-factors'!J31 -> 267.9178776 | G18: ='X-factors'!K31 -> 280.5610943
B19: Operating Expenditure | C19: ='X-factors'!G32 -> 520.2317437 | D19: ='X-factors'!H32 -> 532.276615 | E19: ='X-factors'!I32 -> 545.498868 | F19: ='X-factors'!J32 -> 559.9432547 | G19: ='X-factors'!K32 -> 574.7241515
B20: Revenue Adjustments | C20: ='X-factors'!G33 -> -13.14500645 | D20: ='X-factors'!H33 -> -13.50011226 | E20: ='X-factors'!I33 -> -13.85666899 | F20: ='X-factors'!J33 -> -14.22578803 | G20: ='X-factors'!K33 -> -14.62018285
B21: Net Tax Allowance | C21: ='X-factors'!G34 -> 14.13000701 | D21: ='X-factors'!H34 -> 17.07045374 | E21: ='X-factors'!I34 -> 21.8630286 | F21: ='X-factors'!J34 -> 29.19159349 | G21: ='X-factors'!K34 -> 29.42916519
B22: Total unsmoothed | C22: =SUM(C17:C21) -> 1626.912127 | D22: =SUM(D17:D21) -> 1699.277414 | E22: 1785.271604 | F22: 1870.511972 | G22: 1938.4907
B23: Total smoothed | C23: ='X-factors'!G60 -> 1563.514079 | D23: ='X-factors'!H60 -> 1655.474318 | E23: ='X-factors'!I60 -> 1760.904689 | F23: ='X-factors'!J60 -> 1930.175703 | G23: ='X-factors'!K60 -> 2034.809463
B24: Percentage difference | C24: =C23/C22 -> 0.9610316699 | D24: =D23/D22 -> 0.9742225164 | E24: 0.9863511439 | F24: 1.031897006 | G24: 1.049687503

Sheet PTRM Data
B2: PTRM Data
B4: Opening RAB | E4: Capital expenditure | L4: Depreciation | S4: ORAB | Z4: ORAB Split | AG4: Indexation split | AN4: Depreciation split | AU4: Regulatory depreciation Split ($m, nominal)
B6: Asset class | C6: RAB 2025-2026 | E6: Asset class | F6: 2025-26 | G6: 2026-27 | H6: 2027-28 | I6: 2028-29 | J6: 2029-30 | L6: Asset class | M6: 2025-26 | N6: 2026-27 | O6: 2027-28 | P6: 2028-29 | Q6: 2029-30 | S6: Asset class | T6: 2025-26 | U6: 2026-27 | V6: 2027-28 | W6: 2028-29 | X6: 2029-30 | Z6: Asset class | AA6: 2025-26 | AB6: 2026-27 | AC6: 2027-28 | AD6: 2028-29 | AE6: 2029-30 | AG6: Asset class | AH6: 2025-26 | AI6: 2026-27 | AJ6: 2027-28 | AK6: 2028-29 | AL6: 2029-30 | AN6: Asset class | AO6: 2025-26 | AP6: 2026-27 | AQ6: 2027-28 | AR6: 2028-29 | AS6: 2029-30 | AU6: Asset class | AV6: 2025-26 | AW6: 2026-27 | AX6: 2027-28 | AY6: 2028-29 | AZ6: 2029-30
B7: OH Sub-transmission lines | C7: =_xlfn.XLOOKUP(B7,'PTRM Input'!$G$6:$G$58,'PTRM Input'!$J$6:$J$58) -> 776.2799804 | E7: =B7 -> OH Sub-transmission lines | F7: =_xlfn.XLOOKUP($E7,Assets!$C$11:$C$60,Assets!G$11:G$60) -> 26.12393185 | G7: =_xlfn.XLOOKUP($E7,Assets!$C$11:$C$60,Assets!H$11:H$60) -> 26.4007739 | H7: =_xlfn.XLOOKUP($E7,Assets!$C$11:$C$60,Assets!I$11:I$60) -> 33.59033719 | I7: =_xlfn.XLOOKUP($E7,Assets!$C$11:$C$60,Assets!J$11:J$60) -> 31.54140123 | J7: =_xlfn.XLOOKUP($E7,Assets!$C$11:$C$60,Assets!K$11:K$60) -> 48.11141095 | L7: =B7 -> OH Sub-transmission lines | M7: =_xlfn.XLOOKUP($L7,Assets!$C$128:$C$765,Assets!G$128:G$765) -> 24.67551367 | N7: =_xlfn.XLOOKUP($L7,Assets!$C$128:$C$765,Assets!H$128:H$765) -> 25.19240982 | O7: =_xlfn.XLOOKUP($L7,Assets!$C$128:$C$765,Assets!I$128:I$765) -> 25.71478366 | P7: =_xlfn.XLOOKUP($L7,Assets!$C$128:$C$765,Assets!J$128:J$765) -> 26.37941242 | Q7: =_xlfn.XLOOKUP($L7,Assets!$C$128:$C$765,Assets!K$128:K$765) -> 27.00350029 | S7: =B7 -> OH Sub-transmission lines | T7: =_xlfn.XLOOKUP(S7,$B$7:$B$36,C$7:C$36) -> 776.2799804 | U7: =T7+F7-M7 -> 777.7283986 | V7: =U7+G7-N7 -> 778.9367626 | W7: 786.8123162 | X7: =W7+I7-P7 -> 791.974305 | Z7: =B7 -> OH Sub-transmission lines | AA7: =T7/T$39 -> 0.0494576238 | AB7: =U7/U$39 -> 0.04949784696 | AC7: 0.04977607359 | AD7: 0.05060385093 | AE7: 0.05117333449 | AG7: =B7 -> OH Sub-transmission lines | AH7: =T7*'PTRM Revenue data'!J$7 -> 22.12166795 | AI7: =U7*'PTRM Revenue data'!K$7*'PTRM Revenue data'!J$8 -> 22.79452146 | AJ7: =V7*'PTRM Revenue data'!L$7*'PTRM Revenue data'!K$8 -> 22.82993752 | AK7: =W7*'PTRM Revenue data'!M$7*'PTRM Revenue data'!L$8 -> 23.06076293 | AL7: =X7*'PTRM Revenue data'!N$7*'PTRM Revenue data'!M$8 -> 23.21205619 | AN7: =B7 -> OH Sub-transmission lines | AO7: =M7*'PTRM Revenue data'!J$8 -> 25.37869233 | AP7: =N7*'PTRM Revenue data'!K$8 -> 25.91031849 | AQ7: =O7*'PTRM Revenue data'!L$8 -> 26.44757843 | AR7: =P7*'PTRM Revenue data'!M$8 -> 27.13114712 | AS7: =Q7*'PTRM Revenue data'!N$8 -> 27.77301964 | AU7: =B7 -> OH Sub-transmission lines | AV7: =AO7-AH7 -> 3.257024378 | AW7: =AP7-AI7 -> 3.115797034 | AX7: 3.617640907 | AY7: 4.070384194 | AZ7: 4.560963456
B8: UG Sub-transmission cables | C8: =_xlfn.XLOOKUP(B8,'PTRM Input'!$G$6:$G$58,'PTRM Input'!$J$6:$J$58) -> 863.6561033 | E8: =B8 -> UG Sub-transmission cables | F8: =_xlfn.XLOOKUP($E8,Assets!$C$11:$C$60,Assets!G$11:G$60) -> 4.075350477 | G8: =_xlfn.XLOOKUP($E8,Assets!$C$11:$C$60,Assets!H$11:H$60) -> 6.254515209 | H8: =_xlfn.XLOOKUP($E8,Assets!$C$11:$C$60,Assets!I$11:I$60) -> 12.36040519 | I8: =_xlfn.XLOOKUP($E8,Assets!$C$11:$C$60,Assets!J$11:J$60) -> 12.27561926 | J8: =_xlfn.XLOOKUP($E8,Assets!$C$11:$C$60,Assets!K$11:K$60) -> 13.56387866 | L8: =B8 -> UG Sub-transmission cables | M8: =_xlfn.XLOOKUP($L8,Assets!$C$128:$C$765,Assets!G$128:G$765) -> 36.61413108 | N8: =_xlfn.XLOOKUP($L8,Assets!$C$128:$C$765,Assets!H$128:H$765) -> 36.70469442 | O8: =_xlfn.XLOOKUP($L8,Assets!$C$128:$C$765,Assets!I$128:I$765) -> 36.84368365 | P8: =_xlfn.XLOOKUP($L8,Assets!$C$128:$C$765,Assets!J$128:J$765) -> 37.11835932 | Q8: =_xlfn.XLOOKUP($L8,Assets!$C$128:$C$765,Assets!K$128:K$765) -> 37.39115086 | S8: =B8 -> UG Sub-transmission cables | T8: =_xlfn.XLOOKUP(S8,$B$7:$B$36,C$7:C$36) -> 863.6561033 | U8: =T8+F8-M8 -> 831.1173227 | V8: 800.6671435 | W8: 776.1838651 | X8: =W8+I8-P8 -> 751.341125 | Z8: =B8 -> UG Sub-transmission cables | AA8: =T8/T$39 -> 0.05502444959 | AB8: =U8/U$39 -> 0.05289573857 | AC8: =V8/V$39 -> 0.05116470112 | AD8: =W8/W$39 -> 0.04992028187 | AE8: =X8/X$39 -> 0.04854782594 | AG8: =B8 -> UG Sub-transmission cables | AH8: =T8*'PTRM Revenue data'!J$7 -> 24.61162728 | AI8: =U8*'PTRM Revenue data'!K$7*'PTRM Revenue data'!J$8 -> 24.35930291 | AJ8: =V8*'PTRM Revenue data'!L$7*'PTRM Revenue data'!K$8 -> 23.46683549 | AK8: =W8*'PTRM Revenue data'!M$7*'PTRM Revenue data'!L$8 -> 22.74925257 | AL8: =X8*'PTRM Revenue data'!N$7*'PTRM Revenue data'!M$8 -> 22.02113415 | AN8: =B8 -> UG Sub-transmission cables | AO8: =M8*'PTRM Revenue data'!J$8 -> 37.65752479 | AP8: =N8*'PTRM Revenue data'!K$8 -> 37.75066892 | AQ8: =O8*'PTRM Revenue data'!L$8 -> 37.89361892 | AR8: =P8*'PTRM Revenue data'!M$8 -> 38.17612203 | AS8: =Q8*'PTRM Revenue data'!N$8 -> 38.45668732 | AU8: =B8 -> UG Sub-transmission cables | AV8: =AO8-AH8 -> 13.04589751 | AW8: =AP8-AI8 -> 13.391366 | AX8: =AQ8-AJ8 -> 14.42678344 | AY8: =AR8-AK8 -> 15.42686947 | AZ8: =AS8-AL8 -> 16.43555317
B9: OH Distribution Lines | C9: =_xlfn.XLOOKUP(B9,'PTRM Input'!$G$6:$G$58,'PTRM Input'!$J$6:$J$58) -> 3141.508355 | E9: OH Distribution Lines | F9: =_xlfn.XLOOKUP($E9,Assets!$C$11:$C$60,Assets!G$11:G$60) -> 158.2606021 | G9: =_xlfn.XLOOKUP($E9,Assets!$C$11:$C$60,Assets!H$11:H$60) -> 158.3417765 | H9: =_xlfn.XLOOKUP($E9,Assets!$C$11:$C$60,Assets!I$11:I$60) -> 157.0361171 | I9: =_xlfn.XLOOKUP($E9,Assets!$C$11:$C$60,Assets!J$11:J$60) -> 158.5926806 | J9: =_xlfn.XLOOKUP($E9,Assets!$C$11:$C$60,Assets!K$11:K$60) -> 164.8766835 | L9: OH Distribution Lines | M9: =_xlfn.XLOOKUP($L9,Assets!$C$128:$C$765,Assets!G$128:G$765) -> 111.606782 | N9: =_xlfn.XLOOKUP($L9,Assets!$C$128:$C$765,Assets!H$128:H$765) -> 115.1236843 | O9: =_xlfn.XLOOKUP($L9,Assets!$C$128:$C$765,Assets!I$128:I$765) -> 118.6423904 | P9: =_xlfn.XLOOKUP($L9,Assets!$C$128:$C$765,Assets!J$128:J$765) -> 122.1320819 | Q9: =_xlfn.XLOOKUP($L9,Assets!$C$128:$C$765,Assets!K$128:K$765) -> 125.6563637 | S9: OH Distribution Lines | T9: 3141.508355 | U9: 3188.162175 | V9: 3231.380267 | W9: 3269.773994 | X9: 3306.234593 | Z9: OH Distribution Lines | AA9: 0.200148841 | AB9: 0.2029078065 | AC9: 0.2064935559 | AD9: 0.2102955843 | AE9: 0.2136319924 | AG9: OH Distribution Lines | AH9: =T9*'PTRM Revenue data'!J$7 -> 89.52363381 | AI9: =U9*'PTRM Revenue data'!K$7*'PTRM Revenue data'!J$8 -> 93.4421724 | AJ9: =V9*'PTRM Revenue data'!L$7*'PTRM Revenue data'!K$8 -> 94.7088559 | AK9: =W9*'PTRM Revenue data'!M$7*'PTRM Revenue data'!L$8 -> 95.83414158 | AL9: =X9*'PTRM Revenue data'!N$7*'PTRM Revenue data'!M$8 -> 96.90276901 | AN9: OH Distribution Lines | AO9: =M9*'PTRM Revenue data'!J$8 -> 114.787243 | AP9: =N9*'PTRM Revenue data'!K$8 -> 118.4043665 | AQ9: =O9*'PTRM Revenue data'!L$8 -> 122.0233453 | AR9: =P9*'PTRM Revenue data'!M$8 -> 125.6124826 | AS9: =Q9*'PTRM Revenue data'!N$8 -> 129.2371959 | AU9: OH Distribution Lines | AV9: 25.26360916 | AW9: 24.96219408 | AX9: 27.31448937 | AY9: 29.778341 | AZ9: 32.3344269
B10: UG Distribution Cables | C10: =_xlfn.XLOOKUP(B10,'PTRM Input'!$G$6:$G$58,'PTRM Input'!$J$6:$J$58) -> 2729.584041 | E10: UG Distribution Cables | F10: =_xlfn.XLOOKUP($E10,Assets!$C$11:$C$60,Assets!G$11:G$60) -> 56.67834655 | G10: =_xlfn.XLOOKUP($E10,Assets!$C$11:$C$60,Assets!H$11:H$60) -> 58.57585577 | H10: =_xlfn.XLOOKUP($E10,Assets!$C$11:$C$60,Assets!I$11:I$60) -> 63.91505688 | I10: =_xlfn.XLOOKUP($E10,Assets!$C$11:$C$60,Assets!J$11:J$60) -> 65.43826204 | J10: =_xlfn.XLOOKUP($E10,Assets!$C$11:$C$60,Assets!K$11:K$60) -> 65.4878732 | L10: UG Distribution Cables | M10: =_xlfn.XLOOKUP($L10,Assets!$C$128:$C$765,Assets!G$128:G$765) -> 71.22553115 | N10: =_xlfn.XLOOKUP($L10,Assets!$C$128:$C$765,Assets!H$128:H$765) -> 72.17017026 | O10: =_xlfn.XLOOKUP($L10,Assets!$C$128:$C$765,Assets!I$128:I$765) -> 73.14643453 | P10: =_xlfn.XLOOKUP($L10,Assets!$C$128:$C$765,Assets!J$128:J$765) -> 74.21168547 | Q10: =_xlfn.XLOOKUP($L10,Assets!$C$128:$C$765,Assets!K$128:K$765) -> 75.30232317 | S10: UG Distribution Cables | T10: 2729.584041 | U10: 2715.036857 | V10: 2701.442542 | W10: 2692.211165 | X10: 2683.437741 | Z10: UG Distribution Cables | AA10: 0.1739047046 | AB10: 0.1727961575 | AC10: 0.1726291648 | AD10: 0.1731496186 | AE10: 0.1733900409 | AG10: UG Distribution Cables | AH10: =T10*'PTRM Revenue data'!J$7 -> 77.78501744 | AI10: =U10*'PTRM Revenue data'!K$7*'PTRM Revenue data'!J$8 -> 79.57529389 | AJ10: =V10*'PTRM Revenue data'!L$7*'PTRM Revenue data'!K$8 -> 79.17685673 | AK10: =W10*'PTRM Revenue data'!M$7*'PTRM Revenue data'!L$8 -> 78.90629334 | AL10: =X10*'PTRM Revenue data'!N$7*'PTRM Revenue data'!M$8 -> 78.64915217 | AN10: UG Distribution Cables | AO10: =M10*'PTRM Revenue data'!J$8 -> 73.25524671 | AP10: =N10*'PTRM Revenue data'!K$8 -> 74.22680522 | AQ10: =O10*'PTRM Revenue data'!L$8 -> 75.2308901 | AR10: =P10*'PTRM Revenue data'!M$8 -> 76.32649753 | AS10: =Q10*'PTRM Revenue data'!N$8 -> 77.44821516 | AU10: UG Distribution Cables | AV10: -4.52977073 | AW10: -5.348488673 | AX10: -3.945966627 | AY10: -2.579795804 | AZ10: -1.200937009
B11: Distribution Equipment | C11: =_xlfn.XLOOKUP(B11,'PTRM Input'!$G$6:$G$58,'PTRM Input'!$J$6:$J$58) -> 564.7521574 | E11: Distribution Equipment | F11: =_xlfn.XLOOKUP($E11,Assets!$C$11:$C$60,Assets!G$11:G$60) -> 40.66093526 | G11: =_xlfn.XLOOKUP($E11,Assets!$C$11:$C$60,Assets!H$11:H$60) -> 41.78181244 | H11: =_xlfn.XLOOKUP($E11,Assets!$C$11:$C$60,Assets!I$11:I$60) -> 41.88936746 | I11: =_xlfn.XLOOKUP($E11,Assets!$C$11:$C$60,Assets!J$11:J$60) -> 42.51869697 | J11: =_xlfn.XLOOKUP($E11,Assets!$C$11:$C$60,Assets!K$11:K$60) -> 43.59938601 | L11: Distribution Equipment | M11: =_xlfn.XLOOKUP($L11,Assets!$C$128:$C$765,Assets!G$128:G$765) -> 23.52823708 | N11: =_xlfn.XLOOKUP($L11,Assets!$C$128:$C$765,Assets!H$128:H$765) -> 24.68997809 | O11: =_xlfn.XLOOKUP($L11,Assets!$C$128:$C$765,Assets!I$128:I$765) -> 25.88374416 | P11: =_xlfn.XLOOKUP($L11,Assets!$C$128:$C$765,Assets!J$128:J$765) -> 27.08058323 | Q11: =_xlfn.XLOOKUP($L11,Assets!$C$128:$C$765,Assets!K$128:K$765) -> 28.29540314 | S11: Distribution Equipment | T11: 564.7521574 | U11: 581.8848556 | V11: 598.97669 | W11: 614.9823133 | X11: 630.420427 | Z11: Distribution Equipment | AA11: 0.03598096105 | AB11: 0.03703355514 | AC11: 0.03827615954 | AD11: 0.03955260062 | AE11: 0.04073454805 | AG11: Distribution Equipment | AH11: =T11*'PTRM Revenue data'!J$7 -> 16.09375485 | AI11: =U11*'PTRM Revenue data'!K$7*'PTRM Revenue data'!J$8 -> 17.05452295 | AJ11: =V11*'PTRM Revenue data'!L$7*'PTRM Revenue data'!K$8 -> 17.55546928 | AK11: =W11*'PTRM Revenue data'!M$7*'PTRM Revenue data'!L$8 -> 18.02457974 | AL11: =X11*'PTRM Revenue data'!N$7*'PTRM Revenue data'!M$8 -> 18.477057 | AN11: Distribution Equipment | AO11: =M11*'PTRM Revenue data'!J$8 -> 24.19872178 | AP11: =N11*'PTRM Revenue data'!K$8 -> 25.39356895 | AQ11: =O11*'PTRM Revenue data'!L$8 -> 26.62135379 | AR11: =P11*'PTRM Revenue data'!M$8 -> 27.85229921 | AS11: =Q11*'PTRM Revenue data'!N$8 -> 29.10173788 | AU11: Distribution Equipment | AV11: 8.104966925 | AW11: 8.33904599 | AX11: 9.065884511 | AY11: 9.827719475 | AZ11: 10.62468088
B12: Substation Bays | C12: =_xlfn.XLOOKUP(B12,'PTRM Input'!$G$6:$G$58,'PTRM Input'!$J$6:$J$58) -> 821.7087487 | E12: Substation Bays | F12: =_xlfn.XLOOKUP($E12,Assets!$C$11:$C$60,Assets!G$11:G$60) -> 54.60750819 | G12: =_xlfn.XLOOKUP($E12,Assets!$C$11:$C$60,Assets!H$11:H$60) -> 61.58135746 | H12: =_xlfn.XLOOKUP($E12,Assets!$C$11:$C$60,Assets!I$11:I$60) -> 54.46022167 | I12: =_xlfn.XLOOKUP($E12,Assets!$C$11:$C$60,Assets!J$11:J$60) -> 54.7753742 | J12: =_xlfn.XLOOKUP($E12,Assets!$C$11:$C$60,Assets!K$11:K$60) -> 59.35551041 | L12: Substation Bays | M12: =_xlfn.XLOOKUP($L12,Assets!$C$128:$C$765,Assets!G$128:G$765) -> 36.9772732 | N12: =_xlfn.XLOOKUP($L12,Assets!$C$128:$C$765,Assets!H$128:H$765) -> 38.19077338 | O12: =_xlfn.XLOOKUP($L12,Assets!$C$128:$C$765,Assets!I$128:I$765) -> 39.55924799 | P12: =_xlfn.XLOOKUP($L12,Assets!$C$128:$C$765,Assets!J$128:J$765) -> 40.76947514 | Q12: =_xlfn.XLOOKUP($L12,Assets!$C$128:$C$765,Assets!K$128:K$765) -> 41.98670568 | S12: Substation Bays | T12: 821.7087487 | U12: 839.3389837 | V12: 862.7295678 | W12: 877.6305415 | X12: 891.6364405 | Z12: Substation Bays | AA12: 0.05235193898 | AB12: 0.05341899903 | AC12: 0.05513065054 | AD12: 0.05644482703 | AE12: 0.05761299265 | AG12: Substation Bays | AH12: =T12*'PTRM Revenue data'!J$7 -> 23.41625258 | AI12: =U12*'PTRM Revenue data'!K$7*'PTRM Revenue data'!J$8 -> 24.60027242 | AJ12: =V12*'PTRM Revenue data'!L$7*'PTRM Revenue data'!K$8 -> 25.28582945 | AK12: =W12*'PTRM Revenue data'!M$7*'PTRM Revenue data'!L$8 -> 25.72256362 | AL12: =X12*'PTRM Revenue data'!N$7*'PTRM Revenue data'!M$8 -> 26.13306395 | AN12: Substation Bays | AO12: =M12*'PTRM Revenue data'!J$8 -> 38.03101538 | AP12: =N12*'PTRM Revenue data'!K$8 -> 39.27909671 | AQ12: =O12*'PTRM Revenue data'!L$8 -> 40.68656877 | AR12: =P12*'PTRM Revenue data'!M$8 -> 41.93128379 | AS12: =Q12*'PTRM Revenue data'!N$8 -> 43.18320177 | AU12: Substation Bays | AV12: 14.6147628 | AW12: 14.67882429 | AX12: 15.40073932 | AY12: 16.20872017 | AZ12: 17.05013782
B13: Substation Establishment | C13: =_xlfn.XLOOKUP(B13,'PTRM Input'!$G$6:$G$58,'PTRM Input'!$J$6:$J$58) -> 592.2099205 | E13: Substation Establishment | F13: =_xlfn.XLOOKUP($E13,Assets!$C$11:$C$60,Assets!G$11:G$60) -> 11.21533174 | G13: =_xlfn.XLOOKUP($E13,Assets!$C$11:$C$60,Assets!H$11:H$60) -> 8.411744535 | H13: =_xlfn.XLOOKUP($E13,Assets!$C$11:$C$60,Assets!I$11:I$60) -> 5.100500828 | I13: =_xlfn.XLOOKUP($E13,Assets!$C$11:$C$60,Assets!J$11:J$60) -> 4.949146935 | J13: =_xlfn.XLOOKUP($E13,Assets!$C$11:$C$60,Assets!K$11:K$60) -> 7.817196131 | L13: Substation Establishment | M13: =_xlfn.XLOOKUP($L13,Assets!$C$128:$C$765,Assets!G$128:G$765) -> 18.63612424 | N13: =_xlfn.XLOOKUP($L13,Assets!$C$128:$C$765,Assets!H$128:H$765) -> 18.83093632 | O13: =_xlfn.XLOOKUP($L13,Assets!$C$128:$C$765,Assets!I$128:I$765) -> 18.97704965 | P13: =_xlfn.XLOOKUP($L13,Assets!$C$128:$C$765,Assets!J$128:J$765) -> 19.06564616 | Q13: =_xlfn.XLOOKUP($L13,Assets!$C$128:$C$765,Assets!K$128:K$765) -> 19.15161362 | S13: Substation Establishment | T13: 592.2099205 | U13: 584.789128 | V13: 574.3699362 | W13: 560.4933874 | X13: 546.3768881 | Z13: Substation Establishment | AA13: 0.03773032436 | AB13: 0.03721839503 | AC13: 0.03670372433 | AD13: 0.03604814419 | AE13: 0.03530408383 | AG13: Substation Establishment | AH13: =T13*'PTRM Revenue data'!J$7 -> 16.87621934 | AI13: =U13*'PTRM Revenue data'!K$7*'PTRM Revenue data'!J$8 -> 17.13964457 | AJ13: =V13*'PTRM Revenue data'!L$7*'PTRM Revenue data'!K$8 -> 16.83426741 | AK13: =W13*'PTRM Revenue data'!M$7*'PTRM Revenue data'!L$8 -> 16.42755822 | AL13: =X13*'PTRM Revenue data'!N$7*'PTRM Revenue data'!M$8 -> 16.01381629 | AN13: Substation Establishment | AO13: =M13*'PTRM Revenue data'!J$8 -> 19.16719829 | AP13: =N13*'PTRM Revenue data'!K$8 -> 19.36756193 | AQ13: =O13*'PTRM Revenue data'!L$8 -> 19.51783906 | AR13: =P13*'PTRM Revenue data'!M$8 -> 19.6089603 | AS13: =Q13*'PTRM Revenue data'!N$8 -> 19.69737759 | AU13: Substation Establishment | AV13: 2.290978944 | AW13: 2.227917363 | AX13: 2.683571652 | AY13: 3.181402087 | AZ13: 3.683561293
B14: Distribution Substation Switchgear | C14: =_xlfn.XLOOKUP(B14,'PTRM Input'!$G$6:$G$58,'PTRM Input'!$J$6:$J$58) -> 197.8529958 | E14: Distribution Substation Switchgear | F14: =_xlfn.XLOOKUP($E14,Assets!$C$11:$C$60,Assets!G$11:G$60) -> 14.20559541 | G14: =_xlfn.XLOOKUP($E14,Assets!$C$11:$C$60,Assets!H$11:H$60) -> 14.91592726 | H14: =_xlfn.XLOOKUP($E14,Assets!$C$11:$C$60,Assets!I$11:I$60) -> 14.84673736 | I14: =_xlfn.XLOOKUP($E14,Assets!$C$11:$C$60,Assets!J$11:J$60) -> 14.6421348 | J14: =_xlfn.XLOOKUP($E14,Assets!$C$11:$C$60,Assets!K$11:K$60) -> 15.10921265 | L14: Distribution Substation Switchgear | M14: =_xlfn.XLOOKUP($L14,Assets!$C$128:$C$765,Assets!G$128:G$765) -> 6.746286064 | N14: =_xlfn.XLOOKUP($L14,Assets!$C$128:$C$765,Assets!H$128:H$765) -> 7.061965962 | O14: =_xlfn.XLOOKUP($L14,Assets!$C$128:$C$765,Assets!I$128:I$765) -> 7.393431012 | P14: =_xlfn.XLOOKUP($L14,Assets!$C$128:$C$765,Assets!J$128:J$765) -> 7.723358509 | Q14: =_xlfn.XLOOKUP($L14,Assets!$C$128:$C$765,Assets!K$128:K$765) -> 8.048739282 | S14: Distribution Substation Switchgear | T14: 197.8529958 | U14: 205.3123052 | V14: 213.1662665 | W14: 220.6195728 | X14: 227.5383491 | Z14: Distribution Substation Switchgear | AA14: 0.01260542495 | AB14: 0.01306692295 | AC14: 0.01362187571 | AD14: 0.01418915254 | AE14: 0.01470236594 | AG14: Distribution Substation Switchgear | AH14: =T14*'PTRM Revenue data'!J$7 -> 5.638221244 | AI14: =U14*'PTRM Revenue data'!K$7*'PTRM Revenue data'!J$8 -> 6.017519424 | AJ14: =V14*'PTRM Revenue data'!L$7*'PTRM Revenue data'!K$8 -> 6.247711982 | AK14: =W14*'PTRM Revenue data'!M$7*'PTRM Revenue data'!L$8 -> 6.466161703 | AL14: =X14*'PTRM Revenue data'!N$7*'PTRM Revenue data'!M$8 -> 6.668944827 | AN14: Distribution Substation Switchgear | AO14: =M14*'PTRM Revenue data'!J$8 -> 6.938535129 | AP14: =N14*'PTRM Revenue data'!K$8 -> 7.263210964 | AQ14: =O14*'PTRM Revenue data'!L$8 -> 7.604121781 | AR14: =P14*'PTRM Revenue data'!M$8 -> 7.943451229 | AS14: =Q14*'PTRM Revenue data'!N$8 -> 8.278104386 | AU14: Distribution Substation Switchgear | AV14: 1.300313885 | AW14: 1.24569154 | AX14: 1.356409799 | AY14: 1.477289526 | AZ14: 1.609159558
B15: Zone Transformers | C15: =_xlfn.XLOOKUP(B15,'PTRM Input'!$G$6:$G$58,'PTRM Input'!$J$6:$J$58) -> 1085.509966 | E15: Zone Transformers | F15: =_xlfn.XLOOKUP($E15,Assets!$C$11:$C$60,Assets!G$11:G$60) -> 11.71309208 | G15: =_xlfn.XLOOKUP($E15,Assets!$C$11:$C$60,Assets!H$11:H$60) -> 16.39859139 | H15: =_xlfn.XLOOKUP($E15,Assets!$C$11:$C$60,Assets!I$11:I$60) -> 20.51629411 | I15: =_xlfn.XLOOKUP($E15,Assets!$C$11:$C$60,Assets!J$11:J$60) -> 23.52842644 | J15: =_xlfn.XLOOKUP($E15,Assets!$C$11:$C$60,Assets!K$11:K$60) -> 22.88581045 | L15: Zone Transformers | M15: =_xlfn.XLOOKUP($L15,Assets!$C$128:$C$765,Assets!G$128:G$765) -> 33.66582418 | N15: =_xlfn.XLOOKUP($L15,Assets!$C$128:$C$765,Assets!H$128:H$765) -> 33.90008602 | O15: =_xlfn.XLOOKUP($L15,Assets!$C$128:$C$765,Assets!I$128:I$765) -> 34.22805784 | P15: =_xlfn.XLOOKUP($L15,Assets!$C$128:$C$765,Assets!J$128:J$765) -> 34.63838373 | Q15: =_xlfn.XLOOKUP($L15,Assets!$C$128:$C$765,Assets!K$128:K$765) -> 35.10895226 | S15: Zone Transformers | T15: 1085.509966 | U15: 1063.557234 | V15: 1046.055739 | W15: 1032.343975 | X15: 1021.234018 | Z15: Zone Transformers | AA15: 0.06915899529 | AB15: 0.06768917437 | AC15: 0.06684566698 | AD15: 0.06639522482 | AE15: 0.06598692617 | AG15: Zone Transformers | AH15: =T15*'PTRM Revenue data'!J$7 -> 30.93380175 | AI15: =U15*'PTRM Revenue data'!K$7*'PTRM Revenue data'!J$8 -> 31.17190812 | AJ15: =V15*'PTRM Revenue data'!L$7*'PTRM Revenue data'!K$8 -> 30.65895501 | AK15: =W15*'PTRM Revenue data'!M$7*'PTRM Revenue data'!L$8 -> 30.25707552 | AL15: =X15*'PTRM Revenue data'!N$7*'PTRM Revenue data'!M$8 -> 29.93145265 | AN15: Zone Transformers | AO15: =M15*'PTRM Revenue data'!J$8 -> 34.62519992 | AP15: =N15*'PTRM Revenue data'!K$8 -> 34.86613753 | AQ15: =O15*'PTRM Revenue data'!L$8 -> 35.20345557 | AR15: =P15*'PTRM Revenue data'!M$8 -> 35.62547452 | AS15: =Q15*'PTRM Revenue data'!N$8 -> 36.10945285 | AU15: Zone Transformers | AV15: 3.691398165 | AW15: 3.69422941 | AX15: 4.54450056 | AY15: 5.368398999 | AZ15: 6.178000208
B16: Distribution Transformers | C16: =_xlfn.XLOOKUP(B16,'PTRM Input'!$G$6:$G$58,'PTRM Input'!$J$6:$J$58) -> 1807.085727 | E16: Distribution Transformers | F16: =_xlfn.XLOOKUP($E16,Assets!$C$11:$C$60,Assets!G$11:G$60) -> 70.23798222 | G16: =_xlfn.XLOOKUP($E16,Assets!$C$11:$C$60,Assets!H$11:H$60) -> 72.75343928 | H16: =_xlfn.XLOOKUP($E16,Assets!$C$11:$C$60,Assets!I$11:I$60) -> 72.71017272 | I16: =_xlfn.XLOOKUP($E16,Assets!$C$11:$C$60,Assets!J$11:J$60) -> 74.32115421 | J16: =_xlfn.XLOOKUP($E16,Assets!$C$11:$C$60,Assets!K$11:K$60) -> 75.45565846 | L16: Distribution Transformers | M16: =_xlfn.XLOOKUP($L16,Assets!$C$128:$C$765,Assets!G$128:G$765) -> 78.70813602 | N16: =_xlfn.XLOOKUP($L16,Assets!$C$128:$C$765,Assets!H$128:H$765) -> 80.43898821 | O16: =_xlfn.XLOOKUP($L16,Assets!$C$128:$C$765,Assets!I$128:I$765) -> 82.23182802 | P16: =_xlfn.XLOOKUP($L16,Assets!$C$128:$C$765,Assets!J$128:J$765) -> 84.02360162 | Q16: =_xlfn.XLOOKUP($L16,Assets!$C$128:$C$765,Assets!K$128:K$765) -> 85.85507412 | S16: Distribution Transformers | T16: 1807.085727 | U16: 1798.615573 | V16: 1790.930024 | W16: 1781.408369 | X16: 1771.705921 | Z16: Distribution Transformers | AA16: 0.1151313551 | AB16: 0.1144713226 | AC16: 0.1144450602 | AD16: 0.1145713173 | AE16: 0.1144785874 | AG16: Distribution Transformers | AH16: =T16*'PTRM Revenue data'!J$7 -> 51.49656235 | AI16: =U16*'PTRM Revenue data'!K$7*'PTRM Revenue data'!J$8 -> 52.71580843 | AJ16: =V16*'PTRM Revenue data'!L$7*'PTRM Revenue data'!K$8 -> 52.49055189 | AK16: =W16*'PTRM Revenue data'!M$7*'PTRM Revenue data'!L$8 -> 52.21148072 | AL16: =X16*'PTRM Revenue data'!N$7*'PTRM Revenue data'!M$8 -> 51.92711069 | AN16: Distribution Transformers | AO16: =M16*'PTRM Revenue data'!J$8 -> 80.95108353 | AP16: =N16*'PTRM Revenue data'!K$8 -> 82.73125986 | AQ16: =O16*'PTRM Revenue data'!L$8 -> 84.57519026 | AR16: =P16*'PTRM Revenue data'!M$8 -> 86.41802407 | AS16: =Q16*'PTRM Revenue data'!N$8 -> 88.30168809 | AU16: Distribution Transformers | AV16: 29.45452118 | AW16: 30.01545143 | AX16: 32.08463837 | AY16: 34.20654336 | AZ16: 36.3745774
B17: Low Voltage Services | C17: =_xlfn.XLOOKUP(B17,'PTRM Input'!$G$6:$G$58,'PTRM Input'!$J$6:$J$58) -> 601.1732258 | E17: Low Voltage Services | F17: =_xlfn.XLOOKUP($E17,Assets!$C$11:$C$60,Assets!G$11:G$60) -> 10.84535323 | G17: =_xlfn.XLOOKUP($E17,Assets!$C$11:$C$60,Assets!H$11:H$60) -> 11.0920003 | H17: =_xlfn.XLOOKUP($E17,Assets!$C$11:$C$60,Assets!I$11:I$60) -> 11.08803099 | I17: =_xlfn.XLOOKUP($E17,Assets!$C$11:$C$60,Assets!J$11:J$60) -> 11.24900436 | J17: =_xlfn.XLOOKUP($E17,Assets!$C$11:$C$60,Assets!K$11:K$60) -> 11.4103291 | L17: Low Voltage Services | M17: =_xlfn.XLOOKUP($L17,Assets!$C$128:$C$765,Assets!G$128:G$765) -> 24.50335213 | N17: =_xlfn.XLOOKUP($L17,Assets!$C$128:$C$765,Assets!H$128:H$765) -> 24.81321936 | O17: =_xlfn.XLOOKUP($L17,Assets!$C$128:$C$765,Assets!I$128:I$765) -> 25.13013366 | P17: =_xlfn.XLOOKUP($L17,Assets!$C$128:$C$765,Assets!J$128:J$765) -> 25.44693454 | Q17: =_xlfn.XLOOKUP($L17,Assets!$C$128:$C$765,Assets!K$128:K$765) -> 25.76833467 | S17: Low Voltage Services | T17: 601.1732258 | U17: 587.5152269 | V17: 573.7940078 | W17: 559.7519051 | X17: 545.5539749 | Z17: Low Voltage Services | AA17: 0.03830138608 | AB17: 0.03739189522 | AC17: 0.03666692102 | AD17: 0.03600045574 | AE17: 0.03525091138 | AG17: Low Voltage Services | AH17: =T17*'PTRM Revenue data'!J$7 -> 17.13164685 | AI17: =U17*'PTRM Revenue data'!K$7*'PTRM Revenue data'!J$8 -> 17.21954408 | AJ17: =V17*'PTRM Revenue data'!L$7*'PTRM Revenue data'!K$8 -> 16.81738747 | AK17: =W17*'PTRM Revenue data'!M$7*'PTRM Revenue data'!L$8 -> 16.40582604 | AL17: =X17*'PTRM Revenue data'!N$7*'PTRM Revenue data'!M$8 -> 15.98969744 | AN17: Low Voltage Services | AO17: =M17*'PTRM Revenue data'!J$8 -> 25.2016247 | AP17: =N17*'PTRM Revenue data'!K$8 -> 25.52032223 | AQ17: =O17*'PTRM Revenue data'!L$8 -> 25.84626764 | AR17: =P17*'PTRM Revenue data'!M$8 -> 26.17209641 | AS17: =Q17*'PTRM Revenue data'!N$8 -> 26.50265548 | AU17: Low Voltage Services | AV17: 8.069977851 | AW17: 8.300778148 | AX17: 9.028880173 | AY17: 9.766270369 | AZ17: 10.51295803
B18: Load Control & Network Metering Devices | C18: =_xlfn.XLOOKUP(B18,'PTRM Input'!$G$6:$G$58,'PTRM Input'!$J$6:$J$58) -> 65.53294185 | E18: Load Control & Network Metering Devices | F18: =_xlfn.XLOOKUP($E18,Assets!$C$11:$C$60,Assets!G$11:G$60) -> 6.677499138 | G18: =_xlfn.XLOOKUP($E18,Assets!$C$11:$C$60,Assets!H$11:H$60) -> 6.939621961 | H18: =_xlfn.XLOOKUP($E18,Assets!$C$11:$C$60,Assets!I$11:I$60) -> 6.956598654 | I18: =_xlfn.XLOOKUP($E18,Assets!$C$11:$C$60,Assets!J$11:J$60) -> 6.573164379 | J18: =_xlfn.XLOOKUP($E18,Assets!$C$11:$C$60,Assets!K$11:K$60) -> 6.691720012 | L18: Load Control & Network Metering Devices | M18: =_xlfn.XLOOKUP($L18,Assets!$C$128:$C$765,Assets!G$128:G$765) -> 10.04172963 | N18: =_xlfn.XLOOKUP($L18,Assets!$C$128:$C$765,Assets!H$128:H$765) -> 10.48689624 | O18: =_xlfn.XLOOKUP($L18,Assets!$C$128:$C$765,Assets!I$128:I$765) -> 8.226278742 | P18: =_xlfn.XLOOKUP($L18,Assets!$C$128:$C$765,Assets!J$128:J$765) -> 6.6921761 | Q18: =_xlfn.XLOOKUP($L18,Assets!$C$128:$C$765,Assets!K$128:K$765) -> 7.130387058 | S18: Load Control & Network Metering Devices | T18: 65.53294185 | U18: 62.16871136 | V18: 58.62143708 | W18: 57.35175699 | X18: 57.23274527 | Z18: Load Control & Network Metering Devices | AA18: 0.004175173476 | AB18: 0.00395667352 | AC18: 0.003746061434 | AD18: 0.003688579476 | AE18: 0.003698087677 | AG18: Load Control & Network Metering Devices | AH18: =T18*'PTRM Revenue data'!J$7 -> 1.867493709 | AI18: =U18*'PTRM Revenue data'!K$7*'PTRM Revenue data'!J$8 -> 1.822109142 | AJ18: =V18*'PTRM Revenue data'!L$7*'PTRM Revenue data'!K$8 -> 1.718141716 | AK18: =W18*'PTRM Revenue data'!M$7*'PTRM Revenue data'!L$8 -> 1.680928532 | AL18: =X18*'PTRM Revenue data'!N$7*'PTRM Revenue data'!M$8 -> 1.677440405 | AN18: Load Control & Network Metering Devices | AO18: =M18*'PTRM Revenue data'!J$8 -> 10.32788902 | AP18: =N18*'PTRM Revenue data'!K$8 -> 10.78574155 | AQ18: =O18*'PTRM Revenue data'!L$8 -> 8.460703192 | AR18: =P18*'PTRM Revenue data'!M$8 -> 6.882883192 | AS18: =Q18*'PTRM Revenue data'!N$8 -> 7.333581858 | AU18: Load Control & Network Metering Devices | AV18: 8.460395313 | AW18: 8.963632412 | AX18: 6.742561476 | AY18: 5.20195466 | AZ18: 5.656141453
B19: Communications - Pilot Wires | C19: =_xlfn.XLOOKUP(B19,'PTRM Input'!$G$6:$G$58,'PTRM Input'!$J$6:$J$58) -> 523.4553892 | E19: Communications - Pilot Wires | F19: =_xlfn.XLOOKUP($E19,Assets!$C$11:$C$60,Assets!G$11:G$60) -> 3.493437168 | G19: =_xlfn.XLOOKUP($E19,Assets!$C$11:$C$60,Assets!H$11:H$60) -> 3.788645501 | H19: =_xlfn.XLOOKUP($E19,Assets!$C$11:$C$60,Assets!I$11:I$60) -> 3.708340425 | I19: =_xlfn.XLOOKUP($E19,Assets!$C$11:$C$60,Assets!J$11:J$60) -> 2.972734872 | J19: =_xlfn.XLOOKUP($E19,Assets!$C$11:$C$60,Assets!K$11:K$60) -> 3.056496911 | L19: Communications - Pilot Wires | M19: =_xlfn.XLOOKUP($L19,Assets!$C$128:$C$765,Assets!G$128:G$765) -> 23.83064622 | N19: =_xlfn.XLOOKUP($L19,Assets!$C$128:$C$765,Assets!H$128:H$765) -> 23.9499576 | O19: =_xlfn.XLOOKUP($L19,Assets!$C$128:$C$765,Assets!I$128:I$765) -> 24.07935123 | P19: =_xlfn.XLOOKUP($L19,Assets!$C$128:$C$765,Assets!J$128:J$765) -> 24.2060022 | Q19: =_xlfn.XLOOKUP($L19,Assets!$C$128:$C$765,Assets!K$128:K$765) -> 24.30753003 | S19: Communications - Pilot Wires | T19: 523.4553892 | U19: 503.1181801 | V19: 482.956868 | W19: 462.5858572 | X19: 441.3525899 | Z19: Communications - Pilot Wires | AA19: 0.03334989999 | AB19: 0.03202051864 | AC19: 0.03086219287 | AD19: 0.02975121929 | AE19: 0.0285179501 | AG19: Communications - Pilot Wires | AH19: =T19*'PTRM Revenue data'!J$7 -> 14.91691993 | AI19: =U19*'PTRM Revenue data'!K$7*'PTRM Revenue data'!J$8 -> 14.74594238 | AJ19: =V19*'PTRM Revenue data'!L$7*'PTRM Revenue data'!K$8 -> 14.15503241 | AK19: =W19*'PTRM Revenue data'!M$7*'PTRM Revenue data'!L$8 -> 13.55797637 | AL19: =X19*'PTRM Revenue data'!N$7*'PTRM Revenue data'!M$8 -> 12.93564835 | AN19: Communications - Pilot Wires | AO19: =M19*'PTRM Revenue data'!J$8 -> 24.50974868 | AP19: =N19*'PTRM Revenue data'!K$8 -> 24.63246008 | AQ19: =O19*'PTRM Revenue data'!L$8 -> 24.76554104 | AR19: =P19*'PTRM Revenue data'!M$8 -> 24.89580119 | AS19: =Q19*'PTRM Revenue data'!N$8 -> 25.00022226 | AU19: Communications - Pilot Wires | AV19: 9.592828756 | AW19: 9.886517701 | AX19: 10.61050863 | AY19: 11.33782482 | AZ19: 12.06457391
B20: Streetlighting (Residual Rate 2 Assets) | C20: =_xlfn.XLOOKUP(B20,'PTRM Input'!$G$6:$G$58,'PTRM Input'!$J$6:$J$58) -> -0.2074241539 | E20: Streetlighting (Residual Rate 2 Assets) | F20: =_xlfn.XLOOKUP($E20,Assets!$C$11:$C$60,Assets!G$11:G$60) -> 0 | G20: =_xlfn.XLOOKUP($E20,Assets!$C$11:$C$60,Assets!H$11:H$60) -> 0 | H20: =_xlfn.XLOOKUP($E20,Assets!$C$11:$C$60,Assets!I$11:I$60) -> 0 | I20: =_xlfn.XLOOKUP($E20,Assets!$C$11:$C$60,Assets!J$11:J$60) -> 0 | J20: =_xlfn.XLOOKUP($E20,Assets!$C$11:$C$60,Assets!K$11:K$60) -> 0 | L20: Streetlighting (Residual Rate 2 Assets) | M20: =_xlfn.XLOOKUP($L20,Assets!$C$128:$C$765,Assets!G$128:G$765) -> -0.2074241539 | N20: =_xlfn.XLOOKUP($L20,Assets!$C$128:$C$765,Assets!H$128:H$765) -> 0 | O20: =_xlfn.XLOOKUP($L20,Assets!$C$128:$C$765,Assets!I$128:I$765) -> 0 | P20: =_xlfn.XLOOKUP($L20,Assets!$C$128:$C$765,Assets!J$128:J$765) -> 0 | Q20: =_xlfn.XLOOKUP($L20,Assets!$C$128:$C$765,Assets!K$128:K$765) -> 0 | S20: Streetlighting (Residual Rate 2 Assets) | T20: -0.2074241539 | U20: 0 | V20: 0 | W20: 0 | X20: 0 | Z20: Streetlighting (Residual Rate 2 Assets) | AA20: -1.321521362e-05 | AB20: 0 | AC20: 0 | AD20: 0 | AE20: 0 | AG20: Streetlighting (Residual Rate 2 Assets) | AH20: =T20*'PTRM Revenue data'!J$7 -> -0.005910970751 | AI20: =U20*'PTRM Revenue data'!K$7*'PTRM Revenue data'!J$8 -> 0 | AJ20: =V20*'PTRM Revenue data'!L$7*'PTRM Revenue data'!K$8 -> 0 | AK20: =W20*'PTRM Revenue data'!M$7*'PTRM Revenue data'!L$8 -> 0 | AL20: =X20*'PTRM Revenue data'!N$7*'PTRM Revenue data'!M$8 -> 0 | AN20: Streetlighting (Residual Rate 2 Assets) | AO20: =M20*'PTRM Revenue data'!J$8 -> -0.2133351247 | AP20: =N20*'PTRM Revenue data'!K$8 -> 0 | AQ20: =O20*'PTRM Revenue data'!L$8 -> 0 | AR20: =P20*'PTRM Revenue data'!M$8 -> 0 | AS20: =Q20*'PTRM Revenue data'!N$8 -> 0 | AU20: Streetlighting (Residual Rate 2 Assets) | AV20: -0.2074241539 | AW20: 0 | AX20: 0 | AY20: 0 | AZ20: 0
B21: Systems Buildings | C21: =_xlfn.XLOOKUP(B21,'PTRM Input'!$G$6:$G$58,'PTRM Input'!$J$6:$J$58) -> 330.8433261 | E21: Systems Buildings | F21: =_xlfn.XLOOKUP($E21,Assets!$C$11:$C$60,Assets!G$11:G$60) -> 0.002356510522 | G21: =_xlfn.XLOOKUP($E21,Assets!$C$11:$C$60,Assets!H$11:H$60) -> 0.002072608468 | H21: =_xlfn.XLOOKUP($E21,Assets!$C$11:$C$60,Assets!I$11:I$60) -> 0.003644871245 | I21: =_xlfn.XLOOKUP($E21,Assets!$C$11:$C$60,Assets!J$11:J$60) -> 0.002702748114 | J21: =_xlfn.XLOOKUP($E21,Assets!$C$11:$C$60,Assets!K$11:K$60) -> 0.002168704294 | L21: Systems Buildings | M21: =_xlfn.XLOOKUP($L21,Assets!$C$128:$C$765,Assets!G$128:G$765) -> 6.897945094 | N21: =_xlfn.XLOOKUP($L21,Assets!$C$128:$C$765,Assets!H$128:H$765) -> 6.897945094 | O21: =_xlfn.XLOOKUP($L21,Assets!$C$128:$C$765,Assets!I$128:I$765) -> 6.897945094 | P21: =_xlfn.XLOOKUP($L21,Assets!$C$128:$C$765,Assets!J$128:J$765) -> 6.897945094 | Q21: =_xlfn.XLOOKUP($L21,Assets!$C$128:$C$765,Assets!K$128:K$765) -> 6.897945094 | S21: Systems Buildings | T21: 330.8433261 | U21: 323.9477375 | V21: 317.0518651 | W21: 310.1575648 | X21: 303.2623225 | Z21: Systems Buildings | AA21: 0.02107838045 | AB21: 0.02061737178 | AC21: 0.02026043412 | AD21: 0.01994779041 | AE21: 0.01959526233 | AG21: Systems Buildings | AH21: =T21*'PTRM Revenue data'!J$7 -> 9.42804966 | AI21: =U21*'PTRM Revenue data'!K$7*'PTRM Revenue data'!J$8 -> 9.494617488 | AJ21: =V21*'PTRM Revenue data'!L$7*'PTRM Revenue data'!K$8 -> 9.292505654 | AK21: =W21*'PTRM Revenue data'!M$7*'PTRM Revenue data'!L$8 -> 9.090439901 | AL21: =X21*'PTRM Revenue data'!N$7*'PTRM Revenue data'!M$8 -> 8.888346535 | AN21: Systems Buildings | AO21: =M21*'PTRM Revenue data'!J$8 -> 7.09451599 | AP21: =N21*'PTRM Revenue data'!K$8 -> 7.09451599 | AQ21: =O21*'PTRM Revenue data'!L$8 -> 7.09451599 | AR21: =P21*'PTRM Revenue data'!M$8 -> 7.09451599 | AS21: =Q21*'PTRM Revenue data'!N$8 -> 7.09451599 | AU21: Systems Buildings | AV21: -2.33353367 | AW21: -2.400101499 | AX21: -2.197989664 | AY21: -1.995923911 | AZ21: -1.793830546
B22: Systems Easements | C22: =_xlfn.XLOOKUP(B22,'PTRM Input'!$G$6:$G$58,'PTRM Input'!$J$6:$J$58) -> 215.8475099 | E22: Systems Easements | F22: =_xlfn.XLOOKUP($E22,Assets!$C$11:$C$60,Assets!G$11:G$60) -> 0 | G22: =_xlfn.XLOOKUP($E22,Assets!$C$11:$C$60,Assets!H$11:H$60) -> 0 | H22: =_xlfn.XLOOKUP($E22,Assets!$C$11:$C$60,Assets!I$11:I$60) -> 0 | I22: =_xlfn.XLOOKUP($E22,Assets!$C$11:$C$60,Assets!J$11:J$60) -> 0 | J22: =_xlfn.XLOOKUP($E22,Assets!$C$11:$C$60,Assets!K$11:K$60) -> 0 | L22: Systems Easements | M22: =_xlfn.XLOOKUP($L22,Assets!$C$128:$C$765,Assets!G$128:G$765) -> 0 | N22: =_xlfn.XLOOKUP($L22,Assets!$C$128:$C$765,Assets!H$128:H$765) -> 0 | O22: =_xlfn.XLOOKUP($L22,Assets!$C$128:$C$765,Assets!I$128:I$765) -> 0 | P22: =_xlfn.XLOOKUP($L22,Assets!$C$128:$C$765,Assets!J$128:J$765) -> 0 | Q22: =_xlfn.XLOOKUP($L22,Assets!$C$128:$C$765,Assets!K$128:K$765) -> 0 | S22: Systems Easements | T22: 215.8475099 | U22: 215.8475099 | V22: 215.8475099 | W22: 215.8475099 | X22: 215.8475099 | Z22: Systems Easements | AA22: 0.0137518746 | AB22: 0.01373742689 | AC22: 0.0137932141 | AD22: 0.01388223721 | AE22: 0.01394696362 | AG22: Systems Easements | AH22: =T22*'PTRM Revenue data'!J$7 -> 6.151011314 | AI22: =U22*'PTRM Revenue data'!K$7*'PTRM Revenue data'!J$8 -> 6.326296821 | AJ22: =V22*'PTRM Revenue data'!L$7*'PTRM Revenue data'!K$8 -> 6.326296821 | AK22: =W22*'PTRM Revenue data'!M$7*'PTRM Revenue data'!L$8 -> 6.326296821 | AL22: =X22*'PTRM Revenue data'!N$7*'PTRM Revenue data'!M$8 -> 6.326296821 | AN22: Systems Easements | AO22: =M22*'PTRM Revenue data'!J$8 -> 0 | AP22: =N22*'PTRM Revenue data'!K$8 -> 0 | AQ22: =O22*'PTRM Revenue data'!L$8 -> 0 | AR22: =P22*'PTRM Revenue data'!M$8 -> 0 | AS22: =Q22*'PTRM Revenue data'!N$8 -> 0 | AU22: Systems Easements | AV22: -6.151011314 | AW22: -6.326296821 | AX22: -6.326296821 | AY22: -6.326296821 | AZ22: -6.326296821
B23: System Land | C23: =_xlfn.XLOOKUP(B23,'PTRM Input'!$G$6:$G$58,'PTRM Input'!$J$6:$J$58) -> 348.98315 | E23: System Land | F23: =_xlfn.XLOOKUP($E23,Assets!$C$11:$C$60,Assets!G$11:G$60) -> 0 | G23: =_xlfn.XLOOKUP($E23,Assets!$C$11:$C$60,Assets!H$11:H$60) -> 0 | H23: =_xlfn.XLOOKUP($E23,Assets!$C$11:$C$60,Assets!I$11:I$60) -> 0 | I23: =_xlfn.XLOOKUP($E23,Assets!$C$11:$C$60,Assets!J$11:J$60) -> 0 | J23: =_xlfn.XLOOKUP($E23,Assets!$C$11:$C$60,Assets!K$11:K$60) -> 0 | L23: System Land | M23: =_xlfn.XLOOKUP($L23,Assets!$C$128:$C$765,Assets!G$128:G$765) -> 0 | N23: =_xlfn.XLOOKUP($L23,Assets!$C$128:$C$765,Assets!H$128:H$765) -> 0 | O23: =_xlfn.XLOOKUP($L23,Assets!$C$128:$C$765,Assets!I$128:I$765) -> 0 | P23: =_xlfn.XLOOKUP($L23,Assets!$C$128:$C$765,Assets!J$128:J$765) -> 0 | Q23: =_xlfn.XLOOKUP($L23,Assets!$C$128:$C$765,Assets!K$128:K$765) -> 0 | S23: System Land | T23: 348.98315 | U23: 348.98315 | V23: 348.98315 | W23: 348.98315 | X23: 348.98315 | Z23: System Land | AA23: 0.02223408793 | AB23: 0.02221072881 | AC23: 0.02230092581 | AD23: 0.02244485875 | AE23: 0.02254950868 | AG23: System Land | AH23: =T23*'PTRM Revenue data'!J$7 -> 9.944980625 | AI23: =U23*'PTRM Revenue data'!K$7*'PTRM Revenue data'!J$8 -> 10.22838296 | AJ23: =V23*'PTRM Revenue data'!L$7*'PTRM Revenue data'!K$8 -> 10.22838296 | AK23: =W23*'PTRM Revenue data'!M$7*'PTRM Revenue data'!L$8 -> 10.22838296 | AL23: =X23*'PTRM Revenue data'!N$7*'PTRM Revenue data'!M$8 -> 10.22838296 | AN23: System Land | AO23: =M23*'PTRM Revenue data'!J$8 -> 0 | AP23: =N23*'PTRM Revenue data'!K$8 -> 0 | AQ23: =O23*'PTRM Revenue data'!L$8 -> 0 | AR23: =P23*'PTRM Revenue data'!M$8 -> 0 | AS23: =Q23*'PTRM Revenue data'!N$8 -> 0 | AU23: System Land | AV23: -9.944980625 | AW23: -10.22838296 | AX23: -10.22838296 | AY23: -10.22838296 | AZ23: -10.22838296
B24: Control Centre - SCADA | C24: =_xlfn.XLOOKUP(B24,'PTRM Input'!$G$6:$G$58,'PTRM Input'!$J$6:$J$58) -> 1.439869185 | E24: Control Centre - SCADA | F24: =_xlfn.XLOOKUP($E24,Assets!$C$11:$C$60,Assets!G$11:G$60) -> 25.55551959 | G24: =_xlfn.XLOOKUP($E24,Assets!$C$11:$C$60,Assets!H$11:H$60) -> 30.73284684 | H24: =_xlfn.XLOOKUP($E24,Assets!$C$11:$C$60,Assets!I$11:I$60) -> 27.81027597 | I24: =_xlfn.XLOOKUP($E24,Assets!$C$11:$C$60,Assets!J$11:J$60) -> 30.56178678 | J24: =_xlfn.XLOOKUP($E24,Assets!$C$11:$C$60,Assets!K$11:K$60) -> 22.79721636 | L24: Control Centre - SCADA | M24: =_xlfn.XLOOKUP($L24,Assets!$C$128:$C$765,Assets!G$128:G$765) -> 0.1440691355 | N24: =_xlfn.XLOOKUP($L24,Assets!$C$128:$C$765,Assets!H$128:H$765) -> 2.977275299 | O24: =_xlfn.XLOOKUP($L24,Assets!$C$128:$C$765,Assets!I$128:I$765) -> 6.384464529 | P24: =_xlfn.XLOOKUP($L24,Assets!$C$128:$C$765,Assets!J$128:J$765) -> 9.467643684 | Q24: =_xlfn.XLOOKUP($L24,Assets!$C$128:$C$765,Assets!K$128:K$765) -> 12.85586838 | S24: Control Centre - SCADA | T24: 1.439869185 | U24: 26.85131964 | V24: 54.60689118 | W24: 76.03270263 | X24: 97.12684572 | Z24: Control Centre - SCADA | AA24: 9.173559835e-05 | AB24: 0.001708928866 | AC24: 0.003489521568 | AD24: 0.004890044894 | AE24: 0.006275840684 | AG24: Control Centre - SCADA | AH24: =T24*'PTRM Revenue data'!J$7 -> 0.04103198436 | AI24: =U24*'PTRM Revenue data'!K$7*'PTRM Revenue data'!J$8 -> 0.7869880833 | AJ24: =V24*'PTRM Revenue data'!L$7*'PTRM Revenue data'!K$8 -> 1.600478978 | AK24: =W24*'PTRM Revenue data'!M$7*'PTRM Revenue data'!L$8 -> 2.228450285 | AL24: =X24*'PTRM Revenue data'!N$7*'PTRM Revenue data'!M$8 -> 2.84670069 | AN24: Control Centre - SCADA | AO24: =M24*'PTRM Revenue data'!J$8 -> 0.1481746769 | AP24: =N24*'PTRM Revenue data'!K$8 -> 3.06211878 | AQ24: =O24*'PTRM Revenue data'!L$8 -> 6.566402757 | AR24: =P24*'PTRM Revenue data'!M$8 -> 9.737443337 | AS24: =Q24*'PTRM Revenue data'!N$8 -> 13.22222235 | AU24: Control Centre - SCADA | AV24: 0.1071426925 | AW24: 2.275130696 | AX24: 4.965923779 | AY24: 7.508993052 | AZ24: 10.37552166
B25: Motor Vehicles | C25: =_xlfn.XLOOKUP(B25,'PTRM Input'!$G$6:$G$58,'PTRM Input'!$J$6:$J$58) -> 117.8770413 | E25: Motor Vehicles | F25: =_xlfn.XLOOKUP($E25,Assets!$C$11:$C$60,Assets!G$11:G$60) -> 35.7645329 | G25: =_xlfn.XLOOKUP($E25,Assets!$C$11:$C$60,Assets!H$11:H$60) -> 38.62827249 | H25: =_xlfn.XLOOKUP($E25,Assets!$C$11:$C$60,Assets!I$11:I$60) -> 29.55466632 | I25: =_xlfn.XLOOKUP($E25,Assets!$C$11:$C$60,Assets!J$11:J$60) -> 24.96233492 | J25: =_xlfn.XLOOKUP($E25,Assets!$C$11:$C$60,Assets!K$11:K$60) -> 35.7329524 | L25: Motor Vehicles | M25: =_xlfn.XLOOKUP($L25,Assets!$C$128:$C$765,Assets!G$128:G$765) -> 22.56013841 | N25: =_xlfn.XLOOKUP($L25,Assets!$C$128:$C$765,Assets!H$128:H$765) -> 24.92266051 | O25: =_xlfn.XLOOKUP($L25,Assets!$C$128:$C$765,Assets!I$128:I$765) -> 28.66529449 | P25: =_xlfn.XLOOKUP($L25,Assets!$C$128:$C$765,Assets!J$128:J$765) -> 31.20092258 | Q25: =_xlfn.XLOOKUP($L25,Assets!$C$128:$C$765,Assets!K$128:K$765) -> 30.25437061 | S25: Motor Vehicles | T25: 117.8770413 | U25: 131.0814358 | V25: 144.7870478 | W25: 145.6764196 | X25: 139.437832 | Z25: Motor Vehicles | AA25: 0.007510071767 | AB25: 0.008342563884 | AC25: 0.009252266795 | AD25: 0.00936918204 | AE25: 0.009009760506 | AG25: Motor Vehicles | AH25: =T25*'PTRM Revenue data'!J$7 -> 3.359144681 | AI25: =U25*'PTRM Revenue data'!K$7*'PTRM Revenue data'!J$8 -> 3.841879256 | AJ25: =V25*'PTRM Revenue data'!L$7*'PTRM Revenue data'!K$8 -> 4.243578444 | AK25: =W25*'PTRM Revenue data'!M$7*'PTRM Revenue data'!L$8 -> 4.269645134 | AL25: =X25*'PTRM Revenue data'!N$7*'PTRM Revenue data'!M$8 -> 4.086797728 | AN25: Motor Vehicles | AO25: =M25*'PTRM Revenue data'!J$8 -> 23.20303518 | AP25: =N25*'PTRM Revenue data'!K$8 -> 25.63288213 | AQ25: =O25*'PTRM Revenue data'!L$8 -> 29.48217002 | AR25: =P25*'PTRM Revenue data'!M$8 -> 32.09005597 | AS25: =Q25*'PTRM Revenue data'!N$8 -> 31.11653008 | AU25: Motor Vehicles | AV25: 19.8438905 | AW25: 21.79100287 | AX25: 25.23859158 | AY25: 27.82041083 | AZ25: 27.02973235
B26: Plant & Equipment | C26: =_xlfn.XLOOKUP(B26,'PTRM Input'!$G$6:$G$58,'PTRM Input'!$J$6:$J$58) -> 20.71432413 | E26: Plant & Equipment | F26: =_xlfn.XLOOKUP($E26,Assets!$C$11:$C$60,Assets!G$11:G$60) -> 5.407316052 | G26: =_xlfn.XLOOKUP($E26,Assets!$C$11:$C$60,Assets!H$11:H$60) -> 5.102516984 | H26: =_xlfn.XLOOKUP($E26,Assets!$C$11:$C$60,Assets!I$11:I$60) -> 5.203964496 | I26: =_xlfn.XLOOKUP($E26,Assets!$C$11:$C$60,Assets!J$11:J$60) -> 4.991853543 | J26: =_xlfn.XLOOKUP($E26,Assets!$C$11:$C$60,Assets!K$11:K$60) -> 4.839575848 | L26: Plant & Equipment | M26: =_xlfn.XLOOKUP($L26,Assets!$C$128:$C$765,Assets!G$128:G$765) -> 5.395605007 | N26: =_xlfn.XLOOKUP($L26,Assets!$C$128:$C$765,Assets!H$128:H$765) -> 4.502201158 | O26: =_xlfn.XLOOKUP($L26,Assets!$C$128:$C$765,Assets!I$128:I$765) -> 3.72168073 | P26: =_xlfn.XLOOKUP($L26,Assets!$C$128:$C$765,Assets!J$128:J$765) -> 3.453232783 | Q26: =_xlfn.XLOOKUP($L26,Assets!$C$128:$C$765,Assets!K$128:K$765) -> 2.830197294 | S26: Plant & Equipment | T26: 20.71432413 | U26: 20.72603517 | V26: 21.326351 | W26: 22.80863477 | X26: 24.34725552 | Z26: Plant & Equipment | AA26: 0.001319731638 | AB26: 0.001319090468 | AC26: 0.001362808982 | AD26: 0.001466937832 | AE26: 0.001573195296 | AG26: Plant & Equipment | AH26: =T26*'PTRM Revenue data'!J$7 -> 0.5902965577 | AI26: =U26*'PTRM Revenue data'!K$7*'PTRM Revenue data'!J$8 -> 0.6074614921 | AJ26: =V26*'PTRM Revenue data'!L$7*'PTRM Revenue data'!K$8 -> 0.6250562103 | AK26: =W26*'PTRM Revenue data'!M$7*'PTRM Revenue data'!L$8 -> 0.6685006173 | AL26: =X26*'PTRM Revenue data'!N$7*'PTRM Revenue data'!M$8 -> 0.7135962111 | AN26: Plant & Equipment | AO26: =M26*'PTRM Revenue data'!J$8 -> 5.549363684 | AP26: =N26*'PTRM Revenue data'!K$8 -> 4.630500486 | AQ26: =O26*'PTRM Revenue data'!L$8 -> 3.827737549 | AR26: =P26*'PTRM Revenue data'!M$8 -> 3.551639635 | AS26: =Q26*'PTRM Revenue data'!N$8 -> 2.91084949 | AU26: Plant & Equipment | AV26: 4.959067126 | AW26: 4.023038993 | AX26: 3.202681339 | AY26: 2.883139018 | AZ26: 2.197253279
B27: Buildings | C27: =_xlfn.XLOOKUP(B27,'PTRM Input'!$G$6:$G$58,'PTRM Input'!$J$6:$J$58) -> 290.2801982 | E27: Buildings | F27: =_xlfn.XLOOKUP($E27,Assets!$C$11:$C$60,Assets!G$11:G$60) -> 0 | G27: =_xlfn.XLOOKUP($E27,Assets!$C$11:$C$60,Assets!H$11:H$60) -> 0 | H27: =_xlfn.XLOOKUP($E27,Assets!$C$11:$C$60,Assets!I$11:I$60) -> 0 | I27: =_xlfn.XLOOKUP($E27,Assets!$C$11:$C$60,Assets!J$11:J$60) -> 0 | J27: =_xlfn.XLOOKUP($E27,Assets!$C$11:$C$60,Assets!K$11:K$60) -> 0 | L27: Buildings | M27: =_xlfn.XLOOKUP($L27,Assets!$C$128:$C$765,Assets!G$128:G$765) -> 11.12325242 | N27: =_xlfn.XLOOKUP($L27,Assets!$C$128:$C$765,Assets!H$128:H$765) -> 11.12325242 | O27: =_xlfn.XLOOKUP($L27,Assets!$C$128:$C$765,Assets!I$128:I$765) -> 11.12325242 | P27: =_xlfn.XLOOKUP($L27,Assets!$C$128:$C$765,Assets!J$128:J$765) -> 11.12325242 | Q27: =_xlfn.XLOOKUP($L27,Assets!$C$128:$C$765,Assets!K$128:K$765) -> 11.12325242 | S27: Buildings | T27: 290.2801982 | U27: 279.1569458 | V27: 268.0336934 | W27: 256.910441 | X27: 245.7871886 | Z27: Buildings | AA27: 0.01849406039 | AB27: 0.01776670083 | AC27: 0.01712804618 | AD27: 0.0165232005 | AE27: 0.01588151274 | AG27: Buildings | AH27: =T27*'PTRM Revenue data'!J$7 -> 8.272121297 | AI27: =U27*'PTRM Revenue data'!K$7*'PTRM Revenue data'!J$8 -> 8.181839576 | AJ27: =V27*'PTRM Revenue data'!L$7*'PTRM Revenue data'!K$8 -> 7.855827029 | AK27: =W27*'PTRM Revenue data'!M$7*'PTRM Revenue data'!L$8 -> 7.529814483 | AL27: =X27*'PTRM Revenue data'!N$7*'PTRM Revenue data'!M$8 -> 7.203801936 | AN27: Buildings | AO27: =M27*'PTRM Revenue data'!J$8 -> 11.44023199 | AP27: =N27*'PTRM Revenue data'!K$8 -> 11.44023199 | AQ27: =O27*'PTRM Revenue data'!L$8 -> 11.44023199 | AR27: =P27*'PTRM Revenue data'!M$8 -> 11.44023199 | AS27: =Q27*'PTRM Revenue data'!N$8 -> 11.44023199 | AU27: Buildings | AV27: 3.168110691 | AW27: 3.258392412 | AX27: 3.584404959 | AY27: 3.910417506 | AZ27: 4.236430052
B28: Office Equipment & Furniture | C28: =_xlfn.XLOOKUP(B28,'PTRM Input'!$G$6:$G$58,'PTRM Input'!$J$6:$J$58) -> -14.27848798 | E28: Office Equipment & Furniture | F28: =_xlfn.XLOOKUP($E28,Assets!$C$11:$C$60,Assets!G$11:G$60) -> 1.758041194 | G28: =_xlfn.XLOOKUP($E28,Assets!$C$11:$C$60,Assets!H$11:H$60) -> 2.115034115 | H28: =_xlfn.XLOOKUP($E28,Assets!$C$11:$C$60,Assets!I$11:I$60) -> 1.502728719 | I28: =_xlfn.XLOOKUP($E28,Assets!$C$11:$C$60,Assets!J$11:J$60) -> 1.388628016 | J28: =_xlfn.XLOOKUP($E28,Assets!$C$11:$C$60,Assets!K$11:K$60) -> 0.8547764915 | L28: Office Equipment & Furniture | M28: =_xlfn.XLOOKUP($L28,Assets!$C$128:$C$765,Assets!G$128:G$765) -> -7.139243989 | N28: =_xlfn.XLOOKUP($L28,Assets!$C$128:$C$765,Assets!H$128:H$765) -> -6.96343987 | O28: =_xlfn.XLOOKUP($L28,Assets!$C$128:$C$765,Assets!I$128:I$765) -> 0.3873075309 | P28: =_xlfn.XLOOKUP($L28,Assets!$C$128:$C$765,Assets!J$128:J$765) -> 0.5375804028 | Q28: =_xlfn.XLOOKUP($L28,Assets!$C$128:$C$765,Assets!K$128:K$765) -> 0.6764432044 | S28: Office Equipment & Furniture | T28: -14.27848798 | U28: -5.381202795 | V28: 3.69727119 | W28: 4.812692377 | X28: 5.663739991 | Z28: Office Equipment & Furniture | AA28: -0.0009096976666 | AB28: -0.0003424819679 | AC28: 0.0002362651908 | AD28: 0.0003095284131 | AE28: 0.00036596195 | AG28: Office Equipment & Furniture | AH28: =T28*'PTRM Revenue data'!J$7 -> -0.4068943911 | AI28: =U28*'PTRM Revenue data'!K$7*'PTRM Revenue data'!J$8 -> -0.157718225 | AJ28: =V28*'PTRM Revenue data'!L$7*'PTRM Revenue data'!K$8 -> 0.1083637008 | AK28: =W28*'PTRM Revenue data'!M$7*'PTRM Revenue data'!L$8 -> 0.1410556948 | AL28: =X28*'PTRM Revenue data'!N$7*'PTRM Revenue data'!M$8 -> 0.1659991367 | AN28: Office Equipment & Furniture | AO28: =M28*'PTRM Revenue data'!J$8 -> -7.342691184 | AP28: =N28*'PTRM Revenue data'!K$8 -> -7.161877171 | AQ28: =O28*'PTRM Revenue data'!L$8 -> 0.3983446423 | AR28: =P28*'PTRM Revenue data'!M$8 -> 0.5528998435 | AS28: =Q28*'PTRM Revenue data'!N$8 -> 0.6957198215 | AU28: Office Equipment & Furniture | AV28: -6.935796793 | AW28: -7.004158946 | AX28: 0.2899809415 | AY28: 0.4118441487 | AZ28: 0.5297206848
B29: Initial Leases (10 yr life) | C29: =_xlfn.XLOOKUP(B29,'PTRM Input'!$G$6:$G$58,'PTRM Input'!$J$6:$J$58) -> 44.70361557 | E29: Initial Leases (10 yr life) | F29: =_xlfn.XLOOKUP($E29,Assets!$C$11:$C$60,Assets!G$11:G$60) -> 0 | G29: =_xlfn.XLOOKUP($E29,Assets!$C$11:$C$60,Assets!H$11:H$60) -> 0 | H29: =_xlfn.XLOOKUP($E29,Assets!$C$11:$C$60,Assets!I$11:I$60) -> 0 | I29: =_xlfn.XLOOKUP($E29,Assets!$C$11:$C$60,Assets!J$11:J$60) -> 0 | J29: =_xlfn.XLOOKUP($E29,Assets!$C$11:$C$60,Assets!K$11:K$60) -> 0 | L29: Initial Leases (10 yr life) | M29: =_xlfn.XLOOKUP($L29,Assets!$C$128:$C$765,Assets!G$128:G$765) -> 10.31661675 | N29: =_xlfn.XLOOKUP($L29,Assets!$C$128:$C$765,Assets!H$128:H$765) -> 10.31661675 | O29: =_xlfn.XLOOKUP($L29,Assets!$C$128:$C$765,Assets!I$128:I$765) -> 10.31661675 | P29: =_xlfn.XLOOKUP($L29,Assets!$C$128:$C$765,Assets!J$128:J$765) -> 10.31661675 | Q29: =_xlfn.XLOOKUP($L29,Assets!$C$128:$C$765,Assets!K$128:K$765) -> 3.437148559 | S29: Initial Leases (10 yr life) | T29: 44.70361557 | U29: 34.38699882 | V29: 24.07038206 | W29: 13.75376531 | X29: 3.437148559 | Z29: Initial Leases (10 yr life) | AA29: 0.002848114929 | AB29: 0.002188530608 | AC29: 0.001538159664 | AD29: 0.0008845737099 | AE29: 0.0002220909842 | AG29: Initial Leases (10 yr life) | AH29: =T29*'PTRM Revenue data'!J$7 -> 1.273919932 | AI29: =U29*'PTRM Revenue data'!K$7*'PTRM Revenue data'!J$8 -> 1.007852078 | AJ29: =V29*'PTRM Revenue data'!L$7*'PTRM Revenue data'!K$8 -> 0.7054812984 | AK29: =W29*'PTRM Revenue data'!M$7*'PTRM Revenue data'!L$8 -> 0.4031105191 | AL29: =X29*'PTRM Revenue data'!N$7*'PTRM Revenue data'!M$8 -> 0.1007397399 | AN29: Initial Leases (10 yr life) | AO29: =M29*'PTRM Revenue data'!J$8 -> 10.61060961 | AP29: =N29*'PTRM Revenue data'!K$8 -> 10.61060961 | AQ29: =O29*'PTRM Revenue data'!L$8 -> 10.61060961 | AR29: =P29*'PTRM Revenue data'!M$8 -> 10.61060961 | AS29: =Q29*'PTRM Revenue data'!N$8 -> 3.535097058 | AU29: Initial Leases (10 yr life) | AV29: 9.336689679 | AW29: 9.602757534 | AX29: 9.905128313 | AY29: 10.20749909 | AZ29: 3.434357318
B30: Lease Extensions (5yr Life) | C30: =_xlfn.XLOOKUP(B30,'PTRM Input'!$G$6:$G$58,'PTRM Input'!$J$6:$J$58) -> 0 | E30: Lease Extensions (5yr Life) | F30: =_xlfn.XLOOKUP($E30,Assets!$C$11:$C$60,Assets!G$11:G$60) -> 0 | G30: =_xlfn.XLOOKUP($E30,Assets!$C$11:$C$60,Assets!H$11:H$60) -> 0 | H30: =_xlfn.XLOOKUP($E30,Assets!$C$11:$C$60,Assets!I$11:I$60) -> 0 | I30: =_xlfn.XLOOKUP($E30,Assets!$C$11:$C$60,Assets!J$11:J$60) -> 12.06825606 | J30: =_xlfn.XLOOKUP($E30,Assets!$C$11:$C$60,Assets!K$11:K$60) -> 1.990248251 | L30: Lease Extensions (5yr Life) | M30: =_xlfn.XLOOKUP($L30,Assets!$C$128:$C$765,Assets!G$128:G$765) -> 0 | N30: =_xlfn.XLOOKUP($L30,Assets!$C$128:$C$765,Assets!H$128:H$765) -> 0 | O30: =_xlfn.XLOOKUP($L30,Assets!$C$128:$C$765,Assets!I$128:I$765) -> 0 | P30: =_xlfn.XLOOKUP($L30,Assets!$C$128:$C$765,Assets!J$128:J$765) -> 0 | Q30: =_xlfn.XLOOKUP($L30,Assets!$C$128:$C$765,Assets!K$128:K$765) -> 0 | S30: Lease Extensions (5yr Life) | T30: 0 | U30: 0 | V30: 0 | W30: 0 | X30: 12.06825606 | Z30: Lease Extensions (5yr Life) | AA30: 0 | AB30: 0 | AC30: 0 | AD30: 0 | AE30: 0.0007797890664 | AG30: Lease Extensions (5yr Life) | AH30: =T30*'PTRM Revenue data'!J$7 -> 0 | AI30: =U30*'PTRM Revenue data'!K$7*'PTRM Revenue data'!J$8 -> 0 | AJ30: =V30*'PTRM Revenue data'!L$7*'PTRM Revenue data'!K$8 -> 0 | AK30: =W30*'PTRM Revenue data'!M$7*'PTRM Revenue data'!L$8 -> 0 | AL30: =X30*'PTRM Revenue data'!N$7*'PTRM Revenue data'!M$8 -> 0.3537097554 | AN30: Lease Extensions (5yr Life) | AO30: =M30*'PTRM Revenue data'!J$8 -> 0 | AP30: =N30*'PTRM Revenue data'!K$8 -> 0 | AQ30: =O30*'PTRM Revenue data'!L$8 -> 0 | AR30: =P30*'PTRM Revenue data'!M$8 -> 0 | AS30: =Q30*'PTRM Revenue data'!N$8 -> 0 | AU30: Lease Extensions (5yr Life) | AV30: 0 | AW30: 0 | AX30: 0 | AY30: 0 | AZ30: -0.3537097554
B31: Land | C31: =_xlfn.XLOOKUP(B31,'PTRM Input'!$G$6:$G$58,'PTRM Input'!$J$6:$J$58) -> 194.0565911 | E31: Land | F31: =_xlfn.XLOOKUP($E31,Assets!$C$11:$C$60,Assets!G$11:G$60) -> 0 | G31: =_xlfn.XLOOKUP($E31,Assets!$C$11:$C$60,Assets!H$11:H$60) -> 0 | H31: =_xlfn.XLOOKUP($E31,Assets!$C$11:$C$60,Assets!I$11:I$60) -> 0 | I31: =_xlfn.XLOOKUP($E31,Assets!$C$11:$C$60,Assets!J$11:J$60) -> 0 | J31: =_xlfn.XLOOKUP($E31,Assets!$C$11:$C$60,Assets!K$11:K$60) -> 0 | L31: Land | M31: =_xlfn.XLOOKUP($L31,Assets!$C$128:$C$765,Assets!G$128:G$765) -> 0 | N31: =_xlfn.XLOOKUP($L31,Assets!$C$128:$C$765,Assets!H$128:H$765) -> 0 | O31: =_xlfn.XLOOKUP($L31,Assets!$C$128:$C$765,Assets!I$128:I$765) -> 0 | P31: =_xlfn.XLOOKUP($L31,Assets!$C$128:$C$765,Assets!J$128:J$765) -> 0 | Q31: =_xlfn.XLOOKUP($L31,Assets!$C$128:$C$765,Assets!K$128:K$765) -> 0 | S31: Land | T31: 194.0565911 | U31: 194.0565911 | V31: 194.0565911 | W31: 194.0565911 | X31: 194.0565911 | Z31: Land | AA31: 0.01236355196 | AB31: 0.01235056282 | AC31: 0.01240071803 | AD31: 0.0124807538 | AE31: 0.01253894575 | AG31: Land | AH31: =T31*'PTRM Revenue data'!J$7 -> 5.530035013 | AI31: =U31*'PTRM Revenue data'!K$7*'PTRM Revenue data'!J$8 -> 5.687624545 | AJ31: =V31*'PTRM Revenue data'!L$7*'PTRM Revenue data'!K$8 -> 5.687624545 | AK31: =W31*'PTRM Revenue data'!M$7*'PTRM Revenue data'!L$8 -> 5.687624545 | AL31: =X31*'PTRM Revenue data'!N$7*'PTRM Revenue data'!M$8 -> 5.687624545 | AN31: Land | AO31: =M31*'PTRM Revenue data'!J$8 -> 0 | AP31: =N31*'PTRM Revenue data'!K$8 -> 0 | AQ31: =O31*'PTRM Revenue data'!L$8 -> 0 | AR31: =P31*'PTRM Revenue data'!M$8 -> 0 | AS31: =Q31*'PTRM Revenue data'!N$8 -> 0 | AU31: Land | AV31: -5.530035013 | AW31: -5.687624545 | AX31: -5.687624545 | AY31: -5.687624545 | AZ31: -5.687624545
B32: In-house software | C32: =_xlfn.XLOOKUP(B32,'PTRM Input'!$G$6:$G$58,'PTRM Input'!$J$6:$J$58) -> 142.8629007 | E32: In-house software | F32: =_xlfn.XLOOKUP($E32,Assets!$C$11:$C$60,Assets!G$11:G$60) -> 61.26314223 | G32: =_xlfn.XLOOKUP($E32,Assets!$C$11:$C$60,Assets!H$11:H$60) -> 48.69905673 | H32: =_xlfn.XLOOKUP($E32,Assets!$C$11:$C$60,Assets!I$11:I$60) -> 37.95081083 | I32: =_xlfn.XLOOKUP($E32,Assets!$C$11:$C$60,Assets!J$11:J$60) -> 30.11033637 | J32: =_xlfn.XLOOKUP($E32,Assets!$C$11:$C$60,Assets!K$11:K$60) -> 35.86454259 | L32: In-house software | M32: =_xlfn.XLOOKUP($L32,Assets!$C$128:$C$765,Assets!G$128:G$765) -> 41.62508257 | N32: =_xlfn.XLOOKUP($L32,Assets!$C$128:$C$765,Assets!H$128:H$765) -> 97.06377168 | O32: =_xlfn.XLOOKUP($L32,Assets!$C$128:$C$765,Assets!I$128:I$765) -> 78.78234281 | P32: =_xlfn.XLOOKUP($L32,Assets!$C$128:$C$765,Assets!J$128:J$765) -> 61.2252366 | Q32: =_xlfn.XLOOKUP($L32,Assets!$C$128:$C$765,Assets!K$128:K$765) -> 42.18981325 | S32: In-house software | T32: 142.8629007 | U32: 162.5009604 | V32: 114.1362455 | W32: 73.30471347 | X32: 42.18981325 | Z32: In-house software | AA32: 0.009101947465 | AB32: 0.01034223218 | AC32: 0.007293601259 | AD32: 0.004714594213 | AE32: 0.002726090243 | AG32: In-house software | AH32: =T32*'PTRM Revenue data'!J$7 -> 4.071167276 | AI32: =U32*'PTRM Revenue data'!K$7*'PTRM Revenue data'!J$8 -> 4.762757327 | AJ32: =V32*'PTRM Revenue data'!L$7*'PTRM Revenue data'!K$8 -> 3.345230933 | AK32: =W32*'PTRM Revenue data'!M$7*'PTRM Revenue data'!L$8 -> 2.148495371 | AL32: =X32*'PTRM Revenue data'!N$7*'PTRM Revenue data'!M$8 -> 1.236545567 | AN32: In-house software | AO32: =M32*'PTRM Revenue data'!J$8 -> 42.81127348 | AP32: =N32*'PTRM Revenue data'!K$8 -> 99.82980015 | AQ32: =O32*'PTRM Revenue data'!L$8 -> 81.027405 | AR32: =P32*'PTRM Revenue data'!M$8 -> 62.96997353 | AS32: =Q32*'PTRM Revenue data'!N$8 -> 43.3920973 | AU32: In-house software | AV32: 38.74010621 | AW32: 95.06704282 | AX32: 77.68217406 | AY32: 60.82147816 | AZ32: 42.15555173
B33: IT Systems | C33: =_xlfn.XLOOKUP(B33,'PTRM Input'!$G$6:$G$58,'PTRM Input'!$J$6:$J$58) -> 5.857405692 | E33: IT Systems | F33: =_xlfn.XLOOKUP($E33,Assets!$C$11:$C$60,Assets!G$11:G$60) -> 2.093265493 | G33: =_xlfn.XLOOKUP($E33,Assets!$C$11:$C$60,Assets!H$11:H$60) -> 1.786901798 | H33: =_xlfn.XLOOKUP($E33,Assets!$C$11:$C$60,Assets!I$11:I$60) -> 1.667033312 | I33: =_xlfn.XLOOKUP($E33,Assets!$C$11:$C$60,Assets!J$11:J$60) -> 1.378891049 | J33: =_xlfn.XLOOKUP($E33,Assets!$C$11:$C$60,Assets!K$11:K$60) -> 1.605357496 | L33: IT Systems | M33: =_xlfn.XLOOKUP($L33,Assets!$C$128:$C$765,Assets!G$128:G$765) -> 2.292571186 | N33: =_xlfn.XLOOKUP($L33,Assets!$C$128:$C$765,Assets!H$128:H$765) -> 2.339516064 | O33: =_xlfn.XLOOKUP($L33,Assets!$C$128:$C$765,Assets!I$128:I$765) -> 1.966372366 | P33: =_xlfn.XLOOKUP($L33,Assets!$C$128:$C$765,Assets!J$128:J$765) -> 1.581654421 | Q33: =_xlfn.XLOOKUP($L33,Assets!$C$128:$C$765,Assets!K$128:K$765) -> 1.396389446 | S33: IT Systems | T33: 5.857405692 | U33: 5.6581 | V33: 5.105485734 | W33: 4.806146679 | X33: 4.603383308 | Z33: IT Systems | AA33: 0.0003731815511 | AB33: 0.0003601048495 | AC33: 0.000326253742 | AD33: 0.0003091074264 | AE33: 0.000297447117 | AG33: IT Systems | AH33: =T33*'PTRM Revenue data'!J$7 -> 0.1669186209 | AI33: =U33*'PTRM Revenue data'!K$7*'PTRM Revenue data'!J$8 -> 0.1658338336 | AJ33: =V33*'PTRM Revenue data'!L$7*'PTRM Revenue data'!K$8 -> 0.1496372054 | AK33: =W33*'PTRM Revenue data'!M$7*'PTRM Revenue data'!L$8 -> 0.1408638463 | AL33: =X33*'PTRM Revenue data'!N$7*'PTRM Revenue data'!M$8 -> 0.1349210338 | AN33: IT Systems | AO33: =M33*'PTRM Revenue data'!J$8 -> 2.357902638 | AP33: =N33*'PTRM Revenue data'!K$8 -> 2.406185306 | AQ33: =O33*'PTRM Revenue data'!L$8 -> 2.022408123 | AR33: =P33*'PTRM Revenue data'!M$8 -> 1.626726862 | AS33: =Q33*'PTRM Revenue data'!N$8 -> 1.436182387 | AU33: IT Systems | AV33: 2.190984017 | AW33: 2.240351472 | AX33: 1.872770918 | AY33: 1.485863016 | AZ33: 1.301261353
B34: Legacy ICT | C34: =_xlfn.XLOOKUP(B34,'PTRM Input'!$G$6:$G$58,'PTRM Input'!$J$6:$J$58) -> 74.33133133 | E34: Legacy ICT | F34: =_xlfn.XLOOKUP($E34,Assets!$C$11:$C$60,Assets!G$11:G$60) -> 0 | G34: =_xlfn.XLOOKUP($E34,Assets!$C$11:$C$60,Assets!H$11:H$60) -> 0 | H34: =_xlfn.XLOOKUP($E34,Assets!$C$11:$C$60,Assets!I$11:I$60) -> 0 | I34: =_xlfn.XLOOKUP($E34,Assets!$C$11:$C$60,Assets!J$11:J$60) -> 0 | J34: =_xlfn.XLOOKUP($E34,Assets!$C$11:$C$60,Assets!K$11:K$60) -> 0 | L34: Legacy ICT | M34: =_xlfn.XLOOKUP($L34,Assets!$C$128:$C$765,Assets!G$128:G$765) -> 14.86626627 | N34: =_xlfn.XLOOKUP($L34,Assets!$C$128:$C$765,Assets!H$128:H$765) -> 14.86626627 | O34: =_xlfn.XLOOKUP($L34,Assets!$C$128:$C$765,Assets!I$128:I$765) -> 14.86626627 | P34: =_xlfn.XLOOKUP($L34,Assets!$C$128:$C$765,Assets!J$128:J$765) -> 14.86626627 | Q34: =_xlfn.XLOOKUP($L34,Assets!$C$128:$C$765,Assets!K$128:K$765) -> 14.86626627 | S34: Legacy ICT | T34: 74.33133133 | U34: 59.46506506 | V34: 44.5987988 | W34: 29.73253253 | X34: 14.86626627 | Z34: Legacy ICT | AA34: 0.004735728235 | AB34: 0.003784602305 | AC34: 0.002849978583 | AD34: 0.001912248465 | AE34: 0.000960582195 | AG34: Legacy ICT | AH34: =T34*'PTRM Revenue data'!J$7 -> 2.11822161 | AI34: =U34*'PTRM Revenue data'!K$7*'PTRM Revenue data'!J$8 -> 1.742867695 | AJ34: =V34*'PTRM Revenue data'!L$7*'PTRM Revenue data'!K$8 -> 1.307150771 | AK34: =W34*'PTRM Revenue data'!M$7*'PTRM Revenue data'!L$8 -> 0.8714338476 | AL34: =X34*'PTRM Revenue data'!N$7*'PTRM Revenue data'!M$8 -> 0.4357169238 | AN34: Legacy ICT | AO34: =M34*'PTRM Revenue data'!J$8 -> 15.28991059 | AP34: =N34*'PTRM Revenue data'!K$8 -> 15.28991059 | AQ34: =O34*'PTRM Revenue data'!L$8 -> 15.28991059 | AR34: =P34*'PTRM Revenue data'!M$8 -> 15.28991059 | AS34: =Q34*'PTRM Revenue data'!N$8 -> 15.28991059 | AU34: Legacy ICT | AV34: 13.17168898 | AW34: 13.54704289 | AX34: 13.98275982 | AY34: 14.41847674 | AZ34: 14.85419366
B35: Buildings - capital works | C35: =_xlfn.XLOOKUP(B35,'PTRM Input'!$G$6:$G$58,'PTRM Input'!$J$6:$J$58) -> 129.6306328 | E35: Buildings - capital works | F35: =_xlfn.XLOOKUP($E35,Assets!$C$11:$C$60,Assets!G$11:G$60) -> 28.55301387 | G35: =_xlfn.XLOOKUP($E35,Assets!$C$11:$C$60,Assets!H$11:H$60) -> 34.35107132 | H35: =_xlfn.XLOOKUP($E35,Assets!$C$11:$C$60,Assets!I$11:I$60) -> 19.34629322 | I35: =_xlfn.XLOOKUP($E35,Assets!$C$11:$C$60,Assets!J$11:J$60) -> 22.55323433 | J35: =_xlfn.XLOOKUP($E35,Assets!$C$11:$C$60,Assets!K$11:K$60) -> 10.89615526 | L35: Buildings - capital works | M35: =_xlfn.XLOOKUP($L35,Assets!$C$128:$C$765,Assets!G$128:G$765) -> 3.345964247 | N35: =_xlfn.XLOOKUP($L35,Assets!$C$128:$C$765,Assets!H$128:H$765) -> 31.89897812 | O35: =_xlfn.XLOOKUP($L35,Assets!$C$128:$C$765,Assets!I$128:I$765) -> 37.69703557 | P35: =_xlfn.XLOOKUP($L35,Assets!$C$128:$C$765,Assets!J$128:J$765) -> 22.69225747 | Q35: =_xlfn.XLOOKUP($L35,Assets!$C$128:$C$765,Assets!K$128:K$765) -> 25.89919858 | S35: Buildings - capital works | T35: 129.6306328 | U35: 154.8376824 | V35: 157.2897756 | W35: 138.9390333 | X35: 138.8000101 | Z35: Buildings - capital works | AA35: 0.008258905589 | AB35: 0.009854509521 | AC35: 0.01005122344 | AD35: 0.008935866893 | AE35: 0.008968547717 | AG35: Buildings - capital works | AH35: =T35*'PTRM Revenue data'!J$7 -> 3.69408704 | AI35: =U35*'PTRM Revenue data'!K$7*'PTRM Revenue data'!J$8 -> 4.538153526 | AJ35: =V35*'PTRM Revenue data'!L$7*'PTRM Revenue data'!K$8 -> 4.610022177 | AK35: =W35*'PTRM Revenue data'!M$7*'PTRM Revenue data'!L$8 -> 4.072178386 | AL35: =X35*'PTRM Revenue data'!N$7*'PTRM Revenue data'!M$8 -> 4.068103743 | AN35: Buildings - capital works | AO35: =M35*'PTRM Revenue data'!J$8 -> 3.441314265 | AP35: =N35*'PTRM Revenue data'!K$8 -> 32.80800401 | AQ35: =O35*'PTRM Revenue data'!L$8 -> 38.77128883 | AR35: =P35*'PTRM Revenue data'!M$8 -> 23.33891924 | AS35: =Q35*'PTRM Revenue data'!N$8 -> 26.63724862 | AU35: Buildings - capital works | AV35: -0.2527727752 | AW35: 28.26985049 | AX35: 34.16126666 | AY35: 19.26674085 | AZ35: 22.56914488
B36: Equity raising costs | C36: =_xlfn.XLOOKUP(B36,'PTRM Input'!$G$6:$G$58,'PTRM Input'!$J$6:$J$58) -> 22.60930022 | E36: Equity raising costs | F36: =_xlfn.XLOOKUP($E36,Assets!$C$11:$C$60,Assets!G$11:G$60) -> 0 | G36: =_xlfn.XLOOKUP($E36,Assets!$C$11:$C$60,Assets!H$11:H$60) -> 0 | H36: =_xlfn.XLOOKUP($E36,Assets!$C$11:$C$60,Assets!I$11:I$60) -> 0 | I36: =_xlfn.XLOOKUP($E36,Assets!$C$11:$C$60,Assets!J$11:J$60) -> 0 | J36: =_xlfn.XLOOKUP($E36,Assets!$C$11:$C$60,Assets!K$11:K$60) -> 0 | L36: Equity raising costs | M36: =_xlfn.XLOOKUP($L36,Assets!$C$128:$C$765,Assets!G$128:G$765) -> 0.7043395708 | N36: =_xlfn.XLOOKUP($L36,Assets!$C$128:$C$765,Assets!H$128:H$765) -> 0.7043395708 | O36: =_xlfn.XLOOKUP($L36,Assets!$C$128:$C$765,Assets!I$128:I$765) -> 0.7043395708 | P36: =_xlfn.XLOOKUP($L36,Assets!$C$128:$C$765,Assets!J$128:J$765) -> 0.7043395708 | Q36: =_xlfn.XLOOKUP($L36,Assets!$C$128:$C$765,Assets!K$128:K$765) -> 0.7043395708 | S36: Equity raising costs | T36: 22.60930022 | U36: 21.90496065 | V36: 21.20062108 | W36: 20.49628151 | X36: 19.79194194 | Z36: Equity raising costs | AA36: 0.001440462582 | AB36: 0.001394122154 | AC36: 0.001354774515 | AD36: 0.001318218783 | AE36: 0.001278854198 | AG36: Equity raising costs | AH36: =T36*'PTRM Revenue data'!J$7 -> 0.6442977338 | AI36: =U36*'PTRM Revenue data'!K$7*'PTRM Revenue data'!J$8 -> 0.64201474 | AJ36: =V36*'PTRM Revenue data'!L$7*'PTRM Revenue data'!K$8 -> 0.6213711792 | AK36: =W36*'PTRM Revenue data'!M$7*'PTRM Revenue data'!L$8 -> 0.6007276184 | AL36: =X36*'PTRM Revenue data'!N$7*'PTRM Revenue data'!M$8 -> 0.5800840576 | AN36: Equity raising costs | AO36: =M36*'PTRM Revenue data'!J$8 -> 0.7244111513 | AP36: =N36*'PTRM Revenue data'!K$8 -> 0.7244111513 | AQ36: =O36*'PTRM Revenue data'!L$8 -> 0.7244111513 | AR36: =P36*'PTRM Revenue data'!M$8 -> 0.7244111513 | AS36: =Q36*'PTRM Revenue data'!N$8 -> 0.7244111513 | AU36: Equity raising costs | AV36: 0.08011341747 | AW36: 0.08239641132 | AX36: 0.1030399721 | AY36: 0.1236835329 | AZ36: 0.1443270936
B39: Total | C39: =SUM(C7:C36) -> 15695.86084 | S39: Total | T39: =SUM(T7:T36) -> 15695.86084 | U39: =SUM(U7:U36) -> 15712.36824 | V39: =SUM(V7:V36) -> 15648.81893 | W39: 15548.4672 | X39: 15476.30837 | Z39: Total | AA39: =SUM(AA7:AA36) -> 1 | AB39: =SUM(AB7:AB36) -> 1 | AC39: 1 | AD39: 1 | AE39: 1

Sheet BBM Costs
B2: BBM Costs
B4: Building block costs by year (000s) | I4: Operational costs | P4: Return of capex (Regulatory depreciation split) | W4: Return on capex | AD4: Replacement cost (ORAB)
C6: 2025-26 | D6: 2026-27 | E6: 2027-28 | F6: 2028-29 | G6: 2029-30 | I6: Category | J6: 2025-26 | K6: 2026-27 | L6: 2027-28 | M6: 2028-29 | N6: 2029-30 | P6: Category | Q6: 2025-26 | R6: 2026-27 | S6: 2027-28 | T6: 2028-29 | U6: 2029-30 | W6: Category | X6: 2025-26 | Y6: 2026-27 | Z6: 2027-28 | AA6: 2028-29 | AB6: 2029-30 | AD6: Category | AE6: 2025-26
B7: Return on Capital | C7: =_xlfn.XLOOKUP($B7,'PTRM Revenue data'!$B$7:$B$11,'PTRM Revenue data'!C$7:C$11) -> 886.8748528 | D7: =_xlfn.XLOOKUP($B7,'PTRM Revenue data'!$B$7:$B$11,'PTRM Revenue data'!D$7:D$11) -> 928.5534775 | E7: =_xlfn.XLOOKUP($B7,'PTRM Revenue data'!$B$7:$B$11,'PTRM Revenue data'!E$7:E$11) -> 974.9413701 | F7: =_xlfn.XLOOKUP($B7,'PTRM Revenue data'!$B$7:$B$11,'PTRM Revenue data'!F$7:F$11) -> 1060.46511 | G7: =_xlfn.XLOOKUP($B7,'PTRM Revenue data'!$B$7:$B$11,'PTRM Revenue data'!G$7:G$11) -> 1121.482425 | I7: ='Opex costs'!B7 -> Preventative maintenance | J7: =_xlfn.XLOOKUP($I7,'Opex costs'!$B$7:$B$20,'Opex costs'!C$7:C$20) -> 139.3269248 | K7: =_xlfn.XLOOKUP($I7,'Opex costs'!$B$7:$B$20,'Opex costs'!D$7:D$20) -> 144.3670559 | L7: =_xlfn.XLOOKUP($I7,'Opex costs'!$B$7:$B$20,'Opex costs'!E$7:E$20) -> 149.6575791 | M7: =_xlfn.XLOOKUP($I7,'Opex costs'!$B$7:$B$20,'Opex costs'!F$7:F$20) -> 160.4629143 | N7: =_xlfn.XLOOKUP($I7,'Opex costs'!$B$7:$B$20,'Opex costs'!G$7:G$20) -> 167.3846667 | P7: ='PTRM Data'!B7 -> OH Sub-transmission lines | Q7: =_xlfn.XLOOKUP($P7,'PTRM Data'!$AU$7:$AU$36,'PTRM Data'!AV$7:AV$36) -> 3.257024378 | R7: =_xlfn.XLOOKUP($P7,'PTRM Data'!$AU$7:$AU$36,'PTRM Data'!AW$7:AW$36) -> 3.115797034 | S7: =_xlfn.XLOOKUP($P7,'PTRM Data'!$AU$7:$AU$36,'PTRM Data'!AX$7:AX$36) -> 3.617640907 | T7: =_xlfn.XLOOKUP($P7,'PTRM Data'!$AU$7:$AU$36,'PTRM Data'!AY$7:AY$36) -> 4.070384194 | U7: =_xlfn.XLOOKUP($P7,'PTRM Data'!$AU$7:$AU$36,'PTRM Data'!AZ$7:AZ$36) -> 4.560963456 | W7: ='PTRM Data'!B7 -> OH Sub-transmission lines | X7: =_xlfn.XLOOKUP($W7,'PTRM Data'!$Z$7:$Z$36,'PTRM Data'!AA$7:AA$36)*('BBM Costs'!C$7+'BBM Costs'!C$11) -> 44.5343269 | Y7: =_xlfn.XLOOKUP($W7,'PTRM Data'!$Z$7:$Z$36,'PTRM Data'!AB$7:AB$36)*('BBM Costs'!D$7+'BBM Costs'!D$11) -> 46.78456793 | Z7: =_xlfn.XLOOKUP($W7,'PTRM Data'!$Z$7:$Z$36,'PTRM Data'!AC$7:AC$36)*('BBM Costs'!E$7+'BBM Costs'!E$11) -> 49.60215566 | AA7: =_xlfn.XLOOKUP($W7,'PTRM Data'!$Z$7:$Z$36,'PTRM Data'!AD$7:AD$36)*('BBM Costs'!F$7+'BBM Costs'!F$11) -> 55.18794387 | AB7: =_xlfn.XLOOKUP($W7,'PTRM Data'!$Z$7:$Z$36,'PTRM Data'!AE$7:AE$36)*('BBM Costs'!G$7+'BBM Costs'!G$11) -> 58.97081257 | AD7: ='PTRM Data'!B7 -> OH Sub-transmission lines | AE7: =_xlfn.XLOOKUP(AD7,'PTRM Data'!$B$7:$B$36,'PTRM Data'!$C$7:$C$36) -> 776.2799804
B8: Return of Capital (regulatory depreciation) | C8: =_xlfn.XLOOKUP($B8,'PTRM Revenue data'!$B$7:$B$11,'PTRM Revenue data'!C$7:C$11) -> 175.7334277 | D8: =_xlfn.XLOOKUP($B8,'PTRM Revenue data'!$B$7:$B$11,'PTRM Revenue data'!D$7:D$11) -> 204.8866702 | E8: =_xlfn.XLOOKUP($B8,'PTRM Revenue data'!$B$7:$B$11,'PTRM Revenue data'!E$7:E$11) -> 240.0128046 | F8: =_xlfn.XLOOKUP($B8,'PTRM Revenue data'!$B$7:$B$11,'PTRM Revenue data'!F$7:F$11) -> 276.4636556 | G8: =_xlfn.XLOOKUP($B8,'PTRM Revenue data'!$B$7:$B$11,'PTRM Revenue data'!G$7:G$11) -> 294.5014745 | I8: ='Opex costs'!B8 -> Corrective maintenance | J8: =_xlfn.XLOOKUP($I8,'Opex costs'!$B$7:$B$20,'Opex costs'!C$7:C$20) -> 92.03171253 | K8: =_xlfn.XLOOKUP($I8,'Opex costs'!$B$7:$B$20,'Opex costs'!D$7:D$20) -> 95.36094622 | L8: =_xlfn.XLOOKUP($I8,'Opex costs'!$B$7:$B$20,'Opex costs'!E$7:E$20) -> 98.85557522 | M8: =_xlfn.XLOOKUP($I8,'Opex costs'!$B$7:$B$20,'Opex costs'!F$7:F$20) -> 105.9929861 | N8: =_xlfn.XLOOKUP($I8,'Opex costs'!$B$7:$B$20,'Opex costs'!G$7:G$20) -> 110.5651155 | P8: ='PTRM Data'!B8 -> UG Sub-transmission cables | Q8: =_xlfn.XLOOKUP($P8,'PTRM Data'!$AU$7:$AU$36,'PTRM Data'!AV$7:AV$36) -> 13.04589751 | R8: =_xlfn.XLOOKUP($P8,'PTRM Data'!$AU$7:$AU$36,'PTRM Data'!AW$7:AW$36) -> 13.391366 | S8: =_xlfn.XLOOKUP($P8,'PTRM Data'!$AU$7:$AU$36,'PTRM Data'!AX$7:AX$36) -> 14.42678344 | T8: =_xlfn.XLOOKUP($P8,'PTRM Data'!$AU$7:$AU$36,'PTRM Data'!AY$7:AY$36) -> 15.42686947 | U8: =_xlfn.XLOOKUP($P8,'PTRM Data'!$AU$7:$AU$36,'PTRM Data'!AZ$7:AZ$36) -> 16.43555317 | W8: ='PTRM Data'!B8 -> UG Sub-transmission cables | X8: =_xlfn.XLOOKUP($W8,'PTRM Data'!$Z$7:$Z$36,'PTRM Data'!AA$7:AA$36)*('BBM Costs'!C$7+'BBM Costs'!C$11) -> 49.54699877 | Y8: =_xlfn.XLOOKUP($W8,'PTRM Data'!$Z$7:$Z$36,'PTRM Data'!AB$7:AB$36)*('BBM Costs'!D$7+'BBM Costs'!D$11) -> 49.99620036 | Z8: =_xlfn.XLOOKUP($W8,'PTRM Data'!$Z$7:$Z$36,'PTRM Data'!AC$7:AC$36)*('BBM Costs'!E$7+'BBM Costs'!E$11) -> 50.98593132 | AA8: =_xlfn.XLOOKUP($W8,'PTRM Data'!$Z$7:$Z$36,'PTRM Data'!AD$7:AD$36)*('BBM Costs'!F$7+'BBM Costs'!F$11) -> 54.44245177 | AB8: =_xlfn.XLOOKUP($W8,'PTRM Data'!$Z$7:$Z$36,'PTRM Data'!AE$7:AE$36)*('BBM Costs'!G$7+'BBM Costs'!G$11) -> 55.94524517 | AD8: ='PTRM Data'!B8 -> UG Sub-transmission cables | AE8: =_xlfn.XLOOKUP(AD8,'PTRM Data'!$B$7:$B$36,'PTRM Data'!$C$7:$C$36) -> 863.6561033
B9: Operating Expenditure | C9: =_xlfn.XLOOKUP($B9,'PTRM Revenue data'!$B$7:$B$11,'PTRM Revenue data'!C$7:C$11) -> 499.9591814 | D9: =_xlfn.XLOOKUP($B9,'PTRM Revenue data'!$B$7:$B$11,'PTRM Revenue data'!D$7:D$11) -> 518.5558633 | E9: =_xlfn.XLOOKUP($B9,'PTRM Revenue data'!$B$7:$B$11,'PTRM Revenue data'!E$7:E$11) -> 538.0534324 | F9: =_xlfn.XLOOKUP($B9,'PTRM Revenue data'!$B$7:$B$11,'PTRM Revenue data'!F$7:F$11) -> 577.8037679 | G9: =_xlfn.XLOOKUP($B9,'PTRM Revenue data'!$B$7:$B$11,'PTRM Revenue data'!G$7:G$11) -> 603.2807595 | I9: ='Opex costs'!B9 -> Vegetation management | J9: =_xlfn.XLOOKUP($I9,'Opex costs'!$B$7:$B$20,'Opex costs'!C$7:C$20) -> 51.41186191 | K9: =_xlfn.XLOOKUP($I9,'Opex costs'!$B$7:$B$20,'Opex costs'!D$7:D$20) -> 53.27167847 | L9: =_xlfn.XLOOKUP($I9,'Opex costs'!$B$7:$B$20,'Opex costs'!E$7:E$20) -> 55.22389014 | M9: =_xlfn.XLOOKUP($I9,'Opex costs'!$B$7:$B$20,'Opex costs'!F$7:F$20) -> 59.21107642 | N9: =_xlfn.XLOOKUP($I9,'Opex costs'!$B$7:$B$20,'Opex costs'!G$7:G$20) -> 61.76521433 | P9: ='PTRM Data'!B9 -> OH Distribution Lines | Q9: =_xlfn.XLOOKUP($P9,'PTRM Data'!$AU$7:$AU$36,'PTRM Data'!AV$7:AV$36) -> 25.26360916 | R9: =_xlfn.XLOOKUP($P9,'PTRM Data'!$AU$7:$AU$36,'PTRM Data'!AW$7:AW$36) -> 24.96219408 | S9: =_xlfn.XLOOKUP($P9,'PTRM Data'!$AU$7:$AU$36,'PTRM Data'!AX$7:AX$36) -> 27.31448937 | T9: =_xlfn.XLOOKUP($P9,'PTRM Data'!$AU$7:$AU$36,'PTRM Data'!AY$7:AY$36) -> 29.778341 | U9: =_xlfn.XLOOKUP($P9,'PTRM Data'!$AU$7:$AU$36,'PTRM Data'!AZ$7:AZ$36) -> 32.3344269 | W9: ='PTRM Data'!B9 -> OH Distribution Lines | X9: =_xlfn.XLOOKUP($W9,'PTRM Data'!$Z$7:$Z$36,'PTRM Data'!AA$7:AA$36)*('BBM Costs'!C$7+'BBM Costs'!C$11) -> 180.2248719 | Y9: =_xlfn.XLOOKUP($W9,'PTRM Data'!$Z$7:$Z$36,'PTRM Data'!AB$7:AB$36)*('BBM Costs'!D$7+'BBM Costs'!D$11) -> 191.7851915 | Z9: =_xlfn.XLOOKUP($W9,'PTRM Data'!$Z$7:$Z$36,'PTRM Data'!AC$7:AC$36)*('BBM Costs'!E$7+'BBM Costs'!E$11) -> 205.7720661 | AA9: =_xlfn.XLOOKUP($W9,'PTRM Data'!$Z$7:$Z$36,'PTRM Data'!AD$7:AD$36)*('BBM Costs'!F$7+'BBM Costs'!F$11) -> 229.3458045 | AB9: =_xlfn.XLOOKUP($W9,'PTRM Data'!$Z$7:$Z$36,'PTRM Data'!AE$7:AE$36)*('BBM Costs'!G$7+'BBM Costs'!G$11) -> 246.1839219 | AD9: ='PTRM Data'!B9 -> OH Distribution Lines | AE9: =_xlfn.XLOOKUP(AD9,'PTRM Data'!$B$7:$B$36,'PTRM Data'!$C$7:$C$36) -> 3141.508355
B10: Revenue Adjustments | C10: =_xlfn.XLOOKUP($B10,'PTRM Revenue data'!$B$7:$B$11,'PTRM Revenue data'!C$7:C$11) -> -12.6327675 | D10: =_xlfn.XLOOKUP($B10,'PTRM Revenue data'!$B$7:$B$11,'PTRM Revenue data'!D$7:D$11) -> -13.15211334 | E10: =_xlfn.XLOOKUP($B10,'PTRM Revenue data'!$B$7:$B$11,'PTRM Revenue data'!E$7:E$11) -> -13.66754131 | F10: =_xlfn.XLOOKUP($B10,'PTRM Revenue data'!$B$7:$B$11,'PTRM Revenue data'!F$7:F$11) -> -14.67954807 | G10: =_xlfn.XLOOKUP($B10,'PTRM Revenue data'!$B$7:$B$11,'PTRM Revenue data'!G$7:G$11) -> -15.34662323 | I10: ='Opex costs'!B10 -> Emergency response | J10: =_xlfn.XLOOKUP($I10,'Opex costs'!$B$7:$B$20,'Opex costs'!C$7:C$20) -> 2.478046075 | K10: =_xlfn.XLOOKUP($I10,'Opex costs'!$B$7:$B$20,'Opex costs'!D$7:D$20) -> 2.567689028 | L10: =_xlfn.XLOOKUP($I10,'Opex costs'!$B$7:$B$20,'Opex costs'!E$7:E$20) -> 2.661785416 | M10: =_xlfn.XLOOKUP($I10,'Opex costs'!$B$7:$B$20,'Opex costs'!F$7:F$20) -> 2.853967355 | N10: =_xlfn.XLOOKUP($I10,'Opex costs'!$B$7:$B$20,'Opex costs'!G$7:G$20) -> 2.97707652 | P10: ='PTRM Data'!B10 -> UG Distribution Cables | Q10: =_xlfn.XLOOKUP($P10,'PTRM Data'!$AU$7:$AU$36,'PTRM Data'!AV$7:AV$36) -> -4.52977073 | R10: =_xlfn.XLOOKUP($P10,'PTRM Data'!$AU$7:$AU$36,'PTRM Data'!AW$7:AW$36) -> -5.348488673 | S10: =_xlfn.XLOOKUP($P10,'PTRM Data'!$AU$7:$AU$36,'PTRM Data'!AX$7:AX$36) -> -3.945966627 | T10: =_xlfn.XLOOKUP($P10,'PTRM Data'!$AU$7:$AU$36,'PTRM Data'!AY$7:AY$36) -> -2.579795804 | U10: =_xlfn.XLOOKUP($P10,'PTRM Data'!$AU$7:$AU$36,'PTRM Data'!AZ$7:AZ$36) -> -1.200937009 | W10: ='PTRM Data'!B10 -> UG Distribution Cables | X10: =_xlfn.XLOOKUP($W10,'PTRM Data'!$Z$7:$Z$36,'PTRM Data'!AA$7:AA$36)*('BBM Costs'!C$7+'BBM Costs'!C$11) -> 156.593228 | Y10: =_xlfn.XLOOKUP($W10,'PTRM Data'!$Z$7:$Z$36,'PTRM Data'!AB$7:AB$36)*('BBM Costs'!D$7+'BBM Costs'!D$11) -> 163.3241457 | Z10: =_xlfn.XLOOKUP($W10,'PTRM Data'!$Z$7:$Z$36,'PTRM Data'!AC$7:AC$36)*('BBM Costs'!E$7+'BBM Costs'!E$11) -> 172.0259974 | AA10: =_xlfn.XLOOKUP($W10,'PTRM Data'!$Z$7:$Z$36,'PTRM Data'!AD$7:AD$36)*('BBM Costs'!F$7+'BBM Costs'!F$11) -> 188.8348664 | AB10: =_xlfn.XLOOKUP($W10,'PTRM Data'!$Z$7:$Z$36,'PTRM Data'!AE$7:AE$36)*('BBM Costs'!G$7+'BBM Costs'!G$11) -> 199.8101492 | AD10: ='PTRM Data'!B10 -> UG Distribution Cables | AE10: =_xlfn.XLOOKUP(AD10,'PTRM Data'!$B$7:$B$36,'PTRM Data'!$C$7:$C$36) -> 2729.584041
B11: Net Tax Allowance | C11: =_xlfn.XLOOKUP($B11,'PTRM Revenue data'!$B$7:$B$11,'PTRM Revenue data'!C$7:C$11) -> 13.57938424 | D11: =_xlfn.XLOOKUP($B11,'PTRM Revenue data'!$B$7:$B$11,'PTRM Revenue data'!D$7:D$11) -> 16.6304204 | E11: =_xlfn.XLOOKUP($B11,'PTRM Revenue data'!$B$7:$B$11,'PTRM Revenue data'!E$7:E$11) -> 21.56462327 | F11: =_xlfn.XLOOKUP($B11,'PTRM Revenue data'!$B$7:$B$11,'PTRM Revenue data'!F$7:F$11) -> 30.12271791 | G11: =_xlfn.XLOOKUP($B11,'PTRM Revenue data'!$B$7:$B$11,'PTRM Revenue data'!G$7:G$11) -> 30.89142693 | I11: ='Opex costs'!B11 -> Other network maintenance costs | J11: =_xlfn.XLOOKUP($I11,'Opex costs'!$B$7:$B$20,'Opex costs'!C$7:C$20) -> 0 | K11: =_xlfn.XLOOKUP($I11,'Opex costs'!$B$7:$B$20,'Opex costs'!D$7:D$20) -> 0 | L11: =_xlfn.XLOOKUP($I11,'Opex costs'!$B$7:$B$20,'Opex costs'!E$7:E$20) -> 0 | M11: =_xlfn.XLOOKUP($I11,'Opex costs'!$B$7:$B$20,'Opex costs'!F$7:F$20) -> 0 | N11: =_xlfn.XLOOKUP($I11,'Opex costs'!$B$7:$B$20,'Opex costs'!G$7:G$20) -> 0 | P11: ='PTRM Data'!B11 -> Distribution Equipment | Q11: =_xlfn.XLOOKUP($P11,'PTRM Data'!$AU$7:$AU$36,'PTRM Data'!AV$7:AV$36) -> 8.104966925 | R11: =_xlfn.XLOOKUP($P11,'PTRM Data'!$AU$7:$AU$36,'PTRM Data'!AW$7:AW$36) -> 8.33904599 | S11: =_xlfn.XLOOKUP($P11,'PTRM Data'!$AU$7:$AU$36,'PTRM Data'!AX$7:AX$36) -> 9.065884511 | T11: =_xlfn.XLOOKUP($P11,'PTRM Data'!$AU$7:$AU$36,'PTRM Data'!AY$7:AY$36) -> 9.827719475 | U11: =_xlfn.XLOOKUP($P11,'PTRM Data'!$AU$7:$AU$36,'PTRM Data'!AZ$7:AZ$36) -> 10.62468088 | W11: ='PTRM Data'!B11 -> Distribution Equipment | X11: =_xlfn.XLOOKUP($W11,'PTRM Data'!$Z$7:$Z$36,'PTRM Data'!AA$7:AA$36)*('BBM Costs'!C$7+'BBM Costs'!C$11) -> 32.39920883 | Y11: =_xlfn.XLOOKUP($W11,'PTRM Data'!$Z$7:$Z$36,'PTRM Data'!AB$7:AB$36)*('BBM Costs'!D$7+'BBM Costs'!D$11) -> 35.00352 | Z11: =_xlfn.XLOOKUP($W11,'PTRM Data'!$Z$7:$Z$36,'PTRM Data'!AC$7:AC$36)*('BBM Costs'!E$7+'BBM Costs'!E$11) -> 38.14242238 | AA11: =_xlfn.XLOOKUP($W11,'PTRM Data'!$Z$7:$Z$36,'PTRM Data'!AD$7:AD$36)*('BBM Costs'!F$7+'BBM Costs'!F$11) -> 43.1355848 | AB11: =_xlfn.XLOOKUP($W11,'PTRM Data'!$Z$7:$Z$36,'PTRM Data'!AE$7:AE$36)*('BBM Costs'!G$7+'BBM Costs'!G$11) -> 46.94142803 | AD11: ='PTRM Data'!B11 -> Distribution Equipment | AE11: =_xlfn.XLOOKUP(AD11,'PTRM Data'!$B$7:$B$36,'PTRM Data'!$C$7:$C$36) -> 564.7521574
I12: ='Opex costs'!B12 -> Network operations | J12: =_xlfn.XLOOKUP($I12,'Opex costs'!$B$7:$B$20,'Opex costs'!C$7:C$20) -> 60.70095145 | K12: =_xlfn.XLOOKUP($I12,'Opex costs'!$B$7:$B$20,'Opex costs'!D$7:D$20) -> 62.89679946 | L12: =_xlfn.XLOOKUP($I12,'Opex costs'!$B$7:$B$20,'Opex costs'!E$7:E$20) -> 65.20173653 | M12: =_xlfn.XLOOKUP($I12,'Opex costs'!$B$7:$B$20,'Opex costs'!F$7:F$20) -> 69.90932718 | N12: =_xlfn.XLOOKUP($I12,'Opex costs'!$B$7:$B$20,'Opex costs'!G$7:G$20) -> 72.92494644 | P12: ='PTRM Data'!B12 -> Substation Bays | Q12: =_xlfn.XLOOKUP($P12,'PTRM Data'!$AU$7:$AU$36,'PTRM Data'!AV$7:AV$36) -> 14.6147628 | R12: =_xlfn.XLOOKUP($P12,'PTRM Data'!$AU$7:$AU$36,'PTRM Data'!AW$7:AW$36) -> 14.67882429 | S12: =_xlfn.XLOOKUP($P12,'PTRM Data'!$AU$7:$AU$36,'PTRM Data'!AX$7:AX$36) -> 15.40073932 | T12: =_xlfn.XLOOKUP($P12,'PTRM Data'!$AU$7:$AU$36,'PTRM Data'!AY$7:AY$36) -> 16.20872017 | U12: =_xlfn.XLOOKUP($P12,'PTRM Data'!$AU$7:$AU$36,'PTRM Data'!AZ$7:AZ$36) -> 17.05013782 | W12: ='PTRM Data'!B12 -> Substation Bays | X12: =_xlfn.XLOOKUP($W12,'PTRM Data'!$Z$7:$Z$36,'PTRM Data'!AA$7:AA$36)*('BBM Costs'!C$7+'BBM Costs'!C$11) -> 47.14052527 | Y12: =_xlfn.XLOOKUP($W12,'PTRM Data'!$Z$7:$Z$36,'PTRM Data'!AB$7:AB$36)*('BBM Costs'!D$7+'BBM Costs'!D$11) -> 50.49077772 | Z12: =_xlfn.XLOOKUP($W12,'PTRM Data'!$Z$7:$Z$36,'PTRM Data'!AC$7:AC$36)*('BBM Costs'!E$7+'BBM Costs'!E$11) -> 54.93802368 | AA12: =_xlfn.XLOOKUP($W12,'PTRM Data'!$Z$7:$Z$36,'PTRM Data'!AD$7:AD$36)*('BBM Costs'!F$7+'BBM Costs'!F$11) -> 61.5580413 | AB12: =_xlfn.XLOOKUP($W12,'PTRM Data'!$Z$7:$Z$36,'PTRM Data'!AE$7:AE$36)*('BBM Costs'!G$7+'BBM Costs'!G$11) -> 66.39170625 | AD12: ='PTRM Data'!B12 -> Substation Bays | AE12: =_xlfn.XLOOKUP(AD12,'PTRM Data'!$B$7:$B$36,'PTRM Data'!$C$7:$C$36) -> 821.7087487
B13: Total | C13: =SUM(C7:C11) -> 1563.514079 | D13: =SUM(D7:D11) -> 1655.474318 | E13: 1760.904689 | F13: 1930.175703 | G13: 2034.809463 | I13: ='Opex costs'!B13 -> Network billing and other energy market services | J13: =_xlfn.XLOOKUP($I13,'Opex costs'!$B$7:$B$20,'Opex costs'!C$7:C$20) -> 3.8900765 | K13: =_xlfn.XLOOKUP($I13,'Opex costs'!$B$7:$B$20,'Opex costs'!D$7:D$20) -> 4.030799446 | L13: =_xlfn.XLOOKUP($I13,'Opex costs'!$B$7:$B$20,'Opex costs'!E$7:E$20) -> 4.178513465 | M13: =_xlfn.XLOOKUP($I13,'Opex costs'!$B$7:$B$20,'Opex costs'!F$7:F$20) -> 4.480203758 | N13: =_xlfn.XLOOKUP($I13,'Opex costs'!$B$7:$B$20,'Opex costs'!G$7:G$20) -> 4.673462501 | P13: ='PTRM Data'!B13 -> Substation Establishment | Q13: =_xlfn.XLOOKUP($P13,'PTRM Data'!$AU$7:$AU$36,'PTRM Data'!AV$7:AV$36) -> 2.290978944 | R13: =_xlfn.XLOOKUP($P13,'PTRM Data'!$AU$7:$AU$36,'PTRM Data'!AW$7:AW$36) -> 2.227917363 | S13: =_xlfn.XLOOKUP($P13,'PTRM Data'!$AU$7:$AU$36,'PTRM Data'!AX$7:AX$36) -> 2.683571652 | T13: =_xlfn.XLOOKUP($P13,'PTRM Data'!$AU$7:$AU$36,'PTRM Data'!AY$7:AY$36) -> 3.181402087 | U13: =_xlfn.XLOOKUP($P13,'PTRM Data'!$AU$7:$AU$36,'PTRM Data'!AZ$7:AZ$36) -> 3.683561293 | W13: ='PTRM Data'!B13 -> Substation Establishment | X13: =_xlfn.XLOOKUP($W13,'PTRM Data'!$Z$7:$Z$36,'PTRM Data'!AA$7:AA$36)*('BBM Costs'!C$7+'BBM Costs'!C$11) -> 33.97443044 | Y13: =_xlfn.XLOOKUP($W13,'PTRM Data'!$Z$7:$Z$36,'PTRM Data'!AB$7:AB$36)*('BBM Costs'!D$7+'BBM Costs'!D$11) -> 35.17822769 | Z13: =_xlfn.XLOOKUP($W13,'PTRM Data'!$Z$7:$Z$36,'PTRM Data'!AC$7:AC$36)*('BBM Costs'!E$7+'BBM Costs'!E$11) -> 36.57548128 | AA13: =_xlfn.XLOOKUP($W13,'PTRM Data'!$Z$7:$Z$36,'PTRM Data'!AD$7:AD$36)*('BBM Costs'!F$7+'BBM Costs'!F$11) -> 39.31366727 | AB13: =_xlfn.XLOOKUP($W13,'PTRM Data'!$Z$7:$Z$36,'PTRM Data'!AE$7:AE$36)*('BBM Costs'!G$7+'BBM Costs'!G$11) -> 40.68350306 | AD13: ='PTRM Data'!B13 -> Substation Establishment | AE13: =_xlfn.XLOOKUP(AD13,'PTRM Data'!$B$7:$B$36,'PTRM Data'!$C$7:$C$36) -> 592.2099205
